Workbook

Sheet Customer Information
K2: HVAC Calculator Tool
K4: V.1.3
B6: Customer Information
C7: Name | G7: Phone
C8: Contact | G8: Email
B10: Building Information
C11: Address | G11: Type | H11: Convention Center
C12: City | G12: SQFT
C13: Zip | D13: 94127 | E13: Zone | F13: =VLOOKUP(D13,tbl_ZIP_Code,2,0) -> 3 | G13: Year Built
B15: Consumption
C16: Peak kW | D16: kWh | E16: Therms | F16: Electric Cost | G16: Therm Cost
B17: Jan | H17: Include Total Cost for customers that receive bundled service. If the customer is direct access and the commodity cost is available, it should be included. Otherwise the Total Cost can be omitted.
B18: Feb
B19: Mar
B20: Apr
B21: May
B22: Jun
B23: Jul
B24: Aug
B25: Sep
B26: Oct
B27: Nov
B28: Dec | H28: $/kWh | J28: $/Therm
B29: Annual | C29: =MAX($C$17:$C$28) -> 0 | D29: =SUM($D$17:$D$28) -> 0 | E29: =SUM($E$17:$E$28) -> 0 | F29: =MAX($F$17:$F$28) -> 0 | G29: =SUM($G$17:$G$28) -> 0 | H29: =$F$29/$D$29 ->  | J29: =$G$29/$E$29 -> 
B31: Current PG&E Incentive Rates ($/unit)
C32: Basic Non Lighting | D32: 0.08 | E32: /kWh | H32: Peak Demand | I32: 150 | J32: /kW
C33: Target Non Lighting | D33: 0.15 | E33: /kWh | H33: Natural Gas | I33: 1 | J33: /therm
C34: To Code/ISP Electric | D34: 0.03 | E34: /kWh | H34: To Code/ISP Natural Gas | I34: 0.4 | J34: /therm
B36: Additional Information Section

Sheet Chilled Water System Template (hidden)
B1: Chilled Water Side System Calculations
B2: Chillers, Cooling Towers & Pumps Specifications | I2: Cost | K2: Enable | O2: Savings From Baseline | R2: Chiller, PCHWP, SCHWP kW | S2: Chiller, PCHWP, SCHWP kWh | T2: Cooling Tower Fan kW | U2: Cooling Tower Fan kWh | V2: Condenser Pump kW | W2: Condenser Pump kWh | X2: Total kW | Y2: Total kWh | Z2: Cost | AA2: Incentives
B3: Chiller Specifications | Q3: Chiller Replacement (or Load Change) | R3: =R27-R28 -> 0 | S3: 0 | T3: 0 | U3: 0 | V3: 0 | W3: 0 | X3: =SUM(R3,T3,V3) -> 0 | Y3: =SUM(S3,U3,W3) -> 0 | Z3: =J2 -> 0 | AA3: 0
D4: Baseline | I4: Proposed | Q4: Chilled Water Plant Lockout Control | R4: =R28-R29 -> 0 | S4: 0 | T4: 0 | U4: 0 | V4: 0 | W4: 0 | X4: =SUM(R4,T4,V4) -> 0 | Y4: =SUM(S4,U4,W4) -> 0 | Z4: =K45 -> 0 | AA4: 0
C5: CH1 | D5: CH2 | E5: CH3 | H5: CH1 | I5: CH2 | J5: CH3 | Q5: Chiller Staging Sequence Optimization | R5: =R29-R30 -> 0 | S5: 0 | T5: 0 | U5: 0 | V5: 0 | W5: 0 | X5: 0 | Y5: 0 | Z5: =K49 -> 0 | AA5: 0
C6: Main Chiller | D6: Lag Chiller | E6: Third Chiller | F6: Equipment Name | H6: Main Chiller | I6: Lag Chiller | J6: Third Chiller | Q6: Chilled Water Temperature Reset | R6: =R30-R31 -> 0 | S6: 0 | T6: 0 | U6: 0 | V6: 0 | W6: 0 | X6: 0 | Y6: 0 | Z6: =K61 -> 0 | AA6: 0
C7: 700 | D7: 700 | E7: 700 | F7: Capacity (tons) | H7: 700 | I7: 700 | J7: 700 | K7: =IF(OR(C7<>H7,D7<>I7,E7<>J7),"*","") ->  | Q7: Condenser Water Temperature Reset | R7: =R31-R32 -> 0 | S7: 0 | T7: 0 | U7: 0 | V7: 0 | W7: 0 | X7: 0 | Y7: 0 | Z7: =K68 -> 0 | AA7: 0
C8: 0.55 | D8: 0.55 | E8: 0.55 | F8: kW/Ton (part load) | H8: 0.55 | I8: 0.55 | J8: 0.55 | K8: =IF(OR(C8<>H8,D8<>I8,E8<>J8),"*","") ->  | Q8: Water Side Economizer Optimization | R8: =R32-R33 -> 0 | S8: 0 | T8: 0 | U8: 0 | V8: 0 | W8: 0 | X8: 0 | Y8: 0 | Z8: =K75 -> 0 | AA8: 0
C9: 44 | D9: 44 | E9: 44 | F9: Design CHWT | H9: 44 | I9: 44 | J9: 44 | K9: =IF(OR(C9<>H9,D9<>I9,E9<>J9),"*","") ->  | Q9: Cooling Tower Staging Sequence Optimization | R9: =R33-R34 -> 0 | S9: 0 | T9: 0 | U9: 0 | V9: 0 | W9: 0 | X9: 0 | Y9: 0 | Z9: =K81 -> 0 | AA9: 0
C10: 85 | D10: 85 | E10: 85 | F10: Design CWT | H10: 85 | I10: 85 | J10: 85 | K10: =IF(OR(C10<>H10,D10<>I10,E10<>J10),"*","") ->  | Q10: Secondary Chilled Water Pump VFD | R10: =R34-R35 -> 0 | S10: 0 | T10: 0 | U10: 0 | V10: 0 | W10: 0 | X10: =SUM(R10,T10,V10) -> 0 | Y10: 0 | Z10: =K92 -> 0 | AA10: 0
D11: Start Time | E11: Stop Time | G11: New Chiller Type (if replaced) | Q11: Chilled Water Differential Pressure Reset | R11: =R35-R36 -> 0 | S11: 0 | T11: 0 | U11: 0 | V11: 0 | W11: 0 | X11: 0 | Y11: 0 | Z11: =K99 -> 0 | AA11: 0
C12: Weekday | D12: 4 | E12: 18 | G12: CH1 | H12: Chiller Not Being Replaced | Q12: Condenser Water Pump VFD | R12: =R36-R37 -> 0 | S12: 0 | T12: 0 | U12: 0 | V12: 0 | W12: 0 | X12: 0 | Y12: 0 | Z12: =K105 -> 0 | AA12: 0
C13: Saturday | D13: 4 | E13: 18 | G13: CH2 | H13: Chiller Not Being Replaced | Q13: Total | R13: =SUM(R3:R12) -> 0 | S13: 0 | T13: 0 | U13: 0 | V13: 0 | W13: 0 | X13: 0 | Y13: 0 | Z13: =SUM(Z3:Z12) -> 0 | AA13: =SUM(AA3:AA12) -> 0
C14: Sunday | D14: 4 | E14: 18 | G14: CH3 | H14: Chiller Not Being Replaced | O14: Savings From Title 24 | R14: Chiller, PCHWP, SCHWP kW | S14: Chiller, PCHWP, SCHWP kWh | T14: Cooling Tower Fan kW | U14: Cooling Tower Fan kWh | V14: Condenser Pump kW | W14: Condenser Pump kWh | X14: Total kW | Y14: Total kWh
Q15: Chiller Replacement (or Load Change) | R15: 0 | S15: 0 | T15: 0 | U15: 0 | V15: 0 | W15: 0 | X15: =SUM(R15,T15,V15) -> 0 | Y15: =SUM(S15,U15,W15) -> 0
B16: Building Cooling Load Change | Q16: Chilled Water Plant Lockout Control | R16: 0 | S16: 0 | T16: 0 | U16: 0 | V16: 0 | W16: 0 | X16: =SUM(R16,T16,V16) -> 0 | Y16: =SUM(S16,U16,W16) -> 0
D17: Baseline | H17: Proposed | Q17: Chiller Staging Sequence Optimization | R17: 0 | S17: 0 | T17: 0 | U17: 0 | V17: 0 | W17: 0 | X17: 0 | Y17: 0
D18: Simple Data | F18: Data Type | H18: Simple Data | Q18: Chilled Water Temperature Reset | R18: 0 | S18: 0 | T18: 0 | U18: 0 | V18: 0 | W18: 0 | X18: 0 | Y18: 0
D19: 200 | E19: 1400 | F19: Building Load Tons | H19: 200 | I19: 1400 | J19: =IF(OR(D19<>H19,E19<>I19),"*","") ->  | Q19: Condenser Water Temperature Reset | R19: 0 | S19: 0 | T19: 0 | U19: 0 | V19: 0 | W19: 0 | X19: 0 | Y19: 0
D20: 55 | E20: 90 | F20: ="@OAT" -> @OAT | H20: 55 | I20: 90 | J20: =IF(OR(D20<>H20,E20<>I20),"*","") ->  | Q20: Water Side Economizer Optimization | R20: 0 | S20: 0 | T20: 0 | U20: 0 | V20: 0 | W20: 0 | X20: 0 | Y20: 0
Q21: Cooling Tower Staging Sequence Optimization | R21: 0 | S21: 0 | T21: 0 | U21: 0 | V21: 0 | W21: 0 | X21: 0 | Y21: 0
B22: Primary Pumps | H22: Secondary Pumps | Q22: Secondary Chilled Water Pump VFD | R22: 0 | S22: 0 | T22: 0 | U22: 0 | V22: 0 | W22: 0 | X22: =SUM(R22,T22,V22) -> 0 | Y22: 0
D23: PCHWP1 | E23: PCHWP2 | F23: PCHWP3 | H23: SCHWP | Q23: Chilled Water Differential Pressure Reset | R23: 0 | S23: 0 | T23: 0 | U23: 0 | V23: 0 | W23: 0 | X23: 0 | Y23: 0
C24: Flow (gpm) | D24: 1120 | E24: 1120 | F24: 1120 | H24: 1120 | I24: Flow (gpm) | Q24: Condenser Water Pump VFD | R24: 0 | S24: 0 | T24: 0 | U24: 0 | V24: 0 | W24: 0 | X24: 0 | Y24: 0
C25: Head (ft) | D25: 20 | E25: 20 | F25: 20 | H25: 40 | I25: Motor (hp) | Q25: Total | R25: =SUM(R15:R24) -> 0 | S25: 0 | T25: 0 | U25: 0 | V25: 0 | W25: 0 | X25: 0 | Y25: 0
C26: Motor Eff (%) | D26: 0.8 | E26: 0.8 | F26: 0.8 | H26: 0.82 | I26: Motor Efficiency (%) | O26: Consumption | R26: Chiller, PCHWP, SCHWP kW | S26: Chiller, PCHWP, SCHWP kWh | T26: Cooling Tower Fan kW | U26: Cooling Tower Fan kWh | V26: Condenser Pump kW | W26: Condenser Pump kWh | X26: Total kW | Y26: Total kWh
C27: Pump Eff (%) | D27: 0.8 | E27: 0.8 | F27: 0.8 | H27: 0.8 | I27: Pump Efficiency (%) | Q27: Baseline | R27: 361.6196738 | S27: 1016006.944 | T27: 75.73870212 | U27: 86281.05383 | V27: 46.54188948 | W27: 170529.4831 | X27: =SUM(R27,T27,V27) -> 483.9002654 | Y27: =SUM(S27,U27,W27) -> 1272817.48
H28: Max | I28: Min | Q28: Chiller Replacement (or Load Change) | R28: 361.6196738 | S28: 1016006.944 | T28: 75.73870212 | U28: 86281.05383 | V28: 46.54188948 | W28: 170529.4831 | X28: =SUM(R28,T28,V28) -> 483.9002654 | Y28: =SUM(S28,U28,W28) -> 1272817.48
H29: 2 | I29: 1 | J29: Pump Qty Operating | Q29: Chilled Water Plant Lockout Control | R29: 361.6196738 | S29: 1016006.944 | T29: 75.73870212 | U29: 86281.05383 | V29: 46.54188948 | W29: 170529.4831 | X29: 483.9002654 | Y29: 1272817.48
H30: 80 | I30: 65 | J30: ="@OAT" -> @OAT | Q30: Chiller Staging Sequence Optimization | R30: 361.6196738 | S30: 1016006.944 | T30: 75.73870212 | U30: 86281.05383 | V30: 46.54188948 | W30: 170529.4831 | X30: 483.9002654 | Y30: 1272817.48
Q31: Chilled Water Temperature Reset | R31: 361.6196738 | S31: 1016006.944 | T31: 75.73870212 | U31: 86281.05383 | V31: 46.54188948 | W31: 170529.4831 | X31: 483.9002654 | Y31: 1272817.48
B32: Cooling Tower Specs | Q32: Condenser Water Temperature Reset | R32: 361.6196738 | S32: 1016006.944 | T32: 75.73870212 | U32: 86281.05383 | V32: 46.54188948 | W32: 170529.4831 | X32: 483.9002654 | Y32: 1272817.48
D33: CT - 1 | E33: CT - 2 | F33: CT - 3 | Q33: Water Side Economizer Optimization | R33: 361.6196738 | S33: 1016006.944 | T33: 75.73870212 | U33: 86281.05383 | V33: 46.54188948 | W33: 170529.4831 | X33: 483.9002654 | Y33: 1272817.48
C34: Capacity (tons) | D34: 875 | E34: 875 | F34: 875 | Q34: Cooling Tower Staging Sequence Optimization | R34: 361.6196738 | S34: 1016006.944 | T34: 75.73870212 | U34: 86281.05383 | V34: 46.54188948 | W34: 170529.4831 | X34: 483.9002654 | Y34: 1272817.48
C35: Fan (hp) | D35: 30 | E35: 30 | F35: 30 | Q35: Secondary Chilled Water Pump VFD | R35: 361.6196738 | S35: 1016006.944 | T35: 75.73870212 | U35: 86281.05383 | V35: 46.54188948 | W35: 170529.4831 | X35: 483.9002654 | Y35: 1272817.48
C36: Motor Eff (%) | D36: 0.85 | E36: 0.85 | F36: 0.85 | Q36: Chilled Water Differential Pressure Reset | R36: 361.6196738 | S36: 1016006.944 | T36: 75.73870212 | U36: 86281.05383 | V36: 46.54188948 | W36: 170529.4831 | X36: 483.9002654 | Y36: 1272817.48
C37: Min Fan Speed | D37: 0.2 | E37: 0.2 | F37: 0.2 | Q37: Condenser Water Pump VFD | R37: 361.6196738 | S37: 1016006.944 | T37: 75.73870212 | U37: 86281.05383 | V37: 46.54188948 | W37: 170529.4831 | X37: 483.9002654 | Y37: 1272817.48
Q38: Proposed | R38: =INDEX(tbl_Chiller_Calc_Engine736[Chiller kW],$C$126) -> 361.6196738 | S38: =SUM(tbl_Chiller_Calc_Engine736[Chiller kWh]) -> 1016006.944 | T38: =INDEX(tbl_Chiller_Calc_Engine736[CT Fan kW],$C$126) -> 75.73870212 | U38: =SUM(tbl_Chiller_Calc_Engine736[CT Fan kWh]) -> 86281.05383 | V38: =INDEX(tbl_Chiller_Calc_Engine736[CWP kW],$C$126) -> 46.54188948 | W38: =SUM(tbl_Chiller_Calc_Engine736[CWP kWh]) -> 170529.4831 | X38: =SUM(R38,T38,V38) -> 483.9002654 | Y38: =SUM(S38,U38,W38) -> 1272817.48
B39: Condenser Pumps
C40: Flow (gpm) | D40: 2100 | F40: Max | G40: Min
C41: Head (ft) | D41: 40 | F41: 2 | G41: 1 | H41: # Pumps operating
C42: Motor Eff | D42: 0.85 | F42: 85 | G42: 60 | H42: ="@OAT" -> @OAT
C43: Pump Eff | D43: 0.8
B45: Chilled Water Plant Lockout Control | J45: Cost | L45: Disable
E46: Baseline | I46: Proposed
E47: 50 | F47: Cooling Lookout Temp | I47: 50 | J47: =IF(OR(E47<>I47),"*","") -> 
B49: Chiller Staging Sequence Optimization | J49: Cost | L49: Disable
D50: Baseline | J50: Proposed
C51: CH1 | D51: CH2 | E51: CH3 | F51: Capacity | G51: Stage | H51: Capacity | I51: CH1 | J51: CH2 | K51: CH3
C52: =C7 -> 700 | D52: =D7 -> 700 | E52: =E7 -> 700 | F52: Tons | H52: Tons | I52: =H7 -> 700 | J52: =I7 -> 700 | K52: =J7 -> 700
C53: On | F53: =SUMIF(C53:E53,"On",$C$52:$E$52) -> 700 | G53: 1 | H53: =SUMIF($I53:$K53,"On",$I$52:$K$52) -> 700 | I53: On | L53: =IF(OR(C53<>I53,D53<>J53,E53<>K53),"*","") -> 
E54: On | F54: =SUMIF(C54:E54,"On",$C$52:$E$52) -> 700 | G54: 2 | H54: 700 | K54: On | L54: =IF(OR(C54<>I54,D54<>J54,E54<>K54),"*","") -> 
C55: On | E55: On | F55: 1400 | G55: 3 | H55: 1400 | I55: On | K55: On
C56: On | D56: On | E56: On | F56: 2100 | G56: 4 | H56: 2100 | I56: On | J56: On | K56: On
F57: 0 | G57: 5 | H57: 0
F58: 0 | G58: 6 | H58: 0
F59: 0 | G59: 7 | H59: 0
B61: Chilled Water Temperature Reset | J61: Cost | L61: Disable
D62: Baseline | I62: Proposed
D63: Simple Data | G63: Data Type | I63: Simple Data
D64: Min OAT | E64: Max OAT | I64: Min OAT | J64: Max OAT
D65: 45 | E65: 45 | F65: Chilled Water Temperature Reset | I65: 45 | J65: 50 | K65: =IF(OR(D65<>I65,E65<>J65),"*","") -> *
D66: 55 | E66: 85 | G66: @ OAT | I66: 55 | J66: 85 | K66: =IF(OR(D66<>I66,E66<>J66),"*","") -> 
B68: Condenser Water Temperature Reset | J68: Cost | L68: Disable
D69: Baseline | I69: Proposed
D70: Simple Data | F70: Data Type | I70: Simple Data
D71: Min OAT | E71: Max OAT | I71: Min OAT | J71: Max OAT
D72: 75 | E72: 75 | F72: Condenser Water Temp | I72: 75 | J72: 75 | K72: =IF(OR(D72<>I72,E72<>J72),"*","") -> 
D73: 55 | E73: 75 | F73: @ OAT (wet bulb) | I73: 55 | J73: 75 | K73: =IF(OR(D73<>I73,E73<>J73),"*","") -> 
B75: Water Side Economizer Optimization | J75: Cost | L75: Disable
D76: Baseline | I76: Proposed
D77: 6 | F77: CT Approach for WSE (°F) | I77: 6 | K77: =IF(OR(D77<>I77,E77<>J77),"*","") -> 
D78: -1 | F78: WSE Enable OAT Wet Bulb (°F) | I78: -1 | K78: =IF(OR(D78<>I78,E78<>J78),"*","") -> 
D79: 2 | F79: HX Approach (°F) | I79: 2 | K79: =IF(OR(D79<>I79,E79<>J79),"*","") -> 
B81: Cooling Tower Staging Sequence Optimization | J81: Cost | L81: Disable
D82: Baseline Staging | J82: Proposed Staging
C83: CT1 | D83: CT2 | E83: CT3 | F83: Tons | G83: Stage | H83: Tons | I83: CT1 | J83: CT2 | K83: CT3
C84: On | F84: =SUMIF(C84:E84,"On",$D$34:$F$34) -> 875 | G84: 1 | H84: =SUMIF(I84:K84,"On",$D$34:$F$34) -> 875 | I84: On | L84: =IF(OR(C84<>I84,D84<>J84,E84<>K84),"*","") -> 
D85: On | F85: 875 | G85: 2 | H85: 875 | J85: On | L85: =IF(OR(C85<>I85,D85<>J85,E85<>K85),"*","") -> 
C86: On | D86: On | E86: On | F86: 2625 | G86: 3 | H86: 2625 | I86: On | J86: On | K86: On
F87: 0 | G87: 4 | H87: 0
F88: 0 | G88: 5 | H88: 0
F89: 0 | G89: 6 | H89: 0
F90: 0 | G90: 7 | H90: 0
B92: Secondary Chilled Water Pump VFD And Speed Control | J92: Cost | L92: Disable
D93: Simple Data | F93: Data Type | I93: Simple Data
D94: Min OAT | E94: Max OAT | I94: Min OAT | J94: Max OAT
D95: 0.2 | E95: 1 | F95: Pump Speed (%) | I95: 0.2 | J95: 1 | K95: =IF(OR(D95<>I95,E95<>J95),"*","") -> 
D96: 60 | E96: 80 | F96: @ OAT | I96: 60 | J96: 80 | K96: =IF(OR(D96<>I96,E96<>J96),"*","") -> 
D97: VFD | F97: Pump Control | I97: VFD | K97: =IF(OR(D97<>I97,E97<>J97),"*","") -> 
B99: Chilled Water Differential Pressure Reset | J99: Cost | L99: Disable
D100: Simple Data | F100: Data Type | I100: Simple Data
D101: Min | E101: Max | I101: Min | J101: Max
D102: 45 | E102: 45 | F102: Chilled Water Differential PSI | I102: 45 | J102: 45 | K102: =IF(OR(D102<>I102,E102<>J102),"*","") -> 
D103: 65 | E103: 80 | F103: @ OAT | I103: 65 | J103: 80 | K103: =IF(OR(D103<>I103,E103<>J103),"*","") -> 
B105: Condenser Water Pump VFD And Speed Control | J105: Cost | L105: Disable
D106: Simple Data | F106: Data Type | I106: Simple Data
D107: Min | E107: Max | I107: Min | J107: Max
D108: 1 | E108: 1 | F108: Pump Speed (%) | I108: 0.8 | J108: 0.8 | K108: =IF(OR(D108<>I108,E108<>J108),"*","") -> *
D109: 60 | E109: 80 | F109: @ OAT | I109: 60 | J109: 80 | K109: =IF(OR(D109<>I109,E109<>J109),"*","") -> 
D110: Constant | F110: Pump Control | I110: VFD | K110: =IF(OR(D110<>I110,E110<>J110),"*","") -> *
B112: Processing
C113: FALSE | D113: Title 24
C114: Proposed | D114: Cooling Load/Chiller Change | I114: Condenser Water Temperature Reset | N114: Chilled Water Temperature Reset | Q114: Cooling Tower Staging Sequence Optimization | W114: Chiller Staging Sequence Optimization
C115: Proposed | D115: Chilled Water Plant Lockout Control | I115: =IF(OR($L$68="Disable",I70="",$C$118="Baseline"),D70,I70) -> Simple Data | J115: Data Type | N115: =IF(OR($L$61="Disable",I63="",$C$117="Baseline"),D63,I63) -> Simple Data | O115: Data Type | Q115: Baseline | R115: Proposed | W115: Baseline | X115: Proposed | Y115: T24 | Z115: =IF($H$12<>"Chiller Not Being Replaced",Find_Title24_Eff($H$12,Z117,$AE$118:$AE$129,$AF$118:$AF$129,$AG$118:$AG$129,$AH$118:$AH$129),$C$8) -> 0.55 | AA115: =IF($H$13<>"Chiller Not Being Replaced",Find_Title24_Eff($H$13,AA117,$AE$118:$AE$129,$AF$118:$AF$129,$AG$118:$AG$129,$AH$118:$AH$129),$D$8) -> 0.55 | AB115: =IF($H$14<>"Chiller Not Being Replaced",Find_Title24_Eff($H$14,AB117,$AE$118:$AE$129,$AF$118:$AF$129,$AG$118:$AG$129,$AH$118:$AH$129),$E$8) -> 0.55 | AE115: TABLE 110.2-D WATER CHILLING PACKAGES – MINIMUM EFFICIENCY REQUIREMENTS
C116: Proposed | D116: Chiller Staging Sequence Optimization | I116: Min OAT | J116: Max OAT | N116: Min OAT | O116: Max OAT | Q116: =TRIM(CONCATENATE(IF($C84="On",$C$83&" ","")&IF($D84="On",$D$83&" ","")&IF($E84="On",$E$83&" ",""))) -> CT1 | R116: =TRIM(CONCATENATE(IF($I84="On",$I$83&" ","")&IF($J84="On",$J$83&" ","")&IF($K84="On",$K$83&" ",""))) -> CT1 | T116: CT1 | U116: CT2 | V116: CT3 | W116: =TRIM(CONCATENATE(IF($C53="On",$C$51&" ","")&IF($D53="On",$D$51&" ","")&IF($E53="On",$E$51&" ",""))) -> CH1 | X116: =TRIM(IF($I53="On",$I$51&" ","")&IF($J53="On",$J$51&" ","")&IF($K53="On",$K$51&" ","")) -> CH1 | Z116: CH1 | AA116: CH2 | AB116: CH3 | AE116: Equipment Type | AF116: Size (Tons) | AH116: Path A Efficiency
C117: Proposed | D117: Chilled Water Temperature Reset | I117: =IF(OR($L$68="Disable",I72="",$C$118="Baseline"),D72,I72) -> 75 | J117: =IF(OR($L$68="Disable",J72="",$C$118="Baseline"),E72,J72) -> 75 | K117: CWT | N117: =IF(OR($L$61="Disable",I65="",$C$117="Baseline"),D65,I65) -> 45 | O117: =IF(OR($L$61="Disable",J65="",$C$117="Baseline"),E65,J65) -> 45 | P117: CHWT | Q117: CT2 | R117: CT2 | S117: Capacity | T117: =D34 -> 875 | U117: 875 | V117: 875 | W117: CH3 | X117: CH3 | Y117: Capacity | Z117: =IF(OR($K$2="Disable",$C$114="Baseline"),C7,H7) -> 700 | AA117: =IF(OR($K$2="Disable",$C$114="Baseline"),D7,I7) -> 700 | AB117: =IF(OR($K$2="Disable",$C$114="Baseline"),E7,J7) -> 700 | AF117: >= | AG117: < | AH117: IPLV kW/ton
C118: Proposed | D118: Condenser Water Temperature Reset | I118: =IF(OR($L$68="Disable",I73="",$C$118="Baseline"),D73,I73) -> 55 | J118: =IF(OR($L$68="Disable",J73="",$C$118="Baseline"),E73,J73) -> 75 | K118: @ OAT | N118: =IF(OR($L$61="Disable",I66="",$C$117="Baseline"),D66,I66) -> 55 | O118: =IF(OR($L$61="Disable",J66="",$C$117="Baseline"),E66,J66) -> 85 | P118: @ OAT | Q118: CT1 CT2 CT3 | R118: CT1 CT2 CT3 | S118: HP | T118: 30 | U118: 30 | V118: 30 | W118: CH1 CH3 | X118: CH1 CH3 | Y118: kW/Ton | Z118: =IF(OR($K$2="Disable",$C$114="Baseline"),IF($C$113,Z$115,C$8),H$8) -> 0.55 | AA118: =IF(OR($K$2="Disable",$C$114="Baseline"),IF($C$113,AA$115,D$8),I$8) -> 0.55 | AB118: =IF(OR($K$2="Disable",$C$114="Baseline"),IF($C$113,AB$115,E$8),J$8) -> 0.55 | AE118: Air Cooled | AF118: 0 | AG118: 150 | AH118: 0.876
C119: Proposed | D119: Water Side Economizer Optimization | I119: Chilled Water Differential Pressure Reset | N119: Building Cooling Load Change | S119: Motor Efficiency (%) | T119: 0.85 | U119: 0.85 | V119: 0.85 | W119: CH1 CH2 CH3 | X119: CH1 CH2 CH3 | Y119: Design CHWT | Z119: =IF(OR($K$2="Disable",$C$114="Baseline"),C9,H9) -> 44 | AA119: 44 | AB119: 44 | AE119: Air Cooled | AF119: 150 | AG119: 0 | AH119: 0.857
C120: Proposed | D120: Cooling Tower Staging Sequence Optimization | I120: =IF(OR($L$99="Disable",I100="",$C$122="Baseline"),D100,I100) -> Simple Data | J120: Data Type | N120: Min OA Temp | O120: Max OA Temp | S120: Minimum Fan Speed | T120: 0.2 | U120: 0.2 | V120: 0.2 | Y120: Design CWT | Z120: 85 | AA120: 85 | AB120: 85 | AE120: Water Cooled (Non-Centrifugal) | AF120: 0 | AG120: 75 | AH120: 0.6
C121: Proposed | D121: Secondary Chilled Water Pump VFD | I121: Min | J121: Max | N121: =IF(OR($C$114="Baseline",H18="",$K$2="Disable"),D18,H18) -> Simple Data | AE121: Water Cooled (Non-Centrifugal) | AF121: 75 | AG121: 150 | AH121: 0.56
C122: Proposed | D122: Chilled Water Differential Pressure Reset | I122: =IF(OR($L$99="Disable",I102="",$C$123="Baseline"),D102,I102) -> 45 | J122: =IF(OR($L$99="Disable",J102="",$C$123="Baseline"),E102,J102) -> 45 | K122: Psi | N122: =IF(OR($C$114="Baseline",$K$2="Disable"),D19,H19) -> 200 | O122: =IF(OR($C$114="Baseline",$K$2="Disable"),E19,I19) -> 1400 | P122: Tons | AE122: Water Cooled (Non-Centrifugal) | AF122: 150 | AG122: 300 | AH122: 0.54
C123: Proposed | D123: Condenser Water Pump VFD | I123: =IF(OR($L$99="Disable",I103="",$C$123="Baseline"),D103,I103) -> 65 | J123: =IF(OR($L$99="Disable",J103="",$C$123="Baseline"),E103,J103) -> 80 | K123: @ OAT | N123: =IF(OR($C$114="Baseline",$K$2="Disable"),D20,H20) -> 55 | O123: =IF(OR($C$114="Baseline",$K$2="Disable"),E20,I20) -> 90 | P123: ="@OAT" -> @OAT | Q123: Stage | R123: Capacity | S123: Cooling Tower | T123: CT1 % Load | U123: CT2 % Load | V123: CHT3 % Load | W123: Stage | X123: Capacity | Y123: Chiller | Z123: CH1 % Load | AA123: CH2 % Load | AB123: CH3 % Load | AE123: Water Cooled (Non-Centrifugal) | AF123: 300 | AG123: 600 | AH123: 0.52
I124: Condenser Water Pump VFD | N124: Secondary Chilled Water Pump VFD | Q124: =IF(S124="","",$G84) -> 1 | R124: =IF(S124="","",SUMPRODUCT(--(ISNUMBER(FIND($T$116:$V$116,S124))),$T$117:$V$117)) -> 875 | S124: =IF(OR($L$81="Disable",$C$120="Baseline"),$Q116,$R116) -> CT1 | T124: =IF(ISNUMBER(SEARCH(T$116,$S124)),T$117/$R124,0) -> 1 | U124: 0 | V124: 0 | W124: =IF(Y124="","",$G53) -> 1 | X124: =IF(Y124="","",SUMPRODUCT(--(ISNUMBER(FIND($Z$116:$AB$116,Y124))),$Z$117:$AB$117)) -> 700 | Y124: =IF(OR($L$49="Disable",$C$116="Baseline"),$W116,$X116) -> CH1 | Z124: =IF(ISNUMBER(SEARCH(Z$116,$Y124)),Z$117/$X124,0) -> 1 | AA124: 0 | AB124: 0 | AE124: Water Cooled (Non-Centrifugal) | AF124: 600 | AG124: 0 | AH124: 0.5
C125: ='CTZ2'!$U$3 -> 69 | D125: Peak Demand Temp | I125: =IF(OR($L$105="Disable",I106="",$C$123="Baseline"),D106,I106) -> Simple Data | J125: Data Type | N125: =IF(OR($L$92="Disable",I93="",$C$121="Baseline"),D93,I93) -> Simple Data | O125: Data Type | Q125: 2 | R125: 875 | S125: CT2 | T125: 0 | U125: 1 | V125: 0 | W125: 2 | X125: 700 | Y125: CH3 | Z125: 0 | AA125: 0 | AB125: 1 | AE125: Water Cooled (Centrifugal) | AF125: 0 | AG125: 150 | AH125: 0.55
C126: =MATCH(C125,tbl_Chiller_Calc_Engine736[OAT],0) -> 47 | D126: Peak Line | I126: Min | J126: Max | N126: Min OAT | O126: Max OAT | Q126: 3 | R126: 2625 | S126: CT1 CT2 CT3 | T126: 0.3333333333 | U126: 0.3333333333 | V126: 0.3333333333 | W126: 3 | X126: 1400 | Y126: CH1 CH3 | Z126: 0.5 | AA126: 0 | AB126: 0.5 | AE126: Water Cooled (Centrifugal) | AF126: 150 | AG126: 300 | AH126: 0.55
C127: 0.014 | D127: Eff Gain (assumption) | I127: =IF(OR($L$105="Disable",I108="",$C$123="Baseline"),D108,I108) -> 1 | J127: =IF(OR($L$105="Disable",J108="",$C$123="Baseline"),E108,J108) -> 1 | K127: Pump Speed (%) | N127: =IF(OR($L$92="Disable",I95="",$C$121="Baseline"),D95,I95) -> 0.2 | O127: =IF(OR($L$92="Disable",J95="",$C$121="Baseline"),E95,J95) -> 1 | P127: Pump Speed (%) | T127: 0 | U127: 0 | V127: 0 | W127: 4 | X127: 2100 | Y127: CH1 CH2 CH3 | Z127: 0.3333333333 | AA127: 0.3333333333 | AB127: 0.3333333333 | AE127: Water Cooled (Centrifugal) | AF127: 300 | AG127: 400 | AH127: 0.52
C128: 0.97 | D128: VFD Eff | F128: Pump Control Type | I128: =IF(OR($L$105="Disable",I109="",$C$123="Baseline"),D109,I109) -> 60 | J128: =IF(OR($L$105="Disable",J109="",$C$123="Baseline"),E109,J109) -> 80 | K128: @ OAT | N128: =IF(OR($L$92="Disable",I96="",$C$121="Baseline"),D96,I96) -> 60 | O128: =IF(OR($L$92="Disable",J96="",$C$121="Baseline"),E96,J96) -> 80 | P128: @ OAT | T128: 0 | U128: 0 | V128: 0 | Z128: 0 | AA128: 0 | AB128: 0 | AE128: Water Cooled (Centrifugal) | AF128: 400 | AG128: 600 | AH128: 0.5
C129: 0.746 | D129: Hp to kW | F129: Constant | I129: =IF(OR($L$105="Disable",I110="",$C$123="Baseline"),D110,I110) -> Constant | J129: Pump Control | N129: =IF(OR($L$92="Disable",I97="",$C$121="Baseline"),D97,I97) -> VFD | O129: Pump Control | T129: 0 | U129: 0 | V129: 0 | Z129: 0 | AA129: 0 | AB129: 0 | AE129: Water Cooled (Centrifugal) | AF129: 600 | AG129: 0 | AH129: 0.5
C130: 2.5 | D130: Affinity Factor | F130: VFD | I130: Water Side Economizer Optimization | N130: Chilled Water Plant Lockout Control | T130: 0 | U130: 0 | V130: 0 | Z130: 0 | AA130: 0 | AB130: 0
C131: 1.25 | D131: Cooling Load Tons Factor | I131: =IF(OR($L$75="Disable",I77="",$C$119="Baseline"),D77,I77) -> 6 | J131: CT Approach for WSE (°F) | N131: =IF(OR($L$45="Disable",I47="",$C$115="Baseline"),E47,I47) -> 50 | O131: Cooling Lookout @ OAT
D132: PCHWP1 | E132: PCHWP2 | F132: PCHWP3 | I132: =IF(OR($L$75="Disable",I78="",$C$119="Baseline"),D78,I78) -> -1 | J132: WSE Enable OAT Wet Bulb (°F)
C133: kW | D133: =(D24*D25*$C$129)/(3960*D26*D27) -> 6.593434343 | E133: =(E24*E25*$C$129)/(3960*E26*E27) -> 6.593434343 | F133: =(F24*F25*$C$129)/(3960*F26*F27) -> 6.593434343 | I133: =IF(OR($L$75="Disable",I79="",$C$119="Baseline"),D79,I79) -> 2 | J133: HX Approach (°F)
B135: Calculation Engine
F136: Baseline Trended Data | M136: Proposed Tended Data
C137: OAT | D137: Average WBT | E137: Hours | F137: CHWST (°F) | G137: CWST (°F) | H137: Cooling Load (tons) | I137: SCHWP Speed | J137: # CWP | K137: CWP Speed | L137: Head in ft | M137: CHWST (°F)2 | N137: CWST (°F)3 | O137: Cooling Load (tons)3 | P137: SCHWP Speed3 | Q137: # CWP2 | R137: CWP Speed2 | S137: Head in ft2 | T137: CHWST (°F) | U137: CWST (°F)2 | V137: Cooling Load (tons)2 | W137: CT Load (Tons) | X137: SCHWP Speed2 | Y137: CWP Qty | Z137: CWP Speed3 | AA137: SCHWP Qty | AB137: SCHWP Head | AC137: Econ Engaged | AD137: CH Stage | AE137: CT Stage | AF137: Chiller Load kW | AG137: Chiller Load kWh | AH137: PCHWP kW | AI137: PCHWP kWh | AJ137: SCHWP kW | AK137: SCHWP kWh | AL137: Chiller kW | AM137: Chiller kWh | AN137: CT Fan kW | AO137: CT Fan kWh | AP137: CWP kW | AQ137: CWP kWh
C138: 115 | D138: =IFERROR(AVERAGEIF(tbl_Climate_Zone[Dry_Bulb],tbl_Chiller_Calc_Engine736[[#This Row],[OAT]],tbl_Climate_Zone[Wet_Bulb]),0) -> 0 | E138: =SUM( COUNTIFS(tbl_Climate_Zone[Dry_Bulb],C138,tbl_Climate_Zone[Weekday],$C$12,tbl_Climate_Zone[Hour],">"&$D$12,tbl_Climate_Zone[Hour],"<="&$E$12), COUNTIFS(tbl_Climate_Zone[Dry_Bulb],C138,tbl_Climate_Zone[Weekday],$C$13,tbl_Climate_Zone[Hour],">"&$D$13,tbl_Climate_Zone[Hour],"<="&$E$13), COUNTIFS(tbl_Climate_Zone[Dry_Bulb],C138,tbl_Climate_Zone[Weekday],$C$14,tbl_Climate_Zone[Hour],">"&$D$14,tbl_Climate_Zone[Hour],"<="&$E$14)) -> 0 | T138: =IF(tbl_Chiller_Calc_Engine736[[#This Row],[Hours]]=0,0,IF($N$115="Baseline Trend Data", IF(ISBLANK(tbl_Chiller_Calc_Engine736[[#This Row],[ CHWST (°F)]]),MEDIAN($N$117,$O$117,FORECAST(tbl_Chiller_Calc_Engine736[[#This Row],[OAT]],tbl_Chiller_Calc_Engine736[ CHWST (°F)],tbl_Chiller_Calc_Engine736[OAT])),tbl_Chiller_Calc_Engine736[[#This Row],[ CHWST (°F)]]),IF($N$115="Proposed Trend Data", IF(ISBLANK(tbl_Chiller_Calc_Engine736[[#This Row],[ CHWST (°F)]]),MEDIAN($N$117,$O$117,FORECAST(tbl_Chiller_Calc_Engine736[[#This Row],[OAT]],tbl_Chiller_Calc_Engine736[ CHWST (°F)2],tbl_Chiller_Calc_Engine736[OAT])),tbl_Chiller_Calc_Engine736[[#This Row],[ CHWST (°F)2]]), MEDIAN($N$117,$O$117,TREND($N$117:$O$117,$N$118:$O$118,tbl_Chiller_Calc_Engine736[[#This Row],[OAT]]))))) -> 0 | U138: =IF(tbl_Chiller_Calc_Engine736[[#This Row],[Hours]]=0,0,IF($I$115="Baseline Trend Data", IF(ISBLANK(tbl_Chiller_Calc_Engine736[[#This Row],[CWST (°F)]]),MEDIAN($I$117,$J$117,FORECAST(tbl_Chiller_Calc_Engine736[[#This Row],[Average WBT]],tbl_Chiller_Calc_Engine736[CWST (°F)],tbl_Chiller_Calc_Engine736[Average WBT])),tbl_Chiller_Calc_Engine736[[#This Row],[CWST (°F)]]),IF($I$115="Proposed Trend Data", IF(ISBLANK(tbl_Chiller_Calc_Engine736[[#This Row],[CWST (°F)]]),MEDIAN($I$117,$J$117,FORECAST(tbl_Chiller_Calc_Engine736[[#This Row],[Average WBT]],tbl_Chiller_Calc_Engine736[CWST (°F)3],tbl_Chiller_Calc_Engine736[Average WBT])),tbl_Chiller_Calc_Engine736[[#This Row],[CWST (°F)3]]), MEDIAN($I$117,$J$117,TREND($I$117:$J$117,$I$118:$J$118,tbl_Chiller_Calc_Engine736[[#This Row],[Average WBT]]))))) -> 0 | V138: =IF(tbl_Chiller_Calc_Engine736[[#This Row],[Hours]]=0,0,IF($N$121="Baseline Trend Data",IF(ISBLANK(H138),FORECAST(C138,$H$138:$H$243,$C$138:$C$243),H138), IF($N$121 = "Proposed Trend Data",IF(ISBLANK(O138),FORECAST(C138,$O$138:$O$243,$C$138:$C$243),O138), IF(C138>=$N$131,MAX(TREND($N$122:$O$122,$N$123:$O$123,C138),0),0)))) -> 0 | W138: =IF(E138>0,V138*'Chilled Water System Template'!$C$131,0) -> 0 | X138: =IF(tbl_Chiller_Calc_Engine736[[#This Row],[Hours]]=0,0,IF($N$125="Baseline Trend Data",IF(ISBLANK(tbl_Chiller_Calc_Engine736[[#This Row],[SCHWP Speed]]),MEDIAN($N$127,$O$127,FORECAST(tbl_Chiller_Calc_Engine736[[#This Row],[OAT]],tbl_Chiller_Calc_Engine736[SCHWP Speed],tbl_Chiller_Calc_Engine736[OAT]))), IF($N$125="Proposed Trend Data",IF(ISBLANK(tbl_Chiller_Calc_Engine736[[#This Row],[SCHWP Speed3]]),MEDIAN($N$127,$O$127,FORECAST(tbl_Chiller_Calc_Engine736[[#This Row],[OAT]],tbl_Chiller_Calc_Engine736[SCHWP Speed3],tbl_Chiller_Calc_Engine736[OAT]))), MEDIAN($N$127,$O$127,TREND($N$127:$O$127,$N$128:$O$128,tbl_Chiller_Calc_Engine736[[#This Row],[OAT]]))))) -> 0 | Y138: =IF(tbl_Chiller_Calc_Engine736[[#This Row],[Hours]]=0,0,IF($I$125="Baseline Trend Data",IF(ISBLANK(tbl_Chiller_Calc_Engine736[[#This Row],['# CWP]]),MEDIAN($F$41,$G$41,FORECAST(tbl_Chiller_Calc_Engine736[[#This Row],[OAT]],tbl_Chiller_Calc_Engine736['# CWP],tbl_Chiller_Calc_Engine736[OAT]))), IF($I$125="Proposed Trend Data",IF(ISBLANK(tbl_Chiller_Calc_Engine736[[#This Row],['# CWP2]]),MEDIAN($F$41,$G$41,FORECAST(tbl_Chiller_Calc_Engine736[[#This Row],[OAT]],tbl_Chiller_Calc_Engine736['# CWP2],tbl_Chiller_Calc_Engine736[OAT]))), ROUNDUP(MEDIAN($F$41,$G$41,TREND($F$41:$G$41,$F$42:$G$42,tbl_Chiller_Calc_Engine736[[#This Row],[OAT]])),0)))) -> 0 | Z138: =IF(tbl_Chiller_Calc_Engine736[[#This Row],[Hours]]=0,0,IF($I$125="Baseline Trend Data",IF(ISBLANK(tbl_Chiller_Calc_Engine736[[#This Row],[CWP Speed]]),MEDIAN($I$127,$J$127,FORECAST(tbl_Chiller_Calc_Engine736[[#This Row],[OAT]],tbl_Chiller_Calc_Engine736[CWP Speed],tbl_Chiller_Calc_Engine736[OAT]))), IF($I$125="Proposed Trend Data",IF(ISBLANK(tbl_Chiller_Calc_Engine736[[#This Row],[CWP Speed2]]),MEDIAN($I$127,$J$127,FORECAST(tbl_Chiller_Calc_Engine736[[#This Row],[OAT]],tbl_Chiller_Calc_Engine736[CWP Speed2],tbl_Chiller_Calc_Engine736[OAT]))), MEDIAN($I$127,$J$127,TREND($I$127:$J$127,$I$128:$J$128,tbl_Chiller_Calc_Engine736[[#This Row],[OAT]]))))) -> 0 | AA138: =ROUNDUP(IF(C138<$N$131,0,IF(C138>=$H$30,$H$29,IF(C138<$I$30,$I$29,TREND($H$29:$I$29,$H$30:$I$30,C138,TRUE)))),0) -> 2 | AB138: =IF(tbl_Chiller_Calc_Engine736[[#This Row],[Hours]]=0,0,IF($I$120="Baseline Trend Data",IF(ISBLANK(tbl_Chiller_Calc_Engine736[[#This Row],[Head in ft]]),MEDIAN($I$122,$J$122,FORECAST(tbl_Chiller_Calc_Engine736[[#This Row],[OAT]],tbl_Chiller_Calc_Engine736[Head in ft],tbl_Chiller_Calc_Engine736[OAT]))), IF($I$120="Proposed Trend Data",IF(ISBLANK(tbl_Chiller_Calc_Engine736[[#This Row],[Head in ft2]]),MEDIAN($I$122,$J$122,FORECAST(tbl_Chiller_Calc_Engine736[[#This Row],[OAT]],tbl_Chiller_Calc_Engine736[Head in ft2],tbl_Chiller_Calc_Engine736[OAT]))), ROUNDUP(MEDIAN($I$122,$J$122,TREND($I$122:$J$122,$I$123:$J$123,tbl_Chiller_Calc_Engine736[[#This Row],[OAT]]))*2.31,0)))) -> 0 | AC138: =AND(SUM(D138,$I$131,$I$133)<=T138,D138<=$I$132) -> FALSE | AD138: =IF(OR(tbl_Chiller_Calc_Engine736[[#This Row],[Cooling Load (tons)2]]=0,tbl_Chiller_Calc_Engine736[[#This Row],[Econ Engaged]]),0,MEDIAN(0,MAX($W$124:$W$130),IFERROR(MATCH(tbl_Chiller_Calc_Engine736[[#This Row],[Cooling Load (tons)2]],$X$124:$X$130,1),0)+1)) -> 0 | AE138: =IF(tbl_Chiller_Calc_Engine736[[#This Row],[CT Load (Tons)]]=0,0,IFERROR(MEDIAN(0,MAX($Q$124:$Q$130),IFERROR(MATCH(tbl_Chiller_Calc_Engine736[[#This Row],[CT Load (Tons)]],$R$124:$R$130,1),0)+1),0)) -> 0 | AF138: =IF(OR(tbl_Chiller_Calc_Engine736[[#This Row],[Econ Engaged]],tbl_Chiller_Calc_Engine736[[#This Row],[Hours]]=0),0,SUMPRODUCT(tbl_Chiller_Calc_Engine736[[#This Row],[Cooling Load (tons)2]]*INDEX($Z$124:$AB$130,tbl_Chiller_Calc_Engine736[[#This Row],[CH Stage]],0)*$Z$118:$AB$118*(1-((tbl_Chiller_Calc_Engine736[[#This Row],[CHWST (°F)]]-$Z$119:$AB$119)+($Z$120:$AB$120-tbl_Chiller_Calc_Engine736[[#This Row],[CWST (°F)2]]))*$C$127))) -> 0 | AG138: =AF138*E138 -> 0 | AH138: =IF(tbl_Chiller_Calc_Engine736[[#This Row],[CH Stage]]=0,0,SUMPRODUCT(INDEX($T$124:$V$130,tbl_Chiller_Calc_Engine736[[#This Row],[CT Stage]],0),$D$133:$F$133)) -> 0 | AI138: =tbl_Chiller_Calc_Engine736[[#This Row],[PCHWP kW]]*tbl_Chiller_Calc_Engine736[[#This Row],[Hours]] -> 0 | AJ138: =(tbl_Chiller_Calc_Engine736[[#This Row],[SCHWP Qty]]*$C$129*$H$24*tbl_Chiller_Calc_Engine736[[#This Row],[SCHWP Speed2]]*tbl_Chiller_Calc_Engine736[[#This Row],[SCHWP Head]])/ (3960*$H$26*$H$27*IF($N$129=$F$129,1,$C$128)) -> 0 | AK138: =tbl_Chiller_Calc_Engine736[[#This Row],[SCHWP kW]]*tbl_Chiller_Calc_Engine736[[#This Row],[Hours]] -> 0 | AL138: =SUM(tbl_Chiller_Calc_Engine736[[#This Row],[Chiller Load kW]],tbl_Chiller_Calc_Engine736[[#This Row],[PCHWP kW]],tbl_Chiller_Calc_Engine736[[#This Row],[SCHWP kW]]) -> 0 | AM138: =SUM(tbl_Chiller_Calc_Engine736[[#This Row],[Chiller Load kWh]],tbl_Chiller_Calc_Engine736[[#This Row],[PCHWP kWh]],tbl_Chiller_Calc_Engine736[[#This Row],[SCHWP kWh]]) -> 0 | AN138: =IF(tbl_Chiller_Calc_Engine736[[#This Row],[CT Stage]]=0,0,SUMPRODUCT((IF(tbl_Chiller_Calc_Engine736[[#This Row],[CT Load (Tons)]]/INDEX($R$124:$R$130,tbl_Chiller_Calc_Engine736[[#This Row],[CT Stage]],0)>=$T$120:$V$120,tbl_Chiller_Calc_Engine736[[#This Row],[CT Load (Tons)]]/INDEX($R$124:$R$130,tbl_Chiller_Calc_Engine736[[#This Row],[CT Stage]],0),$T$120:$V$120)^$C$130*$T$118:$V$118*$C$129)/($C$128*$T$119:$V$119))) -> 0 | AO138: =tbl_Chiller_Calc_Engine736[[#This Row],[CT Fan kW]]*tbl_Chiller_Calc_Engine736[[#This Row],[Hours]] -> 0 | AP138: =(tbl_Chiller_Calc_Engine736[[#This Row],[CWP Qty]]*$C$129*$D$40*tbl_Chiller_Calc_Engine736[[#This Row],[CWP Speed3]]*$D$41)/ (3960*$D$42*$D$43*IF($I$129=$F$129,1,$C$128)) -> 0 | AQ138: =tbl_Chiller_Calc_Engine736[[#This Row],[CWP kW]]*tbl_Chiller_Calc_Engine736[[#This Row],[Hours]] -> 0
C139: 114 | D139: =IFERROR(AVERAGEIF(tbl_Climate_Zone[Dry_Bulb],tbl_Chiller_Calc_Engine736[[#This Row],[OAT]],tbl_Climate_Zone[Wet_Bulb]),0) -> 0 | E139: =SUM( COUNTIFS(tbl_Climate_Zone[Dry_Bulb],C139,tbl_Climate_Zone[Weekday],$C$12,tbl_Climate_Zone[Hour],">"&$D$12,tbl_Climate_Zone[Hour],"<="&$E$12), COUNTIFS(tbl_Climate_Zone[Dry_Bulb],C139,tbl_Climate_Zone[Weekday],$C$13,tbl_Climate_Zone[Hour],">"&$D$13,tbl_Climate_Zone[Hour],"<="&$E$13), COUNTIFS(tbl_Climate_Zone[Dry_Bulb],C139,tbl_Climate_Zone[Weekday],$C$14,tbl_Climate_Zone[Hour],">"&$D$14,tbl_Climate_Zone[Hour],"<="&$E$14)) -> 0 | T139: =IF(tbl_Chiller_Calc_Engine736[[#This Row],[Hours]]=0,0,IF($N$115="Baseline Trend Data", IF(ISBLANK(tbl_Chiller_Calc_Engine736[[#This Row],[ CHWST (°F)]]),MEDIAN($N$117,$O$117,FORECAST(tbl_Chiller_Calc_Engine736[[#This Row],[OAT]],tbl_Chiller_Calc_Engine736[ CHWST (°F)],tbl_Chiller_Calc_Engine736[OAT])),tbl_Chiller_Calc_Engine736[[#This Row],[ CHWST (°F)]]),IF($N$115="Proposed Trend Data", IF(ISBLANK(tbl_Chiller_Calc_Engine736[[#This Row],[ CHWST (°F)]]),MEDIAN($N$117,$O$117,FORECAST(tbl_Chiller_Calc_Engine736[[#This Row],[OAT]],tbl_Chiller_Calc_Engine736[ CHWST (°F)2],tbl_Chiller_Calc_Engine736[OAT])),tbl_Chiller_Calc_Engine736[[#This Row],[ CHWST (°F)2]]), MEDIAN($N$117,$O$117,TREND($N$117:$O$117,$N$118:$O$118,tbl_Chiller_Calc_Engine736[[#This Row],[OAT]]))))) -> 0 | U139: =IF(tbl_Chiller_Calc_Engine736[[#This Row],[Hours]]=0,0,IF($I$115="Baseline Trend Data", IF(ISBLANK(tbl_Chiller_Calc_Engine736[[#This Row],[CWST (°F)]]),MEDIAN($I$117,$J$117,FORECAST(tbl_Chiller_Calc_Engine736[[#This Row],[Average WBT]],tbl_Chiller_Calc_Engine736[CWST (°F)],tbl_Chiller_Calc_Engine736[Average WBT])),tbl_Chiller_Calc_Engine736[[#This Row],[CWST (°F)]]),IF($I$115="Proposed Trend Data", IF(ISBLANK(tbl_Chiller_Calc_Engine736[[#This Row],[CWST (°F)]]),MEDIAN($I$117,$J$117,FORECAST(tbl_Chiller_Calc_Engine736[[#This Row],[Average WBT]],tbl_Chiller_Calc_Engine736[CWST (°F)3],tbl_Chiller_Calc_Engine736[Average WBT])),tbl_Chiller_Calc_Engine736[[#This Row],[CWST (°F)3]]), MEDIAN($I$117,$J$117,TREND($I$117:$J$117,$I$118:$J$118,tbl_Chiller_Calc_Engine736[[#This Row],[Average WBT]]))))) -> 0 | V139: =IF(tbl_Chiller_Calc_Engine736[[#This Row],[Hours]]=0,0,IF($N$121="Baseline Trend Data",IF(ISBLANK(H139),FORECAST(C139,$H$138:$H$243,$C$138:$C$243),H139), IF($N$121 = "Proposed Trend Data",IF(ISBLANK(O139),FORECAST(C139,$O$138:$O$243,$C$138:$C$243),O139), IF(C139>=$N$131,MAX(TREND($N$122:$O$122,$N$123:$O$123,C139),0),0)))) -> 0 | W139: =IF(E139>0,V139*'Chilled Water System Template'!$C$131,0) -> 0 | X139: =IF(tbl_Chiller_Calc_Engine736[[#This Row],[Hours]]=0,0,IF($N$125="Baseline Trend Data",IF(ISBLANK(tbl_Chiller_Calc_Engine736[[#This Row],[SCHWP Speed]]),MEDIAN($N$127,$O$127,FORECAST(tbl_Chiller_Calc_Engine736[[#This Row],[OAT]],tbl_Chiller_Calc_Engine736[SCHWP Speed],tbl_Chiller_Calc_Engine736[OAT]))), IF($N$125="Proposed Trend Data",IF(ISBLANK(tbl_Chiller_Calc_Engine736[[#This Row],[SCHWP Speed3]]),MEDIAN($N$127,$O$127,FORECAST(tbl_Chiller_Calc_Engine736[[#This Row],[OAT]],tbl_Chiller_Calc_Engine736[SCHWP Speed3],tbl_Chiller_Calc_Engine736[OAT]))), MEDIAN($N$127,$O$127,TREND($N$127:$O$127,$N$128:$O$128,tbl_Chiller_Calc_Engine736[[#This Row],[OAT]]))))) -> 0 | Y139: =IF(tbl_Chiller_Calc_Engine736[[#This Row],[Hours]]=0,0,IF($I$125="Baseline Trend Data",IF(ISBLANK(tbl_Chiller_Calc_Engine736[[#This Row],['# CWP]]),MEDIAN($F$41,$G$41,FORECAST(tbl_Chiller_Calc_Engine736[[#This Row],[OAT]],tbl_Chiller_Calc_Engine736['# CWP],tbl_Chiller_Calc_Engine736[OAT]))), IF($I$125="Proposed Trend Data",IF(ISBLANK(tbl_Chiller_Calc_Engine736[[#This Row],['# CWP2]]),MEDIAN($F$41,$G$41,FORECAST(tbl_Chiller_Calc_Engine736[[#This Row],[OAT]],tbl_Chiller_Calc_Engine736['# CWP2],tbl_Chiller_Calc_Engine736[OAT]))), ROUNDUP(MEDIAN($F$41,$G$41,TREND($F$41:$G$41,$F$42:$G$42,tbl_Chiller_Calc_Engine736[[#This Row],[OAT]])),0)))) -> 0 | Z139: =IF(tbl_Chiller_Calc_Engine736[[#This Row],[Hours]]=0,0,IF($I$125="Baseline Trend Data",IF(ISBLANK(tbl_Chiller_Calc_Engine736[[#This Row],[CWP Speed]]),MEDIAN($I$127,$J$127,FORECAST(tbl_Chiller_Calc_Engine736[[#This Row],[OAT]],tbl_Chiller_Calc_Engine736[CWP Speed],tbl_Chiller_Calc_Engine736[OAT]))), IF($I$125="Proposed Trend Data",IF(ISBLANK(tbl_Chiller_Calc_Engine736[[#This Row],[CWP Speed2]]),MEDIAN($I$127,$J$127,FORECAST(tbl_Chiller_Calc_Engine736[[#This Row],[OAT]],tbl_Chiller_Calc_Engine736[CWP Speed2],tbl_Chiller_Calc_Engine736[OAT]))), MEDIAN($I$127,$J$127,TREND($I$127:$J$127,$I$128:$J$128,tbl_Chiller_Calc_Engine736[[#This Row],[OAT]]))))) -> 0 | AA139: 2 | AB139: =IF(tbl_Chiller_Calc_Engine736[[#This Row],[Hours]]=0,0,IF($I$120="Baseline Trend Data",IF(ISBLANK(tbl_Chiller_Calc_Engine736[[#This Row],[Head in ft]]),MEDIAN($I$122,$J$122,FORECAST(tbl_Chiller_Calc_Engine736[[#This Row],[OAT]],tbl_Chiller_Calc_Engine736[Head in ft],tbl_Chiller_Calc_Engine736[OAT]))), IF($I$120="Proposed Trend Data",IF(ISBLANK(tbl_Chiller_Calc_Engine736[[#This Row],[Head in ft2]]),MEDIAN($I$122,$J$122,FORECAST(tbl_Chiller_Calc_Engine736[[#This Row],[OAT]],tbl_Chiller_Calc_Engine736[Head in ft2],tbl_Chiller_Calc_Engine736[OAT]))), ROUNDUP(MEDIAN($I$122,$J$122,TREND($I$122:$J$122,$I$123:$J$123,tbl_Chiller_Calc_Engine736[[#This Row],[OAT]]))*2.31,0)))) -> 0 | AC139: =AND(SUM(D139,$I$131,$I$133)<=T139,D139<=$I$132) -> FALSE | AD139: =IF(OR(tbl_Chiller_Calc_Engine736[[#This Row],[Cooling Load (tons)2]]=0,tbl_Chiller_Calc_Engine736[[#This Row],[Econ Engaged]]),0,MEDIAN(0,MAX($W$124:$W$130),IFERROR(MATCH(tbl_Chiller_Calc_Engine736[[#This Row],[Cooling Load (tons)2]],$X$124:$X$130,1),0)+1)) -> 0 | AE139: =IF(tbl_Chiller_Calc_Engine736[[#This Row],[CT Load (Tons)]]=0,0,IFERROR(MEDIAN(0,MAX($Q$124:$Q$130),IFERROR(MATCH(tbl_Chiller_Calc_Engine736[[#This Row],[CT Load (Tons)]],$R$124:$R$130,1),0)+1),0)) -> 0 | AF139: =IF(OR(tbl_Chiller_Calc_Engine736[[#This Row],[Econ Engaged]],tbl_Chiller_Calc_Engine736[[#This Row],[Hours]]=0),0,SUMPRODUCT(tbl_Chiller_Calc_Engine736[[#This Row],[Cooling Load (tons)2]]*INDEX($Z$124:$AB$130,tbl_Chiller_Calc_Engine736[[#This Row],[CH Stage]],0)*$Z$118:$AB$118*(1-((tbl_Chiller_Calc_Engine736[[#This Row],[CHWST (°F)]]-$Z$119:$AB$119)+($Z$120:$AB$120-tbl_Chiller_Calc_Engine736[[#This Row],[CWST (°F)2]]))*$C$127))) -> 0 | AG139: 0 | AH139: =IF(tbl_Chiller_Calc_Engine736[[#This Row],[CH Stage]]=0,0,SUMPRODUCT(INDEX($T$124:$V$130,tbl_Chiller_Calc_Engine736[[#This Row],[CT Stage]],0),$D$133:$F$133)) -> 0 | AI139: =tbl_Chiller_Calc_Engine736[[#This Row],[PCHWP kW]]*tbl_Chiller_Calc_Engine736[[#This Row],[Hours]] -> 0 | AJ139: =(tbl_Chiller_Calc_Engine736[[#This Row],[SCHWP Qty]]*$C$129*$H$24*tbl_Chiller_Calc_Engine736[[#This Row],[SCHWP Speed2]]*tbl_Chiller_Calc_Engine736[[#This Row],[SCHWP Head]])/ (3960*$H$26*$H$27*IF($N$129=$F$129,1,$C$128)) -> 0 | AK139: =tbl_Chiller_Calc_Engine736[[#This Row],[SCHWP kW]]*tbl_Chiller_Calc_Engine736[[#This Row],[Hours]] -> 0 | AL139: =SUM(tbl_Chiller_Calc_Engine736[[#This Row],[Chiller Load kW]],tbl_Chiller_Calc_Engine736[[#This Row],[PCHWP kW]],tbl_Chiller_Calc_Engine736[[#This Row],[SCHWP kW]]) -> 0 | AM139: =SUM(tbl_Chiller_Calc_Engine736[[#This Row],[Chiller Load kWh]],tbl_Chiller_Calc_Engine736[[#This Row],[PCHWP kWh]],tbl_Chiller_Calc_Engine736[[#This Row],[SCHWP kWh]]) -> 0 | AN139: =IF(tbl_Chiller_Calc_Engine736[[#This Row],[CT Stage]]=0,0,SUMPRODUCT((IF(tbl_Chiller_Calc_Engine736[[#This Row],[CT Load (Tons)]]/INDEX($R$124:$R$130,tbl_Chiller_Calc_Engine736[[#This Row],[CT Stage]],0)>=$T$120:$V$120,tbl_Chiller_Calc_Engine736[[#This Row],[CT Load (Tons)]]/INDEX($R$124:$R$130,tbl_Chiller_Calc_Engine736[[#This Row],[CT Stage]],0),$T$120:$V$120)^$C$130*$T$118:$V$118*$C$129)/($C$128*$T$119:$V$119))) -> 0 | AO139: =tbl_Chiller_Calc_Engine736[[#This Row],[CT Fan kW]]*tbl_Chiller_Calc_Engine736[[#This Row],[Hours]] -> 0 | AP139: =(tbl_Chiller_Calc_Engine736[[#This Row],[CWP Qty]]*$C$129*$D$40*tbl_Chiller_Calc_Engine736[[#This Row],[CWP Speed3]]*$D$41)/ (3960*$D$42*$D$43*IF($I$129=$F$129,1,$C$128)) -> 0 | AQ139: =tbl_Chiller_Calc_Engine736[[#This Row],[CWP kW]]*tbl_Chiller_Calc_Engine736[[#This Row],[Hours]] -> 0
C140: 113 | D140: =IFERROR(AVERAGEIF(tbl_Climate_Zone[Dry_Bulb],tbl_Chiller_Calc_Engine736[[#This Row],[OAT]],tbl_Climate_Zone[Wet_Bulb]),0) -> 0 | E140: =SUM( COUNTIFS(tbl_Climate_Zone[Dry_Bulb],C140,tbl_Climate_Zone[Weekday],$C$12,tbl_Climate_Zone[Hour],">"&$D$12,tbl_Climate_Zone[Hour],"<="&$E$12), COUNTIFS(tbl_Climate_Zone[Dry_Bulb],C140,tbl_Climate_Zone[Weekday],$C$13,tbl_Climate_Zone[Hour],">"&$D$13,tbl_Climate_Zone[Hour],"<="&$E$13), COUNTIFS(tbl_Climate_Zone[Dry_Bulb],C140,tbl_Climate_Zone[Weekday],$C$14,tbl_Climate_Zone[Hour],">"&$D$14,tbl_Climate_Zone[Hour],"<="&$E$14)) -> 0 | T140: =IF(tbl_Chiller_Calc_Engine736[[#This Row],[Hours]]=0,0,IF($N$115="Baseline Trend Data", IF(ISBLANK(tbl_Chiller_Calc_Engine736[[#This Row],[ CHWST (°F)]]),MEDIAN($N$117,$O$117,FORECAST(tbl_Chiller_Calc_Engine736[[#This Row],[OAT]],tbl_Chiller_Calc_Engine736[ CHWST (°F)],tbl_Chiller_Calc_Engine736[OAT])),tbl_Chiller_Calc_Engine736[[#This Row],[ CHWST (°F)]]),IF($N$115="Proposed Trend Data", IF(ISBLANK(tbl_Chiller_Calc_Engine736[[#This Row],[ CHWST (°F)]]),MEDIAN($N$117,$O$117,FORECAST(tbl_Chiller_Calc_Engine736[[#This Row],[OAT]],tbl_Chiller_Calc_Engine736[ CHWST (°F)2],tbl_Chiller_Calc_Engine736[OAT])),tbl_Chiller_Calc_Engine736[[#This Row],[ CHWST (°F)2]]), MEDIAN($N$117,$O$117,TREND($N$117:$O$117,$N$118:$O$118,tbl_Chiller_Calc_Engine736[[#This Row],[OAT]]))))) -> 0 | U140: =IF(tbl_Chiller_Calc_Engine736[[#This Row],[Hours]]=0,0,IF($I$115="Baseline Trend Data", IF(ISBLANK(tbl_Chiller_Calc_Engine736[[#This Row],[CWST (°F)]]),MEDIAN($I$117,$J$117,FORECAST(tbl_Chiller_Calc_Engine736[[#This Row],[Average WBT]],tbl_Chiller_Calc_Engine736[CWST (°F)],tbl_Chiller_Calc_Engine736[Average WBT])),tbl_Chiller_Calc_Engine736[[#This Row],[CWST (°F)]]),IF($I$115="Proposed Trend Data", IF(ISBLANK(tbl_Chiller_Calc_Engine736[[#This Row],[CWST (°F)]]),MEDIAN($I$117,$J$117,FORECAST(tbl_Chiller_Calc_Engine736[[#This Row],[Average WBT]],tbl_Chiller_Calc_Engine736[CWST (°F)3],tbl_Chiller_Calc_Engine736[Average WBT])),tbl_Chiller_Calc_Engine736[[#This Row],[CWST (°F)3]]), MEDIAN($I$117,$J$117,TREND($I$117:$J$117,$I$118:$J$118,tbl_Chiller_Calc_Engine736[[#This Row],[Average WBT]]))))) -> 0 | V140: =IF(tbl_Chiller_Calc_Engine736[[#This Row],[Hours]]=0,0,IF($N$121="Baseline Trend Data",IF(ISBLANK(H140),FORECAST(C140,$H$138:$H$243,$C$138:$C$243),H140), IF($N$121 = "Proposed Trend Data",IF(ISBLANK(O140),FORECAST(C140,$O$138:$O$243,$C$138:$C$243),O140), IF(C140>=$N$131,MAX(TREND($N$122:$O$122,$N$123:$O$123,C140),0),0)))) -> 0 | W140: =IF(E140>0,V140*'Chilled Water System Template'!$C$131,0) -> 0 | X140: =IF(tbl_Chiller_Calc_Engine736[[#This Row],[Hours]]=0,0,IF($N$125="Baseline Trend Data",IF(ISBLANK(tbl_Chiller_Calc_Engine736[[#This Row],[SCHWP Speed]]),MEDIAN($N$127,$O$127,FORECAST(tbl_Chiller_Calc_Engine736[[#This Row],[OAT]],tbl_Chiller_Calc_Engine736[SCHWP Speed],tbl_Chiller_Calc_Engine736[OAT]))), IF($N$125="Proposed Trend Data",IF(ISBLANK(tbl_Chiller_Calc_Engine736[[#This Row],[SCHWP Speed3]]),MEDIAN($N$127,$O$127,FORECAST(tbl_Chiller_Calc_Engine736[[#This Row],[OAT]],tbl_Chiller_Calc_Engine736[SCHWP Speed3],tbl_Chiller_Calc_Engine736[OAT]))), MEDIAN($N$127,$O$127,TREND($N$127:$O$127,$N$128:$O$128,tbl_Chiller_Calc_Engine736[[#This Row],[OAT]]))))) -> 0 | Y140: =IF(tbl_Chiller_Calc_Engine736[[#This Row],[Hours]]=0,0,IF($I$125="Baseline Trend Data",IF(ISBLANK(tbl_Chiller_Calc_Engine736[[#This Row],['# CWP]]),MEDIAN($F$41,$G$41,FORECAST(tbl_Chiller_Calc_Engine736[[#This Row],[OAT]],tbl_Chiller_Calc_Engine736['# CWP],tbl_Chiller_Calc_Engine736[OAT]))), IF($I$125="Proposed Trend Data",IF(ISBLANK(tbl_Chiller_Calc_Engine736[[#This Row],['# CWP2]]),MEDIAN($F$41,$G$41,FORECAST(tbl_Chiller_Calc_Engine736[[#This Row],[OAT]],tbl_Chiller_Calc_Engine736['# CWP2],tbl_Chiller_Calc_Engine736[OAT]))), ROUNDUP(MEDIAN($F$41,$G$41,TREND($F$41:$G$41,$F$42:$G$42,tbl_Chiller_Calc_Engine736[[#This Row],[OAT]])),0)))) -> 0 | Z140: =IF(tbl_Chiller_Calc_Engine736[[#This Row],[Hours]]=0,0,IF($I$125="Baseline Trend Data",IF(ISBLANK(tbl_Chiller_Calc_Engine736[[#This Row],[CWP Speed]]),MEDIAN($I$127,$J$127,FORECAST(tbl_Chiller_Calc_Engine736[[#This Row],[OAT]],tbl_Chiller_Calc_Engine736[CWP Speed],tbl_Chiller_Calc_Engine736[OAT]))), IF($I$125="Proposed Trend Data",IF(ISBLANK(tbl_Chiller_Calc_Engine736[[#This Row],[CWP Speed2]]),MEDIAN($I$127,$J$127,FORECAST(tbl_Chiller_Calc_Engine736[[#This Row],[OAT]],tbl_Chiller_Calc_Engine736[CWP Speed2],tbl_Chiller_Calc_Engine736[OAT]))), MEDIAN($I$127,$J$127,TREND($I$127:$J$127,$I$128:$J$128,tbl_Chiller_Calc_Engine736[[#This Row],[OAT]]))))) -> 0 | AA140: 2 | AB140: =IF(tbl_Chiller_Calc_Engine736[[#This Row],[Hours]]=0,0,IF($I$120="Baseline Trend Data",IF(ISBLANK(tbl_Chiller_Calc_Engine736[[#This Row],[Head in ft]]),MEDIAN($I$122,$J$122,FORECAST(tbl_Chiller_Calc_Engine736[[#This Row],[OAT]],tbl_Chiller_Calc_Engine736[Head in ft],tbl_Chiller_Calc_Engine736[OAT]))), IF($I$120="Proposed Trend Data",IF(ISBLANK(tbl_Chiller_Calc_Engine736[[#This Row],[Head in ft2]]),MEDIAN($I$122,$J$122,FORECAST(tbl_Chiller_Calc_Engine736[[#This Row],[OAT]],tbl_Chiller_Calc_Engine736[Head in ft2],tbl_Chiller_Calc_Engine736[OAT]))), ROUNDUP(MEDIAN($I$122,$J$122,TREND($I$122:$J$122,$I$123:$J$123,tbl_Chiller_Calc_Engine736[[#This Row],[OAT]]))*2.31,0)))) -> 0 | AC140: FALSE | AD140: =IF(OR(tbl_Chiller_Calc_Engine736[[#This Row],[Cooling Load (tons)2]]=0,tbl_Chiller_Calc_Engine736[[#This Row],[Econ Engaged]]),0,MEDIAN(0,MAX($W$124:$W$130),IFERROR(MATCH(tbl_Chiller_Calc_Engine736[[#This Row],[Cooling Load (tons)2]],$X$124:$X$130,1),0)+1)) -> 0 | AE140: =IF(tbl_Chiller_Calc_Engine736[[#This Row],[CT Load (Tons)]]=0,0,IFERROR(MEDIAN(0,MAX($Q$124:$Q$130),IFERROR(MATCH(tbl_Chiller_Calc_Engine736[[#This Row],[CT Load (Tons)]],$R$124:$R$130,1),0)+1),0)) -> 0 | AF140: =IF(OR(tbl_Chiller_Calc_Engine736[[#This Row],[Econ Engaged]],tbl_Chiller_Calc_Engine736[[#This Row],[Hours]]=0),0,SUMPRODUCT(tbl_Chiller_Calc_Engine736[[#This Row],[Cooling Load (tons)2]]*INDEX($Z$124:$AB$130,tbl_Chiller_Calc_Engine736[[#This Row],[CH Stage]],0)*$Z$118:$AB$118*(1-((tbl_Chiller_Calc_Engine736[[#This Row],[CHWST (°F)]]-$Z$119:$AB$119)+($Z$120:$AB$120-tbl_Chiller_Calc_Engine736[[#This Row],[CWST (°F)2]]))*$C$127))) -> 0 | AG140: 0 | AH140: =IF(tbl_Chiller_Calc_Engine736[[#This Row],[CH Stage]]=0,0,SUMPRODUCT(INDEX($T$124:$V$130,tbl_Chiller_Calc_Engine736[[#This Row],[CT Stage]],0),$D$133:$F$133)) -> 0 | AI140: =tbl_Chiller_Calc_Engine736[[#This Row],[PCHWP kW]]*tbl_Chiller_Calc_Engine736[[#This Row],[Hours]] -> 0 | AJ140: =(tbl_Chiller_Calc_Engine736[[#This Row],[SCHWP Qty]]*$C$129*$H$24*tbl_Chiller_Calc_Engine736[[#This Row],[SCHWP Speed2]]*tbl_Chiller_Calc_Engine736[[#This Row],[SCHWP Head]])/ (3960*$H$26*$H$27*IF($N$129=$F$129,1,$C$128)) -> 0 | AK140: =tbl_Chiller_Calc_Engine736[[#This Row],[SCHWP kW]]*tbl_Chiller_Calc_Engine736[[#This Row],[Hours]] -> 0 | AL140: =SUM(tbl_Chiller_Calc_Engine736[[#This Row],[Chiller Load kW]],tbl_Chiller_Calc_Engine736[[#This Row],[PCHWP kW]],tbl_Chiller_Calc_Engine736[[#This Row],[SCHWP kW]]) -> 0 | AM140: =SUM(tbl_Chiller_Calc_Engine736[[#This Row],[Chiller Load kWh]],tbl_Chiller_Calc_Engine736[[#This Row],[PCHWP kWh]],tbl_Chiller_Calc_Engine736[[#This Row],[SCHWP kWh]]) -> 0 | AN140: =IF(tbl_Chiller_Calc_Engine736[[#This Row],[CT Stage]]=0,0,SUMPRODUCT((IF(tbl_Chiller_Calc_Engine736[[#This Row],[CT Load (Tons)]]/INDEX($R$124:$R$130,tbl_Chiller_Calc_Engine736[[#This Row],[CT Stage]],0)>=$T$120:$V$120,tbl_Chiller_Calc_Engine736[[#This Row],[CT Load (Tons)]]/INDEX($R$124:$R$130,tbl_Chiller_Calc_Engine736[[#This Row],[CT Stage]],0),$T$120:$V$120)^$C$130*$T$118:$V$118*$C$129)/($C$128*$T$119:$V$119))) -> 0 | AO140: =tbl_Chiller_Calc_Engine736[[#This Row],[CT Fan kW]]*tbl_Chiller_Calc_Engine736[[#This Row],[Hours]] -> 0 | AP140: =(tbl_Chiller_Calc_Engine736[[#This Row],[CWP Qty]]*$C$129*$D$40*tbl_Chiller_Calc_Engine736[[#This Row],[CWP Speed3]]*$D$41)/ (3960*$D$42*$D$43*IF($I$129=$F$129,1,$C$128)) -> 0 | AQ140: =tbl_Chiller_Calc_Engine736[[#This Row],[CWP kW]]*tbl_Chiller_Calc_Engine736[[#This Row],[Hours]] -> 0
C141: 112 | D141: =IFERROR(AVERAGEIF(tbl_Climate_Zone[Dry_Bulb],tbl_Chiller_Calc_Engine736[[#This Row],[OAT]],tbl_Climate_Zone[Wet_Bulb]),0) -> 0 | E141: =SUM( COUNTIFS(tbl_Climate_Zone[Dry_Bulb],C141,tbl_Climate_Zone[Weekday],$C$12,tbl_Climate_Zone[Hour],">"&$D$12,tbl_Climate_Zone[Hour],"<="&$E$12), COUNTIFS(tbl_Climate_Zone[Dry_Bulb],C141,tbl_Climate_Zone[Weekday],$C$13,tbl_Climate_Zone[Hour],">"&$D$13,tbl_Climate_Zone[Hour],"<="&$E$13), COUNTIFS(tbl_Climate_Zone[Dry_Bulb],C141,tbl_Climate_Zone[Weekday],$C$14,tbl_Climate_Zone[Hour],">"&$D$14,tbl_Climate_Zone[Hour],"<="&$E$14)) -> 0 | T141: =IF(tbl_Chiller_Calc_Engine736[[#This Row],[Hours]]=0,0,IF($N$115="Baseline Trend Data", IF(ISBLANK(tbl_Chiller_Calc_Engine736[[#This Row],[ CHWST (°F)]]),MEDIAN($N$117,$O$117,FORECAST(tbl_Chiller_Calc_Engine736[[#This Row],[OAT]],tbl_Chiller_Calc_Engine736[ CHWST (°F)],tbl_Chiller_Calc_Engine736[OAT])),tbl_Chiller_Calc_Engine736[[#This Row],[ CHWST (°F)]]),IF($N$115="Proposed Trend Data", IF(ISBLANK(tbl_Chiller_Calc_Engine736[[#This Row],[ CHWST (°F)]]),MEDIAN($N$117,$O$117,FORECAST(tbl_Chiller_Calc_Engine736[[#This Row],[OAT]],tbl_Chiller_Calc_Engine736[ CHWST (°F)2],tbl_Chiller_Calc_Engine736[OAT])),tbl_Chiller_Calc_Engine736[[#This Row],[ CHWST (°F)2]]), MEDIAN($N$117,$O$117,TREND($N$117:$O$117,$N$118:$O$118,tbl_Chiller_Calc_Engine736[[#This Row],[OAT]]))))) -> 0 | U141: =IF(tbl_Chiller_Calc_Engine736[[#This Row],[Hours]]=0,0,IF($I$115="Baseline Trend Data", IF(ISBLANK(tbl_Chiller_Calc_Engine736[[#This Row],[CWST (°F)]]),MEDIAN($I$117,$J$117,FORECAST(tbl_Chiller_Calc_Engine736[[#This Row],[Average WBT]],tbl_Chiller_Calc_Engine736[CWST (°F)],tbl_Chiller_Calc_Engine736[Average WBT])),tbl_Chiller_Calc_Engine736[[#This Row],[CWST (°F)]]),IF($I$115="Proposed Trend Data", IF(ISBLANK(tbl_Chiller_Calc_Engine736[[#This Row],[CWST (°F)]]),MEDIAN($I$117,$J$117,FORECAST(tbl_Chiller_Calc_Engine736[[#This Row],[Average WBT]],tbl_Chiller_Calc_Engine736[CWST (°F)3],tbl_Chiller_Calc_Engine736[Average WBT])),tbl_Chiller_Calc_Engine736[[#This Row],[CWST (°F)3]]), MEDIAN($I$117,$J$117,TREND($I$117:$J$117,$I$118:$J$118,tbl_Chiller_Calc_Engine736[[#This Row],[Average WBT]]))))) -> 0 | V141: =IF(tbl_Chiller_Calc_Engine736[[#This Row],[Hours]]=0,0,IF($N$121="Baseline Trend Data",IF(ISBLANK(H141),FORECAST(C141,$H$138:$H$243,$C$138:$C$243),H141), IF($N$121 = "Proposed Trend Data",IF(ISBLANK(O141),FORECAST(C141,$O$138:$O$243,$C$138:$C$243),O141), IF(C141>=$N$131,MAX(TREND($N$122:$O$122,$N$123:$O$123,C141),0),0)))) -> 0 | W141: =IF(E141>0,V141*'Chilled Water System Template'!$C$131,0) -> 0 | X141: =IF(tbl_Chiller_Calc_Engine736[[#This Row],[Hours]]=0,0,IF($N$125="Baseline Trend Data",IF(ISBLANK(tbl_Chiller_Calc_Engine736[[#This Row],[SCHWP Speed]]),MEDIAN($N$127,$O$127,FORECAST(tbl_Chiller_Calc_Engine736[[#This Row],[OAT]],tbl_Chiller_Calc_Engine736[SCHWP Speed],tbl_Chiller_Calc_Engine736[OAT]))), IF($N$125="Proposed Trend Data",IF(ISBLANK(tbl_Chiller_Calc_Engine736[[#This Row],[SCHWP Speed3]]),MEDIAN($N$127,$O$127,FORECAST(tbl_Chiller_Calc_Engine736[[#This Row],[OAT]],tbl_Chiller_Calc_Engine736[SCHWP Speed3],tbl_Chiller_Calc_Engine736[OAT]))), MEDIAN($N$127,$O$127,TREND($N$127:$O$127,$N$128:$O$128,tbl_Chiller_Calc_Engine736[[#This Row],[OAT]]))))) -> 0 | Y141: =IF(tbl_Chiller_Calc_Engine736[[#This Row],[Hours]]=0,0,IF($I$125="Baseline Trend Data",IF(ISBLANK(tbl_Chiller_Calc_Engine736[[#This Row],['# CWP]]),MEDIAN($F$41,$G$41,FORECAST(tbl_Chiller_Calc_Engine736[[#This Row],[OAT]],tbl_Chiller_Calc_Engine736['# CWP],tbl_Chiller_Calc_Engine736[OAT]))), IF($I$125="Proposed Trend Data",IF(ISBLANK(tbl_Chiller_Calc_Engine736[[#This Row],['# CWP2]]),MEDIAN($F$41,$G$41,FORECAST(tbl_Chiller_Calc_Engine736[[#This Row],[OAT]],tbl_Chiller_Calc_Engine736['# CWP2],tbl_Chiller_Calc_Engine736[OAT]))), ROUNDUP(MEDIAN($F$41,$G$41,TREND($F$41:$G$41,$F$42:$G$42,tbl_Chiller_Calc_Engine736[[#This Row],[OAT]])),0)))) -> 0 | Z141: =IF(tbl_Chiller_Calc_Engine736[[#This Row],[Hours]]=0,0,IF($I$125="Baseline Trend Data",IF(ISBLANK(tbl_Chiller_Calc_Engine736[[#This Row],[CWP Speed]]),MEDIAN($I$127,$J$127,FORECAST(tbl_Chiller_Calc_Engine736[[#This Row],[OAT]],tbl_Chiller_Calc_Engine736[CWP Speed],tbl_Chiller_Calc_Engine736[OAT]))), IF($I$125="Proposed Trend Data",IF(ISBLANK(tbl_Chiller_Calc_Engine736[[#This Row],[CWP Speed2]]),MEDIAN($I$127,$J$127,FORECAST(tbl_Chiller_Calc_Engine736[[#This Row],[OAT]],tbl_Chiller_Calc_Engine736[CWP Speed2],tbl_Chiller_Calc_Engine736[OAT]))), MEDIAN($I$127,$J$127,TREND($I$127:$J$127,$I$128:$J$128,tbl_Chiller_Calc_Engine736[[#This Row],[OAT]]))))) -> 0 | AA141: 2 | AB141: =IF(tbl_Chiller_Calc_Engine736[[#This Row],[Hours]]=0,0,IF($I$120="Baseline Trend Data",IF(ISBLANK(tbl_Chiller_Calc_Engine736[[#This Row],[Head in ft]]),MEDIAN($I$122,$J$122,FORECAST(tbl_Chiller_Calc_Engine736[[#This Row],[OAT]],tbl_Chiller_Calc_Engine736[Head in ft],tbl_Chiller_Calc_Engine736[OAT]))), IF($I$120="Proposed Trend Data",IF(ISBLANK(tbl_Chiller_Calc_Engine736[[#This Row],[Head in ft2]]),MEDIAN($I$122,$J$122,FORECAST(tbl_Chiller_Calc_Engine736[[#This Row],[OAT]],tbl_Chiller_Calc_Engine736[Head in ft2],tbl_Chiller_Calc_Engine736[OAT]))), ROUNDUP(MEDIAN($I$122,$J$122,TREND($I$122:$J$122,$I$123:$J$123,tbl_Chiller_Calc_Engine736[[#This Row],[OAT]]))*2.31,0)))) -> 0 | AC141: FALSE | AD141: =IF(OR(tbl_Chiller_Calc_Engine736[[#This Row],[Cooling Load (tons)2]]=0,tbl_Chiller_Calc_Engine736[[#This Row],[Econ Engaged]]),0,MEDIAN(0,MAX($W$124:$W$130),IFERROR(MATCH(tbl_Chiller_Calc_Engine736[[#This Row],[Cooling Load (tons)2]],$X$124:$X$130,1),0)+1)) -> 0 | AE141: =IF(tbl_Chiller_Calc_Engine736[[#This Row],[CT Load (Tons)]]=0,0,IFERROR(MEDIAN(0,MAX($Q$124:$Q$130),IFERROR(MATCH(tbl_Chiller_Calc_Engine736[[#This Row],[CT Load (Tons)]],$R$124:$R$130,1),0)+1),0)) -> 0 | AF141: =IF(OR(tbl_Chiller_Calc_Engine736[[#This Row],[Econ Engaged]],tbl_Chiller_Calc_Engine736[[#This Row],[Hours]]=0),0,SUMPRODUCT(tbl_Chiller_Calc_Engine736[[#This Row],[Cooling Load (tons)2]]*INDEX($Z$124:$AB$130,tbl_Chiller_Calc_Engine736[[#This Row],[CH Stage]],0)*$Z$118:$AB$118*(1-((tbl_Chiller_Calc_Engine736[[#This Row],[CHWST (°F)]]-$Z$119:$AB$119)+($Z$120:$AB$120-tbl_Chiller_Calc_Engine736[[#This Row],[CWST (°F)2]]))*$C$127))) -> 0 | AG141: 0 | AH141: =IF(tbl_Chiller_Calc_Engine736[[#This Row],[CH Stage]]=0,0,SUMPRODUCT(INDEX($T$124:$V$130,tbl_Chiller_Calc_Engine736[[#This Row],[CT Stage]],0),$D$133:$F$133)) -> 0 | AI141: =tbl_Chiller_Calc_Engine736[[#This Row],[PCHWP kW]]*tbl_Chiller_Calc_Engine736[[#This Row],[Hours]] -> 0 | AJ141: =(tbl_Chiller_Calc_Engine736[[#This Row],[SCHWP Qty]]*$C$129*$H$24*tbl_Chiller_Calc_Engine736[[#This Row],[SCHWP Speed2]]*tbl_Chiller_Calc_Engine736[[#This Row],[SCHWP Head]])/ (3960*$H$26*$H$27*IF($N$129=$F$129,1,$C$128)) -> 0 | AK141: =tbl_Chiller_Calc_Engine736[[#This Row],[SCHWP kW]]*tbl_Chiller_Calc_Engine736[[#This Row],[Hours]] -> 0 | AL141: =SUM(tbl_Chiller_Calc_Engine736[[#This Row],[Chiller Load kW]],tbl_Chiller_Calc_Engine736[[#This Row],[PCHWP kW]],tbl_Chiller_Calc_Engine736[[#This Row],[SCHWP kW]]) -> 0 | AM141: =SUM(tbl_Chiller_Calc_Engine736[[#This Row],[Chiller Load kWh]],tbl_Chiller_Calc_Engine736[[#This Row],[PCHWP kWh]],tbl_Chiller_Calc_Engine736[[#This Row],[SCHWP kWh]]) -> 0 | AN141: =IF(tbl_Chiller_Calc_Engine736[[#This Row],[CT Stage]]=0,0,SUMPRODUCT((IF(tbl_Chiller_Calc_Engine736[[#This Row],[CT Load (Tons)]]/INDEX($R$124:$R$130,tbl_Chiller_Calc_Engine736[[#This Row],[CT Stage]],0)>=$T$120:$V$120,tbl_Chiller_Calc_Engine736[[#This Row],[CT Load (Tons)]]/INDEX($R$124:$R$130,tbl_Chiller_Calc_Engine736[[#This Row],[CT Stage]],0),$T$120:$V$120)^$C$130*$T$118:$V$118*$C$129)/($C$128*$T$119:$V$119))) -> 0 | AO141: =tbl_Chiller_Calc_Engine736[[#This Row],[CT Fan kW]]*tbl_Chiller_Calc_Engine736[[#This Row],[Hours]] -> 0 | AP141: =(tbl_Chiller_Calc_Engine736[[#This Row],[CWP Qty]]*$C$129*$D$40*tbl_Chiller_Calc_Engine736[[#This Row],[CWP Speed3]]*$D$41)/ (3960*$D$42*$D$43*IF($I$129=$F$129,1,$C$128)) -> 0 | AQ141: =tbl_Chiller_Calc_Engine736[[#This Row],[CWP kW]]*tbl_Chiller_Calc_Engine736[[#This Row],[Hours]] -> 0
C142: 111 | D142: =IFERROR(AVERAGEIF(tbl_Climate_Zone[Dry_Bulb],tbl_Chiller_Calc_Engine736[[#This Row],[OAT]],tbl_Climate_Zone[Wet_Bulb]),0) -> 0 | E142: =SUM( COUNTIFS(tbl_Climate_Zone[Dry_Bulb],C142,tbl_Climate_Zone[Weekday],$C$12,tbl_Climate_Zone[Hour],">"&$D$12,tbl_Climate_Zone[Hour],"<="&$E$12), COUNTIFS(tbl_Climate_Zone[Dry_Bulb],C142,tbl_Climate_Zone[Weekday],$C$13,tbl_Climate_Zone[Hour],">"&$D$13,tbl_Climate_Zone[Hour],"<="&$E$13), COUNTIFS(tbl_Climate_Zone[Dry_Bulb],C142,tbl_Climate_Zone[Weekday],$C$14,tbl_Climate_Zone[Hour],">"&$D$14,tbl_Climate_Zone[Hour],"<="&$E$14)) -> 0 | T142: =IF(tbl_Chiller_Calc_Engine736[[#This Row],[Hours]]=0,0,IF($N$115="Baseline Trend Data", IF(ISBLANK(tbl_Chiller_Calc_Engine736[[#This Row],[ CHWST (°F)]]),MEDIAN($N$117,$O$117,FORECAST(tbl_Chiller_Calc_Engine736[[#This Row],[OAT]],tbl_Chiller_Calc_Engine736[ CHWST (°F)],tbl_Chiller_Calc_Engine736[OAT])),tbl_Chiller_Calc_Engine736[[#This Row],[ CHWST (°F)]]),IF($N$115="Proposed Trend Data", IF(ISBLANK(tbl_Chiller_Calc_Engine736[[#This Row],[ CHWST (°F)]]),MEDIAN($N$117,$O$117,FORECAST(tbl_Chiller_Calc_Engine736[[#This Row],[OAT]],tbl_Chiller_Calc_Engine736[ CHWST (°F)2],tbl_Chiller_Calc_Engine736[OAT])),tbl_Chiller_Calc_Engine736[[#This Row],[ CHWST (°F)2]]), MEDIAN($N$117,$O$117,TREND($N$117:$O$117,$N$118:$O$118,tbl_Chiller_Calc_Engine736[[#This Row],[OAT]]))))) -> 0 | U142: =IF(tbl_Chiller_Calc_Engine736[[#This Row],[Hours]]=0,0,IF($I$115="Baseline Trend Data", IF(ISBLANK(tbl_Chiller_Calc_Engine736[[#This Row],[CWST (°F)]]),MEDIAN($I$117,$J$117,FORECAST(tbl_Chiller_Calc_Engine736[[#This Row],[Average WBT]],tbl_Chiller_Calc_Engine736[CWST (°F)],tbl_Chiller_Calc_Engine736[Average WBT])),tbl_Chiller_Calc_Engine736[[#This Row],[CWST (°F)]]),IF($I$115="Proposed Trend Data", IF(ISBLANK(tbl_Chiller_Calc_Engine736[[#This Row],[CWST (°F)]]),MEDIAN($I$117,$J$117,FORECAST(tbl_Chiller_Calc_Engine736[[#This Row],[Average WBT]],tbl_Chiller_Calc_Engine736[CWST (°F)3],tbl_Chiller_Calc_Engine736[Average WBT])),tbl_Chiller_Calc_Engine736[[#This Row],[CWST (°F)3]]), MEDIAN($I$117,$J$117,TREND($I$117:$J$117,$I$118:$J$118,tbl_Chiller_Calc_Engine736[[#This Row],[Average WBT]]))))) -> 0 | V142: =IF(tbl_Chiller_Calc_Engine736[[#This Row],[Hours]]=0,0,IF($N$121="Baseline Trend Data",IF(ISBLANK(H142),FORECAST(C142,$H$138:$H$243,$C$138:$C$243),H142), IF($N$121 = "Proposed Trend Data",IF(ISBLANK(O142),FORECAST(C142,$O$138:$O$243,$C$138:$C$243),O142), IF(C142>=$N$131,MAX(TREND($N$122:$O$122,$N$123:$O$123,C142),0),0)))) -> 0 | W142: =IF(E142>0,V142*'Chilled Water System Template'!$C$131,0) -> 0 | X142: =IF(tbl_Chiller_Calc_Engine736[[#This Row],[Hours]]=0,0,IF($N$125="Baseline Trend Data",IF(ISBLANK(tbl_Chiller_Calc_Engine736[[#This Row],[SCHWP Speed]]),MEDIAN($N$127,$O$127,FORECAST(tbl_Chiller_Calc_Engine736[[#This Row],[OAT]],tbl_Chiller_Calc_Engine736[SCHWP Speed],tbl_Chiller_Calc_Engine736[OAT]))), IF($N$125="Proposed Trend Data",IF(ISBLANK(tbl_Chiller_Calc_Engine736[[#This Row],[SCHWP Speed3]]),MEDIAN($N$127,$O$127,FORECAST(tbl_Chiller_Calc_Engine736[[#This Row],[OAT]],tbl_Chiller_Calc_Engine736[SCHWP Speed3],tbl_Chiller_Calc_Engine736[OAT]))), MEDIAN($N$127,$O$127,TREND($N$127:$O$127,$N$128:$O$128,tbl_Chiller_Calc_Engine736[[#This Row],[OAT]]))))) -> 0 | Y142: =IF(tbl_Chiller_Calc_Engine736[[#This Row],[Hours]]=0,0,IF($I$125="Baseline Trend Data",IF(ISBLANK(tbl_Chiller_Calc_Engine736[[#This Row],['# CWP]]),MEDIAN($F$41,$G$41,FORECAST(tbl_Chiller_Calc_Engine736[[#This Row],[OAT]],tbl_Chiller_Calc_Engine736['# CWP],tbl_Chiller_Calc_Engine736[OAT]))), IF($I$125="Proposed Trend Data",IF(ISBLANK(tbl_Chiller_Calc_Engine736[[#This Row],['# CWP2]]),MEDIAN($F$41,$G$41,FORECAST(tbl_Chiller_Calc_Engine736[[#This Row],[OAT]],tbl_Chiller_Calc_Engine736['# CWP2],tbl_Chiller_Calc_Engine736[OAT]))), ROUNDUP(MEDIAN($F$41,$G$41,TREND($F$41:$G$41,$F$42:$G$42,tbl_Chiller_Calc_Engine736[[#This Row],[OAT]])),0)))) -> 0 | Z142: =IF(tbl_Chiller_Calc_Engine736[[#This Row],[Hours]]=0,0,IF($I$125="Baseline Trend Data",IF(ISBLANK(tbl_Chiller_Calc_Engine736[[#This Row],[CWP Speed]]),MEDIAN($I$127,$J$127,FORECAST(tbl_Chiller_Calc_Engine736[[#This Row],[OAT]],tbl_Chiller_Calc_Engine736[CWP Speed],tbl_Chiller_Calc_Engine736[OAT]))), IF($I$125="Proposed Trend Data",IF(ISBLANK(tbl_Chiller_Calc_Engine736[[#This Row],[CWP Speed2]]),MEDIAN($I$127,$J$127,FORECAST(tbl_Chiller_Calc_Engine736[[#This Row],[OAT]],tbl_Chiller_Calc_Engine736[CWP Speed2],tbl_Chiller_Calc_Engine736[OAT]))), MEDIAN($I$127,$J$127,TREND($I$127:$J$127,$I$128:$J$128,tbl_Chiller_Calc_Engine736[[#This Row],[OAT]]))))) -> 0 | AA142: 2 | AB142: =IF(tbl_Chiller_Calc_Engine736[[#This Row],[Hours]]=0,0,IF($I$120="Baseline Trend Data",IF(ISBLANK(tbl_Chiller_Calc_Engine736[[#This Row],[Head in ft]]),MEDIAN($I$122,$J$122,FORECAST(tbl_Chiller_Calc_Engine736[[#This Row],[OAT]],tbl_Chiller_Calc_Engine736[Head in ft],tbl_Chiller_Calc_Engine736[OAT]))), IF($I$120="Proposed Trend Data",IF(ISBLANK(tbl_Chiller_Calc_Engine736[[#This Row],[Head in ft2]]),MEDIAN($I$122,$J$122,FORECAST(tbl_Chiller_Calc_Engine736[[#This Row],[OAT]],tbl_Chiller_Calc_Engine736[Head in ft2],tbl_Chiller_Calc_Engine736[OAT]))), ROUNDUP(MEDIAN($I$122,$J$122,TREND($I$122:$J$122,$I$123:$J$123,tbl_Chiller_Calc_Engine736[[#This Row],[OAT]]))*2.31,0)))) -> 0 | AC142: FALSE | AD142: =IF(OR(tbl_Chiller_Calc_Engine736[[#This Row],[Cooling Load (tons)2]]=0,tbl_Chiller_Calc_Engine736[[#This Row],[Econ Engaged]]),0,MEDIAN(0,MAX($W$124:$W$130),IFERROR(MATCH(tbl_Chiller_Calc_Engine736[[#This Row],[Cooling Load (tons)2]],$X$124:$X$130,1),0)+1)) -> 0 | AE142: =IF(tbl_Chiller_Calc_Engine736[[#This Row],[CT Load (Tons)]]=0,0,IFERROR(MEDIAN(0,MAX($Q$124:$Q$130),IFERROR(MATCH(tbl_Chiller_Calc_Engine736[[#This Row],[CT Load (Tons)]],$R$124:$R$130,1),0)+1),0)) -> 0 | AF142: =IF(OR(tbl_Chiller_Calc_Engine736[[#This Row],[Econ Engaged]],tbl_Chiller_Calc_Engine736[[#This Row],[Hours]]=0),0,SUMPRODUCT(tbl_Chiller_Calc_Engine736[[#This Row],[Cooling Load (tons)2]]*INDEX($Z$124:$AB$130,tbl_Chiller_Calc_Engine736[[#This Row],[CH Stage]],0)*$Z$118:$AB$118*(1-((tbl_Chiller_Calc_Engine736[[#This Row],[CHWST (°F)]]-$Z$119:$AB$119)+($Z$120:$AB$120-tbl_Chiller_Calc_Engine736[[#This Row],[CWST (°F)2]]))*$C$127))) -> 0 | AG142: 0 | AH142: =IF(tbl_Chiller_Calc_Engine736[[#This Row],[CH Stage]]=0,0,SUMPRODUCT(INDEX($T$124:$V$130,tbl_Chiller_Calc_Engine736[[#This Row],[CT Stage]],0),$D$133:$F$133)) -> 0 | AI142: =tbl_Chiller_Calc_Engine736[[#This Row],[PCHWP kW]]*tbl_Chiller_Calc_Engine736[[#This Row],[Hours]] -> 0 | AJ142: =(tbl_Chiller_Calc_Engine736[[#This Row],[SCHWP Qty]]*$C$129*$H$24*tbl_Chiller_Calc_Engine736[[#This Row],[SCHWP Speed2]]*tbl_Chiller_Calc_Engine736[[#This Row],[SCHWP Head]])/ (3960*$H$26*$H$27*IF($N$129=$F$129,1,$C$128)) -> 0 | AK142: =tbl_Chiller_Calc_Engine736[[#This Row],[SCHWP kW]]*tbl_Chiller_Calc_Engine736[[#This Row],[Hours]] -> 0 | AL142: =SUM(tbl_Chiller_Calc_Engine736[[#This Row],[Chiller Load kW]],tbl_Chiller_Calc_Engine736[[#This Row],[PCHWP kW]],tbl_Chiller_Calc_Engine736[[#This Row],[SCHWP kW]]) -> 0 | AM142: =SUM(tbl_Chiller_Calc_Engine736[[#This Row],[Chiller Load kWh]],tbl_Chiller_Calc_Engine736[[#This Row],[PCHWP kWh]],tbl_Chiller_Calc_Engine736[[#This Row],[SCHWP kWh]]) -> 0 | AN142: =IF(tbl_Chiller_Calc_Engine736[[#This Row],[CT Stage]]=0,0,SUMPRODUCT((IF(tbl_Chiller_Calc_Engine736[[#This Row],[CT Load (Tons)]]/INDEX($R$124:$R$130,tbl_Chiller_Calc_Engine736[[#This Row],[CT Stage]],0)>=$T$120:$V$120,tbl_Chiller_Calc_Engine736[[#This Row],[CT Load (Tons)]]/INDEX($R$124:$R$130,tbl_Chiller_Calc_Engine736[[#This Row],[CT Stage]],0),$T$120:$V$120)^$C$130*$T$118:$V$118*$C$129)/($C$128*$T$119:$V$119))) -> 0 | AO142: =tbl_Chiller_Calc_Engine736[[#This Row],[CT Fan kW]]*tbl_Chiller_Calc_Engine736[[#This Row],[Hours]] -> 0 | AP142: =(tbl_Chiller_Calc_Engine736[[#This Row],[CWP Qty]]*$C$129*$D$40*tbl_Chiller_Calc_Engine736[[#This Row],[CWP Speed3]]*$D$41)/ (3960*$D$42*$D$43*IF($I$129=$F$129,1,$C$128)) -> 0 | AQ142: =tbl_Chiller_Calc_Engine736[[#This Row],[CWP kW]]*tbl_Chiller_Calc_Engine736[[#This Row],[Hours]] -> 0
C143: 110 | D143: =IFERROR(AVERAGEIF(tbl_Climate_Zone[Dry_Bulb],tbl_Chiller_Calc_Engine736[[#This Row],[OAT]],tbl_Climate_Zone[Wet_Bulb]),0) -> 0 | E143: =SUM( COUNTIFS(tbl_Climate_Zone[Dry_Bulb],C143,tbl_Climate_Zone[Weekday],$C$12,tbl_Climate_Zone[Hour],">"&$D$12,tbl_Climate_Zone[Hour],"<="&$E$12), COUNTIFS(tbl_Climate_Zone[Dry_Bulb],C143,tbl_Climate_Zone[Weekday],$C$13,tbl_Climate_Zone[Hour],">"&$D$13,tbl_Climate_Zone[Hour],"<="&$E$13), COUNTIFS(tbl_Climate_Zone[Dry_Bulb],C143,tbl_Climate_Zone[Weekday],$C$14,tbl_Climate_Zone[Hour],">"&$D$14,tbl_Climate_Zone[Hour],"<="&$E$14)) -> 0 | T143: =IF(tbl_Chiller_Calc_Engine736[[#This Row],[Hours]]=0,0,IF($N$115="Baseline Trend Data", IF(ISBLANK(tbl_Chiller_Calc_Engine736[[#This Row],[ CHWST (°F)]]),MEDIAN($N$117,$O$117,FORECAST(tbl_Chiller_Calc_Engine736[[#This Row],[OAT]],tbl_Chiller_Calc_Engine736[ CHWST (°F)],tbl_Chiller_Calc_Engine736[OAT])),tbl_Chiller_Calc_Engine736[[#This Row],[ CHWST (°F)]]),IF($N$115="Proposed Trend Data", IF(ISBLANK(tbl_Chiller_Calc_Engine736[[#This Row],[ CHWST (°F)]]),MEDIAN($N$117,$O$117,FORECAST(tbl_Chiller_Calc_Engine736[[#This Row],[OAT]],tbl_Chiller_Calc_Engine736[ CHWST (°F)2],tbl_Chiller_Calc_Engine736[OAT])),tbl_Chiller_Calc_Engine736[[#This Row],[ CHWST (°F)2]]), MEDIAN($N$117,$O$117,TREND($N$117:$O$117,$N$118:$O$118,tbl_Chiller_Calc_Engine736[[#This Row],[OAT]]))))) -> 0 | U143: =IF(tbl_Chiller_Calc_Engine736[[#This Row],[Hours]]=0,0,IF($I$115="Baseline Trend Data", IF(ISBLANK(tbl_Chiller_Calc_Engine736[[#This Row],[CWST (°F)]]),MEDIAN($I$117,$J$117,FORECAST(tbl_Chiller_Calc_Engine736[[#This Row],[Average WBT]],tbl_Chiller_Calc_Engine736[CWST (°F)],tbl_Chiller_Calc_Engine736[Average WBT])),tbl_Chiller_Calc_Engine736[[#This Row],[CWST (°F)]]),IF($I$115="Proposed Trend Data", IF(ISBLANK(tbl_Chiller_Calc_Engine736[[#This Row],[CWST (°F)]]),MEDIAN($I$117,$J$117,FORECAST(tbl_Chiller_Calc_Engine736[[#This Row],[Average WBT]],tbl_Chiller_Calc_Engine736[CWST (°F)3],tbl_Chiller_Calc_Engine736[Average WBT])),tbl_Chiller_Calc_Engine736[[#This Row],[CWST (°F)3]]), MEDIAN($I$117,$J$117,TREND($I$117:$J$117,$I$118:$J$118,tbl_Chiller_Calc_Engine736[[#This Row],[Average WBT]]))))) -> 0 | V143: =IF(tbl_Chiller_Calc_Engine736[[#This Row],[Hours]]=0,0,IF($N$121="Baseline Trend Data",IF(ISBLANK(H143),FORECAST(C143,$H$138:$H$243,$C$138:$C$243),H143), IF($N$121 = "Proposed Trend Data",IF(ISBLANK(O143),FORECAST(C143,$O$138:$O$243,$C$138:$C$243),O143), IF(C143>=$N$131,MAX(TREND($N$122:$O$122,$N$123:$O$123,C143),0),0)))) -> 0 | W143: =IF(E143>0,V143*'Chilled Water System Template'!$C$131,0) -> 0 | X143: =IF(tbl_Chiller_Calc_Engine736[[#This Row],[Hours]]=0,0,IF($N$125="Baseline Trend Data",IF(ISBLANK(tbl_Chiller_Calc_Engine736[[#This Row],[SCHWP Speed]]),MEDIAN($N$127,$O$127,FORECAST(tbl_Chiller_Calc_Engine736[[#This Row],[OAT]],tbl_Chiller_Calc_Engine736[SCHWP Speed],tbl_Chiller_Calc_Engine736[OAT]))), IF($N$125="Proposed Trend Data",IF(ISBLANK(tbl_Chiller_Calc_Engine736[[#This Row],[SCHWP Speed3]]),MEDIAN($N$127,$O$127,FORECAST(tbl_Chiller_Calc_Engine736[[#This Row],[OAT]],tbl_Chiller_Calc_Engine736[SCHWP Speed3],tbl_Chiller_Calc_Engine736[OAT]))), MEDIAN($N$127,$O$127,TREND($N$127:$O$127,$N$128:$O$128,tbl_Chiller_Calc_Engine736[[#This Row],[OAT]]))))) -> 0 | Y143: =IF(tbl_Chiller_Calc_Engine736[[#This Row],[Hours]]=0,0,IF($I$125="Baseline Trend Data",IF(ISBLANK(tbl_Chiller_Calc_Engine736[[#This Row],['# CWP]]),MEDIAN($F$41,$G$41,FORECAST(tbl_Chiller_Calc_Engine736[[#This Row],[OAT]],tbl_Chiller_Calc_Engine736['# CWP],tbl_Chiller_Calc_Engine736[OAT]))), IF($I$125="Proposed Trend Data",IF(ISBLANK(tbl_Chiller_Calc_Engine736[[#This Row],['# CWP2]]),MEDIAN($F$41,$G$41,FORECAST(tbl_Chiller_Calc_Engine736[[#This Row],[OAT]],tbl_Chiller_Calc_Engine736['# CWP2],tbl_Chiller_Calc_Engine736[OAT]))), ROUNDUP(MEDIAN($F$41,$G$41,TREND($F$41:$G$41,$F$42:$G$42,tbl_Chiller_Calc_Engine736[[#This Row],[OAT]])),0)))) -> 0 | Z143: =IF(tbl_Chiller_Calc_Engine736[[#This Row],[Hours]]=0,0,IF($I$125="Baseline Trend Data",IF(ISBLANK(tbl_Chiller_Calc_Engine736[[#This Row],[CWP Speed]]),MEDIAN($I$127,$J$127,FORECAST(tbl_Chiller_Calc_Engine736[[#This Row],[OAT]],tbl_Chiller_Calc_Engine736[CWP Speed],tbl_Chiller_Calc_Engine736[OAT]))), IF($I$125="Proposed Trend Data",IF(ISBLANK(tbl_Chiller_Calc_Engine736[[#This Row],[CWP Speed2]]),MEDIAN($I$127,$J$127,FORECAST(tbl_Chiller_Calc_Engine736[[#This Row],[OAT]],tbl_Chiller_Calc_Engine736[CWP Speed2],tbl_Chiller_Calc_Engine736[OAT]))), MEDIAN($I$127,$J$127,TREND($I$127:$J$127,$I$128:$J$128,tbl_Chiller_Calc_Engine736[[#This Row],[OAT]]))))) -> 0 | AA143: 2 | AB143: =IF(tbl_Chiller_Calc_Engine736[[#This Row],[Hours]]=0,0,IF($I$120="Baseline Trend Data",IF(ISBLANK(tbl_Chiller_Calc_Engine736[[#This Row],[Head in ft]]),MEDIAN($I$122,$J$122,FORECAST(tbl_Chiller_Calc_Engine736[[#This Row],[OAT]],tbl_Chiller_Calc_Engine736[Head in ft],tbl_Chiller_Calc_Engine736[OAT]))), IF($I$120="Proposed Trend Data",IF(ISBLANK(tbl_Chiller_Calc_Engine736[[#This Row],[Head in ft2]]),MEDIAN($I$122,$J$122,FORECAST(tbl_Chiller_Calc_Engine736[[#This Row],[OAT]],tbl_Chiller_Calc_Engine736[Head in ft2],tbl_Chiller_Calc_Engine736[OAT]))), ROUNDUP(MEDIAN($I$122,$J$122,TREND($I$122:$J$122,$I$123:$J$123,tbl_Chiller_Calc_Engine736[[#This Row],[OAT]]))*2.31,0)))) -> 0 | AC143: FALSE | AD143: =IF(OR(tbl_Chiller_Calc_Engine736[[#This Row],[Cooling Load (tons)2]]=0,tbl_Chiller_Calc_Engine736[[#This Row],[Econ Engaged]]),0,MEDIAN(0,MAX($W$124:$W$130),IFERROR(MATCH(tbl_Chiller_Calc_Engine736[[#This Row],[Cooling Load (tons)2]],$X$124:$X$130,1),0)+1)) -> 0 | AE143: =IF(tbl_Chiller_Calc_Engine736[[#This Row],[CT Load (Tons)]]=0,0,IFERROR(MEDIAN(0,MAX($Q$124:$Q$130),IFERROR(MATCH(tbl_Chiller_Calc_Engine736[[#This Row],[CT Load (Tons)]],$R$124:$R$130,1),0)+1),0)) -> 0 | AF143: =IF(OR(tbl_Chiller_Calc_Engine736[[#This Row],[Econ Engaged]],tbl_Chiller_Calc_Engine736[[#This Row],[Hours]]=0),0,SUMPRODUCT(tbl_Chiller_Calc_Engine736[[#This Row],[Cooling Load (tons)2]]*INDEX($Z$124:$AB$130,tbl_Chiller_Calc_Engine736[[#This Row],[CH Stage]],0)*$Z$118:$AB$118*(1-((tbl_Chiller_Calc_Engine736[[#This Row],[CHWST (°F)]]-$Z$119:$AB$119)+($Z$120:$AB$120-tbl_Chiller_Calc_Engine736[[#This Row],[CWST (°F)2]]))*$C$127))) -> 0 | AG143: 0 | AH143: =IF(tbl_Chiller_Calc_Engine736[[#This Row],[CH Stage]]=0,0,SUMPRODUCT(INDEX($T$124:$V$130,tbl_Chiller_Calc_Engine736[[#This Row],[CT Stage]],0),$D$133:$F$133)) -> 0 | AI143: =tbl_Chiller_Calc_Engine736[[#This Row],[PCHWP kW]]*tbl_Chiller_Calc_Engine736[[#This Row],[Hours]] -> 0 | AJ143: =(tbl_Chiller_Calc_Engine736[[#This Row],[SCHWP Qty]]*$C$129*$H$24*tbl_Chiller_Calc_Engine736[[#This Row],[SCHWP Speed2]]*tbl_Chiller_Calc_Engine736[[#This Row],[SCHWP Head]])/ (3960*$H$26*$H$27*IF($N$129=$F$129,1,$C$128)) -> 0 | AK143: =tbl_Chiller_Calc_Engine736[[#This Row],[SCHWP kW]]*tbl_Chiller_Calc_Engine736[[#This Row],[Hours]] -> 0 | AL143: =SUM(tbl_Chiller_Calc_Engine736[[#This Row],[Chiller Load kW]],tbl_Chiller_Calc_Engine736[[#This Row],[PCHWP kW]],tbl_Chiller_Calc_Engine736[[#This Row],[SCHWP kW]]) -> 0 | AM143: =SUM(tbl_Chiller_Calc_Engine736[[#This Row],[Chiller Load kWh]],tbl_Chiller_Calc_Engine736[[#This Row],[PCHWP kWh]],tbl_Chiller_Calc_Engine736[[#This Row],[SCHWP kWh]]) -> 0 | AN143: =IF(tbl_Chiller_Calc_Engine736[[#This Row],[CT Stage]]=0,0,SUMPRODUCT((IF(tbl_Chiller_Calc_Engine736[[#This Row],[CT Load (Tons)]]/INDEX($R$124:$R$130,tbl_Chiller_Calc_Engine736[[#This Row],[CT Stage]],0)>=$T$120:$V$120,tbl_Chiller_Calc_Engine736[[#This Row],[CT Load (Tons)]]/INDEX($R$124:$R$130,tbl_Chiller_Calc_Engine736[[#This Row],[CT Stage]],0),$T$120:$V$120)^$C$130*$T$118:$V$118*$C$129)/($C$128*$T$119:$V$119))) -> 0 | AO143: =tbl_Chiller_Calc_Engine736[[#This Row],[CT Fan kW]]*tbl_Chiller_Calc_Engine736[[#This Row],[Hours]] -> 0 | AP143: =(tbl_Chiller_Calc_Engine736[[#This Row],[CWP Qty]]*$C$129*$D$40*tbl_Chiller_Calc_Engine736[[#This Row],[CWP Speed3]]*$D$41)/ (3960*$D$42*$D$43*IF($I$129=$F$129,1,$C$128)) -> 0 | AQ143: =tbl_Chiller_Calc_Engine736[[#This Row],[CWP kW]]*tbl_Chiller_Calc_Engine736[[#This Row],[Hours]] -> 0
C144: 109 | D144: =IFERROR(AVERAGEIF(tbl_Climate_Zone[Dry_Bulb],tbl_Chiller_Calc_Engine736[[#This Row],[OAT]],tbl_Climate_Zone[Wet_Bulb]),0) -> 0 | E144: =SUM( COUNTIFS(tbl_Climate_Zone[Dry_Bulb],C144,tbl_Climate_Zone[Weekday],$C$12,tbl_Climate_Zone[Hour],">"&$D$12,tbl_Climate_Zone[Hour],"<="&$E$12), COUNTIFS(tbl_Climate_Zone[Dry_Bulb],C144,tbl_Climate_Zone[Weekday],$C$13,tbl_Climate_Zone[Hour],">"&$D$13,tbl_Climate_Zone[Hour],"<="&$E$13), COUNTIFS(tbl_Climate_Zone[Dry_Bulb],C144,tbl_Climate_Zone[Weekday],$C$14,tbl_Climate_Zone[Hour],">"&$D$14,tbl_Climate_Zone[Hour],"<="&$E$14)) -> 0 | T144: =IF(tbl_Chiller_Calc_Engine736[[#This Row],[Hours]]=0,0,IF($N$115="Baseline Trend Data", IF(ISBLANK(tbl_Chiller_Calc_Engine736[[#This Row],[ CHWST (°F)]]),MEDIAN($N$117,$O$117,FORECAST(tbl_Chiller_Calc_Engine736[[#This Row],[OAT]],tbl_Chiller_Calc_Engine736[ CHWST (°F)],tbl_Chiller_Calc_Engine736[OAT])),tbl_Chiller_Calc_Engine736[[#This Row],[ CHWST (°F)]]),IF($N$115="Proposed Trend Data", IF(ISBLANK(tbl_Chiller_Calc_Engine736[[#This Row],[ CHWST (°F)]]),MEDIAN($N$117,$O$117,FORECAST(tbl_Chiller_Calc_Engine736[[#This Row],[OAT]],tbl_Chiller_Calc_Engine736[ CHWST (°F)2],tbl_Chiller_Calc_Engine736[OAT])),tbl_Chiller_Calc_Engine736[[#This Row],[ CHWST (°F)2]]), MEDIAN($N$117,$O$117,TREND($N$117:$O$117,$N$118:$O$118,tbl_Chiller_Calc_Engine736[[#This Row],[OAT]]))))) -> 0 | U144: =IF(tbl_Chiller_Calc_Engine736[[#This Row],[Hours]]=0,0,IF($I$115="Baseline Trend Data", IF(ISBLANK(tbl_Chiller_Calc_Engine736[[#This Row],[CWST (°F)]]),MEDIAN($I$117,$J$117,FORECAST(tbl_Chiller_Calc_Engine736[[#This Row],[Average WBT]],tbl_Chiller_Calc_Engine736[CWST (°F)],tbl_Chiller_Calc_Engine736[Average WBT])),tbl_Chiller_Calc_Engine736[[#This Row],[CWST (°F)]]),IF($I$115="Proposed Trend Data", IF(ISBLANK(tbl_Chiller_Calc_Engine736[[#This Row],[CWST (°F)]]),MEDIAN($I$117,$J$117,FORECAST(tbl_Chiller_Calc_Engine736[[#This Row],[Average WBT]],tbl_Chiller_Calc_Engine736[CWST (°F)3],tbl_Chiller_Calc_Engine736[Average WBT])),tbl_Chiller_Calc_Engine736[[#This Row],[CWST (°F)3]]), MEDIAN($I$117,$J$117,TREND($I$117:$J$117,$I$118:$J$118,tbl_Chiller_Calc_Engine736[[#This Row],[Average WBT]]))))) -> 0 | V144: =IF(tbl_Chiller_Calc_Engine736[[#This Row],[Hours]]=0,0,IF($N$121="Baseline Trend Data",IF(ISBLANK(H144),FORECAST(C144,$H$138:$H$243,$C$138:$C$243),H144), IF($N$121 = "Proposed Trend Data",IF(ISBLANK(O144),FORECAST(C144,$O$138:$O$243,$C$138:$C$243),O144), IF(C144>=$N$131,MAX(TREND($N$122:$O$122,$N$123:$O$123,C144),0),0)))) -> 0 | W144: =IF(E144>0,V144*'Chilled Water System Template'!$C$131,0) -> 0 | X144: =IF(tbl_Chiller_Calc_Engine736[[#This Row],[Hours]]=0,0,IF($N$125="Baseline Trend Data",IF(ISBLANK(tbl_Chiller_Calc_Engine736[[#This Row],[SCHWP Speed]]),MEDIAN($N$127,$O$127,FORECAST(tbl_Chiller_Calc_Engine736[[#This Row],[OAT]],tbl_Chiller_Calc_Engine736[SCHWP Speed],tbl_Chiller_Calc_Engine736[OAT]))), IF($N$125="Proposed Trend Data",IF(ISBLANK(tbl_Chiller_Calc_Engine736[[#This Row],[SCHWP Speed3]]),MEDIAN($N$127,$O$127,FORECAST(tbl_Chiller_Calc_Engine736[[#This Row],[OAT]],tbl_Chiller_Calc_Engine736[SCHWP Speed3],tbl_Chiller_Calc_Engine736[OAT]))), MEDIAN($N$127,$O$127,TREND($N$127:$O$127,$N$128:$O$128,tbl_Chiller_Calc_Engine736[[#This Row],[OAT]]))))) -> 0 | Y144: =IF(tbl_Chiller_Calc_Engine736[[#This Row],[Hours]]=0,0,IF($I$125="Baseline Trend Data",IF(ISBLANK(tbl_Chiller_Calc_Engine736[[#This Row],['# CWP]]),MEDIAN($F$41,$G$41,FORECAST(tbl_Chiller_Calc_Engine736[[#This Row],[OAT]],tbl_Chiller_Calc_Engine736['# CWP],tbl_Chiller_Calc_Engine736[OAT]))), IF($I$125="Proposed Trend Data",IF(ISBLANK(tbl_Chiller_Calc_Engine736[[#This Row],['# CWP2]]),MEDIAN($F$41,$G$41,FORECAST(tbl_Chiller_Calc_Engine736[[#This Row],[OAT]],tbl_Chiller_Calc_Engine736['# CWP2],tbl_Chiller_Calc_Engine736[OAT]))), ROUNDUP(MEDIAN($F$41,$G$41,TREND($F$41:$G$41,$F$42:$G$42,tbl_Chiller_Calc_Engine736[[#This Row],[OAT]])),0)))) -> 0 | Z144: =IF(tbl_Chiller_Calc_Engine736[[#This Row],[Hours]]=0,0,IF($I$125="Baseline Trend Data",IF(ISBLANK(tbl_Chiller_Calc_Engine736[[#This Row],[CWP Speed]]),MEDIAN($I$127,$J$127,FORECAST(tbl_Chiller_Calc_Engine736[[#This Row],[OAT]],tbl_Chiller_Calc_Engine736[CWP Speed],tbl_Chiller_Calc_Engine736[OAT]))), IF($I$125="Proposed Trend Data",IF(ISBLANK(tbl_Chiller_Calc_Engine736[[#This Row],[CWP Speed2]]),MEDIAN($I$127,$J$127,FORECAST(tbl_Chiller_Calc_Engine736[[#This Row],[OAT]],tbl_Chiller_Calc_Engine736[CWP Speed2],tbl_Chiller_Calc_Engine736[OAT]))), MEDIAN($I$127,$J$127,TREND($I$127:$J$127,$I$128:$J$128,tbl_Chiller_Calc_Engine736[[#This Row],[OAT]]))))) -> 0 | AA144: 2 | AB144: =IF(tbl_Chiller_Calc_Engine736[[#This Row],[Hours]]=0,0,IF($I$120="Baseline Trend Data",IF(ISBLANK(tbl_Chiller_Calc_Engine736[[#This Row],[Head in ft]]),MEDIAN($I$122,$J$122,FORECAST(tbl_Chiller_Calc_Engine736[[#This Row],[OAT]],tbl_Chiller_Calc_Engine736[Head in ft],tbl_Chiller_Calc_Engine736[OAT]))), IF($I$120="Proposed Trend Data",IF(ISBLANK(tbl_Chiller_Calc_Engine736[[#This Row],[Head in ft2]]),MEDIAN($I$122,$J$122,FORECAST(tbl_Chiller_Calc_Engine736[[#This Row],[OAT]],tbl_Chiller_Calc_Engine736[Head in ft2],tbl_Chiller_Calc_Engine736[OAT]))), ROUNDUP(MEDIAN($I$122,$J$122,TREND($I$122:$J$122,$I$123:$J$123,tbl_Chiller_Calc_Engine736[[#This Row],[OAT]]))*2.31,0)))) -> 0 | AC144: FALSE | AD144: =IF(OR(tbl_Chiller_Calc_Engine736[[#This Row],[Cooling Load (tons)2]]=0,tbl_Chiller_Calc_Engine736[[#This Row],[Econ Engaged]]),0,MEDIAN(0,MAX($W$124:$W$130),IFERROR(MATCH(tbl_Chiller_Calc_Engine736[[#This Row],[Cooling Load (tons)2]],$X$124:$X$130,1),0)+1)) -> 0 | AE144: =IF(tbl_Chiller_Calc_Engine736[[#This Row],[CT Load (Tons)]]=0,0,IFERROR(MEDIAN(0,MAX($Q$124:$Q$130),IFERROR(MATCH(tbl_Chiller_Calc_Engine736[[#This Row],[CT Load (Tons)]],$R$124:$R$130,1),0)+1),0)) -> 0 | AF144: =IF(OR(tbl_Chiller_Calc_Engine736[[#This Row],[Econ Engaged]],tbl_Chiller_Calc_Engine736[[#This Row],[Hours]]=0),0,SUMPRODUCT(tbl_Chiller_Calc_Engine736[[#This Row],[Cooling Load (tons)2]]*INDEX($Z$124:$AB$130,tbl_Chiller_Calc_Engine736[[#This Row],[CH Stage]],0)*$Z$118:$AB$118*(1-((tbl_Chiller_Calc_Engine736[[#This Row],[CHWST (°F)]]-$Z$119:$AB$119)+($Z$120:$AB$120-tbl_Chiller_Calc_Engine736[[#This Row],[CWST (°F)2]]))*$C$127))) -> 0 | AG144: 0 | AH144: =IF(tbl_Chiller_Calc_Engine736[[#This Row],[CH Stage]]=0,0,SUMPRODUCT(INDEX($T$124:$V$130,tbl_Chiller_Calc_Engine736[[#This Row],[CT Stage]],0),$D$133:$F$133)) -> 0 | AI144: =tbl_Chiller_Calc_Engine736[[#This Row],[PCHWP kW]]*tbl_Chiller_Calc_Engine736[[#This Row],[Hours]] -> 0 | AJ144: =(tbl_Chiller_Calc_Engine736[[#This Row],[SCHWP Qty]]*$C$129*$H$24*tbl_Chiller_Calc_Engine736[[#This Row],[SCHWP Speed2]]*tbl_Chiller_Calc_Engine736[[#This Row],[SCHWP Head]])/ (3960*$H$26*$H$27*IF($N$129=$F$129,1,$C$128)) -> 0 | AK144: =tbl_Chiller_Calc_Engine736[[#This Row],[SCHWP kW]]*tbl_Chiller_Calc_Engine736[[#This Row],[Hours]] -> 0 | AL144: =SUM(tbl_Chiller_Calc_Engine736[[#This Row],[Chiller Load kW]],tbl_Chiller_Calc_Engine736[[#This Row],[PCHWP kW]],tbl_Chiller_Calc_Engine736[[#This Row],[SCHWP kW]]) -> 0 | AM144: =SUM(tbl_Chiller_Calc_Engine736[[#This Row],[Chiller Load kWh]],tbl_Chiller_Calc_Engine736[[#This Row],[PCHWP kWh]],tbl_Chiller_Calc_Engine736[[#This Row],[SCHWP kWh]]) -> 0 | AN144: =IF(tbl_Chiller_Calc_Engine736[[#This Row],[CT Stage]]=0,0,SUMPRODUCT((IF(tbl_Chiller_Calc_Engine736[[#This Row],[CT Load (Tons)]]/INDEX($R$124:$R$130,tbl_Chiller_Calc_Engine736[[#This Row],[CT Stage]],0)>=$T$120:$V$120,tbl_Chiller_Calc_Engine736[[#This Row],[CT Load (Tons)]]/INDEX($R$124:$R$130,tbl_Chiller_Calc_Engine736[[#This Row],[CT Stage]],0),$T$120:$V$120)^$C$130*$T$118:$V$118*$C$129)/($C$128*$T$119:$V$119))) -> 0 | AO144: =tbl_Chiller_Calc_Engine736[[#This Row],[CT Fan kW]]*tbl_Chiller_Calc_Engine736[[#This Row],[Hours]] -> 0 | AP144: =(tbl_Chiller_Calc_Engine736[[#This Row],[CWP Qty]]*$C$129*$D$40*tbl_Chiller_Calc_Engine736[[#This Row],[CWP Speed3]]*$D$41)/ (3960*$D$42*$D$43*IF($I$129=$F$129,1,$C$128)) -> 0 | AQ144: =tbl_Chiller_Calc_Engine736[[#This Row],[CWP kW]]*tbl_Chiller_Calc_Engine736[[#This Row],[Hours]] -> 0
C145: 108 | D145: =IFERROR(AVERAGEIF(tbl_Climate_Zone[Dry_Bulb],tbl_Chiller_Calc_Engine736[[#This Row],[OAT]],tbl_Climate_Zone[Wet_Bulb]),0) -> 0 | E145: =SUM( COUNTIFS(tbl_Climate_Zone[Dry_Bulb],C145,tbl_Climate_Zone[Weekday],$C$12,tbl_Climate_Zone[Hour],">"&$D$12,tbl_Climate_Zone[Hour],"<="&$E$12), COUNTIFS(tbl_Climate_Zone[Dry_Bulb],C145,tbl_Climate_Zone[Weekday],$C$13,tbl_Climate_Zone[Hour],">"&$D$13,tbl_Climate_Zone[Hour],"<="&$E$13), COUNTIFS(tbl_Climate_Zone[Dry_Bulb],C145,tbl_Climate_Zone[Weekday],$C$14,tbl_Climate_Zone[Hour],">"&$D$14,tbl_Climate_Zone[Hour],"<="&$E$14)) -> 0 | T145: =IF(tbl_Chiller_Calc_Engine736[[#This Row],[Hours]]=0,0,IF($N$115="Baseline Trend Data", IF(ISBLANK(tbl_Chiller_Calc_Engine736[[#This Row],[ CHWST (°F)]]),MEDIAN($N$117,$O$117,FORECAST(tbl_Chiller_Calc_Engine736[[#This Row],[OAT]],tbl_Chiller_Calc_Engine736[ CHWST (°F)],tbl_Chiller_Calc_Engine736[OAT])),tbl_Chiller_Calc_Engine736[[#This Row],[ CHWST (°F)]]),IF($N$115="Proposed Trend Data", IF(ISBLANK(tbl_Chiller_Calc_Engine736[[#This Row],[ CHWST (°F)]]),MEDIAN($N$117,$O$117,FORECAST(tbl_Chiller_Calc_Engine736[[#This Row],[OAT]],tbl_Chiller_Calc_Engine736[ CHWST (°F)2],tbl_Chiller_Calc_Engine736[OAT])),tbl_Chiller_Calc_Engine736[[#This Row],[ CHWST (°F)2]]), MEDIAN($N$117,$O$117,TREND($N$117:$O$117,$N$118:$O$118,tbl_Chiller_Calc_Engine736[[#This Row],[OAT]]))))) -> 0 | U145: =IF(tbl_Chiller_Calc_Engine736[[#This Row],[Hours]]=0,0,IF($I$115="Baseline Trend Data", IF(ISBLANK(tbl_Chiller_Calc_Engine736[[#This Row],[CWST (°F)]]),MEDIAN($I$117,$J$117,FORECAST(tbl_Chiller_Calc_Engine736[[#This Row],[Average WBT]],tbl_Chiller_Calc_Engine736[CWST (°F)],tbl_Chiller_Calc_Engine736[Average WBT])),tbl_Chiller_Calc_Engine736[[#This Row],[CWST (°F)]]),IF($I$115="Proposed Trend Data", IF(ISBLANK(tbl_Chiller_Calc_Engine736[[#This Row],[CWST (°F)]]),MEDIAN($I$117,$J$117,FORECAST(tbl_Chiller_Calc_Engine736[[#This Row],[Average WBT]],tbl_Chiller_Calc_Engine736[CWST (°F)3],tbl_Chiller_Calc_Engine736[Average WBT])),tbl_Chiller_Calc_Engine736[[#This Row],[CWST (°F)3]]), MEDIAN($I$117,$J$117,TREND($I$117:$J$117,$I$118:$J$118,tbl_Chiller_Calc_Engine736[[#This Row],[Average WBT]]))))) -> 0 | V145: =IF(tbl_Chiller_Calc_Engine736[[#This Row],[Hours]]=0,0,IF($N$121="Baseline Trend Data",IF(ISBLANK(H145),FORECAST(C145,$H$138:$H$243,$C$138:$C$243),H145), IF($N$121 = "Proposed Trend Data",IF(ISBLANK(O145),FORECAST(C145,$O$138:$O$243,$C$138:$C$243),O145), IF(C145>=$N$131,MAX(TREND($N$122:$O$122,$N$123:$O$123,C145),0),0)))) -> 0 | W145: =IF(E145>0,V145*'Chilled Water System Template'!$C$131,0) -> 0 | X145: =IF(tbl_Chiller_Calc_Engine736[[#This Row],[Hours]]=0,0,IF($N$125="Baseline Trend Data",IF(ISBLANK(tbl_Chiller_Calc_Engine736[[#This Row],[SCHWP Speed]]),MEDIAN($N$127,$O$127,FORECAST(tbl_Chiller_Calc_Engine736[[#This Row],[OAT]],tbl_Chiller_Calc_Engine736[SCHWP Speed],tbl_Chiller_Calc_Engine736[OAT]))), IF($N$125="Proposed Trend Data",IF(ISBLANK(tbl_Chiller_Calc_Engine736[[#This Row],[SCHWP Speed3]]),MEDIAN($N$127,$O$127,FORECAST(tbl_Chiller_Calc_Engine736[[#This Row],[OAT]],tbl_Chiller_Calc_Engine736[SCHWP Speed3],tbl_Chiller_Calc_Engine736[OAT]))), MEDIAN($N$127,$O$127,TREND($N$127:$O$127,$N$128:$O$128,tbl_Chiller_Calc_Engine736[[#This Row],[OAT]]))))) -> 0 | Y145: =IF(tbl_Chiller_Calc_Engine736[[#This Row],[Hours]]=0,0,IF($I$125="Baseline Trend Data",IF(ISBLANK(tbl_Chiller_Calc_Engine736[[#This Row],['# CWP]]),MEDIAN($F$41,$G$41,FORECAST(tbl_Chiller_Calc_Engine736[[#This Row],[OAT]],tbl_Chiller_Calc_Engine736['# CWP],tbl_Chiller_Calc_Engine736[OAT]))), IF($I$125="Proposed Trend Data",IF(ISBLANK(tbl_Chiller_Calc_Engine736[[#This Row],['# CWP2]]),MEDIAN($F$41,$G$41,FORECAST(tbl_Chiller_Calc_Engine736[[#This Row],[OAT]],tbl_Chiller_Calc_Engine736['# CWP2],tbl_Chiller_Calc_Engine736[OAT]))), ROUNDUP(MEDIAN($F$41,$G$41,TREND($F$41:$G$41,$F$42:$G$42,tbl_Chiller_Calc_Engine736[[#This Row],[OAT]])),0)))) -> 0 | Z145: =IF(tbl_Chiller_Calc_Engine736[[#This Row],[Hours]]=0,0,IF($I$125="Baseline Trend Data",IF(ISBLANK(tbl_Chiller_Calc_Engine736[[#This Row],[CWP Speed]]),MEDIAN($I$127,$J$127,FORECAST(tbl_Chiller_Calc_Engine736[[#This Row],[OAT]],tbl_Chiller_Calc_Engine736[CWP Speed],tbl_Chiller_Calc_Engine736[OAT]))), IF($I$125="Proposed Trend Data",IF(ISBLANK(tbl_Chiller_Calc_Engine736[[#This Row],[CWP Speed2]]),MEDIAN($I$127,$J$127,FORECAST(tbl_Chiller_Calc_Engine736[[#This Row],[OAT]],tbl_Chiller_Calc_Engine736[CWP Speed2],tbl_Chiller_Calc_Engine736[OAT]))), MEDIAN($I$127,$J$127,TREND($I$127:$J$127,$I$128:$J$128,tbl_Chiller_Calc_Engine736[[#This Row],[OAT]]))))) -> 0 | AA145: 2 | AB145: =IF(tbl_Chiller_Calc_Engine736[[#This Row],[Hours]]=0,0,IF($I$120="Baseline Trend Data",IF(ISBLANK(tbl_Chiller_Calc_Engine736[[#This Row],[Head in ft]]),MEDIAN($I$122,$J$122,FORECAST(tbl_Chiller_Calc_Engine736[[#This Row],[OAT]],tbl_Chiller_Calc_Engine736[Head in ft],tbl_Chiller_Calc_Engine736[OAT]))), IF($I$120="Proposed Trend Data",IF(ISBLANK(tbl_Chiller_Calc_Engine736[[#This Row],[Head in ft2]]),MEDIAN($I$122,$J$122,FORECAST(tbl_Chiller_Calc_Engine736[[#This Row],[OAT]],tbl_Chiller_Calc_Engine736[Head in ft2],tbl_Chiller_Calc_Engine736[OAT]))), ROUNDUP(MEDIAN($I$122,$J$122,TREND($I$122:$J$122,$I$123:$J$123,tbl_Chiller_Calc_Engine736[[#This Row],[OAT]]))*2.31,0)))) -> 0 | AC145: FALSE | AD145: =IF(OR(tbl_Chiller_Calc_Engine736[[#This Row],[Cooling Load (tons)2]]=0,tbl_Chiller_Calc_Engine736[[#This Row],[Econ Engaged]]),0,MEDIAN(0,MAX($W$124:$W$130),IFERROR(MATCH(tbl_Chiller_Calc_Engine736[[#This Row],[Cooling Load (tons)2]],$X$124:$X$130,1),0)+1)) -> 0 | AE145: =IF(tbl_Chiller_Calc_Engine736[[#This Row],[CT Load (Tons)]]=0,0,IFERROR(MEDIAN(0,MAX($Q$124:$Q$130),IFERROR(MATCH(tbl_Chiller_Calc_Engine736[[#This Row],[CT Load (Tons)]],$R$124:$R$130,1),0)+1),0)) -> 0 | AF145: =IF(OR(tbl_Chiller_Calc_Engine736[[#This Row],[Econ Engaged]],tbl_Chiller_Calc_Engine736[[#This Row],[Hours]]=0),0,SUMPRODUCT(tbl_Chiller_Calc_Engine736[[#This Row],[Cooling Load (tons)2]]*INDEX($Z$124:$AB$130,tbl_Chiller_Calc_Engine736[[#This Row],[CH Stage]],0)*$Z$118:$AB$118*(1-((tbl_Chiller_Calc_Engine736[[#This Row],[CHWST (°F)]]-$Z$119:$AB$119)+($Z$120:$AB$120-tbl_Chiller_Calc_Engine736[[#This Row],[CWST (°F)2]]))*$C$127))) -> 0 | AG145: 0 | AH145: =IF(tbl_Chiller_Calc_Engine736[[#This Row],[CH Stage]]=0,0,SUMPRODUCT(INDEX($T$124:$V$130,tbl_Chiller_Calc_Engine736[[#This Row],[CT Stage]],0),$D$133:$F$133)) -> 0 | AI145: =tbl_Chiller_Calc_Engine736[[#This Row],[PCHWP kW]]*tbl_Chiller_Calc_Engine736[[#This Row],[Hours]] -> 0 | AJ145: =(tbl_Chiller_Calc_Engine736[[#This Row],[SCHWP Qty]]*$C$129*$H$24*tbl_Chiller_Calc_Engine736[[#This Row],[SCHWP Speed2]]*tbl_Chiller_Calc_Engine736[[#This Row],[SCHWP Head]])/ (3960*$H$26*$H$27*IF($N$129=$F$129,1,$C$128)) -> 0 | AK145: =tbl_Chiller_Calc_Engine736[[#This Row],[SCHWP kW]]*tbl_Chiller_Calc_Engine736[[#This Row],[Hours]] -> 0 | AL145: =SUM(tbl_Chiller_Calc_Engine736[[#This Row],[Chiller Load kW]],tbl_Chiller_Calc_Engine736[[#This Row],[PCHWP kW]],tbl_Chiller_Calc_Engine736[[#This Row],[SCHWP kW]]) -> 0 | AM145: =SUM(tbl_Chiller_Calc_Engine736[[#This Row],[Chiller Load kWh]],tbl_Chiller_Calc_Engine736[[#This Row],[PCHWP kWh]],tbl_Chiller_Calc_Engine736[[#This Row],[SCHWP kWh]]) -> 0 | AN145: =IF(tbl_Chiller_Calc_Engine736[[#This Row],[CT Stage]]=0,0,SUMPRODUCT((IF(tbl_Chiller_Calc_Engine736[[#This Row],[CT Load (Tons)]]/INDEX($R$124:$R$130,tbl_Chiller_Calc_Engine736[[#This Row],[CT Stage]],0)>=$T$120:$V$120,tbl_Chiller_Calc_Engine736[[#This Row],[CT Load (Tons)]]/INDEX($R$124:$R$130,tbl_Chiller_Calc_Engine736[[#This Row],[CT Stage]],0),$T$120:$V$120)^$C$130*$T$118:$V$118*$C$129)/($C$128*$T$119:$V$119))) -> 0 | AO145: =tbl_Chiller_Calc_Engine736[[#This Row],[CT Fan kW]]*tbl_Chiller_Calc_Engine736[[#This Row],[Hours]] -> 0 | AP145: =(tbl_Chiller_Calc_Engine736[[#This Row],[CWP Qty]]*$C$129*$D$40*tbl_Chiller_Calc_Engine736[[#This Row],[CWP Speed3]]*$D$41)/ (3960*$D$42*$D$43*IF($I$129=$F$129,1,$C$128)) -> 0 | AQ145: =tbl_Chiller_Calc_Engine736[[#This Row],[CWP kW]]*tbl_Chiller_Calc_Engine736[[#This Row],[Hours]] -> 0
C146: 107 | D146: =IFERROR(AVERAGEIF(tbl_Climate_Zone[Dry_Bulb],tbl_Chiller_Calc_Engine736[[#This Row],[OAT]],tbl_Climate_Zone[Wet_Bulb]),0) -> 0 | E146: =SUM( COUNTIFS(tbl_Climate_Zone[Dry_Bulb],C146,tbl_Climate_Zone[Weekday],$C$12,tbl_Climate_Zone[Hour],">"&$D$12,tbl_Climate_Zone[Hour],"<="&$E$12), COUNTIFS(tbl_Climate_Zone[Dry_Bulb],C146,tbl_Climate_Zone[Weekday],$C$13,tbl_Climate_Zone[Hour],">"&$D$13,tbl_Climate_Zone[Hour],"<="&$E$13), COUNTIFS(tbl_Climate_Zone[Dry_Bulb],C146,tbl_Climate_Zone[Weekday],$C$14,tbl_Climate_Zone[Hour],">"&$D$14,tbl_Climate_Zone[Hour],"<="&$E$14)) -> 0 | T146: =IF(tbl_Chiller_Calc_Engine736[[#This Row],[Hours]]=0,0,IF($N$115="Baseline Trend Data", IF(ISBLANK(tbl_Chiller_Calc_Engine736[[#This Row],[ CHWST (°F)]]),MEDIAN($N$117,$O$117,FORECAST(tbl_Chiller_Calc_Engine736[[#This Row],[OAT]],tbl_Chiller_Calc_Engine736[ CHWST (°F)],tbl_Chiller_Calc_Engine736[OAT])),tbl_Chiller_Calc_Engine736[[#This Row],[ CHWST (°F)]]),IF($N$115="Proposed Trend Data", IF(ISBLANK(tbl_Chiller_Calc_Engine736[[#This Row],[ CHWST (°F)]]),MEDIAN($N$117,$O$117,FORECAST(tbl_Chiller_Calc_Engine736[[#This Row],[OAT]],tbl_Chiller_Calc_Engine736[ CHWST (°F)2],tbl_Chiller_Calc_Engine736[OAT])),tbl_Chiller_Calc_Engine736[[#This Row],[ CHWST (°F)2]]), MEDIAN($N$117,$O$117,TREND($N$117:$O$117,$N$118:$O$118,tbl_Chiller_Calc_Engine736[[#This Row],[OAT]]))))) -> 0 | U146: =IF(tbl_Chiller_Calc_Engine736[[#This Row],[Hours]]=0,0,IF($I$115="Baseline Trend Data", IF(ISBLANK(tbl_Chiller_Calc_Engine736[[#This Row],[CWST (°F)]]),MEDIAN($I$117,$J$117,FORECAST(tbl_Chiller_Calc_Engine736[[#This Row],[Average WBT]],tbl_Chiller_Calc_Engine736[CWST (°F)],tbl_Chiller_Calc_Engine736[Average WBT])),tbl_Chiller_Calc_Engine736[[#This Row],[CWST (°F)]]),IF($I$115="Proposed Trend Data", IF(ISBLANK(tbl_Chiller_Calc_Engine736[[#This Row],[CWST (°F)]]),MEDIAN($I$117,$J$117,FORECAST(tbl_Chiller_Calc_Engine736[[#This Row],[Average WBT]],tbl_Chiller_Calc_Engine736[CWST (°F)3],tbl_Chiller_Calc_Engine736[Average WBT])),tbl_Chiller_Calc_Engine736[[#This Row],[CWST (°F)3]]), MEDIAN($I$117,$J$117,TREND($I$117:$J$117,$I$118:$J$118,tbl_Chiller_Calc_Engine736[[#This Row],[Average WBT]]))))) -> 0 | V146: =IF(tbl_Chiller_Calc_Engine736[[#This Row],[Hours]]=0,0,IF($N$121="Baseline Trend Data",IF(ISBLANK(H146),FORECAST(C146,$H$138:$H$243,$C$138:$C$243),H146), IF($N$121 = "Proposed Trend Data",IF(ISBLANK(O146),FORECAST(C146,$O$138:$O$243,$C$138:$C$243),O146), IF(C146>=$N$131,MAX(TREND($N$122:$O$122,$N$123:$O$123,C146),0),0)))) -> 0 | W146: =IF(E146>0,V146*'Chilled Water System Template'!$C$131,0) -> 0 | X146: =IF(tbl_Chiller_Calc_Engine736[[#This Row],[Hours]]=0,0,IF($N$125="Baseline Trend Data",IF(ISBLANK(tbl_Chiller_Calc_Engine736[[#This Row],[SCHWP Speed]]),MEDIAN($N$127,$O$127,FORECAST(tbl_Chiller_Calc_Engine736[[#This Row],[OAT]],tbl_Chiller_Calc_Engine736[SCHWP Speed],tbl_Chiller_Calc_Engine736[OAT]))), IF($N$125="Proposed Trend Data",IF(ISBLANK(tbl_Chiller_Calc_Engine736[[#This Row],[SCHWP Speed3]]),MEDIAN($N$127,$O$127,FORECAST(tbl_Chiller_Calc_Engine736[[#This Row],[OAT]],tbl_Chiller_Calc_Engine736[SCHWP Speed3],tbl_Chiller_Calc_Engine736[OAT]))), MEDIAN($N$127,$O$127,TREND($N$127:$O$127,$N$128:$O$128,tbl_Chiller_Calc_Engine736[[#This Row],[OAT]]))))) -> 0 | Y146: =IF(tbl_Chiller_Calc_Engine736[[#This Row],[Hours]]=0,0,IF($I$125="Baseline Trend Data",IF(ISBLANK(tbl_Chiller_Calc_Engine736[[#This Row],['# CWP]]),MEDIAN($F$41,$G$41,FORECAST(tbl_Chiller_Calc_Engine736[[#This Row],[OAT]],tbl_Chiller_Calc_Engine736['# CWP],tbl_Chiller_Calc_Engine736[OAT]))), IF($I$125="Proposed Trend Data",IF(ISBLANK(tbl_Chiller_Calc_Engine736[[#This Row],['# CWP2]]),MEDIAN($F$41,$G$41,FORECAST(tbl_Chiller_Calc_Engine736[[#This Row],[OAT]],tbl_Chiller_Calc_Engine736['# CWP2],tbl_Chiller_Calc_Engine736[OAT]))), ROUNDUP(MEDIAN($F$41,$G$41,TREND($F$41:$G$41,$F$42:$G$42,tbl_Chiller_Calc_Engine736[[#This Row],[OAT]])),0)))) -> 0 | Z146: =IF(tbl_Chiller_Calc_Engine736[[#This Row],[Hours]]=0,0,IF($I$125="Baseline Trend Data",IF(ISBLANK(tbl_Chiller_Calc_Engine736[[#This Row],[CWP Speed]]),MEDIAN($I$127,$J$127,FORECAST(tbl_Chiller_Calc_Engine736[[#This Row],[OAT]],tbl_Chiller_Calc_Engine736[CWP Speed],tbl_Chiller_Calc_Engine736[OAT]))), IF($I$125="Proposed Trend Data",IF(ISBLANK(tbl_Chiller_Calc_Engine736[[#This Row],[CWP Speed2]]),MEDIAN($I$127,$J$127,FORECAST(tbl_Chiller_Calc_Engine736[[#This Row],[OAT]],tbl_Chiller_Calc_Engine736[CWP Speed2],tbl_Chiller_Calc_Engine736[OAT]))), MEDIAN($I$127,$J$127,TREND($I$127:$J$127,$I$128:$J$128,tbl_Chiller_Calc_Engine736[[#This Row],[OAT]]))))) -> 0 | AA146: 2 | AB146: =IF(tbl_Chiller_Calc_Engine736[[#This Row],[Hours]]=0,0,IF($I$120="Baseline Trend Data",IF(ISBLANK(tbl_Chiller_Calc_Engine736[[#This Row],[Head in ft]]),MEDIAN($I$122,$J$122,FORECAST(tbl_Chiller_Calc_Engine736[[#This Row],[OAT]],tbl_Chiller_Calc_Engine736[Head in ft],tbl_Chiller_Calc_Engine736[OAT]))), IF($I$120="Proposed Trend Data",IF(ISBLANK(tbl_Chiller_Calc_Engine736[[#This Row],[Head in ft2]]),MEDIAN($I$122,$J$122,FORECAST(tbl_Chiller_Calc_Engine736[[#This Row],[OAT]],tbl_Chiller_Calc_Engine736[Head in ft2],tbl_Chiller_Calc_Engine736[OAT]))), ROUNDUP(MEDIAN($I$122,$J$122,TREND($I$122:$J$122,$I$123:$J$123,tbl_Chiller_Calc_Engine736[[#This Row],[OAT]]))*2.31,0)))) -> 0 | AC146: FALSE | AD146: =IF(OR(tbl_Chiller_Calc_Engine736[[#This Row],[Cooling Load (tons)2]]=0,tbl_Chiller_Calc_Engine736[[#This Row],[Econ Engaged]]),0,MEDIAN(0,MAX($W$124:$W$130),IFERROR(MATCH(tbl_Chiller_Calc_Engine736[[#This Row],[Cooling Load (tons)2]],$X$124:$X$130,1),0)+1)) -> 0 | AE146: =IF(tbl_Chiller_Calc_Engine736[[#This Row],[CT Load (Tons)]]=0,0,IFERROR(MEDIAN(0,MAX($Q$124:$Q$130),IFERROR(MATCH(tbl_Chiller_Calc_Engine736[[#This Row],[CT Load (Tons)]],$R$124:$R$130,1),0)+1),0)) -> 0 | AF146: =IF(OR(tbl_Chiller_Calc_Engine736[[#This Row],[Econ Engaged]],tbl_Chiller_Calc_Engine736[[#This Row],[Hours]]=0),0,SUMPRODUCT(tbl_Chiller_Calc_Engine736[[#This Row],[Cooling Load (tons)2]]*INDEX($Z$124:$AB$130,tbl_Chiller_Calc_Engine736[[#This Row],[CH Stage]],0)*$Z$118:$AB$118*(1-((tbl_Chiller_Calc_Engine736[[#This Row],[CHWST (°F)]]-$Z$119:$AB$119)+($Z$120:$AB$120-tbl_Chiller_Calc_Engine736[[#This Row],[CWST (°F)2]]))*$C$127))) -> 0 | AG146: 0 | AH146: =IF(tbl_Chiller_Calc_Engine736[[#This Row],[CH Stage]]=0,0,SUMPRODUCT(INDEX($T$124:$V$130,tbl_Chiller_Calc_Engine736[[#This Row],[CT Stage]],0),$D$133:$F$133)) -> 0 | AI146: =tbl_Chiller_Calc_Engine736[[#This Row],[PCHWP kW]]*tbl_Chiller_Calc_Engine736[[#This Row],[Hours]] -> 0 | AJ146: =(tbl_Chiller_Calc_Engine736[[#This Row],[SCHWP Qty]]*$C$129*$H$24*tbl_Chiller_Calc_Engine736[[#This Row],[SCHWP Speed2]]*tbl_Chiller_Calc_Engine736[[#This Row],[SCHWP Head]])/ (3960*$H$26*$H$27*IF($N$129=$F$129,1,$C$128)) -> 0 | AK146: =tbl_Chiller_Calc_Engine736[[#This Row],[SCHWP kW]]*tbl_Chiller_Calc_Engine736[[#This Row],[Hours]] -> 0 | AL146: =SUM(tbl_Chiller_Calc_Engine736[[#This Row],[Chiller Load kW]],tbl_Chiller_Calc_Engine736[[#This Row],[PCHWP kW]],tbl_Chiller_Calc_Engine736[[#This Row],[SCHWP kW]]) -> 0 | AM146: =SUM(tbl_Chiller_Calc_Engine736[[#This Row],[Chiller Load kWh]],tbl_Chiller_Calc_Engine736[[#This Row],[PCHWP kWh]],tbl_Chiller_Calc_Engine736[[#This Row],[SCHWP kWh]]) -> 0 | AN146: =IF(tbl_Chiller_Calc_Engine736[[#This Row],[CT Stage]]=0,0,SUMPRODUCT((IF(tbl_Chiller_Calc_Engine736[[#This Row],[CT Load (Tons)]]/INDEX($R$124:$R$130,tbl_Chiller_Calc_Engine736[[#This Row],[CT Stage]],0)>=$T$120:$V$120,tbl_Chiller_Calc_Engine736[[#This Row],[CT Load (Tons)]]/INDEX($R$124:$R$130,tbl_Chiller_Calc_Engine736[[#This Row],[CT Stage]],0),$T$120:$V$120)^$C$130*$T$118:$V$118*$C$129)/($C$128*$T$119:$V$119))) -> 0 | AO146: =tbl_Chiller_Calc_Engine736[[#This Row],[CT Fan kW]]*tbl_Chiller_Calc_Engine736[[#This Row],[Hours]] -> 0 | AP146: =(tbl_Chiller_Calc_Engine736[[#This Row],[CWP Qty]]*$C$129*$D$40*tbl_Chiller_Calc_Engine736[[#This Row],[CWP Speed3]]*$D$41)/ (3960*$D$42*$D$43*IF($I$129=$F$129,1,$C$128)) -> 0 | AQ146: =tbl_Chiller_Calc_Engine736[[#This Row],[CWP kW]]*tbl_Chiller_Calc_Engine736[[#This Row],[Hours]] -> 0
C147: 106 | D147: =IFERROR(AVERAGEIF(tbl_Climate_Zone[Dry_Bulb],tbl_Chiller_Calc_Engine736[[#This Row],[OAT]],tbl_Climate_Zone[Wet_Bulb]),0) -> 0 | E147: =SUM( COUNTIFS(tbl_Climate_Zone[Dry_Bulb],C147,tbl_Climate_Zone[Weekday],$C$12,tbl_Climate_Zone[Hour],">"&$D$12,tbl_Climate_Zone[Hour],"<="&$E$12), COUNTIFS(tbl_Climate_Zone[Dry_Bulb],C147,tbl_Climate_Zone[Weekday],$C$13,tbl_Climate_Zone[Hour],">"&$D$13,tbl_Climate_Zone[Hour],"<="&$E$13), COUNTIFS(tbl_Climate_Zone[Dry_Bulb],C147,tbl_Climate_Zone[Weekday],$C$14,tbl_Climate_Zone[Hour],">"&$D$14,tbl_Climate_Zone[Hour],"<="&$E$14)) -> 0 | T147: =IF(tbl_Chiller_Calc_Engine736[[#This Row],[Hours]]=0,0,IF($N$115="Baseline Trend Data", IF(ISBLANK(tbl_Chiller_Calc_Engine736[[#This Row],[ CHWST (°F)]]),MEDIAN($N$117,$O$117,FORECAST(tbl_Chiller_Calc_Engine736[[#This Row],[OAT]],tbl_Chiller_Calc_Engine736[ CHWST (°F)],tbl_Chiller_Calc_Engine736[OAT])),tbl_Chiller_Calc_Engine736[[#This Row],[ CHWST (°F)]]),IF($N$115="Proposed Trend Data", IF(ISBLANK(tbl_Chiller_Calc_Engine736[[#This Row],[ CHWST (°F)]]),MEDIAN($N$117,$O$117,FORECAST(tbl_Chiller_Calc_Engine736[[#This Row],[OAT]],tbl_Chiller_Calc_Engine736[ CHWST (°F)2],tbl_Chiller_Calc_Engine736[OAT])),tbl_Chiller_Calc_Engine736[[#This Row],[ CHWST (°F)2]]), MEDIAN($N$117,$O$117,TREND($N$117:$O$117,$N$118:$O$118,tbl_Chiller_Calc_Engine736[[#This Row],[OAT]]))))) -> 0 | U147: =IF(tbl_Chiller_Calc_Engine736[[#This Row],[Hours]]=0,0,IF($I$115="Baseline Trend Data", IF(ISBLANK(tbl_Chiller_Calc_Engine736[[#This Row],[CWST (°F)]]),MEDIAN($I$117,$J$117,FORECAST(tbl_Chiller_Calc_Engine736[[#This Row],[Average WBT]],tbl_Chiller_Calc_Engine736[CWST (°F)],tbl_Chiller_Calc_Engine736[Average WBT])),tbl_Chiller_Calc_Engine736[[#This Row],[CWST (°F)]]),IF($I$115="Proposed Trend Data", IF(ISBLANK(tbl_Chiller_Calc_Engine736[[#This Row],[CWST (°F)]]),MEDIAN($I$117,$J$117,FORECAST(tbl_Chiller_Calc_Engine736[[#This Row],[Average WBT]],tbl_Chiller_Calc_Engine736[CWST (°F)3],tbl_Chiller_Calc_Engine736[Average WBT])),tbl_Chiller_Calc_Engine736[[#This Row],[CWST (°F)3]]), MEDIAN($I$117,$J$117,TREND($I$117:$J$117,$I$118:$J$118,tbl_Chiller_Calc_Engine736[[#This Row],[Average WBT]]))))) -> 0 | V147: =IF(tbl_Chiller_Calc_Engine736[[#This Row],[Hours]]=0,0,IF($N$121="Baseline Trend Data",IF(ISBLANK(H147),FORECAST(C147,$H$138:$H$243,$C$138:$C$243),H147), IF($N$121 = "Proposed Trend Data",IF(ISBLANK(O147),FORECAST(C147,$O$138:$O$243,$C$138:$C$243),O147), IF(C147>=$N$131,MAX(TREND($N$122:$O$122,$N$123:$O$123,C147),0),0)))) -> 0 | W147: =IF(E147>0,V147*'Chilled Water System Template'!$C$131,0) -> 0 | X147: =IF(tbl_Chiller_Calc_Engine736[[#This Row],[Hours]]=0,0,IF($N$125="Baseline Trend Data",IF(ISBLANK(tbl_Chiller_Calc_Engine736[[#This Row],[SCHWP Speed]]),MEDIAN($N$127,$O$127,FORECAST(tbl_Chiller_Calc_Engine736[[#This Row],[OAT]],tbl_Chiller_Calc_Engine736[SCHWP Speed],tbl_Chiller_Calc_Engine736[OAT]))), IF($N$125="Proposed Trend Data",IF(ISBLANK(tbl_Chiller_Calc_Engine736[[#This Row],[SCHWP Speed3]]),MEDIAN($N$127,$O$127,FORECAST(tbl_Chiller_Calc_Engine736[[#This Row],[OAT]],tbl_Chiller_Calc_Engine736[SCHWP Speed3],tbl_Chiller_Calc_Engine736[OAT]))), MEDIAN($N$127,$O$127,TREND($N$127:$O$127,$N$128:$O$128,tbl_Chiller_Calc_Engine736[[#This Row],[OAT]]))))) -> 0 | Y147: =IF(tbl_Chiller_Calc_Engine736[[#This Row],[Hours]]=0,0,IF($I$125="Baseline Trend Data",IF(ISBLANK(tbl_Chiller_Calc_Engine736[[#This Row],['# CWP]]),MEDIAN($F$41,$G$41,FORECAST(tbl_Chiller_Calc_Engine736[[#This Row],[OAT]],tbl_Chiller_Calc_Engine736['# CWP],tbl_Chiller_Calc_Engine736[OAT]))), IF($I$125="Proposed Trend Data",IF(ISBLANK(tbl_Chiller_Calc_Engine736[[#This Row],['# CWP2]]),MEDIAN($F$41,$G$41,FORECAST(tbl_Chiller_Calc_Engine736[[#This Row],[OAT]],tbl_Chiller_Calc_Engine736['# CWP2],tbl_Chiller_Calc_Engine736[OAT]))), ROUNDUP(MEDIAN($F$41,$G$41,TREND($F$41:$G$41,$F$42:$G$42,tbl_Chiller_Calc_Engine736[[#This Row],[OAT]])),0)))) -> 0 | Z147: =IF(tbl_Chiller_Calc_Engine736[[#This Row],[Hours]]=0,0,IF($I$125="Baseline Trend Data",IF(ISBLANK(tbl_Chiller_Calc_Engine736[[#This Row],[CWP Speed]]),MEDIAN($I$127,$J$127,FORECAST(tbl_Chiller_Calc_Engine736[[#This Row],[OAT]],tbl_Chiller_Calc_Engine736[CWP Speed],tbl_Chiller_Calc_Engine736[OAT]))), IF($I$125="Proposed Trend Data",IF(ISBLANK(tbl_Chiller_Calc_Engine736[[#This Row],[CWP Speed2]]),MEDIAN($I$127,$J$127,FORECAST(tbl_Chiller_Calc_Engine736[[#This Row],[OAT]],tbl_Chiller_Calc_Engine736[CWP Speed2],tbl_Chiller_Calc_Engine736[OAT]))), MEDIAN($I$127,$J$127,TREND($I$127:$J$127,$I$128:$J$128,tbl_Chiller_Calc_Engine736[[#This Row],[OAT]]))))) -> 0 | AA147: 2 | AB147: =IF(tbl_Chiller_Calc_Engine736[[#This Row],[Hours]]=0,0,IF($I$120="Baseline Trend Data",IF(ISBLANK(tbl_Chiller_Calc_Engine736[[#This Row],[Head in ft]]),MEDIAN($I$122,$J$122,FORECAST(tbl_Chiller_Calc_Engine736[[#This Row],[OAT]],tbl_Chiller_Calc_Engine736[Head in ft],tbl_Chiller_Calc_Engine736[OAT]))), IF($I$120="Proposed Trend Data",IF(ISBLANK(tbl_Chiller_Calc_Engine736[[#This Row],[Head in ft2]]),MEDIAN($I$122,$J$122,FORECAST(tbl_Chiller_Calc_Engine736[[#This Row],[OAT]],tbl_Chiller_Calc_Engine736[Head in ft2],tbl_Chiller_Calc_Engine736[OAT]))), ROUNDUP(MEDIAN($I$122,$J$122,TREND($I$122:$J$122,$I$123:$J$123,tbl_Chiller_Calc_Engine736[[#This Row],[OAT]]))*2.31,0)))) -> 0 | AC147: FALSE | AD147: =IF(OR(tbl_Chiller_Calc_Engine736[[#This Row],[Cooling Load (tons)2]]=0,tbl_Chiller_Calc_Engine736[[#This Row],[Econ Engaged]]),0,MEDIAN(0,MAX($W$124:$W$130),IFERROR(MATCH(tbl_Chiller_Calc_Engine736[[#This Row],[Cooling Load (tons)2]],$X$124:$X$130,1),0)+1)) -> 0 | AE147: =IF(tbl_Chiller_Calc_Engine736[[#This Row],[CT Load (Tons)]]=0,0,IFERROR(MEDIAN(0,MAX($Q$124:$Q$130),IFERROR(MATCH(tbl_Chiller_Calc_Engine736[[#This Row],[CT Load (Tons)]],$R$124:$R$130,1),0)+1),0)) -> 0 | AF147: =IF(OR(tbl_Chiller_Calc_Engine736[[#This Row],[Econ Engaged]],tbl_Chiller_Calc_Engine736[[#This Row],[Hours]]=0),0,SUMPRODUCT(tbl_Chiller_Calc_Engine736[[#This Row],[Cooling Load (tons)2]]*INDEX($Z$124:$AB$130,tbl_Chiller_Calc_Engine736[[#This Row],[CH Stage]],0)*$Z$118:$AB$118*(1-((tbl_Chiller_Calc_Engine736[[#This Row],[CHWST (°F)]]-$Z$119:$AB$119)+($Z$120:$AB$120-tbl_Chiller_Calc_Engine736[[#This Row],[CWST (°F)2]]))*$C$127))) -> 0 | AG147: 0 | AH147: =IF(tbl_Chiller_Calc_Engine736[[#This Row],[CH Stage]]=0,0,SUMPRODUCT(INDEX($T$124:$V$130,tbl_Chiller_Calc_Engine736[[#This Row],[CT Stage]],0),$D$133:$F$133)) -> 0 | AI147: =tbl_Chiller_Calc_Engine736[[#This Row],[PCHWP kW]]*tbl_Chiller_Calc_Engine736[[#This Row],[Hours]] -> 0 | AJ147: =(tbl_Chiller_Calc_Engine736[[#This Row],[SCHWP Qty]]*$C$129*$H$24*tbl_Chiller_Calc_Engine736[[#This Row],[SCHWP Speed2]]*tbl_Chiller_Calc_Engine736[[#This Row],[SCHWP Head]])/ (3960*$H$26*$H$27*IF($N$129=$F$129,1,$C$128)) -> 0 | AK147: =tbl_Chiller_Calc_Engine736[[#This Row],[SCHWP kW]]*tbl_Chiller_Calc_Engine736[[#This Row],[Hours]] -> 0 | AL147: =SUM(tbl_Chiller_Calc_Engine736[[#This Row],[Chiller Load kW]],tbl_Chiller_Calc_Engine736[[#This Row],[PCHWP kW]],tbl_Chiller_Calc_Engine736[[#This Row],[SCHWP kW]]) -> 0 | AM147: =SUM(tbl_Chiller_Calc_Engine736[[#This Row],[Chiller Load kWh]],tbl_Chiller_Calc_Engine736[[#This Row],[PCHWP kWh]],tbl_Chiller_Calc_Engine736[[#This Row],[SCHWP kWh]]) -> 0 | AN147: =IF(tbl_Chiller_Calc_Engine736[[#This Row],[CT Stage]]=0,0,SUMPRODUCT((IF(tbl_Chiller_Calc_Engine736[[#This Row],[CT Load (Tons)]]/INDEX($R$124:$R$130,tbl_Chiller_Calc_Engine736[[#This Row],[CT Stage]],0)>=$T$120:$V$120,tbl_Chiller_Calc_Engine736[[#This Row],[CT Load (Tons)]]/INDEX($R$124:$R$130,tbl_Chiller_Calc_Engine736[[#This Row],[CT Stage]],0),$T$120:$V$120)^$C$130*$T$118:$V$118*$C$129)/($C$128*$T$119:$V$119))) -> 0 | AO147: =tbl_Chiller_Calc_Engine736[[#This Row],[CT Fan kW]]*tbl_Chiller_Calc_Engine736[[#This Row],[Hours]] -> 0 | AP147: =(tbl_Chiller_Calc_Engine736[[#This Row],[CWP Qty]]*$C$129*$D$40*tbl_Chiller_Calc_Engine736[[#This Row],[CWP Speed3]]*$D$41)/ (3960*$D$42*$D$43*IF($I$129=$F$129,1,$C$128)) -> 0 | AQ147: =tbl_Chiller_Calc_Engine736[[#This Row],[CWP kW]]*tbl_Chiller_Calc_Engine736[[#This Row],[Hours]] -> 0
C148: 105 | D148: =IFERROR(AVERAGEIF(tbl_Climate_Zone[Dry_Bulb],tbl_Chiller_Calc_Engine736[[#This Row],[OAT]],tbl_Climate_Zone[Wet_Bulb]),0) -> 0 | E148: =SUM( COUNTIFS(tbl_Climate_Zone[Dry_Bulb],C148,tbl_Climate_Zone[Weekday],$C$12,tbl_Climate_Zone[Hour],">"&$D$12,tbl_Climate_Zone[Hour],"<="&$E$12), COUNTIFS(tbl_Climate_Zone[Dry_Bulb],C148,tbl_Climate_Zone[Weekday],$C$13,tbl_Climate_Zone[Hour],">"&$D$13,tbl_Climate_Zone[Hour],"<="&$E$13), COUNTIFS(tbl_Climate_Zone[Dry_Bulb],C148,tbl_Climate_Zone[Weekday],$C$14,tbl_Climate_Zone[Hour],">"&$D$14,tbl_Climate_Zone[Hour],"<="&$E$14)) -> 0 | T148: =IF(tbl_Chiller_Calc_Engine736[[#This Row],[Hours]]=0,0,IF($N$115="Baseline Trend Data", IF(ISBLANK(tbl_Chiller_Calc_Engine736[[#This Row],[ CHWST (°F)]]),MEDIAN($N$117,$O$117,FORECAST(tbl_Chiller_Calc_Engine736[[#This Row],[OAT]],tbl_Chiller_Calc_Engine736[ CHWST (°F)],tbl_Chiller_Calc_Engine736[OAT])),tbl_Chiller_Calc_Engine736[[#This Row],[ CHWST (°F)]]),IF($N$115="Proposed Trend Data", IF(ISBLANK(tbl_Chiller_Calc_Engine736[[#This Row],[ CHWST (°F)]]),MEDIAN($N$117,$O$117,FORECAST(tbl_Chiller_Calc_Engine736[[#This Row],[OAT]],tbl_Chiller_Calc_Engine736[ CHWST (°F)2],tbl_Chiller_Calc_Engine736[OAT])),tbl_Chiller_Calc_Engine736[[#This Row],[ CHWST (°F)2]]), MEDIAN($N$117,$O$117,TREND($N$117:$O$117,$N$118:$O$118,tbl_Chiller_Calc_Engine736[[#This Row],[OAT]]))))) -> 0 | U148: =IF(tbl_Chiller_Calc_Engine736[[#This Row],[Hours]]=0,0,IF($I$115="Baseline Trend Data", IF(ISBLANK(tbl_Chiller_Calc_Engine736[[#This Row],[CWST (°F)]]),MEDIAN($I$117,$J$117,FORECAST(tbl_Chiller_Calc_Engine736[[#This Row],[Average WBT]],tbl_Chiller_Calc_Engine736[CWST (°F)],tbl_Chiller_Calc_Engine736[Average WBT])),tbl_Chiller_Calc_Engine736[[#This Row],[CWST (°F)]]),IF($I$115="Proposed Trend Data", IF(ISBLANK(tbl_Chiller_Calc_Engine736[[#This Row],[CWST (°F)]]),MEDIAN($I$117,$J$117,FORECAST(tbl_Chiller_Calc_Engine736[[#This Row],[Average WBT]],tbl_Chiller_Calc_Engine736[CWST (°F)3],tbl_Chiller_Calc_Engine736[Average WBT])),tbl_Chiller_Calc_Engine736[[#This Row],[CWST (°F)3]]), MEDIAN($I$117,$J$117,TREND($I$117:$J$117,$I$118:$J$118,tbl_Chiller_Calc_Engine736[[#This Row],[Average WBT]]))))) -> 0 | V148: =IF(tbl_Chiller_Calc_Engine736[[#This Row],[Hours]]=0,0,IF($N$121="Baseline Trend Data",IF(ISBLANK(H148),FORECAST(C148,$H$138:$H$243,$C$138:$C$243),H148), IF($N$121 = "Proposed Trend Data",IF(ISBLANK(O148),FORECAST(C148,$O$138:$O$243,$C$138:$C$243),O148), IF(C148>=$N$131,MAX(TREND($N$122:$O$122,$N$123:$O$123,C148),0),0)))) -> 0 | W148: =IF(E148>0,V148*'Chilled Water System Template'!$C$131,0) -> 0 | X148: =IF(tbl_Chiller_Calc_Engine736[[#This Row],[Hours]]=0,0,IF($N$125="Baseline Trend Data",IF(ISBLANK(tbl_Chiller_Calc_Engine736[[#This Row],[SCHWP Speed]]),MEDIAN($N$127,$O$127,FORECAST(tbl_Chiller_Calc_Engine736[[#This Row],[OAT]],tbl_Chiller_Calc_Engine736[SCHWP Speed],tbl_Chiller_Calc_Engine736[OAT]))), IF($N$125="Proposed Trend Data",IF(ISBLANK(tbl_Chiller_Calc_Engine736[[#This Row],[SCHWP Speed3]]),MEDIAN($N$127,$O$127,FORECAST(tbl_Chiller_Calc_Engine736[[#This Row],[OAT]],tbl_Chiller_Calc_Engine736[SCHWP Speed3],tbl_Chiller_Calc_Engine736[OAT]))), MEDIAN($N$127,$O$127,TREND($N$127:$O$127,$N$128:$O$128,tbl_Chiller_Calc_Engine736[[#This Row],[OAT]]))))) -> 0 | Y148: =IF(tbl_Chiller_Calc_Engine736[[#This Row],[Hours]]=0,0,IF($I$125="Baseline Trend Data",IF(ISBLANK(tbl_Chiller_Calc_Engine736[[#This Row],['# CWP]]),MEDIAN($F$41,$G$41,FORECAST(tbl_Chiller_Calc_Engine736[[#This Row],[OAT]],tbl_Chiller_Calc_Engine736['# CWP],tbl_Chiller_Calc_Engine736[OAT]))), IF($I$125="Proposed Trend Data",IF(ISBLANK(tbl_Chiller_Calc_Engine736[[#This Row],['# CWP2]]),MEDIAN($F$41,$G$41,FORECAST(tbl_Chiller_Calc_Engine736[[#This Row],[OAT]],tbl_Chiller_Calc_Engine736['# CWP2],tbl_Chiller_Calc_Engine736[OAT]))), ROUNDUP(MEDIAN($F$41,$G$41,TREND($F$41:$G$41,$F$42:$G$42,tbl_Chiller_Calc_Engine736[[#This Row],[OAT]])),0)))) -> 0 | Z148: =IF(tbl_Chiller_Calc_Engine736[[#This Row],[Hours]]=0,0,IF($I$125="Baseline Trend Data",IF(ISBLANK(tbl_Chiller_Calc_Engine736[[#This Row],[CWP Speed]]),MEDIAN($I$127,$J$127,FORECAST(tbl_Chiller_Calc_Engine736[[#This Row],[OAT]],tbl_Chiller_Calc_Engine736[CWP Speed],tbl_Chiller_Calc_Engine736[OAT]))), IF($I$125="Proposed Trend Data",IF(ISBLANK(tbl_Chiller_Calc_Engine736[[#This Row],[CWP Speed2]]),MEDIAN($I$127,$J$127,FORECAST(tbl_Chiller_Calc_Engine736[[#This Row],[OAT]],tbl_Chiller_Calc_Engine736[CWP Speed2],tbl_Chiller_Calc_Engine736[OAT]))), MEDIAN($I$127,$J$127,TREND($I$127:$J$127,$I$128:$J$128,tbl_Chiller_Calc_Engine736[[#This Row],[OAT]]))))) -> 0 | AA148: 2 | AB148: =IF(tbl_Chiller_Calc_Engine736[[#This Row],[Hours]]=0,0,IF($I$120="Baseline Trend Data",IF(ISBLANK(tbl_Chiller_Calc_Engine736[[#This Row],[Head in ft]]),MEDIAN($I$122,$J$122,FORECAST(tbl_Chiller_Calc_Engine736[[#This Row],[OAT]],tbl_Chiller_Calc_Engine736[Head in ft],tbl_Chiller_Calc_Engine736[OAT]))), IF($I$120="Proposed Trend Data",IF(ISBLANK(tbl_Chiller_Calc_Engine736[[#This Row],[Head in ft2]]),MEDIAN($I$122,$J$122,FORECAST(tbl_Chiller_Calc_Engine736[[#This Row],[OAT]],tbl_Chiller_Calc_Engine736[Head in ft2],tbl_Chiller_Calc_Engine736[OAT]))), ROUNDUP(MEDIAN($I$122,$J$122,TREND($I$122:$J$122,$I$123:$J$123,tbl_Chiller_Calc_Engine736[[#This Row],[OAT]]))*2.31,0)))) -> 0 | AC148: FALSE | AD148: =IF(OR(tbl_Chiller_Calc_Engine736[[#This Row],[Cooling Load (tons)2]]=0,tbl_Chiller_Calc_Engine736[[#This Row],[Econ Engaged]]),0,MEDIAN(0,MAX($W$124:$W$130),IFERROR(MATCH(tbl_Chiller_Calc_Engine736[[#This Row],[Cooling Load (tons)2]],$X$124:$X$130,1),0)+1)) -> 0 | AE148: =IF(tbl_Chiller_Calc_Engine736[[#This Row],[CT Load (Tons)]]=0,0,IFERROR(MEDIAN(0,MAX($Q$124:$Q$130),IFERROR(MATCH(tbl_Chiller_Calc_Engine736[[#This Row],[CT Load (Tons)]],$R$124:$R$130,1),0)+1),0)) -> 0 | AF148: =IF(OR(tbl_Chiller_Calc_Engine736[[#This Row],[Econ Engaged]],tbl_Chiller_Calc_Engine736[[#This Row],[Hours]]=0),0,SUMPRODUCT(tbl_Chiller_Calc_Engine736[[#This Row],[Cooling Load (tons)2]]*INDEX($Z$124:$AB$130,tbl_Chiller_Calc_Engine736[[#This Row],[CH Stage]],0)*$Z$118:$AB$118*(1-((tbl_Chiller_Calc_Engine736[[#This Row],[CHWST (°F)]]-$Z$119:$AB$119)+($Z$120:$AB$120-tbl_Chiller_Calc_Engine736[[#This Row],[CWST (°F)2]]))*$C$127))) -> 0 | AG148: 0 | AH148: =IF(tbl_Chiller_Calc_Engine736[[#This Row],[CH Stage]]=0,0,SUMPRODUCT(INDEX($T$124:$V$130,tbl_Chiller_Calc_Engine736[[#This Row],[CT Stage]],0),$D$133:$F$133)) -> 0 | AI148: =tbl_Chiller_Calc_Engine736[[#This Row],[PCHWP kW]]*tbl_Chiller_Calc_Engine736[[#This Row],[Hours]] -> 0 | AJ148: =(tbl_Chiller_Calc_Engine736[[#This Row],[SCHWP Qty]]*$C$129*$H$24*tbl_Chiller_Calc_Engine736[[#This Row],[SCHWP Speed2]]*tbl_Chiller_Calc_Engine736[[#This Row],[SCHWP Head]])/ (3960*$H$26*$H$27*IF($N$129=$F$129,1,$C$128)) -> 0 | AK148: =tbl_Chiller_Calc_Engine736[[#This Row],[SCHWP kW]]*tbl_Chiller_Calc_Engine736[[#This Row],[Hours]] -> 0 | AL148: =SUM(tbl_Chiller_Calc_Engine736[[#This Row],[Chiller Load kW]],tbl_Chiller_Calc_Engine736[[#This Row],[PCHWP kW]],tbl_Chiller_Calc_Engine736[[#This Row],[SCHWP kW]]) -> 0 | AM148: =SUM(tbl_Chiller_Calc_Engine736[[#This Row],[Chiller Load kWh]],tbl_Chiller_Calc_Engine736[[#This Row],[PCHWP kWh]],tbl_Chiller_Calc_Engine736[[#This Row],[SCHWP kWh]]) -> 0 | AN148: =IF(tbl_Chiller_Calc_Engine736[[#This Row],[CT Stage]]=0,0,SUMPRODUCT((IF(tbl_Chiller_Calc_Engine736[[#This Row],[CT Load (Tons)]]/INDEX($R$124:$R$130,tbl_Chiller_Calc_Engine736[[#This Row],[CT Stage]],0)>=$T$120:$V$120,tbl_Chiller_Calc_Engine736[[#This Row],[CT Load (Tons)]]/INDEX($R$124:$R$130,tbl_Chiller_Calc_Engine736[[#This Row],[CT Stage]],0),$T$120:$V$120)^$C$130*$T$118:$V$118*$C$129)/($C$128*$T$119:$V$119))) -> 0 | AO148: =tbl_Chiller_Calc_Engine736[[#This Row],[CT Fan kW]]*tbl_Chiller_Calc_Engine736[[#This Row],[Hours]] -> 0 | AP148: =(tbl_Chiller_Calc_Engine736[[#This Row],[CWP Qty]]*$C$129*$D$40*tbl_Chiller_Calc_Engine736[[#This Row],[CWP Speed3]]*$D$41)/ (3960*$D$42*$D$43*IF($I$129=$F$129,1,$C$128)) -> 0 | AQ148: =tbl_Chiller_Calc_Engine736[[#This Row],[CWP kW]]*tbl_Chiller_Calc_Engine736[[#This Row],[Hours]] -> 0
C149: 104 | D149: =IFERROR(AVERAGEIF(tbl_Climate_Zone[Dry_Bulb],tbl_Chiller_Calc_Engine736[[#This Row],[OAT]],tbl_Climate_Zone[Wet_Bulb]),0) -> 0 | E149: =SUM( COUNTIFS(tbl_Climate_Zone[Dry_Bulb],C149,tbl_Climate_Zone[Weekday],$C$12,tbl_Climate_Zone[Hour],">"&$D$12,tbl_Climate_Zone[Hour],"<="&$E$12), COUNTIFS(tbl_Climate_Zone[Dry_Bulb],C149,tbl_Climate_Zone[Weekday],$C$13,tbl_Climate_Zone[Hour],">"&$D$13,tbl_Climate_Zone[Hour],"<="&$E$13), COUNTIFS(tbl_Climate_Zone[Dry_Bulb],C149,tbl_Climate_Zone[Weekday],$C$14,tbl_Climate_Zone[Hour],">"&$D$14,tbl_Climate_Zone[Hour],"<="&$E$14)) -> 0 | T149: =IF(tbl_Chiller_Calc_Engine736[[#This Row],[Hours]]=0,0,IF($N$115="Baseline Trend Data", IF(ISBLANK(tbl_Chiller_Calc_Engine736[[#This Row],[ CHWST (°F)]]),MEDIAN($N$117,$O$117,FORECAST(tbl_Chiller_Calc_Engine736[[#This Row],[OAT]],tbl_Chiller_Calc_Engine736[ CHWST (°F)],tbl_Chiller_Calc_Engine736[OAT])),tbl_Chiller_Calc_Engine736[[#This Row],[ CHWST (°F)]]),IF($N$115="Proposed Trend Data", IF(ISBLANK(tbl_Chiller_Calc_Engine736[[#This Row],[ CHWST (°F)]]),MEDIAN($N$117,$O$117,FORECAST(tbl_Chiller_Calc_Engine736[[#This Row],[OAT]],tbl_Chiller_Calc_Engine736[ CHWST (°F)2],tbl_Chiller_Calc_Engine736[OAT])),tbl_Chiller_Calc_Engine736[[#This Row],[ CHWST (°F)2]]), MEDIAN($N$117,$O$117,TREND($N$117:$O$117,$N$118:$O$118,tbl_Chiller_Calc_Engine736[[#This Row],[OAT]]))))) -> 0 | U149: =IF(tbl_Chiller_Calc_Engine736[[#This Row],[Hours]]=0,0,IF($I$115="Baseline Trend Data", IF(ISBLANK(tbl_Chiller_Calc_Engine736[[#This Row],[CWST (°F)]]),MEDIAN($I$117,$J$117,FORECAST(tbl_Chiller_Calc_Engine736[[#This Row],[Average WBT]],tbl_Chiller_Calc_Engine736[CWST (°F)],tbl_Chiller_Calc_Engine736[Average WBT])),tbl_Chiller_Calc_Engine736[[#This Row],[CWST (°F)]]),IF($I$115="Proposed Trend Data", IF(ISBLANK(tbl_Chiller_Calc_Engine736[[#This Row],[CWST (°F)]]),MEDIAN($I$117,$J$117,FORECAST(tbl_Chiller_Calc_Engine736[[#This Row],[Average WBT]],tbl_Chiller_Calc_Engine736[CWST (°F)3],tbl_Chiller_Calc_Engine736[Average WBT])),tbl_Chiller_Calc_Engine736[[#This Row],[CWST (°F)3]]), MEDIAN($I$117,$J$117,TREND($I$117:$J$117,$I$118:$J$118,tbl_Chiller_Calc_Engine736[[#This Row],[Average WBT]]))))) -> 0 | V149: =IF(tbl_Chiller_Calc_Engine736[[#This Row],[Hours]]=0,0,IF($N$121="Baseline Trend Data",IF(ISBLANK(H149),FORECAST(C149,$H$138:$H$243,$C$138:$C$243),H149), IF($N$121 = "Proposed Trend Data",IF(ISBLANK(O149),FORECAST(C149,$O$138:$O$243,$C$138:$C$243),O149), IF(C149>=$N$131,MAX(TREND($N$122:$O$122,$N$123:$O$123,C149),0),0)))) -> 0 | W149: =IF(E149>0,V149*'Chilled Water System Template'!$C$131,0) -> 0 | X149: =IF(tbl_Chiller_Calc_Engine736[[#This Row],[Hours]]=0,0,IF($N$125="Baseline Trend Data",IF(ISBLANK(tbl_Chiller_Calc_Engine736[[#This Row],[SCHWP Speed]]),MEDIAN($N$127,$O$127,FORECAST(tbl_Chiller_Calc_Engine736[[#This Row],[OAT]],tbl_Chiller_Calc_Engine736[SCHWP Speed],tbl_Chiller_Calc_Engine736[OAT]))), IF($N$125="Proposed Trend Data",IF(ISBLANK(tbl_Chiller_Calc_Engine736[[#This Row],[SCHWP Speed3]]),MEDIAN($N$127,$O$127,FORECAST(tbl_Chiller_Calc_Engine736[[#This Row],[OAT]],tbl_Chiller_Calc_Engine736[SCHWP Speed3],tbl_Chiller_Calc_Engine736[OAT]))), MEDIAN($N$127,$O$127,TREND($N$127:$O$127,$N$128:$O$128,tbl_Chiller_Calc_Engine736[[#This Row],[OAT]]))))) -> 0 | Y149: =IF(tbl_Chiller_Calc_Engine736[[#This Row],[Hours]]=0,0,IF($I$125="Baseline Trend Data",IF(ISBLANK(tbl_Chiller_Calc_Engine736[[#This Row],['# CWP]]),MEDIAN($F$41,$G$41,FORECAST(tbl_Chiller_Calc_Engine736[[#This Row],[OAT]],tbl_Chiller_Calc_Engine736['# CWP],tbl_Chiller_Calc_Engine736[OAT]))), IF($I$125="Proposed Trend Data",IF(ISBLANK(tbl_Chiller_Calc_Engine736[[#This Row],['# CWP2]]),MEDIAN($F$41,$G$41,FORECAST(tbl_Chiller_Calc_Engine736[[#This Row],[OAT]],tbl_Chiller_Calc_Engine736['# CWP2],tbl_Chiller_Calc_Engine736[OAT]))), ROUNDUP(MEDIAN($F$41,$G$41,TREND($F$41:$G$41,$F$42:$G$42,tbl_Chiller_Calc_Engine736[[#This Row],[OAT]])),0)))) -> 0 | Z149: =IF(tbl_Chiller_Calc_Engine736[[#This Row],[Hours]]=0,0,IF($I$125="Baseline Trend Data",IF(ISBLANK(tbl_Chiller_Calc_Engine736[[#This Row],[CWP Speed]]),MEDIAN($I$127,$J$127,FORECAST(tbl_Chiller_Calc_Engine736[[#This Row],[OAT]],tbl_Chiller_Calc_Engine736[CWP Speed],tbl_Chiller_Calc_Engine736[OAT]))), IF($I$125="Proposed Trend Data",IF(ISBLANK(tbl_Chiller_Calc_Engine736[[#This Row],[CWP Speed2]]),MEDIAN($I$127,$J$127,FORECAST(tbl_Chiller_Calc_Engine736[[#This Row],[OAT]],tbl_Chiller_Calc_Engine736[CWP Speed2],tbl_Chiller_Calc_Engine736[OAT]))), MEDIAN($I$127,$J$127,TREND($I$127:$J$127,$I$128:$J$128,tbl_Chiller_Calc_Engine736[[#This Row],[OAT]]))))) -> 0 | AA149: 2 | AB149: =IF(tbl_Chiller_Calc_Engine736[[#This Row],[Hours]]=0,0,IF($I$120="Baseline Trend Data",IF(ISBLANK(tbl_Chiller_Calc_Engine736[[#This Row],[Head in ft]]),MEDIAN($I$122,$J$122,FORECAST(tbl_Chiller_Calc_Engine736[[#This Row],[OAT]],tbl_Chiller_Calc_Engine736[Head in ft],tbl_Chiller_Calc_Engine736[OAT]))), IF($I$120="Proposed Trend Data",IF(ISBLANK(tbl_Chiller_Calc_Engine736[[#This Row],[Head in ft2]]),MEDIAN($I$122,$J$122,FORECAST(tbl_Chiller_Calc_Engine736[[#This Row],[OAT]],tbl_Chiller_Calc_Engine736[Head in ft2],tbl_Chiller_Calc_Engine736[OAT]))), ROUNDUP(MEDIAN($I$122,$J$122,TREND($I$122:$J$122,$I$123:$J$123,tbl_Chiller_Calc_Engine736[[#This Row],[OAT]]))*2.31,0)))) -> 0 | AC149: FALSE | AD149: =IF(OR(tbl_Chiller_Calc_Engine736[[#This Row],[Cooling Load (tons)2]]=0,tbl_Chiller_Calc_Engine736[[#This Row],[Econ Engaged]]),0,MEDIAN(0,MAX($W$124:$W$130),IFERROR(MATCH(tbl_Chiller_Calc_Engine736[[#This Row],[Cooling Load (tons)2]],$X$124:$X$130,1),0)+1)) -> 0 | AE149: =IF(tbl_Chiller_Calc_Engine736[[#This Row],[CT Load (Tons)]]=0,0,IFERROR(MEDIAN(0,MAX($Q$124:$Q$130),IFERROR(MATCH(tbl_Chiller_Calc_Engine736[[#This Row],[CT Load (Tons)]],$R$124:$R$130,1),0)+1),0)) -> 0 | AF149: =IF(OR(tbl_Chiller_Calc_Engine736[[#This Row],[Econ Engaged]],tbl_Chiller_Calc_Engine736[[#This Row],[Hours]]=0),0,SUMPRODUCT(tbl_Chiller_Calc_Engine736[[#This Row],[Cooling Load (tons)2]]*INDEX($Z$124:$AB$130,tbl_Chiller_Calc_Engine736[[#This Row],[CH Stage]],0)*$Z$118:$AB$118*(1-((tbl_Chiller_Calc_Engine736[[#This Row],[CHWST (°F)]]-$Z$119:$AB$119)+($Z$120:$AB$120-tbl_Chiller_Calc_Engine736[[#This Row],[CWST (°F)2]]))*$C$127))) -> 0 | AG149: 0 | AH149: =IF(tbl_Chiller_Calc_Engine736[[#This Row],[CH Stage]]=0,0,SUMPRODUCT(INDEX($T$124:$V$130,tbl_Chiller_Calc_Engine736[[#This Row],[CT Stage]],0),$D$133:$F$133)) -> 0 | AI149: =tbl_Chiller_Calc_Engine736[[#This Row],[PCHWP kW]]*tbl_Chiller_Calc_Engine736[[#This Row],[Hours]] -> 0 | AJ149: =(tbl_Chiller_Calc_Engine736[[#This Row],[SCHWP Qty]]*$C$129*$H$24*tbl_Chiller_Calc_Engine736[[#This Row],[SCHWP Speed2]]*tbl_Chiller_Calc_Engine736[[#This Row],[SCHWP Head]])/ (3960*$H$26*$H$27*IF($N$129=$F$129,1,$C$128)) -> 0 | AK149: =tbl_Chiller_Calc_Engine736[[#This Row],[SCHWP kW]]*tbl_Chiller_Calc_Engine736[[#This Row],[Hours]] -> 0 | AL149: =SUM(tbl_Chiller_Calc_Engine736[[#This Row],[Chiller Load kW]],tbl_Chiller_Calc_Engine736[[#This Row],[PCHWP kW]],tbl_Chiller_Calc_Engine736[[#This Row],[SCHWP kW]]) -> 0 | AM149: =SUM(tbl_Chiller_Calc_Engine736[[#This Row],[Chiller Load kWh]],tbl_Chiller_Calc_Engine736[[#This Row],[PCHWP kWh]],tbl_Chiller_Calc_Engine736[[#This Row],[SCHWP kWh]]) -> 0 | AN149: =IF(tbl_Chiller_Calc_Engine736[[#This Row],[CT Stage]]=0,0,SUMPRODUCT((IF(tbl_Chiller_Calc_Engine736[[#This Row],[CT Load (Tons)]]/INDEX($R$124:$R$130,tbl_Chiller_Calc_Engine736[[#This Row],[CT Stage]],0)>=$T$120:$V$120,tbl_Chiller_Calc_Engine736[[#This Row],[CT Load (Tons)]]/INDEX($R$124:$R$130,tbl_Chiller_Calc_Engine736[[#This Row],[CT Stage]],0),$T$120:$V$120)^$C$130*$T$118:$V$118*$C$129)/($C$128*$T$119:$V$119))) -> 0 | AO149: =tbl_Chiller_Calc_Engine736[[#This Row],[CT Fan kW]]*tbl_Chiller_Calc_Engine736[[#This Row],[Hours]] -> 0 | AP149: =(tbl_Chiller_Calc_Engine736[[#This Row],[CWP Qty]]*$C$129*$D$40*tbl_Chiller_Calc_Engine736[[#This Row],[CWP Speed3]]*$D$41)/ (3960*$D$42*$D$43*IF($I$129=$F$129,1,$C$128)) -> 0 | AQ149: =tbl_Chiller_Calc_Engine736[[#This Row],[CWP kW]]*tbl_Chiller_Calc_Engine736[[#This Row],[Hours]] -> 0
C150: 103 | D150: =IFERROR(AVERAGEIF(tbl_Climate_Zone[Dry_Bulb],tbl_Chiller_Calc_Engine736[[#This Row],[OAT]],tbl_Climate_Zone[Wet_Bulb]),0) -> 0 | E150: =SUM( COUNTIFS(tbl_Climate_Zone[Dry_Bulb],C150,tbl_Climate_Zone[Weekday],$C$12,tbl_Climate_Zone[Hour],">"&$D$12,tbl_Climate_Zone[Hour],"<="&$E$12), COUNTIFS(tbl_Climate_Zone[Dry_Bulb],C150,tbl_Climate_Zone[Weekday],$C$13,tbl_Climate_Zone[Hour],">"&$D$13,tbl_Climate_Zone[Hour],"<="&$E$13), COUNTIFS(tbl_Climate_Zone[Dry_Bulb],C150,tbl_Climate_Zone[Weekday],$C$14,tbl_Climate_Zone[Hour],">"&$D$14,tbl_Climate_Zone[Hour],"<="&$E$14)) -> 0 | T150: =IF(tbl_Chiller_Calc_Engine736[[#This Row],[Hours]]=0,0,IF($N$115="Baseline Trend Data", IF(ISBLANK(tbl_Chiller_Calc_Engine736[[#This Row],[ CHWST (°F)]]),MEDIAN($N$117,$O$117,FORECAST(tbl_Chiller_Calc_Engine736[[#This Row],[OAT]],tbl_Chiller_Calc_Engine736[ CHWST (°F)],tbl_Chiller_Calc_Engine736[OAT])),tbl_Chiller_Calc_Engine736[[#This Row],[ CHWST (°F)]]),IF($N$115="Proposed Trend Data", IF(ISBLANK(tbl_Chiller_Calc_Engine736[[#This Row],[ CHWST (°F)]]),MEDIAN($N$117,$O$117,FORECAST(tbl_Chiller_Calc_Engine736[[#This Row],[OAT]],tbl_Chiller_Calc_Engine736[ CHWST (°F)2],tbl_Chiller_Calc_Engine736[OAT])),tbl_Chiller_Calc_Engine736[[#This Row],[ CHWST (°F)2]]), MEDIAN($N$117,$O$117,TREND($N$117:$O$117,$N$118:$O$118,tbl_Chiller_Calc_Engine736[[#This Row],[OAT]]))))) -> 0 | U150: =IF(tbl_Chiller_Calc_Engine736[[#This Row],[Hours]]=0,0,IF($I$115="Baseline Trend Data", IF(ISBLANK(tbl_Chiller_Calc_Engine736[[#This Row],[CWST (°F)]]),MEDIAN($I$117,$J$117,FORECAST(tbl_Chiller_Calc_Engine736[[#This Row],[Average WBT]],tbl_Chiller_Calc_Engine736[CWST (°F)],tbl_Chiller_Calc_Engine736[Average WBT])),tbl_Chiller_Calc_Engine736[[#This Row],[CWST (°F)]]),IF($I$115="Proposed Trend Data", IF(ISBLANK(tbl_Chiller_Calc_Engine736[[#This Row],[CWST (°F)]]),MEDIAN($I$117,$J$117,FORECAST(tbl_Chiller_Calc_Engine736[[#This Row],[Average WBT]],tbl_Chiller_Calc_Engine736[CWST (°F)3],tbl_Chiller_Calc_Engine736[Average WBT])),tbl_Chiller_Calc_Engine736[[#This Row],[CWST (°F)3]]), MEDIAN($I$117,$J$117,TREND($I$117:$J$117,$I$118:$J$118,tbl_Chiller_Calc_Engine736[[#This Row],[Average WBT]]))))) -> 0 | V150: =IF(tbl_Chiller_Calc_Engine736[[#This Row],[Hours]]=0,0,IF($N$121="Baseline Trend Data",IF(ISBLANK(H150),FORECAST(C150,$H$138:$H$243,$C$138:$C$243),H150), IF($N$121 = "Proposed Trend Data",IF(ISBLANK(O150),FORECAST(C150,$O$138:$O$243,$C$138:$C$243),O150), IF(C150>=$N$131,MAX(TREND($N$122:$O$122,$N$123:$O$123,C150),0),0)))) -> 0 | W150: =IF(E150>0,V150*'Chilled Water System Template'!$C$131,0) -> 0 | X150: =IF(tbl_Chiller_Calc_Engine736[[#This Row],[Hours]]=0,0,IF($N$125="Baseline Trend Data",IF(ISBLANK(tbl_Chiller_Calc_Engine736[[#This Row],[SCHWP Speed]]),MEDIAN($N$127,$O$127,FORECAST(tbl_Chiller_Calc_Engine736[[#This Row],[OAT]],tbl_Chiller_Calc_Engine736[SCHWP Speed],tbl_Chiller_Calc_Engine736[OAT]))), IF($N$125="Proposed Trend Data",IF(ISBLANK(tbl_Chiller_Calc_Engine736[[#This Row],[SCHWP Speed3]]),MEDIAN($N$127,$O$127,FORECAST(tbl_Chiller_Calc_Engine736[[#This Row],[OAT]],tbl_Chiller_Calc_Engine736[SCHWP Speed3],tbl_Chiller_Calc_Engine736[OAT]))), MEDIAN($N$127,$O$127,TREND($N$127:$O$127,$N$128:$O$128,tbl_Chiller_Calc_Engine736[[#This Row],[OAT]]))))) -> 0 | Y150: =IF(tbl_Chiller_Calc_Engine736[[#This Row],[Hours]]=0,0,IF($I$125="Baseline Trend Data",IF(ISBLANK(tbl_Chiller_Calc_Engine736[[#This Row],['# CWP]]),MEDIAN($F$41,$G$41,FORECAST(tbl_Chiller_Calc_Engine736[[#This Row],[OAT]],tbl_Chiller_Calc_Engine736['# CWP],tbl_Chiller_Calc_Engine736[OAT]))), IF($I$125="Proposed Trend Data",IF(ISBLANK(tbl_Chiller_Calc_Engine736[[#This Row],['# CWP2]]),MEDIAN($F$41,$G$41,FORECAST(tbl_Chiller_Calc_Engine736[[#This Row],[OAT]],tbl_Chiller_Calc_Engine736['# CWP2],tbl_Chiller_Calc_Engine736[OAT]))), ROUNDUP(MEDIAN($F$41,$G$41,TREND($F$41:$G$41,$F$42:$G$42,tbl_Chiller_Calc_Engine736[[#This Row],[OAT]])),0)))) -> 0 | Z150: =IF(tbl_Chiller_Calc_Engine736[[#This Row],[Hours]]=0,0,IF($I$125="Baseline Trend Data",IF(ISBLANK(tbl_Chiller_Calc_Engine736[[#This Row],[CWP Speed]]),MEDIAN($I$127,$J$127,FORECAST(tbl_Chiller_Calc_Engine736[[#This Row],[OAT]],tbl_Chiller_Calc_Engine736[CWP Speed],tbl_Chiller_Calc_Engine736[OAT]))), IF($I$125="Proposed Trend Data",IF(ISBLANK(tbl_Chiller_Calc_Engine736[[#This Row],[CWP Speed2]]),MEDIAN($I$127,$J$127,FORECAST(tbl_Chiller_Calc_Engine736[[#This Row],[OAT]],tbl_Chiller_Calc_Engine736[CWP Speed2],tbl_Chiller_Calc_Engine736[OAT]))), MEDIAN($I$127,$J$127,TREND($I$127:$J$127,$I$128:$J$128,tbl_Chiller_Calc_Engine736[[#This Row],[OAT]]))))) -> 0 | AA150: 2 | AB150: =IF(tbl_Chiller_Calc_Engine736[[#This Row],[Hours]]=0,0,IF($I$120="Baseline Trend Data",IF(ISBLANK(tbl_Chiller_Calc_Engine736[[#This Row],[Head in ft]]),MEDIAN($I$122,$J$122,FORECAST(tbl_Chiller_Calc_Engine736[[#This Row],[OAT]],tbl_Chiller_Calc_Engine736[Head in ft],tbl_Chiller_Calc_Engine736[OAT]))), IF($I$120="Proposed Trend Data",IF(ISBLANK(tbl_Chiller_Calc_Engine736[[#This Row],[Head in ft2]]),MEDIAN($I$122,$J$122,FORECAST(tbl_Chiller_Calc_Engine736[[#This Row],[OAT]],tbl_Chiller_Calc_Engine736[Head in ft2],tbl_Chiller_Calc_Engine736[OAT]))), ROUNDUP(MEDIAN($I$122,$J$122,TREND($I$122:$J$122,$I$123:$J$123,tbl_Chiller_Calc_Engine736[[#This Row],[OAT]]))*2.31,0)))) -> 0 | AC150: FALSE | AD150: =IF(OR(tbl_Chiller_Calc_Engine736[[#This Row],[Cooling Load (tons)2]]=0,tbl_Chiller_Calc_Engine736[[#This Row],[Econ Engaged]]),0,MEDIAN(0,MAX($W$124:$W$130),IFERROR(MATCH(tbl_Chiller_Calc_Engine736[[#This Row],[Cooling Load (tons)2]],$X$124:$X$130,1),0)+1)) -> 0 | AE150: =IF(tbl_Chiller_Calc_Engine736[[#This Row],[CT Load (Tons)]]=0,0,IFERROR(MEDIAN(0,MAX($Q$124:$Q$130),IFERROR(MATCH(tbl_Chiller_Calc_Engine736[[#This Row],[CT Load (Tons)]],$R$124:$R$130,1),0)+1),0)) -> 0 | AF150: =IF(OR(tbl_Chiller_Calc_Engine736[[#This Row],[Econ Engaged]],tbl_Chiller_Calc_Engine736[[#This Row],[Hours]]=0),0,SUMPRODUCT(tbl_Chiller_Calc_Engine736[[#This Row],[Cooling Load (tons)2]]*INDEX($Z$124:$AB$130,tbl_Chiller_Calc_Engine736[[#This Row],[CH Stage]],0)*$Z$118:$AB$118*(1-((tbl_Chiller_Calc_Engine736[[#This Row],[CHWST (°F)]]-$Z$119:$AB$119)+($Z$120:$AB$120-tbl_Chiller_Calc_Engine736[[#This Row],[CWST (°F)2]]))*$C$127))) -> 0 | AG150: 0 | AH150: =IF(tbl_Chiller_Calc_Engine736[[#This Row],[CH Stage]]=0,0,SUMPRODUCT(INDEX($T$124:$V$130,tbl_Chiller_Calc_Engine736[[#This Row],[CT Stage]],0),$D$133:$F$133)) -> 0 | AI150: =tbl_Chiller_Calc_Engine736[[#This Row],[PCHWP kW]]*tbl_Chiller_Calc_Engine736[[#This Row],[Hours]] -> 0 | AJ150: =(tbl_Chiller_Calc_Engine736[[#This Row],[SCHWP Qty]]*$C$129*$H$24*tbl_Chiller_Calc_Engine736[[#This Row],[SCHWP Speed2]]*tbl_Chiller_Calc_Engine736[[#This Row],[SCHWP Head]])/ (3960*$H$26*$H$27*IF($N$129=$F$129,1,$C$128)) -> 0 | AK150: =tbl_Chiller_Calc_Engine736[[#This Row],[SCHWP kW]]*tbl_Chiller_Calc_Engine736[[#This Row],[Hours]] -> 0 | AL150: =SUM(tbl_Chiller_Calc_Engine736[[#This Row],[Chiller Load kW]],tbl_Chiller_Calc_Engine736[[#This Row],[PCHWP kW]],tbl_Chiller_Calc_Engine736[[#This Row],[SCHWP kW]]) -> 0 | AM150: =SUM(tbl_Chiller_Calc_Engine736[[#This Row],[Chiller Load kWh]],tbl_Chiller_Calc_Engine736[[#This Row],[PCHWP kWh]],tbl_Chiller_Calc_Engine736[[#This Row],[SCHWP kWh]]) -> 0 | AN150: =IF(tbl_Chiller_Calc_Engine736[[#This Row],[CT Stage]]=0,0,SUMPRODUCT((IF(tbl_Chiller_Calc_Engine736[[#This Row],[CT Load (Tons)]]/INDEX($R$124:$R$130,tbl_Chiller_Calc_Engine736[[#This Row],[CT Stage]],0)>=$T$120:$V$120,tbl_Chiller_Calc_Engine736[[#This Row],[CT Load (Tons)]]/INDEX($R$124:$R$130,tbl_Chiller_Calc_Engine736[[#This Row],[CT Stage]],0),$T$120:$V$120)^$C$130*$T$118:$V$118*$C$129)/($C$128*$T$119:$V$119))) -> 0 | AO150: =tbl_Chiller_Calc_Engine736[[#This Row],[CT Fan kW]]*tbl_Chiller_Calc_Engine736[[#This Row],[Hours]] -> 0 | AP150: =(tbl_Chiller_Calc_Engine736[[#This Row],[CWP Qty]]*$C$129*$D$40*tbl_Chiller_Calc_Engine736[[#This Row],[CWP Speed3]]*$D$41)/ (3960*$D$42*$D$43*IF($I$129=$F$129,1,$C$128)) -> 0 | AQ150: =tbl_Chiller_Calc_Engine736[[#This Row],[CWP kW]]*tbl_Chiller_Calc_Engine736[[#This Row],[Hours]] -> 0
C151: 102 | D151: =IFERROR(AVERAGEIF(tbl_Climate_Zone[Dry_Bulb],tbl_Chiller_Calc_Engine736[[#This Row],[OAT]],tbl_Climate_Zone[Wet_Bulb]),0) -> 0 | E151: =SUM( COUNTIFS(tbl_Climate_Zone[Dry_Bulb],C151,tbl_Climate_Zone[Weekday],$C$12,tbl_Climate_Zone[Hour],">"&$D$12,tbl_Climate_Zone[Hour],"<="&$E$12), COUNTIFS(tbl_Climate_Zone[Dry_Bulb],C151,tbl_Climate_Zone[Weekday],$C$13,tbl_Climate_Zone[Hour],">"&$D$13,tbl_Climate_Zone[Hour],"<="&$E$13), COUNTIFS(tbl_Climate_Zone[Dry_Bulb],C151,tbl_Climate_Zone[Weekday],$C$14,tbl_Climate_Zone[Hour],">"&$D$14,tbl_Climate_Zone[Hour],"<="&$E$14)) -> 0 | T151: =IF(tbl_Chiller_Calc_Engine736[[#This Row],[Hours]]=0,0,IF($N$115="Baseline Trend Data", IF(ISBLANK(tbl_Chiller_Calc_Engine736[[#This Row],[ CHWST (°F)]]),MEDIAN($N$117,$O$117,FORECAST(tbl_Chiller_Calc_Engine736[[#This Row],[OAT]],tbl_Chiller_Calc_Engine736[ CHWST (°F)],tbl_Chiller_Calc_Engine736[OAT])),tbl_Chiller_Calc_Engine736[[#This Row],[ CHWST (°F)]]),IF($N$115="Proposed Trend Data", IF(ISBLANK(tbl_Chiller_Calc_Engine736[[#This Row],[ CHWST (°F)]]),MEDIAN($N$117,$O$117,FORECAST(tbl_Chiller_Calc_Engine736[[#This Row],[OAT]],tbl_Chiller_Calc_Engine736[ CHWST (°F)2],tbl_Chiller_Calc_Engine736[OAT])),tbl_Chiller_Calc_Engine736[[#This Row],[ CHWST (°F)2]]), MEDIAN($N$117,$O$117,TREND($N$117:$O$117,$N$118:$O$118,tbl_Chiller_Calc_Engine736[[#This Row],[OAT]]))))) -> 0 | U151: =IF(tbl_Chiller_Calc_Engine736[[#This Row],[Hours]]=0,0,IF($I$115="Baseline Trend Data", IF(ISBLANK(tbl_Chiller_Calc_Engine736[[#This Row],[CWST (°F)]]),MEDIAN($I$117,$J$117,FORECAST(tbl_Chiller_Calc_Engine736[[#This Row],[Average WBT]],tbl_Chiller_Calc_Engine736[CWST (°F)],tbl_Chiller_Calc_Engine736[Average WBT])),tbl_Chiller_Calc_Engine736[[#This Row],[CWST (°F)]]),IF($I$115="Proposed Trend Data", IF(ISBLANK(tbl_Chiller_Calc_Engine736[[#This Row],[CWST (°F)]]),MEDIAN($I$117,$J$117,FORECAST(tbl_Chiller_Calc_Engine736[[#This Row],[Average WBT]],tbl_Chiller_Calc_Engine736[CWST (°F)3],tbl_Chiller_Calc_Engine736[Average WBT])),tbl_Chiller_Calc_Engine736[[#This Row],[CWST (°F)3]]), MEDIAN($I$117,$J$117,TREND($I$117:$J$117,$I$118:$J$118,tbl_Chiller_Calc_Engine736[[#This Row],[Average WBT]]))))) -> 0 | V151: =IF(tbl_Chiller_Calc_Engine736[[#This Row],[Hours]]=0,0,IF($N$121="Baseline Trend Data",IF(ISBLANK(H151),FORECAST(C151,$H$138:$H$243,$C$138:$C$243),H151), IF($N$121 = "Proposed Trend Data",IF(ISBLANK(O151),FORECAST(C151,$O$138:$O$243,$C$138:$C$243),O151), IF(C151>=$N$131,MAX(TREND($N$122:$O$122,$N$123:$O$123,C151),0),0)))) -> 0 | W151: =IF(E151>0,V151*'Chilled Water System Template'!$C$131,0) -> 0 | X151: =IF(tbl_Chiller_Calc_Engine736[[#This Row],[Hours]]=0,0,IF($N$125="Baseline Trend Data",IF(ISBLANK(tbl_Chiller_Calc_Engine736[[#This Row],[SCHWP Speed]]),MEDIAN($N$127,$O$127,FORECAST(tbl_Chiller_Calc_Engine736[[#This Row],[OAT]],tbl_Chiller_Calc_Engine736[SCHWP Speed],tbl_Chiller_Calc_Engine736[OAT]))), IF($N$125="Proposed Trend Data",IF(ISBLANK(tbl_Chiller_Calc_Engine736[[#This Row],[SCHWP Speed3]]),MEDIAN($N$127,$O$127,FORECAST(tbl_Chiller_Calc_Engine736[[#This Row],[OAT]],tbl_Chiller_Calc_Engine736[SCHWP Speed3],tbl_Chiller_Calc_Engine736[OAT]))), MEDIAN($N$127,$O$127,TREND($N$127:$O$127,$N$128:$O$128,tbl_Chiller_Calc_Engine736[[#This Row],[OAT]]))))) -> 0 | Y151: =IF(tbl_Chiller_Calc_Engine736[[#This Row],[Hours]]=0,0,IF($I$125="Baseline Trend Data",IF(ISBLANK(tbl_Chiller_Calc_Engine736[[#This Row],['# CWP]]),MEDIAN($F$41,$G$41,FORECAST(tbl_Chiller_Calc_Engine736[[#This Row],[OAT]],tbl_Chiller_Calc_Engine736['# CWP],tbl_Chiller_Calc_Engine736[OAT]))), IF($I$125="Proposed Trend Data",IF(ISBLANK(tbl_Chiller_Calc_Engine736[[#This Row],['# CWP2]]),MEDIAN($F$41,$G$41,FORECAST(tbl_Chiller_Calc_Engine736[[#This Row],[OAT]],tbl_Chiller_Calc_Engine736['# CWP2],tbl_Chiller_Calc_Engine736[OAT]))), ROUNDUP(MEDIAN($F$41,$G$41,TREND($F$41:$G$41,$F$42:$G$42,tbl_Chiller_Calc_Engine736[[#This Row],[OAT]])),0)))) -> 0 | Z151: =IF(tbl_Chiller_Calc_Engine736[[#This Row],[Hours]]=0,0,IF($I$125="Baseline Trend Data",IF(ISBLANK(tbl_Chiller_Calc_Engine736[[#This Row],[CWP Speed]]),MEDIAN($I$127,$J$127,FORECAST(tbl_Chiller_Calc_Engine736[[#This Row],[OAT]],tbl_Chiller_Calc_Engine736[CWP Speed],tbl_Chiller_Calc_Engine736[OAT]))), IF($I$125="Proposed Trend Data",IF(ISBLANK(tbl_Chiller_Calc_Engine736[[#This Row],[CWP Speed2]]),MEDIAN($I$127,$J$127,FORECAST(tbl_Chiller_Calc_Engine736[[#This Row],[OAT]],tbl_Chiller_Calc_Engine736[CWP Speed2],tbl_Chiller_Calc_Engine736[OAT]))), MEDIAN($I$127,$J$127,TREND($I$127:$J$127,$I$128:$J$128,tbl_Chiller_Calc_Engine736[[#This Row],[OAT]]))))) -> 0 | AA151: 2 | AB151: =IF(tbl_Chiller_Calc_Engine736[[#This Row],[Hours]]=0,0,IF($I$120="Baseline Trend Data",IF(ISBLANK(tbl_Chiller_Calc_Engine736[[#This Row],[Head in ft]]),MEDIAN($I$122,$J$122,FORECAST(tbl_Chiller_Calc_Engine736[[#This Row],[OAT]],tbl_Chiller_Calc_Engine736[Head in ft],tbl_Chiller_Calc_Engine736[OAT]))), IF($I$120="Proposed Trend Data",IF(ISBLANK(tbl_Chiller_Calc_Engine736[[#This Row],[Head in ft2]]),MEDIAN($I$122,$J$122,FORECAST(tbl_Chiller_Calc_Engine736[[#This Row],[OAT]],tbl_Chiller_Calc_Engine736[Head in ft2],tbl_Chiller_Calc_Engine736[OAT]))), ROUNDUP(MEDIAN($I$122,$J$122,TREND($I$122:$J$122,$I$123:$J$123,tbl_Chiller_Calc_Engine736[[#This Row],[OAT]]))*2.31,0)))) -> 0 | AC151: FALSE | AD151: =IF(OR(tbl_Chiller_Calc_Engine736[[#This Row],[Cooling Load (tons)2]]=0,tbl_Chiller_Calc_Engine736[[#This Row],[Econ Engaged]]),0,MEDIAN(0,MAX($W$124:$W$130),IFERROR(MATCH(tbl_Chiller_Calc_Engine736[[#This Row],[Cooling Load (tons)2]],$X$124:$X$130,1),0)+1)) -> 0 | AE151: =IF(tbl_Chiller_Calc_Engine736[[#This Row],[CT Load (Tons)]]=0,0,IFERROR(MEDIAN(0,MAX($Q$124:$Q$130),IFERROR(MATCH(tbl_Chiller_Calc_Engine736[[#This Row],[CT Load (Tons)]],$R$124:$R$130,1),0)+1),0)) -> 0 | AF151: =IF(OR(tbl_Chiller_Calc_Engine736[[#This Row],[Econ Engaged]],tbl_Chiller_Calc_Engine736[[#This Row],[Hours]]=0),0,SUMPRODUCT(tbl_Chiller_Calc_Engine736[[#This Row],[Cooling Load (tons)2]]*INDEX($Z$124:$AB$130,tbl_Chiller_Calc_Engine736[[#This Row],[CH Stage]],0)*$Z$118:$AB$118*(1-((tbl_Chiller_Calc_Engine736[[#This Row],[CHWST (°F)]]-$Z$119:$AB$119)+($Z$120:$AB$120-tbl_Chiller_Calc_Engine736[[#This Row],[CWST (°F)2]]))*$C$127))) -> 0 | AG151: 0 | AH151: =IF(tbl_Chiller_Calc_Engine736[[#This Row],[CH Stage]]=0,0,SUMPRODUCT(INDEX($T$124:$V$130,tbl_Chiller_Calc_Engine736[[#This Row],[CT Stage]],0),$D$133:$F$133)) -> 0 | AI151: =tbl_Chiller_Calc_Engine736[[#This Row],[PCHWP kW]]*tbl_Chiller_Calc_Engine736[[#This Row],[Hours]] -> 0 | AJ151: =(tbl_Chiller_Calc_Engine736[[#This Row],[SCHWP Qty]]*$C$129*$H$24*tbl_Chiller_Calc_Engine736[[#This Row],[SCHWP Speed2]]*tbl_Chiller_Calc_Engine736[[#This Row],[SCHWP Head]])/ (3960*$H$26*$H$27*IF($N$129=$F$129,1,$C$128)) -> 0 | AK151: =tbl_Chiller_Calc_Engine736[[#This Row],[SCHWP kW]]*tbl_Chiller_Calc_Engine736[[#This Row],[Hours]] -> 0 | AL151: =SUM(tbl_Chiller_Calc_Engine736[[#This Row],[Chiller Load kW]],tbl_Chiller_Calc_Engine736[[#This Row],[PCHWP kW]],tbl_Chiller_Calc_Engine736[[#This Row],[SCHWP kW]]) -> 0 | AM151: =SUM(tbl_Chiller_Calc_Engine736[[#This Row],[Chiller Load kWh]],tbl_Chiller_Calc_Engine736[[#This Row],[PCHWP kWh]],tbl_Chiller_Calc_Engine736[[#This Row],[SCHWP kWh]]) -> 0 | AN151: =IF(tbl_Chiller_Calc_Engine736[[#This Row],[CT Stage]]=0,0,SUMPRODUCT((IF(tbl_Chiller_Calc_Engine736[[#This Row],[CT Load (Tons)]]/INDEX($R$124:$R$130,tbl_Chiller_Calc_Engine736[[#This Row],[CT Stage]],0)>=$T$120:$V$120,tbl_Chiller_Calc_Engine736[[#This Row],[CT Load (Tons)]]/INDEX($R$124:$R$130,tbl_Chiller_Calc_Engine736[[#This Row],[CT Stage]],0),$T$120:$V$120)^$C$130*$T$118:$V$118*$C$129)/($C$128*$T$119:$V$119))) -> 0 | AO151: =tbl_Chiller_Calc_Engine736[[#This Row],[CT Fan kW]]*tbl_Chiller_Calc_Engine736[[#This Row],[Hours]] -> 0 | AP151: =(tbl_Chiller_Calc_Engine736[[#This Row],[CWP Qty]]*$C$129*$D$40*tbl_Chiller_Calc_Engine736[[#This Row],[CWP Speed3]]*$D$41)/ (3960*$D$42*$D$43*IF($I$129=$F$129,1,$C$128)) -> 0 | AQ151: =tbl_Chiller_Calc_Engine736[[#This Row],[CWP kW]]*tbl_Chiller_Calc_Engine736[[#This Row],[Hours]] -> 0
C152: 101 | D152: =IFERROR(AVERAGEIF(tbl_Climate_Zone[Dry_Bulb],tbl_Chiller_Calc_Engine736[[#This Row],[OAT]],tbl_Climate_Zone[Wet_Bulb]),0) -> 0 | E152: =SUM( COUNTIFS(tbl_Climate_Zone[Dry_Bulb],C152,tbl_Climate_Zone[Weekday],$C$12,tbl_Climate_Zone[Hour],">"&$D$12,tbl_Climate_Zone[Hour],"<="&$E$12), COUNTIFS(tbl_Climate_Zone[Dry_Bulb],C152,tbl_Climate_Zone[Weekday],$C$13,tbl_Climate_Zone[Hour],">"&$D$13,tbl_Climate_Zone[Hour],"<="&$E$13), COUNTIFS(tbl_Climate_Zone[Dry_Bulb],C152,tbl_Climate_Zone[Weekday],$C$14,tbl_Climate_Zone[Hour],">"&$D$14,tbl_Climate_Zone[Hour],"<="&$E$14)) -> 0 | T152: =IF(tbl_Chiller_Calc_Engine736[[#This Row],[Hours]]=0,0,IF($N$115="Baseline Trend Data", IF(ISBLANK(tbl_Chiller_Calc_Engine736[[#This Row],[ CHWST (°F)]]),MEDIAN($N$117,$O$117,FORECAST(tbl_Chiller_Calc_Engine736[[#This Row],[OAT]],tbl_Chiller_Calc_Engine736[ CHWST (°F)],tbl_Chiller_Calc_Engine736[OAT])),tbl_Chiller_Calc_Engine736[[#This Row],[ CHWST (°F)]]),IF($N$115="Proposed Trend Data", IF(ISBLANK(tbl_Chiller_Calc_Engine736[[#This Row],[ CHWST (°F)]]),MEDIAN($N$117,$O$117,FORECAST(tbl_Chiller_Calc_Engine736[[#This Row],[OAT]],tbl_Chiller_Calc_Engine736[ CHWST (°F)2],tbl_Chiller_Calc_Engine736[OAT])),tbl_Chiller_Calc_Engine736[[#This Row],[ CHWST (°F)2]]), MEDIAN($N$117,$O$117,TREND($N$117:$O$117,$N$118:$O$118,tbl_Chiller_Calc_Engine736[[#This Row],[OAT]]))))) -> 0 | U152: =IF(tbl_Chiller_Calc_Engine736[[#This Row],[Hours]]=0,0,IF($I$115="Baseline Trend Data", IF(ISBLANK(tbl_Chiller_Calc_Engine736[[#This Row],[CWST (°F)]]),MEDIAN($I$117,$J$117,FORECAST(tbl_Chiller_Calc_Engine736[[#This Row],[Average WBT]],tbl_Chiller_Calc_Engine736[CWST (°F)],tbl_Chiller_Calc_Engine736[Average WBT])),tbl_Chiller_Calc_Engine736[[#This Row],[CWST (°F)]]),IF($I$115="Proposed Trend Data", IF(ISBLANK(tbl_Chiller_Calc_Engine736[[#This Row],[CWST (°F)]]),MEDIAN($I$117,$J$117,FORECAST(tbl_Chiller_Calc_Engine736[[#This Row],[Average WBT]],tbl_Chiller_Calc_Engine736[CWST (°F)3],tbl_Chiller_Calc_Engine736[Average WBT])),tbl_Chiller_Calc_Engine736[[#This Row],[CWST (°F)3]]), MEDIAN($I$117,$J$117,TREND($I$117:$J$117,$I$118:$J$118,tbl_Chiller_Calc_Engine736[[#This Row],[Average WBT]]))))) -> 0 | V152: =IF(tbl_Chiller_Calc_Engine736[[#This Row],[Hours]]=0,0,IF($N$121="Baseline Trend Data",IF(ISBLANK(H152),FORECAST(C152,$H$138:$H$243,$C$138:$C$243),H152), IF($N$121 = "Proposed Trend Data",IF(ISBLANK(O152),FORECAST(C152,$O$138:$O$243,$C$138:$C$243),O152), IF(C152>=$N$131,MAX(TREND($N$122:$O$122,$N$123:$O$123,C152),0),0)))) -> 0 | W152: =IF(E152>0,V152*'Chilled Water System Template'!$C$131,0) -> 0 | X152: =IF(tbl_Chiller_Calc_Engine736[[#This Row],[Hours]]=0,0,IF($N$125="Baseline Trend Data",IF(ISBLANK(tbl_Chiller_Calc_Engine736[[#This Row],[SCHWP Speed]]),MEDIAN($N$127,$O$127,FORECAST(tbl_Chiller_Calc_Engine736[[#This Row],[OAT]],tbl_Chiller_Calc_Engine736[SCHWP Speed],tbl_Chiller_Calc_Engine736[OAT]))), IF($N$125="Proposed Trend Data",IF(ISBLANK(tbl_Chiller_Calc_Engine736[[#This Row],[SCHWP Speed3]]),MEDIAN($N$127,$O$127,FORECAST(tbl_Chiller_Calc_Engine736[[#This Row],[OAT]],tbl_Chiller_Calc_Engine736[SCHWP Speed3],tbl_Chiller_Calc_Engine736[OAT]))), MEDIAN($N$127,$O$127,TREND($N$127:$O$127,$N$128:$O$128,tbl_Chiller_Calc_Engine736[[#This Row],[OAT]]))))) -> 0 | Y152: =IF(tbl_Chiller_Calc_Engine736[[#This Row],[Hours]]=0,0,IF($I$125="Baseline Trend Data",IF(ISBLANK(tbl_Chiller_Calc_Engine736[[#This Row],['# CWP]]),MEDIAN($F$41,$G$41,FORECAST(tbl_Chiller_Calc_Engine736[[#This Row],[OAT]],tbl_Chiller_Calc_Engine736['# CWP],tbl_Chiller_Calc_Engine736[OAT]))), IF($I$125="Proposed Trend Data",IF(ISBLANK(tbl_Chiller_Calc_Engine736[[#This Row],['# CWP2]]),MEDIAN($F$41,$G$41,FORECAST(tbl_Chiller_Calc_Engine736[[#This Row],[OAT]],tbl_Chiller_Calc_Engine736['# CWP2],tbl_Chiller_Calc_Engine736[OAT]))), ROUNDUP(MEDIAN($F$41,$G$41,TREND($F$41:$G$41,$F$42:$G$42,tbl_Chiller_Calc_Engine736[[#This Row],[OAT]])),0)))) -> 0 | Z152: =IF(tbl_Chiller_Calc_Engine736[[#This Row],[Hours]]=0,0,IF($I$125="Baseline Trend Data",IF(ISBLANK(tbl_Chiller_Calc_Engine736[[#This Row],[CWP Speed]]),MEDIAN($I$127,$J$127,FORECAST(tbl_Chiller_Calc_Engine736[[#This Row],[OAT]],tbl_Chiller_Calc_Engine736[CWP Speed],tbl_Chiller_Calc_Engine736[OAT]))), IF($I$125="Proposed Trend Data",IF(ISBLANK(tbl_Chiller_Calc_Engine736[[#This Row],[CWP Speed2]]),MEDIAN($I$127,$J$127,FORECAST(tbl_Chiller_Calc_Engine736[[#This Row],[OAT]],tbl_Chiller_Calc_Engine736[CWP Speed2],tbl_Chiller_Calc_Engine736[OAT]))), MEDIAN($I$127,$J$127,TREND($I$127:$J$127,$I$128:$J$128,tbl_Chiller_Calc_Engine736[[#This Row],[OAT]]))))) -> 0 | AA152: 2 | AB152: =IF(tbl_Chiller_Calc_Engine736[[#This Row],[Hours]]=0,0,IF($I$120="Baseline Trend Data",IF(ISBLANK(tbl_Chiller_Calc_Engine736[[#This Row],[Head in ft]]),MEDIAN($I$122,$J$122,FORECAST(tbl_Chiller_Calc_Engine736[[#This Row],[OAT]],tbl_Chiller_Calc_Engine736[Head in ft],tbl_Chiller_Calc_Engine736[OAT]))), IF($I$120="Proposed Trend Data",IF(ISBLANK(tbl_Chiller_Calc_Engine736[[#This Row],[Head in ft2]]),MEDIAN($I$122,$J$122,FORECAST(tbl_Chiller_Calc_Engine736[[#This Row],[OAT]],tbl_Chiller_Calc_Engine736[Head in ft2],tbl_Chiller_Calc_Engine736[OAT]))), ROUNDUP(MEDIAN($I$122,$J$122,TREND($I$122:$J$122,$I$123:$J$123,tbl_Chiller_Calc_Engine736[[#This Row],[OAT]]))*2.31,0)))) -> 0 | AC152: FALSE | AD152: =IF(OR(tbl_Chiller_Calc_Engine736[[#This Row],[Cooling Load (tons)2]]=0,tbl_Chiller_Calc_Engine736[[#This Row],[Econ Engaged]]),0,MEDIAN(0,MAX($W$124:$W$130),IFERROR(MATCH(tbl_Chiller_Calc_Engine736[[#This Row],[Cooling Load (tons)2]],$X$124:$X$130,1),0)+1)) -> 0 | AE152: =IF(tbl_Chiller_Calc_Engine736[[#This Row],[CT Load (Tons)]]=0,0,IFERROR(MEDIAN(0,MAX($Q$124:$Q$130),IFERROR(MATCH(tbl_Chiller_Calc_Engine736[[#This Row],[CT Load (Tons)]],$R$124:$R$130,1),0)+1),0)) -> 0 | AF152: =IF(OR(tbl_Chiller_Calc_Engine736[[#This Row],[Econ Engaged]],tbl_Chiller_Calc_Engine736[[#This Row],[Hours]]=0),0,SUMPRODUCT(tbl_Chiller_Calc_Engine736[[#This Row],[Cooling Load (tons)2]]*INDEX($Z$124:$AB$130,tbl_Chiller_Calc_Engine736[[#This Row],[CH Stage]],0)*$Z$118:$AB$118*(1-((tbl_Chiller_Calc_Engine736[[#This Row],[CHWST (°F)]]-$Z$119:$AB$119)+($Z$120:$AB$120-tbl_Chiller_Calc_Engine736[[#This Row],[CWST (°F)2]]))*$C$127))) -> 0 | AG152: 0 | AH152: =IF(tbl_Chiller_Calc_Engine736[[#This Row],[CH Stage]]=0,0,SUMPRODUCT(INDEX($T$124:$V$130,tbl_Chiller_Calc_Engine736[[#This Row],[CT Stage]],0),$D$133:$F$133)) -> 0 | AI152: =tbl_Chiller_Calc_Engine736[[#This Row],[PCHWP kW]]*tbl_Chiller_Calc_Engine736[[#This Row],[Hours]] -> 0 | AJ152: =(tbl_Chiller_Calc_Engine736[[#This Row],[SCHWP Qty]]*$C$129*$H$24*tbl_Chiller_Calc_Engine736[[#This Row],[SCHWP Speed2]]*tbl_Chiller_Calc_Engine736[[#This Row],[SCHWP Head]])/ (3960*$H$26*$H$27*IF($N$129=$F$129,1,$C$128)) -> 0 | AK152: =tbl_Chiller_Calc_Engine736[[#This Row],[SCHWP kW]]*tbl_Chiller_Calc_Engine736[[#This Row],[Hours]] -> 0 | AL152: =SUM(tbl_Chiller_Calc_Engine736[[#This Row],[Chiller Load kW]],tbl_Chiller_Calc_Engine736[[#This Row],[PCHWP kW]],tbl_Chiller_Calc_Engine736[[#This Row],[SCHWP kW]]) -> 0 | AM152: =SUM(tbl_Chiller_Calc_Engine736[[#This Row],[Chiller Load kWh]],tbl_Chiller_Calc_Engine736[[#This Row],[PCHWP kWh]],tbl_Chiller_Calc_Engine736[[#This Row],[SCHWP kWh]]) -> 0 | AN152: =IF(tbl_Chiller_Calc_Engine736[[#This Row],[CT Stage]]=0,0,SUMPRODUCT((IF(tbl_Chiller_Calc_Engine736[[#This Row],[CT Load (Tons)]]/INDEX($R$124:$R$130,tbl_Chiller_Calc_Engine736[[#This Row],[CT Stage]],0)>=$T$120:$V$120,tbl_Chiller_Calc_Engine736[[#This Row],[CT Load (Tons)]]/INDEX($R$124:$R$130,tbl_Chiller_Calc_Engine736[[#This Row],[CT Stage]],0),$T$120:$V$120)^$C$130*$T$118:$V$118*$C$129)/($C$128*$T$119:$V$119))) -> 0 | AO152: =tbl_Chiller_Calc_Engine736[[#This Row],[CT Fan kW]]*tbl_Chiller_Calc_Engine736[[#This Row],[Hours]] -> 0 | AP152: =(tbl_Chiller_Calc_Engine736[[#This Row],[CWP Qty]]*$C$129*$D$40*tbl_Chiller_Calc_Engine736[[#This Row],[CWP Speed3]]*$D$41)/ (3960*$D$42*$D$43*IF($I$129=$F$129,1,$C$128)) -> 0 | AQ152: =tbl_Chiller_Calc_Engine736[[#This Row],[CWP kW]]*tbl_Chiller_Calc_Engine736[[#This Row],[Hours]] -> 0
C153: 100 | D153: =IFERROR(AVERAGEIF(tbl_Climate_Zone[Dry_Bulb],tbl_Chiller_Calc_Engine736[[#This Row],[OAT]],tbl_Climate_Zone[Wet_Bulb]),0) -> 0 | E153: =SUM( COUNTIFS(tbl_Climate_Zone[Dry_Bulb],C153,tbl_Climate_Zone[Weekday],$C$12,tbl_Climate_Zone[Hour],">"&$D$12,tbl_Climate_Zone[Hour],"<="&$E$12), COUNTIFS(tbl_Climate_Zone[Dry_Bulb],C153,tbl_Climate_Zone[Weekday],$C$13,tbl_Climate_Zone[Hour],">"&$D$13,tbl_Climate_Zone[Hour],"<="&$E$13), COUNTIFS(tbl_Climate_Zone[Dry_Bulb],C153,tbl_Climate_Zone[Weekday],$C$14,tbl_Climate_Zone[Hour],">"&$D$14,tbl_Climate_Zone[Hour],"<="&$E$14)) -> 0 | T153: =IF(tbl_Chiller_Calc_Engine736[[#This Row],[Hours]]=0,0,IF($N$115="Baseline Trend Data", IF(ISBLANK(tbl_Chiller_Calc_Engine736[[#This Row],[ CHWST (°F)]]),MEDIAN($N$117,$O$117,FORECAST(tbl_Chiller_Calc_Engine736[[#This Row],[OAT]],tbl_Chiller_Calc_Engine736[ CHWST (°F)],tbl_Chiller_Calc_Engine736[OAT])),tbl_Chiller_Calc_Engine736[[#This Row],[ CHWST (°F)]]),IF($N$115="Proposed Trend Data", IF(ISBLANK(tbl_Chiller_Calc_Engine736[[#This Row],[ CHWST (°F)]]),MEDIAN($N$117,$O$117,FORECAST(tbl_Chiller_Calc_Engine736[[#This Row],[OAT]],tbl_Chiller_Calc_Engine736[ CHWST (°F)2],tbl_Chiller_Calc_Engine736[OAT])),tbl_Chiller_Calc_Engine736[[#This Row],[ CHWST (°F)2]]), MEDIAN($N$117,$O$117,TREND($N$117:$O$117,$N$118:$O$118,tbl_Chiller_Calc_Engine736[[#This Row],[OAT]]))))) -> 0 | U153: =IF(tbl_Chiller_Calc_Engine736[[#This Row],[Hours]]=0,0,IF($I$115="Baseline Trend Data", IF(ISBLANK(tbl_Chiller_Calc_Engine736[[#This Row],[CWST (°F)]]),MEDIAN($I$117,$J$117,FORECAST(tbl_Chiller_Calc_Engine736[[#This Row],[Average WBT]],tbl_Chiller_Calc_Engine736[CWST (°F)],tbl_Chiller_Calc_Engine736[Average WBT])),tbl_Chiller_Calc_Engine736[[#This Row],[CWST (°F)]]),IF($I$115="Proposed Trend Data", IF(ISBLANK(tbl_Chiller_Calc_Engine736[[#This Row],[CWST (°F)]]),MEDIAN($I$117,$J$117,FORECAST(tbl_Chiller_Calc_Engine736[[#This Row],[Average WBT]],tbl_Chiller_Calc_Engine736[CWST (°F)3],tbl_Chiller_Calc_Engine736[Average WBT])),tbl_Chiller_Calc_Engine736[[#This Row],[CWST (°F)3]]), MEDIAN($I$117,$J$117,TREND($I$117:$J$117,$I$118:$J$118,tbl_Chiller_Calc_Engine736[[#This Row],[Average WBT]]))))) -> 0 | V153: =IF(tbl_Chiller_Calc_Engine736[[#This Row],[Hours]]=0,0,IF($N$121="Baseline Trend Data",IF(ISBLANK(H153),FORECAST(C153,$H$138:$H$243,$C$138:$C$243),H153), IF($N$121 = "Proposed Trend Data",IF(ISBLANK(O153),FORECAST(C153,$O$138:$O$243,$C$138:$C$243),O153), IF(C153>=$N$131,MAX(TREND($N$122:$O$122,$N$123:$O$123,C153),0),0)))) -> 0 | W153: =IF(E153>0,V153*'Chilled Water System Template'!$C$131,0) -> 0 | X153: =IF(tbl_Chiller_Calc_Engine736[[#This Row],[Hours]]=0,0,IF($N$125="Baseline Trend Data",IF(ISBLANK(tbl_Chiller_Calc_Engine736[[#This Row],[SCHWP Speed]]),MEDIAN($N$127,$O$127,FORECAST(tbl_Chiller_Calc_Engine736[[#This Row],[OAT]],tbl_Chiller_Calc_Engine736[SCHWP Speed],tbl_Chiller_Calc_Engine736[OAT]))), IF($N$125="Proposed Trend Data",IF(ISBLANK(tbl_Chiller_Calc_Engine736[[#This Row],[SCHWP Speed3]]),MEDIAN($N$127,$O$127,FORECAST(tbl_Chiller_Calc_Engine736[[#This Row],[OAT]],tbl_Chiller_Calc_Engine736[SCHWP Speed3],tbl_Chiller_Calc_Engine736[OAT]))), MEDIAN($N$127,$O$127,TREND($N$127:$O$127,$N$128:$O$128,tbl_Chiller_Calc_Engine736[[#This Row],[OAT]]))))) -> 0 | Y153: =IF(tbl_Chiller_Calc_Engine736[[#This Row],[Hours]]=0,0,IF($I$125="Baseline Trend Data",IF(ISBLANK(tbl_Chiller_Calc_Engine736[[#This Row],['# CWP]]),MEDIAN($F$41,$G$41,FORECAST(tbl_Chiller_Calc_Engine736[[#This Row],[OAT]],tbl_Chiller_Calc_Engine736['# CWP],tbl_Chiller_Calc_Engine736[OAT]))), IF($I$125="Proposed Trend Data",IF(ISBLANK(tbl_Chiller_Calc_Engine736[[#This Row],['# CWP2]]),MEDIAN($F$41,$G$41,FORECAST(tbl_Chiller_Calc_Engine736[[#This Row],[OAT]],tbl_Chiller_Calc_Engine736['# CWP2],tbl_Chiller_Calc_Engine736[OAT]))), ROUNDUP(MEDIAN($F$41,$G$41,TREND($F$41:$G$41,$F$42:$G$42,tbl_Chiller_Calc_Engine736[[#This Row],[OAT]])),0)))) -> 0 | Z153: =IF(tbl_Chiller_Calc_Engine736[[#This Row],[Hours]]=0,0,IF($I$125="Baseline Trend Data",IF(ISBLANK(tbl_Chiller_Calc_Engine736[[#This Row],[CWP Speed]]),MEDIAN($I$127,$J$127,FORECAST(tbl_Chiller_Calc_Engine736[[#This Row],[OAT]],tbl_Chiller_Calc_Engine736[CWP Speed],tbl_Chiller_Calc_Engine736[OAT]))), IF($I$125="Proposed Trend Data",IF(ISBLANK(tbl_Chiller_Calc_Engine736[[#This Row],[CWP Speed2]]),MEDIAN($I$127,$J$127,FORECAST(tbl_Chiller_Calc_Engine736[[#This Row],[OAT]],tbl_Chiller_Calc_Engine736[CWP Speed2],tbl_Chiller_Calc_Engine736[OAT]))), MEDIAN($I$127,$J$127,TREND($I$127:$J$127,$I$128:$J$128,tbl_Chiller_Calc_Engine736[[#This Row],[OAT]]))))) -> 0 | AA153: 2 | AB153: =IF(tbl_Chiller_Calc_Engine736[[#This Row],[Hours]]=0,0,IF($I$120="Baseline Trend Data",IF(ISBLANK(tbl_Chiller_Calc_Engine736[[#This Row],[Head in ft]]),MEDIAN($I$122,$J$122,FORECAST(tbl_Chiller_Calc_Engine736[[#This Row],[OAT]],tbl_Chiller_Calc_Engine736[Head in ft],tbl_Chiller_Calc_Engine736[OAT]))), IF($I$120="Proposed Trend Data",IF(ISBLANK(tbl_Chiller_Calc_Engine736[[#This Row],[Head in ft2]]),MEDIAN($I$122,$J$122,FORECAST(tbl_Chiller_Calc_Engine736[[#This Row],[OAT]],tbl_Chiller_Calc_Engine736[Head in ft2],tbl_Chiller_Calc_Engine736[OAT]))), ROUNDUP(MEDIAN($I$122,$J$122,TREND($I$122:$J$122,$I$123:$J$123,tbl_Chiller_Calc_Engine736[[#This Row],[OAT]]))*2.31,0)))) -> 0 | AC153: FALSE | AD153: =IF(OR(tbl_Chiller_Calc_Engine736[[#This Row],[Cooling Load (tons)2]]=0,tbl_Chiller_Calc_Engine736[[#This Row],[Econ Engaged]]),0,MEDIAN(0,MAX($W$124:$W$130),IFERROR(MATCH(tbl_Chiller_Calc_Engine736[[#This Row],[Cooling Load (tons)2]],$X$124:$X$130,1),0)+1)) -> 0 | AE153: =IF(tbl_Chiller_Calc_Engine736[[#This Row],[CT Load (Tons)]]=0,0,IFERROR(MEDIAN(0,MAX($Q$124:$Q$130),IFERROR(MATCH(tbl_Chiller_Calc_Engine736[[#This Row],[CT Load (Tons)]],$R$124:$R$130,1),0)+1),0)) -> 0 | AF153: =IF(OR(tbl_Chiller_Calc_Engine736[[#This Row],[Econ Engaged]],tbl_Chiller_Calc_Engine736[[#This Row],[Hours]]=0),0,SUMPRODUCT(tbl_Chiller_Calc_Engine736[[#This Row],[Cooling Load (tons)2]]*INDEX($Z$124:$AB$130,tbl_Chiller_Calc_Engine736[[#This Row],[CH Stage]],0)*$Z$118:$AB$118*(1-((tbl_Chiller_Calc_Engine736[[#This Row],[CHWST (°F)]]-$Z$119:$AB$119)+($Z$120:$AB$120-tbl_Chiller_Calc_Engine736[[#This Row],[CWST (°F)2]]))*$C$127))) -> 0 | AG153: 0 | AH153: =IF(tbl_Chiller_Calc_Engine736[[#This Row],[CH Stage]]=0,0,SUMPRODUCT(INDEX($T$124:$V$130,tbl_Chiller_Calc_Engine736[[#This Row],[CT Stage]],0),$D$133:$F$133)) -> 0 | AI153: =tbl_Chiller_Calc_Engine736[[#This Row],[PCHWP kW]]*tbl_Chiller_Calc_Engine736[[#This Row],[Hours]] -> 0 | AJ153: =(tbl_Chiller_Calc_Engine736[[#This Row],[SCHWP Qty]]*$C$129*$H$24*tbl_Chiller_Calc_Engine736[[#This Row],[SCHWP Speed2]]*tbl_Chiller_Calc_Engine736[[#This Row],[SCHWP Head]])/ (3960*$H$26*$H$27*IF($N$129=$F$129,1,$C$128)) -> 0 | AK153: =tbl_Chiller_Calc_Engine736[[#This Row],[SCHWP kW]]*tbl_Chiller_Calc_Engine736[[#This Row],[Hours]] -> 0 | AL153: =SUM(tbl_Chiller_Calc_Engine736[[#This Row],[Chiller Load kW]],tbl_Chiller_Calc_Engine736[[#This Row],[PCHWP kW]],tbl_Chiller_Calc_Engine736[[#This Row],[SCHWP kW]]) -> 0 | AM153: =SUM(tbl_Chiller_Calc_Engine736[[#This Row],[Chiller Load kWh]],tbl_Chiller_Calc_Engine736[[#This Row],[PCHWP kWh]],tbl_Chiller_Calc_Engine736[[#This Row],[SCHWP kWh]]) -> 0 | AN153: =IF(tbl_Chiller_Calc_Engine736[[#This Row],[CT Stage]]=0,0,SUMPRODUCT((IF(tbl_Chiller_Calc_Engine736[[#This Row],[CT Load (Tons)]]/INDEX($R$124:$R$130,tbl_Chiller_Calc_Engine736[[#This Row],[CT Stage]],0)>=$T$120:$V$120,tbl_Chiller_Calc_Engine736[[#This Row],[CT Load (Tons)]]/INDEX($R$124:$R$130,tbl_Chiller_Calc_Engine736[[#This Row],[CT Stage]],0),$T$120:$V$120)^$C$130*$T$118:$V$118*$C$129)/($C$128*$T$119:$V$119))) -> 0 | AO153: =tbl_Chiller_Calc_Engine736[[#This Row],[CT Fan kW]]*tbl_Chiller_Calc_Engine736[[#This Row],[Hours]] -> 0 | AP153: =(tbl_Chiller_Calc_Engine736[[#This Row],[CWP Qty]]*$C$129*$D$40*tbl_Chiller_Calc_Engine736[[#This Row],[CWP Speed3]]*$D$41)/ (3960*$D$42*$D$43*IF($I$129=$F$129,1,$C$128)) -> 0 | AQ153: =tbl_Chiller_Calc_Engine736[[#This Row],[CWP kW]]*tbl_Chiller_Calc_Engine736[[#This Row],[Hours]] -> 0
C154: 99 | D154: =IFERROR(AVERAGEIF(tbl_Climate_Zone[Dry_Bulb],tbl_Chiller_Calc_Engine736[[#This Row],[OAT]],tbl_Climate_Zone[Wet_Bulb]),0) -> 0 | E154: =SUM( COUNTIFS(tbl_Climate_Zone[Dry_Bulb],C154,tbl_Climate_Zone[Weekday],$C$12,tbl_Climate_Zone[Hour],">"&$D$12,tbl_Climate_Zone[Hour],"<="&$E$12), COUNTIFS(tbl_Climate_Zone[Dry_Bulb],C154,tbl_Climate_Zone[Weekday],$C$13,tbl_Climate_Zone[Hour],">"&$D$13,tbl_Climate_Zone[Hour],"<="&$E$13), COUNTIFS(tbl_Climate_Zone[Dry_Bulb],C154,tbl_Climate_Zone[Weekday],$C$14,tbl_Climate_Zone[Hour],">"&$D$14,tbl_Climate_Zone[Hour],"<="&$E$14)) -> 0 | T154: =IF(tbl_Chiller_Calc_Engine736[[#This Row],[Hours]]=0,0,IF($N$115="Baseline Trend Data", IF(ISBLANK(tbl_Chiller_Calc_Engine736[[#This Row],[ CHWST (°F)]]),MEDIAN($N$117,$O$117,FORECAST(tbl_Chiller_Calc_Engine736[[#This Row],[OAT]],tbl_Chiller_Calc_Engine736[ CHWST (°F)],tbl_Chiller_Calc_Engine736[OAT])),tbl_Chiller_Calc_Engine736[[#This Row],[ CHWST (°F)]]),IF($N$115="Proposed Trend Data", IF(ISBLANK(tbl_Chiller_Calc_Engine736[[#This Row],[ CHWST (°F)]]),MEDIAN($N$117,$O$117,FORECAST(tbl_Chiller_Calc_Engine736[[#This Row],[OAT]],tbl_Chiller_Calc_Engine736[ CHWST (°F)2],tbl_Chiller_Calc_Engine736[OAT])),tbl_Chiller_Calc_Engine736[[#This Row],[ CHWST (°F)2]]), MEDIAN($N$117,$O$117,TREND($N$117:$O$117,$N$118:$O$118,tbl_Chiller_Calc_Engine736[[#This Row],[OAT]]))))) -> 0 | U154: =IF(tbl_Chiller_Calc_Engine736[[#This Row],[Hours]]=0,0,IF($I$115="Baseline Trend Data", IF(ISBLANK(tbl_Chiller_Calc_Engine736[[#This Row],[CWST (°F)]]),MEDIAN($I$117,$J$117,FORECAST(tbl_Chiller_Calc_Engine736[[#This Row],[Average WBT]],tbl_Chiller_Calc_Engine736[CWST (°F)],tbl_Chiller_Calc_Engine736[Average WBT])),tbl_Chiller_Calc_Engine736[[#This Row],[CWST (°F)]]),IF($I$115="Proposed Trend Data", IF(ISBLANK(tbl_Chiller_Calc_Engine736[[#This Row],[CWST (°F)]]),MEDIAN($I$117,$J$117,FORECAST(tbl_Chiller_Calc_Engine736[[#This Row],[Average WBT]],tbl_Chiller_Calc_Engine736[CWST (°F)3],tbl_Chiller_Calc_Engine736[Average WBT])),tbl_Chiller_Calc_Engine736[[#This Row],[CWST (°F)3]]), MEDIAN($I$117,$J$117,TREND($I$117:$J$117,$I$118:$J$118,tbl_Chiller_Calc_Engine736[[#This Row],[Average WBT]]))))) -> 0 | V154: =IF(tbl_Chiller_Calc_Engine736[[#This Row],[Hours]]=0,0,IF($N$121="Baseline Trend Data",IF(ISBLANK(H154),FORECAST(C154,$H$138:$H$243,$C$138:$C$243),H154), IF($N$121 = "Proposed Trend Data",IF(ISBLANK(O154),FORECAST(C154,$O$138:$O$243,$C$138:$C$243),O154), IF(C154>=$N$131,MAX(TREND($N$122:$O$122,$N$123:$O$123,C154),0),0)))) -> 0 | W154: =IF(E154>0,V154*'Chilled Water System Template'!$C$131,0) -> 0 | X154: =IF(tbl_Chiller_Calc_Engine736[[#This Row],[Hours]]=0,0,IF($N$125="Baseline Trend Data",IF(ISBLANK(tbl_Chiller_Calc_Engine736[[#This Row],[SCHWP Speed]]),MEDIAN($N$127,$O$127,FORECAST(tbl_Chiller_Calc_Engine736[[#This Row],[OAT]],tbl_Chiller_Calc_Engine736[SCHWP Speed],tbl_Chiller_Calc_Engine736[OAT]))), IF($N$125="Proposed Trend Data",IF(ISBLANK(tbl_Chiller_Calc_Engine736[[#This Row],[SCHWP Speed3]]),MEDIAN($N$127,$O$127,FORECAST(tbl_Chiller_Calc_Engine736[[#This Row],[OAT]],tbl_Chiller_Calc_Engine736[SCHWP Speed3],tbl_Chiller_Calc_Engine736[OAT]))), MEDIAN($N$127,$O$127,TREND($N$127:$O$127,$N$128:$O$128,tbl_Chiller_Calc_Engine736[[#This Row],[OAT]]))))) -> 0 | Y154: =IF(tbl_Chiller_Calc_Engine736[[#This Row],[Hours]]=0,0,IF($I$125="Baseline Trend Data",IF(ISBLANK(tbl_Chiller_Calc_Engine736[[#This Row],['# CWP]]),MEDIAN($F$41,$G$41,FORECAST(tbl_Chiller_Calc_Engine736[[#This Row],[OAT]],tbl_Chiller_Calc_Engine736['# CWP],tbl_Chiller_Calc_Engine736[OAT]))), IF($I$125="Proposed Trend Data",IF(ISBLANK(tbl_Chiller_Calc_Engine736[[#This Row],['# CWP2]]),MEDIAN($F$41,$G$41,FORECAST(tbl_Chiller_Calc_Engine736[[#This Row],[OAT]],tbl_Chiller_Calc_Engine736['# CWP2],tbl_Chiller_Calc_Engine736[OAT]))), ROUNDUP(MEDIAN($F$41,$G$41,TREND($F$41:$G$41,$F$42:$G$42,tbl_Chiller_Calc_Engine736[[#This Row],[OAT]])),0)))) -> 0 | Z154: =IF(tbl_Chiller_Calc_Engine736[[#This Row],[Hours]]=0,0,IF($I$125="Baseline Trend Data",IF(ISBLANK(tbl_Chiller_Calc_Engine736[[#This Row],[CWP Speed]]),MEDIAN($I$127,$J$127,FORECAST(tbl_Chiller_Calc_Engine736[[#This Row],[OAT]],tbl_Chiller_Calc_Engine736[CWP Speed],tbl_Chiller_Calc_Engine736[OAT]))), IF($I$125="Proposed Trend Data",IF(ISBLANK(tbl_Chiller_Calc_Engine736[[#This Row],[CWP Speed2]]),MEDIAN($I$127,$J$127,FORECAST(tbl_Chiller_Calc_Engine736[[#This Row],[OAT]],tbl_Chiller_Calc_Engine736[CWP Speed2],tbl_Chiller_Calc_Engine736[OAT]))), MEDIAN($I$127,$J$127,TREND($I$127:$J$127,$I$128:$J$128,tbl_Chiller_Calc_Engine736[[#This Row],[OAT]]))))) -> 0 | AA154: 2 | AB154: =IF(tbl_Chiller_Calc_Engine736[[#This Row],[Hours]]=0,0,IF($I$120="Baseline Trend Data",IF(ISBLANK(tbl_Chiller_Calc_Engine736[[#This Row],[Head in ft]]),MEDIAN($I$122,$J$122,FORECAST(tbl_Chiller_Calc_Engine736[[#This Row],[OAT]],tbl_Chiller_Calc_Engine736[Head in ft],tbl_Chiller_Calc_Engine736[OAT]))), IF($I$120="Proposed Trend Data",IF(ISBLANK(tbl_Chiller_Calc_Engine736[[#This Row],[Head in ft2]]),MEDIAN($I$122,$J$122,FORECAST(tbl_Chiller_Calc_Engine736[[#This Row],[OAT]],tbl_Chiller_Calc_Engine736[Head in ft2],tbl_Chiller_Calc_Engine736[OAT]))), ROUNDUP(MEDIAN($I$122,$J$122,TREND($I$122:$J$122,$I$123:$J$123,tbl_Chiller_Calc_Engine736[[#This Row],[OAT]]))*2.31,0)))) -> 0 | AC154: FALSE | AD154: =IF(OR(tbl_Chiller_Calc_Engine736[[#This Row],[Cooling Load (tons)2]]=0,tbl_Chiller_Calc_Engine736[[#This Row],[Econ Engaged]]),0,MEDIAN(0,MAX($W$124:$W$130),IFERROR(MATCH(tbl_Chiller_Calc_Engine736[[#This Row],[Cooling Load (tons)2]],$X$124:$X$130,1),0)+1)) -> 0 | AE154: =IF(tbl_Chiller_Calc_Engine736[[#This Row],[CT Load (Tons)]]=0,0,IFERROR(MEDIAN(0,MAX($Q$124:$Q$130),IFERROR(MATCH(tbl_Chiller_Calc_Engine736[[#This Row],[CT Load (Tons)]],$R$124:$R$130,1),0)+1),0)) -> 0 | AF154: =IF(OR(tbl_Chiller_Calc_Engine736[[#This Row],[Econ Engaged]],tbl_Chiller_Calc_Engine736[[#This Row],[Hours]]=0),0,SUMPRODUCT(tbl_Chiller_Calc_Engine736[[#This Row],[Cooling Load (tons)2]]*INDEX($Z$124:$AB$130,tbl_Chiller_Calc_Engine736[[#This Row],[CH Stage]],0)*$Z$118:$AB$118*(1-((tbl_Chiller_Calc_Engine736[[#This Row],[CHWST (°F)]]-$Z$119:$AB$119)+($Z$120:$AB$120-tbl_Chiller_Calc_Engine736[[#This Row],[CWST (°F)2]]))*$C$127))) -> 0 | AG154: 0 | AH154: =IF(tbl_Chiller_Calc_Engine736[[#This Row],[CH Stage]]=0,0,SUMPRODUCT(INDEX($T$124:$V$130,tbl_Chiller_Calc_Engine736[[#This Row],[CT Stage]],0),$D$133:$F$133)) -> 0 | AI154: =tbl_Chiller_Calc_Engine736[[#This Row],[PCHWP kW]]*tbl_Chiller_Calc_Engine736[[#This Row],[Hours]] -> 0 | AJ154: =(tbl_Chiller_Calc_Engine736[[#This Row],[SCHWP Qty]]*$C$129*$H$24*tbl_Chiller_Calc_Engine736[[#This Row],[SCHWP Speed2]]*tbl_Chiller_Calc_Engine736[[#This Row],[SCHWP Head]])/ (3960*$H$26*$H$27*IF($N$129=$F$129,1,$C$128)) -> 0 | AK154: =tbl_Chiller_Calc_Engine736[[#This Row],[SCHWP kW]]*tbl_Chiller_Calc_Engine736[[#This Row],[Hours]] -> 0 | AL154: =SUM(tbl_Chiller_Calc_Engine736[[#This Row],[Chiller Load kW]],tbl_Chiller_Calc_Engine736[[#This Row],[PCHWP kW]],tbl_Chiller_Calc_Engine736[[#This Row],[SCHWP kW]]) -> 0 | AM154: =SUM(tbl_Chiller_Calc_Engine736[[#This Row],[Chiller Load kWh]],tbl_Chiller_Calc_Engine736[[#This Row],[PCHWP kWh]],tbl_Chiller_Calc_Engine736[[#This Row],[SCHWP kWh]]) -> 0 | AN154: =IF(tbl_Chiller_Calc_Engine736[[#This Row],[CT Stage]]=0,0,SUMPRODUCT((IF(tbl_Chiller_Calc_Engine736[[#This Row],[CT Load (Tons)]]/INDEX($R$124:$R$130,tbl_Chiller_Calc_Engine736[[#This Row],[CT Stage]],0)>=$T$120:$V$120,tbl_Chiller_Calc_Engine736[[#This Row],[CT Load (Tons)]]/INDEX($R$124:$R$130,tbl_Chiller_Calc_Engine736[[#This Row],[CT Stage]],0),$T$120:$V$120)^$C$130*$T$118:$V$118*$C$129)/($C$128*$T$119:$V$119))) -> 0 | AO154: =tbl_Chiller_Calc_Engine736[[#This Row],[CT Fan kW]]*tbl_Chiller_Calc_Engine736[[#This Row],[Hours]] -> 0 | AP154: =(tbl_Chiller_Calc_Engine736[[#This Row],[CWP Qty]]*$C$129*$D$40*tbl_Chiller_Calc_Engine736[[#This Row],[CWP Speed3]]*$D$41)/ (3960*$D$42*$D$43*IF($I$129=$F$129,1,$C$128)) -> 0 | AQ154: =tbl_Chiller_Calc_Engine736[[#This Row],[CWP kW]]*tbl_Chiller_Calc_Engine736[[#This Row],[Hours]] -> 0
C155: 98 | D155: =IFERROR(AVERAGEIF(tbl_Climate_Zone[Dry_Bulb],tbl_Chiller_Calc_Engine736[[#This Row],[OAT]],tbl_Climate_Zone[Wet_Bulb]),0) -> 0 | E155: =SUM( COUNTIFS(tbl_Climate_Zone[Dry_Bulb],C155,tbl_Climate_Zone[Weekday],$C$12,tbl_Climate_Zone[Hour],">"&$D$12,tbl_Climate_Zone[Hour],"<="&$E$12), COUNTIFS(tbl_Climate_Zone[Dry_Bulb],C155,tbl_Climate_Zone[Weekday],$C$13,tbl_Climate_Zone[Hour],">"&$D$13,tbl_Climate_Zone[Hour],"<="&$E$13), COUNTIFS(tbl_Climate_Zone[Dry_Bulb],C155,tbl_Climate_Zone[Weekday],$C$14,tbl_Climate_Zone[Hour],">"&$D$14,tbl_Climate_Zone[Hour],"<="&$E$14)) -> 0 | T155: =IF(tbl_Chiller_Calc_Engine736[[#This Row],[Hours]]=0,0,IF($N$115="Baseline Trend Data", IF(ISBLANK(tbl_Chiller_Calc_Engine736[[#This Row],[ CHWST (°F)]]),MEDIAN($N$117,$O$117,FORECAST(tbl_Chiller_Calc_Engine736[[#This Row],[OAT]],tbl_Chiller_Calc_Engine736[ CHWST (°F)],tbl_Chiller_Calc_Engine736[OAT])),tbl_Chiller_Calc_Engine736[[#This Row],[ CHWST (°F)]]),IF($N$115="Proposed Trend Data", IF(ISBLANK(tbl_Chiller_Calc_Engine736[[#This Row],[ CHWST (°F)]]),MEDIAN($N$117,$O$117,FORECAST(tbl_Chiller_Calc_Engine736[[#This Row],[OAT]],tbl_Chiller_Calc_Engine736[ CHWST (°F)2],tbl_Chiller_Calc_Engine736[OAT])),tbl_Chiller_Calc_Engine736[[#This Row],[ CHWST (°F)2]]), MEDIAN($N$117,$O$117,TREND($N$117:$O$117,$N$118:$O$118,tbl_Chiller_Calc_Engine736[[#This Row],[OAT]]))))) -> 0 | U155: =IF(tbl_Chiller_Calc_Engine736[[#This Row],[Hours]]=0,0,IF($I$115="Baseline Trend Data", IF(ISBLANK(tbl_Chiller_Calc_Engine736[[#This Row],[CWST (°F)]]),MEDIAN($I$117,$J$117,FORECAST(tbl_Chiller_Calc_Engine736[[#This Row],[Average WBT]],tbl_Chiller_Calc_Engine736[CWST (°F)],tbl_Chiller_Calc_Engine736[Average WBT])),tbl_Chiller_Calc_Engine736[[#This Row],[CWST (°F)]]),IF($I$115="Proposed Trend Data", IF(ISBLANK(tbl_Chiller_Calc_Engine736[[#This Row],[CWST (°F)]]),MEDIAN($I$117,$J$117,FORECAST(tbl_Chiller_Calc_Engine736[[#This Row],[Average WBT]],tbl_Chiller_Calc_Engine736[CWST (°F)3],tbl_Chiller_Calc_Engine736[Average WBT])),tbl_Chiller_Calc_Engine736[[#This Row],[CWST (°F)3]]), MEDIAN($I$117,$J$117,TREND($I$117:$J$117,$I$118:$J$118,tbl_Chiller_Calc_Engine736[[#This Row],[Average WBT]]))))) -> 0 | V155: =IF(tbl_Chiller_Calc_Engine736[[#This Row],[Hours]]=0,0,IF($N$121="Baseline Trend Data",IF(ISBLANK(H155),FORECAST(C155,$H$138:$H$243,$C$138:$C$243),H155), IF($N$121 = "Proposed Trend Data",IF(ISBLANK(O155),FORECAST(C155,$O$138:$O$243,$C$138:$C$243),O155), IF(C155>=$N$131,MAX(TREND($N$122:$O$122,$N$123:$O$123,C155),0),0)))) -> 0 | W155: =IF(E155>0,V155*'Chilled Water System Template'!$C$131,0) -> 0 | X155: =IF(tbl_Chiller_Calc_Engine736[[#This Row],[Hours]]=0,0,IF($N$125="Baseline Trend Data",IF(ISBLANK(tbl_Chiller_Calc_Engine736[[#This Row],[SCHWP Speed]]),MEDIAN($N$127,$O$127,FORECAST(tbl_Chiller_Calc_Engine736[[#This Row],[OAT]],tbl_Chiller_Calc_Engine736[SCHWP Speed],tbl_Chiller_Calc_Engine736[OAT]))), IF($N$125="Proposed Trend Data",IF(ISBLANK(tbl_Chiller_Calc_Engine736[[#This Row],[SCHWP Speed3]]),MEDIAN($N$127,$O$127,FORECAST(tbl_Chiller_Calc_Engine736[[#This Row],[OAT]],tbl_Chiller_Calc_Engine736[SCHWP Speed3],tbl_Chiller_Calc_Engine736[OAT]))), MEDIAN($N$127,$O$127,TREND($N$127:$O$127,$N$128:$O$128,tbl_Chiller_Calc_Engine736[[#This Row],[OAT]]))))) -> 0 | Y155: =IF(tbl_Chiller_Calc_Engine736[[#This Row],[Hours]]=0,0,IF($I$125="Baseline Trend Data",IF(ISBLANK(tbl_Chiller_Calc_Engine736[[#This Row],['# CWP]]),MEDIAN($F$41,$G$41,FORECAST(tbl_Chiller_Calc_Engine736[[#This Row],[OAT]],tbl_Chiller_Calc_Engine736['# CWP],tbl_Chiller_Calc_Engine736[OAT]))), IF($I$125="Proposed Trend Data",IF(ISBLANK(tbl_Chiller_Calc_Engine736[[#This Row],['# CWP2]]),MEDIAN($F$41,$G$41,FORECAST(tbl_Chiller_Calc_Engine736[[#This Row],[OAT]],tbl_Chiller_Calc_Engine736['# CWP2],tbl_Chiller_Calc_Engine736[OAT]))), ROUNDUP(MEDIAN($F$41,$G$41,TREND($F$41:$G$41,$F$42:$G$42,tbl_Chiller_Calc_Engine736[[#This Row],[OAT]])),0)))) -> 0 | Z155: =IF(tbl_Chiller_Calc_Engine736[[#This Row],[Hours]]=0,0,IF($I$125="Baseline Trend Data",IF(ISBLANK(tbl_Chiller_Calc_Engine736[[#This Row],[CWP Speed]]),MEDIAN($I$127,$J$127,FORECAST(tbl_Chiller_Calc_Engine736[[#This Row],[OAT]],tbl_Chiller_Calc_Engine736[CWP Speed],tbl_Chiller_Calc_Engine736[OAT]))), IF($I$125="Proposed Trend Data",IF(ISBLANK(tbl_Chiller_Calc_Engine736[[#This Row],[CWP Speed2]]),MEDIAN($I$127,$J$127,FORECAST(tbl_Chiller_Calc_Engine736[[#This Row],[OAT]],tbl_Chiller_Calc_Engine736[CWP Speed2],tbl_Chiller_Calc_Engine736[OAT]))), MEDIAN($I$127,$J$127,TREND($I$127:$J$127,$I$128:$J$128,tbl_Chiller_Calc_Engine736[[#This Row],[OAT]]))))) -> 0 | AA155: 2 | AB155: =IF(tbl_Chiller_Calc_Engine736[[#This Row],[Hours]]=0,0,IF($I$120="Baseline Trend Data",IF(ISBLANK(tbl_Chiller_Calc_Engine736[[#This Row],[Head in ft]]),MEDIAN($I$122,$J$122,FORECAST(tbl_Chiller_Calc_Engine736[[#This Row],[OAT]],tbl_Chiller_Calc_Engine736[Head in ft],tbl_Chiller_Calc_Engine736[OAT]))), IF($I$120="Proposed Trend Data",IF(ISBLANK(tbl_Chiller_Calc_Engine736[[#This Row],[Head in ft2]]),MEDIAN($I$122,$J$122,FORECAST(tbl_Chiller_Calc_Engine736[[#This Row],[OAT]],tbl_Chiller_Calc_Engine736[Head in ft2],tbl_Chiller_Calc_Engine736[OAT]))), ROUNDUP(MEDIAN($I$122,$J$122,TREND($I$122:$J$122,$I$123:$J$123,tbl_Chiller_Calc_Engine736[[#This Row],[OAT]]))*2.31,0)))) -> 0 | AC155: FALSE | AD155: =IF(OR(tbl_Chiller_Calc_Engine736[[#This Row],[Cooling Load (tons)2]]=0,tbl_Chiller_Calc_Engine736[[#This Row],[Econ Engaged]]),0,MEDIAN(0,MAX($W$124:$W$130),IFERROR(MATCH(tbl_Chiller_Calc_Engine736[[#This Row],[Cooling Load (tons)2]],$X$124:$X$130,1),0)+1)) -> 0 | AE155: =IF(tbl_Chiller_Calc_Engine736[[#This Row],[CT Load (Tons)]]=0,0,IFERROR(MEDIAN(0,MAX($Q$124:$Q$130),IFERROR(MATCH(tbl_Chiller_Calc_Engine736[[#This Row],[CT Load (Tons)]],$R$124:$R$130,1),0)+1),0)) -> 0 | AF155: =IF(OR(tbl_Chiller_Calc_Engine736[[#This Row],[Econ Engaged]],tbl_Chiller_Calc_Engine736[[#This Row],[Hours]]=0),0,SUMPRODUCT(tbl_Chiller_Calc_Engine736[[#This Row],[Cooling Load (tons)2]]*INDEX($Z$124:$AB$130,tbl_Chiller_Calc_Engine736[[#This Row],[CH Stage]],0)*$Z$118:$AB$118*(1-((tbl_Chiller_Calc_Engine736[[#This Row],[CHWST (°F)]]-$Z$119:$AB$119)+($Z$120:$AB$120-tbl_Chiller_Calc_Engine736[[#This Row],[CWST (°F)2]]))*$C$127))) -> 0 | AG155: 0 | AH155: =IF(tbl_Chiller_Calc_Engine736[[#This Row],[CH Stage]]=0,0,SUMPRODUCT(INDEX($T$124:$V$130,tbl_Chiller_Calc_Engine736[[#This Row],[CT Stage]],0),$D$133:$F$133)) -> 0 | AI155: =tbl_Chiller_Calc_Engine736[[#This Row],[PCHWP kW]]*tbl_Chiller_Calc_Engine736[[#This Row],[Hours]] -> 0 | AJ155: =(tbl_Chiller_Calc_Engine736[[#This Row],[SCHWP Qty]]*$C$129*$H$24*tbl_Chiller_Calc_Engine736[[#This Row],[SCHWP Speed2]]*tbl_Chiller_Calc_Engine736[[#This Row],[SCHWP Head]])/ (3960*$H$26*$H$27*IF($N$129=$F$129,1,$C$128)) -> 0 | AK155: =tbl_Chiller_Calc_Engine736[[#This Row],[SCHWP kW]]*tbl_Chiller_Calc_Engine736[[#This Row],[Hours]] -> 0 | AL155: =SUM(tbl_Chiller_Calc_Engine736[[#This Row],[Chiller Load kW]],tbl_Chiller_Calc_Engine736[[#This Row],[PCHWP kW]],tbl_Chiller_Calc_Engine736[[#This Row],[SCHWP kW]]) -> 0 | AM155: =SUM(tbl_Chiller_Calc_Engine736[[#This Row],[Chiller Load kWh]],tbl_Chiller_Calc_Engine736[[#This Row],[PCHWP kWh]],tbl_Chiller_Calc_Engine736[[#This Row],[SCHWP kWh]]) -> 0 | AN155: =IF(tbl_Chiller_Calc_Engine736[[#This Row],[CT Stage]]=0,0,SUMPRODUCT((IF(tbl_Chiller_Calc_Engine736[[#This Row],[CT Load (Tons)]]/INDEX($R$124:$R$130,tbl_Chiller_Calc_Engine736[[#This Row],[CT Stage]],0)>=$T$120:$V$120,tbl_Chiller_Calc_Engine736[[#This Row],[CT Load (Tons)]]/INDEX($R$124:$R$130,tbl_Chiller_Calc_Engine736[[#This Row],[CT Stage]],0),$T$120:$V$120)^$C$130*$T$118:$V$118*$C$129)/($C$128*$T$119:$V$119))) -> 0 | AO155: =tbl_Chiller_Calc_Engine736[[#This Row],[CT Fan kW]]*tbl_Chiller_Calc_Engine736[[#This Row],[Hours]] -> 0 | AP155: =(tbl_Chiller_Calc_Engine736[[#This Row],[CWP Qty]]*$C$129*$D$40*tbl_Chiller_Calc_Engine736[[#This Row],[CWP Speed3]]*$D$41)/ (3960*$D$42*$D$43*IF($I$129=$F$129,1,$C$128)) -> 0 | AQ155: =tbl_Chiller_Calc_Engine736[[#This Row],[CWP kW]]*tbl_Chiller_Calc_Engine736[[#This Row],[Hours]] -> 0
C156: 97 | D156: =IFERROR(AVERAGEIF(tbl_Climate_Zone[Dry_Bulb],tbl_Chiller_Calc_Engine736[[#This Row],[OAT]],tbl_Climate_Zone[Wet_Bulb]),0) -> 0 | E156: =SUM( COUNTIFS(tbl_Climate_Zone[Dry_Bulb],C156,tbl_Climate_Zone[Weekday],$C$12,tbl_Climate_Zone[Hour],">"&$D$12,tbl_Climate_Zone[Hour],"<="&$E$12), COUNTIFS(tbl_Climate_Zone[Dry_Bulb],C156,tbl_Climate_Zone[Weekday],$C$13,tbl_Climate_Zone[Hour],">"&$D$13,tbl_Climate_Zone[Hour],"<="&$E$13), COUNTIFS(tbl_Climate_Zone[Dry_Bulb],C156,tbl_Climate_Zone[Weekday],$C$14,tbl_Climate_Zone[Hour],">"&$D$14,tbl_Climate_Zone[Hour],"<="&$E$14)) -> 0 | T156: =IF(tbl_Chiller_Calc_Engine736[[#This Row],[Hours]]=0,0,IF($N$115="Baseline Trend Data", IF(ISBLANK(tbl_Chiller_Calc_Engine736[[#This Row],[ CHWST (°F)]]),MEDIAN($N$117,$O$117,FORECAST(tbl_Chiller_Calc_Engine736[[#This Row],[OAT]],tbl_Chiller_Calc_Engine736[ CHWST (°F)],tbl_Chiller_Calc_Engine736[OAT])),tbl_Chiller_Calc_Engine736[[#This Row],[ CHWST (°F)]]),IF($N$115="Proposed Trend Data", IF(ISBLANK(tbl_Chiller_Calc_Engine736[[#This Row],[ CHWST (°F)]]),MEDIAN($N$117,$O$117,FORECAST(tbl_Chiller_Calc_Engine736[[#This Row],[OAT]],tbl_Chiller_Calc_Engine736[ CHWST (°F)2],tbl_Chiller_Calc_Engine736[OAT])),tbl_Chiller_Calc_Engine736[[#This Row],[ CHWST (°F)2]]), MEDIAN($N$117,$O$117,TREND($N$117:$O$117,$N$118:$O$118,tbl_Chiller_Calc_Engine736[[#This Row],[OAT]]))))) -> 0 | U156: =IF(tbl_Chiller_Calc_Engine736[[#This Row],[Hours]]=0,0,IF($I$115="Baseline Trend Data", IF(ISBLANK(tbl_Chiller_Calc_Engine736[[#This Row],[CWST (°F)]]),MEDIAN($I$117,$J$117,FORECAST(tbl_Chiller_Calc_Engine736[[#This Row],[Average WBT]],tbl_Chiller_Calc_Engine736[CWST (°F)],tbl_Chiller_Calc_Engine736[Average WBT])),tbl_Chiller_Calc_Engine736[[#This Row],[CWST (°F)]]),IF($I$115="Proposed Trend Data", IF(ISBLANK(tbl_Chiller_Calc_Engine736[[#This Row],[CWST (°F)]]),MEDIAN($I$117,$J$117,FORECAST(tbl_Chiller_Calc_Engine736[[#This Row],[Average WBT]],tbl_Chiller_Calc_Engine736[CWST (°F)3],tbl_Chiller_Calc_Engine736[Average WBT])),tbl_Chiller_Calc_Engine736[[#This Row],[CWST (°F)3]]), MEDIAN($I$117,$J$117,TREND($I$117:$J$117,$I$118:$J$118,tbl_Chiller_Calc_Engine736[[#This Row],[Average WBT]]))))) -> 0 | V156: =IF(tbl_Chiller_Calc_Engine736[[#This Row],[Hours]]=0,0,IF($N$121="Baseline Trend Data",IF(ISBLANK(H156),FORECAST(C156,$H$138:$H$243,$C$138:$C$243),H156), IF($N$121 = "Proposed Trend Data",IF(ISBLANK(O156),FORECAST(C156,$O$138:$O$243,$C$138:$C$243),O156), IF(C156>=$N$131,MAX(TREND($N$122:$O$122,$N$123:$O$123,C156),0),0)))) -> 0 | W156: =IF(E156>0,V156*'Chilled Water System Template'!$C$131,0) -> 0 | X156: =IF(tbl_Chiller_Calc_Engine736[[#This Row],[Hours]]=0,0,IF($N$125="Baseline Trend Data",IF(ISBLANK(tbl_Chiller_Calc_Engine736[[#This Row],[SCHWP Speed]]),MEDIAN($N$127,$O$127,FORECAST(tbl_Chiller_Calc_Engine736[[#This Row],[OAT]],tbl_Chiller_Calc_Engine736[SCHWP Speed],tbl_Chiller_Calc_Engine736[OAT]))), IF($N$125="Proposed Trend Data",IF(ISBLANK(tbl_Chiller_Calc_Engine736[[#This Row],[SCHWP Speed3]]),MEDIAN($N$127,$O$127,FORECAST(tbl_Chiller_Calc_Engine736[[#This Row],[OAT]],tbl_Chiller_Calc_Engine736[SCHWP Speed3],tbl_Chiller_Calc_Engine736[OAT]))), MEDIAN($N$127,$O$127,TREND($N$127:$O$127,$N$128:$O$128,tbl_Chiller_Calc_Engine736[[#This Row],[OAT]]))))) -> 0 | Y156: =IF(tbl_Chiller_Calc_Engine736[[#This Row],[Hours]]=0,0,IF($I$125="Baseline Trend Data",IF(ISBLANK(tbl_Chiller_Calc_Engine736[[#This Row],['# CWP]]),MEDIAN($F$41,$G$41,FORECAST(tbl_Chiller_Calc_Engine736[[#This Row],[OAT]],tbl_Chiller_Calc_Engine736['# CWP],tbl_Chiller_Calc_Engine736[OAT]))), IF($I$125="Proposed Trend Data",IF(ISBLANK(tbl_Chiller_Calc_Engine736[[#This Row],['# CWP2]]),MEDIAN($F$41,$G$41,FORECAST(tbl_Chiller_Calc_Engine736[[#This Row],[OAT]],tbl_Chiller_Calc_Engine736['# CWP2],tbl_Chiller_Calc_Engine736[OAT]))), ROUNDUP(MEDIAN($F$41,$G$41,TREND($F$41:$G$41,$F$42:$G$42,tbl_Chiller_Calc_Engine736[[#This Row],[OAT]])),0)))) -> 0 | Z156: =IF(tbl_Chiller_Calc_Engine736[[#This Row],[Hours]]=0,0,IF($I$125="Baseline Trend Data",IF(ISBLANK(tbl_Chiller_Calc_Engine736[[#This Row],[CWP Speed]]),MEDIAN($I$127,$J$127,FORECAST(tbl_Chiller_Calc_Engine736[[#This Row],[OAT]],tbl_Chiller_Calc_Engine736[CWP Speed],tbl_Chiller_Calc_Engine736[OAT]))), IF($I$125="Proposed Trend Data",IF(ISBLANK(tbl_Chiller_Calc_Engine736[[#This Row],[CWP Speed2]]),MEDIAN($I$127,$J$127,FORECAST(tbl_Chiller_Calc_Engine736[[#This Row],[OAT]],tbl_Chiller_Calc_Engine736[CWP Speed2],tbl_Chiller_Calc_Engine736[OAT]))), MEDIAN($I$127,$J$127,TREND($I$127:$J$127,$I$128:$J$128,tbl_Chiller_Calc_Engine736[[#This Row],[OAT]]))))) -> 0 | AA156: 2 | AB156: =IF(tbl_Chiller_Calc_Engine736[[#This Row],[Hours]]=0,0,IF($I$120="Baseline Trend Data",IF(ISBLANK(tbl_Chiller_Calc_Engine736[[#This Row],[Head in ft]]),MEDIAN($I$122,$J$122,FORECAST(tbl_Chiller_Calc_Engine736[[#This Row],[OAT]],tbl_Chiller_Calc_Engine736[Head in ft],tbl_Chiller_Calc_Engine736[OAT]))), IF($I$120="Proposed Trend Data",IF(ISBLANK(tbl_Chiller_Calc_Engine736[[#This Row],[Head in ft2]]),MEDIAN($I$122,$J$122,FORECAST(tbl_Chiller_Calc_Engine736[[#This Row],[OAT]],tbl_Chiller_Calc_Engine736[Head in ft2],tbl_Chiller_Calc_Engine736[OAT]))), ROUNDUP(MEDIAN($I$122,$J$122,TREND($I$122:$J$122,$I$123:$J$123,tbl_Chiller_Calc_Engine736[[#This Row],[OAT]]))*2.31,0)))) -> 0 | AC156: FALSE | AD156: =IF(OR(tbl_Chiller_Calc_Engine736[[#This Row],[Cooling Load (tons)2]]=0,tbl_Chiller_Calc_Engine736[[#This Row],[Econ Engaged]]),0,MEDIAN(0,MAX($W$124:$W$130),IFERROR(MATCH(tbl_Chiller_Calc_Engine736[[#This Row],[Cooling Load (tons)2]],$X$124:$X$130,1),0)+1)) -> 0 | AE156: =IF(tbl_Chiller_Calc_Engine736[[#This Row],[CT Load (Tons)]]=0,0,IFERROR(MEDIAN(0,MAX($Q$124:$Q$130),IFERROR(MATCH(tbl_Chiller_Calc_Engine736[[#This Row],[CT Load (Tons)]],$R$124:$R$130,1),0)+1),0)) -> 0 | AF156: =IF(OR(tbl_Chiller_Calc_Engine736[[#This Row],[Econ Engaged]],tbl_Chiller_Calc_Engine736[[#This Row],[Hours]]=0),0,SUMPRODUCT(tbl_Chiller_Calc_Engine736[[#This Row],[Cooling Load (tons)2]]*INDEX($Z$124:$AB$130,tbl_Chiller_Calc_Engine736[[#This Row],[CH Stage]],0)*$Z$118:$AB$118*(1-((tbl_Chiller_Calc_Engine736[[#This Row],[CHWST (°F)]]-$Z$119:$AB$119)+($Z$120:$AB$120-tbl_Chiller_Calc_Engine736[[#This Row],[CWST (°F)2]]))*$C$127))) -> 0 | AG156: 0 | AH156: =IF(tbl_Chiller_Calc_Engine736[[#This Row],[CH Stage]]=0,0,SUMPRODUCT(INDEX($T$124:$V$130,tbl_Chiller_Calc_Engine736[[#This Row],[CT Stage]],0),$D$133:$F$133)) -> 0 | AI156: =tbl_Chiller_Calc_Engine736[[#This Row],[PCHWP kW]]*tbl_Chiller_Calc_Engine736[[#This Row],[Hours]] -> 0 | AJ156: =(tbl_Chiller_Calc_Engine736[[#This Row],[SCHWP Qty]]*$C$129*$H$24*tbl_Chiller_Calc_Engine736[[#This Row],[SCHWP Speed2]]*tbl_Chiller_Calc_Engine736[[#This Row],[SCHWP Head]])/ (3960*$H$26*$H$27*IF($N$129=$F$129,1,$C$128)) -> 0 | AK156: =tbl_Chiller_Calc_Engine736[[#This Row],[SCHWP kW]]*tbl_Chiller_Calc_Engine736[[#This Row],[Hours]] -> 0 | AL156: =SUM(tbl_Chiller_Calc_Engine736[[#This Row],[Chiller Load kW]],tbl_Chiller_Calc_Engine736[[#This Row],[PCHWP kW]],tbl_Chiller_Calc_Engine736[[#This Row],[SCHWP kW]]) -> 0 | AM156: =SUM(tbl_Chiller_Calc_Engine736[[#This Row],[Chiller Load kWh]],tbl_Chiller_Calc_Engine736[[#This Row],[PCHWP kWh]],tbl_Chiller_Calc_Engine736[[#This Row],[SCHWP kWh]]) -> 0 | AN156: =IF(tbl_Chiller_Calc_Engine736[[#This Row],[CT Stage]]=0,0,SUMPRODUCT((IF(tbl_Chiller_Calc_Engine736[[#This Row],[CT Load (Tons)]]/INDEX($R$124:$R$130,tbl_Chiller_Calc_Engine736[[#This Row],[CT Stage]],0)>=$T$120:$V$120,tbl_Chiller_Calc_Engine736[[#This Row],[CT Load (Tons)]]/INDEX($R$124:$R$130,tbl_Chiller_Calc_Engine736[[#This Row],[CT Stage]],0),$T$120:$V$120)^$C$130*$T$118:$V$118*$C$129)/($C$128*$T$119:$V$119))) -> 0 | AO156: =tbl_Chiller_Calc_Engine736[[#This Row],[CT Fan kW]]*tbl_Chiller_Calc_Engine736[[#This Row],[Hours]] -> 0 | AP156: =(tbl_Chiller_Calc_Engine736[[#This Row],[CWP Qty]]*$C$129*$D$40*tbl_Chiller_Calc_Engine736[[#This Row],[CWP Speed3]]*$D$41)/ (3960*$D$42*$D$43*IF($I$129=$F$129,1,$C$128)) -> 0 | AQ156: =tbl_Chiller_Calc_Engine736[[#This Row],[CWP kW]]*tbl_Chiller_Calc_Engine736[[#This Row],[Hours]] -> 0
C157: 96 | D157: =IFERROR(AVERAGEIF(tbl_Climate_Zone[Dry_Bulb],tbl_Chiller_Calc_Engine736[[#This Row],[OAT]],tbl_Climate_Zone[Wet_Bulb]),0) -> 0 | E157: =SUM( COUNTIFS(tbl_Climate_Zone[Dry_Bulb],C157,tbl_Climate_Zone[Weekday],$C$12,tbl_Climate_Zone[Hour],">"&$D$12,tbl_Climate_Zone[Hour],"<="&$E$12), COUNTIFS(tbl_Climate_Zone[Dry_Bulb],C157,tbl_Climate_Zone[Weekday],$C$13,tbl_Climate_Zone[Hour],">"&$D$13,tbl_Climate_Zone[Hour],"<="&$E$13), COUNTIFS(tbl_Climate_Zone[Dry_Bulb],C157,tbl_Climate_Zone[Weekday],$C$14,tbl_Climate_Zone[Hour],">"&$D$14,tbl_Climate_Zone[Hour],"<="&$E$14)) -> 0 | T157: =IF(tbl_Chiller_Calc_Engine736[[#This Row],[Hours]]=0,0,IF($N$115="Baseline Trend Data", IF(ISBLANK(tbl_Chiller_Calc_Engine736[[#This Row],[ CHWST (°F)]]),MEDIAN($N$117,$O$117,FORECAST(tbl_Chiller_Calc_Engine736[[#This Row],[OAT]],tbl_Chiller_Calc_Engine736[ CHWST (°F)],tbl_Chiller_Calc_Engine736[OAT])),tbl_Chiller_Calc_Engine736[[#This Row],[ CHWST (°F)]]),IF($N$115="Proposed Trend Data", IF(ISBLANK(tbl_Chiller_Calc_Engine736[[#This Row],[ CHWST (°F)]]),MEDIAN($N$117,$O$117,FORECAST(tbl_Chiller_Calc_Engine736[[#This Row],[OAT]],tbl_Chiller_Calc_Engine736[ CHWST (°F)2],tbl_Chiller_Calc_Engine736[OAT])),tbl_Chiller_Calc_Engine736[[#This Row],[ CHWST (°F)2]]), MEDIAN($N$117,$O$117,TREND($N$117:$O$117,$N$118:$O$118,tbl_Chiller_Calc_Engine736[[#This Row],[OAT]]))))) -> 0 | U157: =IF(tbl_Chiller_Calc_Engine736[[#This Row],[Hours]]=0,0,IF($I$115="Baseline Trend Data", IF(ISBLANK(tbl_Chiller_Calc_Engine736[[#This Row],[CWST (°F)]]),MEDIAN($I$117,$J$117,FORECAST(tbl_Chiller_Calc_Engine736[[#This Row],[Average WBT]],tbl_Chiller_Calc_Engine736[CWST (°F)],tbl_Chiller_Calc_Engine736[Average WBT])),tbl_Chiller_Calc_Engine736[[#This Row],[CWST (°F)]]),IF($I$115="Proposed Trend Data", IF(ISBLANK(tbl_Chiller_Calc_Engine736[[#This Row],[CWST (°F)]]),MEDIAN($I$117,$J$117,FORECAST(tbl_Chiller_Calc_Engine736[[#This Row],[Average WBT]],tbl_Chiller_Calc_Engine736[CWST (°F)3],tbl_Chiller_Calc_Engine736[Average WBT])),tbl_Chiller_Calc_Engine736[[#This Row],[CWST (°F)3]]), MEDIAN($I$117,$J$117,TREND($I$117:$J$117,$I$118:$J$118,tbl_Chiller_Calc_Engine736[[#This Row],[Average WBT]]))))) -> 0 | V157: =IF(tbl_Chiller_Calc_Engine736[[#This Row],[Hours]]=0,0,IF($N$121="Baseline Trend Data",IF(ISBLANK(H157),FORECAST(C157,$H$138:$H$243,$C$138:$C$243),H157), IF($N$121 = "Proposed Trend Data",IF(ISBLANK(O157),FORECAST(C157,$O$138:$O$243,$C$138:$C$243),O157), IF(C157>=$N$131,MAX(TREND($N$122:$O$122,$N$123:$O$123,C157),0),0)))) -> 0 | W157: =IF(E157>0,V157*'Chilled Water System Template'!$C$131,0) -> 0 | X157: =IF(tbl_Chiller_Calc_Engine736[[#This Row],[Hours]]=0,0,IF($N$125="Baseline Trend Data",IF(ISBLANK(tbl_Chiller_Calc_Engine736[[#This Row],[SCHWP Speed]]),MEDIAN($N$127,$O$127,FORECAST(tbl_Chiller_Calc_Engine736[[#This Row],[OAT]],tbl_Chiller_Calc_Engine736[SCHWP Speed],tbl_Chiller_Calc_Engine736[OAT]))), IF($N$125="Proposed Trend Data",IF(ISBLANK(tbl_Chiller_Calc_Engine736[[#This Row],[SCHWP Speed3]]),MEDIAN($N$127,$O$127,FORECAST(tbl_Chiller_Calc_Engine736[[#This Row],[OAT]],tbl_Chiller_Calc_Engine736[SCHWP Speed3],tbl_Chiller_Calc_Engine736[OAT]))), MEDIAN($N$127,$O$127,TREND($N$127:$O$127,$N$128:$O$128,tbl_Chiller_Calc_Engine736[[#This Row],[OAT]]))))) -> 0 | Y157: =IF(tbl_Chiller_Calc_Engine736[[#This Row],[Hours]]=0,0,IF($I$125="Baseline Trend Data",IF(ISBLANK(tbl_Chiller_Calc_Engine736[[#This Row],['# CWP]]),MEDIAN($F$41,$G$41,FORECAST(tbl_Chiller_Calc_Engine736[[#This Row],[OAT]],tbl_Chiller_Calc_Engine736['# CWP],tbl_Chiller_Calc_Engine736[OAT]))), IF($I$125="Proposed Trend Data",IF(ISBLANK(tbl_Chiller_Calc_Engine736[[#This Row],['# CWP2]]),MEDIAN($F$41,$G$41,FORECAST(tbl_Chiller_Calc_Engine736[[#This Row],[OAT]],tbl_Chiller_Calc_Engine736['# CWP2],tbl_Chiller_Calc_Engine736[OAT]))), ROUNDUP(MEDIAN($F$41,$G$41,TREND($F$41:$G$41,$F$42:$G$42,tbl_Chiller_Calc_Engine736[[#This Row],[OAT]])),0)))) -> 0 | Z157: =IF(tbl_Chiller_Calc_Engine736[[#This Row],[Hours]]=0,0,IF($I$125="Baseline Trend Data",IF(ISBLANK(tbl_Chiller_Calc_Engine736[[#This Row],[CWP Speed]]),MEDIAN($I$127,$J$127,FORECAST(tbl_Chiller_Calc_Engine736[[#This Row],[OAT]],tbl_Chiller_Calc_Engine736[CWP Speed],tbl_Chiller_Calc_Engine736[OAT]))), IF($I$125="Proposed Trend Data",IF(ISBLANK(tbl_Chiller_Calc_Engine736[[#This Row],[CWP Speed2]]),MEDIAN($I$127,$J$127,FORECAST(tbl_Chiller_Calc_Engine736[[#This Row],[OAT]],tbl_Chiller_Calc_Engine736[CWP Speed2],tbl_Chiller_Calc_Engine736[OAT]))), MEDIAN($I$127,$J$127,TREND($I$127:$J$127,$I$128:$J$128,tbl_Chiller_Calc_Engine736[[#This Row],[OAT]]))))) -> 0 | AA157: 2 | AB157: =IF(tbl_Chiller_Calc_Engine736[[#This Row],[Hours]]=0,0,IF($I$120="Baseline Trend Data",IF(ISBLANK(tbl_Chiller_Calc_Engine736[[#This Row],[Head in ft]]),MEDIAN($I$122,$J$122,FORECAST(tbl_Chiller_Calc_Engine736[[#This Row],[OAT]],tbl_Chiller_Calc_Engine736[Head in ft],tbl_Chiller_Calc_Engine736[OAT]))), IF($I$120="Proposed Trend Data",IF(ISBLANK(tbl_Chiller_Calc_Engine736[[#This Row],[Head in ft2]]),MEDIAN($I$122,$J$122,FORECAST(tbl_Chiller_Calc_Engine736[[#This Row],[OAT]],tbl_Chiller_Calc_Engine736[Head in ft2],tbl_Chiller_Calc_Engine736[OAT]))), ROUNDUP(MEDIAN($I$122,$J$122,TREND($I$122:$J$122,$I$123:$J$123,tbl_Chiller_Calc_Engine736[[#This Row],[OAT]]))*2.31,0)))) -> 0 | AC157: FALSE | AD157: =IF(OR(tbl_Chiller_Calc_Engine736[[#This Row],[Cooling Load (tons)2]]=0,tbl_Chiller_Calc_Engine736[[#This Row],[Econ Engaged]]),0,MEDIAN(0,MAX($W$124:$W$130),IFERROR(MATCH(tbl_Chiller_Calc_Engine736[[#This Row],[Cooling Load (tons)2]],$X$124:$X$130,1),0)+1)) -> 0 | AE157: =IF(tbl_Chiller_Calc_Engine736[[#This Row],[CT Load (Tons)]]=0,0,IFERROR(MEDIAN(0,MAX($Q$124:$Q$130),IFERROR(MATCH(tbl_Chiller_Calc_Engine736[[#This Row],[CT Load (Tons)]],$R$124:$R$130,1),0)+1),0)) -> 0 | AF157: =IF(OR(tbl_Chiller_Calc_Engine736[[#This Row],[Econ Engaged]],tbl_Chiller_Calc_Engine736[[#This Row],[Hours]]=0),0,SUMPRODUCT(tbl_Chiller_Calc_Engine736[[#This Row],[Cooling Load (tons)2]]*INDEX($Z$124:$AB$130,tbl_Chiller_Calc_Engine736[[#This Row],[CH Stage]],0)*$Z$118:$AB$118*(1-((tbl_Chiller_Calc_Engine736[[#This Row],[CHWST (°F)]]-$Z$119:$AB$119)+($Z$120:$AB$120-tbl_Chiller_Calc_Engine736[[#This Row],[CWST (°F)2]]))*$C$127))) -> 0 | AG157: 0 | AH157: =IF(tbl_Chiller_Calc_Engine736[[#This Row],[CH Stage]]=0,0,SUMPRODUCT(INDEX($T$124:$V$130,tbl_Chiller_Calc_Engine736[[#This Row],[CT Stage]],0),$D$133:$F$133)) -> 0 | AI157: =tbl_Chiller_Calc_Engine736[[#This Row],[PCHWP kW]]*tbl_Chiller_Calc_Engine736[[#This Row],[Hours]] -> 0 | AJ157: =(tbl_Chiller_Calc_Engine736[[#This Row],[SCHWP Qty]]*$C$129*$H$24*tbl_Chiller_Calc_Engine736[[#This Row],[SCHWP Speed2]]*tbl_Chiller_Calc_Engine736[[#This Row],[SCHWP Head]])/ (3960*$H$26*$H$27*IF($N$129=$F$129,1,$C$128)) -> 0 | AK157: =tbl_Chiller_Calc_Engine736[[#This Row],[SCHWP kW]]*tbl_Chiller_Calc_Engine736[[#This Row],[Hours]] -> 0 | AL157: =SUM(tbl_Chiller_Calc_Engine736[[#This Row],[Chiller Load kW]],tbl_Chiller_Calc_Engine736[[#This Row],[PCHWP kW]],tbl_Chiller_Calc_Engine736[[#This Row],[SCHWP kW]]) -> 0 | AM157: =SUM(tbl_Chiller_Calc_Engine736[[#This Row],[Chiller Load kWh]],tbl_Chiller_Calc_Engine736[[#This Row],[PCHWP kWh]],tbl_Chiller_Calc_Engine736[[#This Row],[SCHWP kWh]]) -> 0 | AN157: =IF(tbl_Chiller_Calc_Engine736[[#This Row],[CT Stage]]=0,0,SUMPRODUCT((IF(tbl_Chiller_Calc_Engine736[[#This Row],[CT Load (Tons)]]/INDEX($R$124:$R$130,tbl_Chiller_Calc_Engine736[[#This Row],[CT Stage]],0)>=$T$120:$V$120,tbl_Chiller_Calc_Engine736[[#This Row],[CT Load (Tons)]]/INDEX($R$124:$R$130,tbl_Chiller_Calc_Engine736[[#This Row],[CT Stage]],0),$T$120:$V$120)^$C$130*$T$118:$V$118*$C$129)/($C$128*$T$119:$V$119))) -> 0 | AO157: =tbl_Chiller_Calc_Engine736[[#This Row],[CT Fan kW]]*tbl_Chiller_Calc_Engine736[[#This Row],[Hours]] -> 0 | AP157: =(tbl_Chiller_Calc_Engine736[[#This Row],[CWP Qty]]*$C$129*$D$40*tbl_Chiller_Calc_Engine736[[#This Row],[CWP Speed3]]*$D$41)/ (3960*$D$42*$D$43*IF($I$129=$F$129,1,$C$128)) -> 0 | AQ157: =tbl_Chiller_Calc_Engine736[[#This Row],[CWP kW]]*tbl_Chiller_Calc_Engine736[[#This Row],[Hours]] -> 0
C158: 95 | D158: =IFERROR(AVERAGEIF(tbl_Climate_Zone[Dry_Bulb],tbl_Chiller_Calc_Engine736[[#This Row],[OAT]],tbl_Climate_Zone[Wet_Bulb]),0) -> 0 | E158: =SUM( COUNTIFS(tbl_Climate_Zone[Dry_Bulb],C158,tbl_Climate_Zone[Weekday],$C$12,tbl_Climate_Zone[Hour],">"&$D$12,tbl_Climate_Zone[Hour],"<="&$E$12), COUNTIFS(tbl_Climate_Zone[Dry_Bulb],C158,tbl_Climate_Zone[Weekday],$C$13,tbl_Climate_Zone[Hour],">"&$D$13,tbl_Climate_Zone[Hour],"<="&$E$13), COUNTIFS(tbl_Climate_Zone[Dry_Bulb],C158,tbl_Climate_Zone[Weekday],$C$14,tbl_Climate_Zone[Hour],">"&$D$14,tbl_Climate_Zone[Hour],"<="&$E$14)) -> 0 | T158: =IF(tbl_Chiller_Calc_Engine736[[#This Row],[Hours]]=0,0,IF($N$115="Baseline Trend Data", IF(ISBLANK(tbl_Chiller_Calc_Engine736[[#This Row],[ CHWST (°F)]]),MEDIAN($N$117,$O$117,FORECAST(tbl_Chiller_Calc_Engine736[[#This Row],[OAT]],tbl_Chiller_Calc_Engine736[ CHWST (°F)],tbl_Chiller_Calc_Engine736[OAT])),tbl_Chiller_Calc_Engine736[[#This Row],[ CHWST (°F)]]),IF($N$115="Proposed Trend Data", IF(ISBLANK(tbl_Chiller_Calc_Engine736[[#This Row],[ CHWST (°F)]]),MEDIAN($N$117,$O$117,FORECAST(tbl_Chiller_Calc_Engine736[[#This Row],[OAT]],tbl_Chiller_Calc_Engine736[ CHWST (°F)2],tbl_Chiller_Calc_Engine736[OAT])),tbl_Chiller_Calc_Engine736[[#This Row],[ CHWST (°F)2]]), MEDIAN($N$117,$O$117,TREND($N$117:$O$117,$N$118:$O$118,tbl_Chiller_Calc_Engine736[[#This Row],[OAT]]))))) -> 0 | U158: =IF(tbl_Chiller_Calc_Engine736[[#This Row],[Hours]]=0,0,IF($I$115="Baseline Trend Data", IF(ISBLANK(tbl_Chiller_Calc_Engine736[[#This Row],[CWST (°F)]]),MEDIAN($I$117,$J$117,FORECAST(tbl_Chiller_Calc_Engine736[[#This Row],[Average WBT]],tbl_Chiller_Calc_Engine736[CWST (°F)],tbl_Chiller_Calc_Engine736[Average WBT])),tbl_Chiller_Calc_Engine736[[#This Row],[CWST (°F)]]),IF($I$115="Proposed Trend Data", IF(ISBLANK(tbl_Chiller_Calc_Engine736[[#This Row],[CWST (°F)]]),MEDIAN($I$117,$J$117,FORECAST(tbl_Chiller_Calc_Engine736[[#This Row],[Average WBT]],tbl_Chiller_Calc_Engine736[CWST (°F)3],tbl_Chiller_Calc_Engine736[Average WBT])),tbl_Chiller_Calc_Engine736[[#This Row],[CWST (°F)3]]), MEDIAN($I$117,$J$117,TREND($I$117:$J$117,$I$118:$J$118,tbl_Chiller_Calc_Engine736[[#This Row],[Average WBT]]))))) -> 0 | V158: =IF(tbl_Chiller_Calc_Engine736[[#This Row],[Hours]]=0,0,IF($N$121="Baseline Trend Data",IF(ISBLANK(H158),FORECAST(C158,$H$138:$H$243,$C$138:$C$243),H158), IF($N$121 = "Proposed Trend Data",IF(ISBLANK(O158),FORECAST(C158,$O$138:$O$243,$C$138:$C$243),O158), IF(C158>=$N$131,MAX(TREND($N$122:$O$122,$N$123:$O$123,C158),0),0)))) -> 0 | W158: =IF(E158>0,V158*'Chilled Water System Template'!$C$131,0) -> 0 | X158: =IF(tbl_Chiller_Calc_Engine736[[#This Row],[Hours]]=0,0,IF($N$125="Baseline Trend Data",IF(ISBLANK(tbl_Chiller_Calc_Engine736[[#This Row],[SCHWP Speed]]),MEDIAN($N$127,$O$127,FORECAST(tbl_Chiller_Calc_Engine736[[#This Row],[OAT]],tbl_Chiller_Calc_Engine736[SCHWP Speed],tbl_Chiller_Calc_Engine736[OAT]))), IF($N$125="Proposed Trend Data",IF(ISBLANK(tbl_Chiller_Calc_Engine736[[#This Row],[SCHWP Speed3]]),MEDIAN($N$127,$O$127,FORECAST(tbl_Chiller_Calc_Engine736[[#This Row],[OAT]],tbl_Chiller_Calc_Engine736[SCHWP Speed3],tbl_Chiller_Calc_Engine736[OAT]))), MEDIAN($N$127,$O$127,TREND($N$127:$O$127,$N$128:$O$128,tbl_Chiller_Calc_Engine736[[#This Row],[OAT]]))))) -> 0 | Y158: =IF(tbl_Chiller_Calc_Engine736[[#This Row],[Hours]]=0,0,IF($I$125="Baseline Trend Data",IF(ISBLANK(tbl_Chiller_Calc_Engine736[[#This Row],['# CWP]]),MEDIAN($F$41,$G$41,FORECAST(tbl_Chiller_Calc_Engine736[[#This Row],[OAT]],tbl_Chiller_Calc_Engine736['# CWP],tbl_Chiller_Calc_Engine736[OAT]))), IF($I$125="Proposed Trend Data",IF(ISBLANK(tbl_Chiller_Calc_Engine736[[#This Row],['# CWP2]]),MEDIAN($F$41,$G$41,FORECAST(tbl_Chiller_Calc_Engine736[[#This Row],[OAT]],tbl_Chiller_Calc_Engine736['# CWP2],tbl_Chiller_Calc_Engine736[OAT]))), ROUNDUP(MEDIAN($F$41,$G$41,TREND($F$41:$G$41,$F$42:$G$42,tbl_Chiller_Calc_Engine736[[#This Row],[OAT]])),0)))) -> 0 | Z158: =IF(tbl_Chiller_Calc_Engine736[[#This Row],[Hours]]=0,0,IF($I$125="Baseline Trend Data",IF(ISBLANK(tbl_Chiller_Calc_Engine736[[#This Row],[CWP Speed]]),MEDIAN($I$127,$J$127,FORECAST(tbl_Chiller_Calc_Engine736[[#This Row],[OAT]],tbl_Chiller_Calc_Engine736[CWP Speed],tbl_Chiller_Calc_Engine736[OAT]))), IF($I$125="Proposed Trend Data",IF(ISBLANK(tbl_Chiller_Calc_Engine736[[#This Row],[CWP Speed2]]),MEDIAN($I$127,$J$127,FORECAST(tbl_Chiller_Calc_Engine736[[#This Row],[OAT]],tbl_Chiller_Calc_Engine736[CWP Speed2],tbl_Chiller_Calc_Engine736[OAT]))), MEDIAN($I$127,$J$127,TREND($I$127:$J$127,$I$128:$J$128,tbl_Chiller_Calc_Engine736[[#This Row],[OAT]]))))) -> 0 | AA158: 2 | AB158: =IF(tbl_Chiller_Calc_Engine736[[#This Row],[Hours]]=0,0,IF($I$120="Baseline Trend Data",IF(ISBLANK(tbl_Chiller_Calc_Engine736[[#This Row],[Head in ft]]),MEDIAN($I$122,$J$122,FORECAST(tbl_Chiller_Calc_Engine736[[#This Row],[OAT]],tbl_Chiller_Calc_Engine736[Head in ft],tbl_Chiller_Calc_Engine736[OAT]))), IF($I$120="Proposed Trend Data",IF(ISBLANK(tbl_Chiller_Calc_Engine736[[#This Row],[Head in ft2]]),MEDIAN($I$122,$J$122,FORECAST(tbl_Chiller_Calc_Engine736[[#This Row],[OAT]],tbl_Chiller_Calc_Engine736[Head in ft2],tbl_Chiller_Calc_Engine736[OAT]))), ROUNDUP(MEDIAN($I$122,$J$122,TREND($I$122:$J$122,$I$123:$J$123,tbl_Chiller_Calc_Engine736[[#This Row],[OAT]]))*2.31,0)))) -> 0 | AC158: FALSE | AD158: =IF(OR(tbl_Chiller_Calc_Engine736[[#This Row],[Cooling Load (tons)2]]=0,tbl_Chiller_Calc_Engine736[[#This Row],[Econ Engaged]]),0,MEDIAN(0,MAX($W$124:$W$130),IFERROR(MATCH(tbl_Chiller_Calc_Engine736[[#This Row],[Cooling Load (tons)2]],$X$124:$X$130,1),0)+1)) -> 0 | AE158: =IF(tbl_Chiller_Calc_Engine736[[#This Row],[CT Load (Tons)]]=0,0,IFERROR(MEDIAN(0,MAX($Q$124:$Q$130),IFERROR(MATCH(tbl_Chiller_Calc_Engine736[[#This Row],[CT Load (Tons)]],$R$124:$R$130,1),0)+1),0)) -> 0 | AF158: =IF(OR(tbl_Chiller_Calc_Engine736[[#This Row],[Econ Engaged]],tbl_Chiller_Calc_Engine736[[#This Row],[Hours]]=0),0,SUMPRODUCT(tbl_Chiller_Calc_Engine736[[#This Row],[Cooling Load (tons)2]]*INDEX($Z$124:$AB$130,tbl_Chiller_Calc_Engine736[[#This Row],[CH Stage]],0)*$Z$118:$AB$118*(1-((tbl_Chiller_Calc_Engine736[[#This Row],[CHWST (°F)]]-$Z$119:$AB$119)+($Z$120:$AB$120-tbl_Chiller_Calc_Engine736[[#This Row],[CWST (°F)2]]))*$C$127))) -> 0 | AG158: 0 | AH158: =IF(tbl_Chiller_Calc_Engine736[[#This Row],[CH Stage]]=0,0,SUMPRODUCT(INDEX($T$124:$V$130,tbl_Chiller_Calc_Engine736[[#This Row],[CT Stage]],0),$D$133:$F$133)) -> 0 | AI158: =tbl_Chiller_Calc_Engine736[[#This Row],[PCHWP kW]]*tbl_Chiller_Calc_Engine736[[#This Row],[Hours]] -> 0 | AJ158: =(tbl_Chiller_Calc_Engine736[[#This Row],[SCHWP Qty]]*$C$129*$H$24*tbl_Chiller_Calc_Engine736[[#This Row],[SCHWP Speed2]]*tbl_Chiller_Calc_Engine736[[#This Row],[SCHWP Head]])/ (3960*$H$26*$H$27*IF($N$129=$F$129,1,$C$128)) -> 0 | AK158: =tbl_Chiller_Calc_Engine736[[#This Row],[SCHWP kW]]*tbl_Chiller_Calc_Engine736[[#This Row],[Hours]] -> 0 | AL158: =SUM(tbl_Chiller_Calc_Engine736[[#This Row],[Chiller Load kW]],tbl_Chiller_Calc_Engine736[[#This Row],[PCHWP kW]],tbl_Chiller_Calc_Engine736[[#This Row],[SCHWP kW]]) -> 0 | AM158: =SUM(tbl_Chiller_Calc_Engine736[[#This Row],[Chiller Load kWh]],tbl_Chiller_Calc_Engine736[[#This Row],[PCHWP kWh]],tbl_Chiller_Calc_Engine736[[#This Row],[SCHWP kWh]]) -> 0 | AN158: =IF(tbl_Chiller_Calc_Engine736[[#This Row],[CT Stage]]=0,0,SUMPRODUCT((IF(tbl_Chiller_Calc_Engine736[[#This Row],[CT Load (Tons)]]/INDEX($R$124:$R$130,tbl_Chiller_Calc_Engine736[[#This Row],[CT Stage]],0)>=$T$120:$V$120,tbl_Chiller_Calc_Engine736[[#This Row],[CT Load (Tons)]]/INDEX($R$124:$R$130,tbl_Chiller_Calc_Engine736[[#This Row],[CT Stage]],0),$T$120:$V$120)^$C$130*$T$118:$V$118*$C$129)/($C$128*$T$119:$V$119))) -> 0 | AO158: =tbl_Chiller_Calc_Engine736[[#This Row],[CT Fan kW]]*tbl_Chiller_Calc_Engine736[[#This Row],[Hours]] -> 0 | AP158: =(tbl_Chiller_Calc_Engine736[[#This Row],[CWP Qty]]*$C$129*$D$40*tbl_Chiller_Calc_Engine736[[#This Row],[CWP Speed3]]*$D$41)/ (3960*$D$42*$D$43*IF($I$129=$F$129,1,$C$128)) -> 0 | AQ158: =tbl_Chiller_Calc_Engine736[[#This Row],[CWP kW]]*tbl_Chiller_Calc_Engine736[[#This Row],[Hours]] -> 0
C159: 94 | D159: =IFERROR(AVERAGEIF(tbl_Climate_Zone[Dry_Bulb],tbl_Chiller_Calc_Engine736[[#This Row],[OAT]],tbl_Climate_Zone[Wet_Bulb]),0) -> 0 | E159: =SUM( COUNTIFS(tbl_Climate_Zone[Dry_Bulb],C159,tbl_Climate_Zone[Weekday],$C$12,tbl_Climate_Zone[Hour],">"&$D$12,tbl_Climate_Zone[Hour],"<="&$E$12), COUNTIFS(tbl_Climate_Zone[Dry_Bulb],C159,tbl_Climate_Zone[Weekday],$C$13,tbl_Climate_Zone[Hour],">"&$D$13,tbl_Climate_Zone[Hour],"<="&$E$13), COUNTIFS(tbl_Climate_Zone[Dry_Bulb],C159,tbl_Climate_Zone[Weekday],$C$14,tbl_Climate_Zone[Hour],">"&$D$14,tbl_Climate_Zone[Hour],"<="&$E$14)) -> 0 | T159: =IF(tbl_Chiller_Calc_Engine736[[#This Row],[Hours]]=0,0,IF($N$115="Baseline Trend Data", IF(ISBLANK(tbl_Chiller_Calc_Engine736[[#This Row],[ CHWST (°F)]]),MEDIAN($N$117,$O$117,FORECAST(tbl_Chiller_Calc_Engine736[[#This Row],[OAT]],tbl_Chiller_Calc_Engine736[ CHWST (°F)],tbl_Chiller_Calc_Engine736[OAT])),tbl_Chiller_Calc_Engine736[[#This Row],[ CHWST (°F)]]),IF($N$115="Proposed Trend Data", IF(ISBLANK(tbl_Chiller_Calc_Engine736[[#This Row],[ CHWST (°F)]]),MEDIAN($N$117,$O$117,FORECAST(tbl_Chiller_Calc_Engine736[[#This Row],[OAT]],tbl_Chiller_Calc_Engine736[ CHWST (°F)2],tbl_Chiller_Calc_Engine736[OAT])),tbl_Chiller_Calc_Engine736[[#This Row],[ CHWST (°F)2]]), MEDIAN($N$117,$O$117,TREND($N$117:$O$117,$N$118:$O$118,tbl_Chiller_Calc_Engine736[[#This Row],[OAT]]))))) -> 0 | U159: =IF(tbl_Chiller_Calc_Engine736[[#This Row],[Hours]]=0,0,IF($I$115="Baseline Trend Data", IF(ISBLANK(tbl_Chiller_Calc_Engine736[[#This Row],[CWST (°F)]]),MEDIAN($I$117,$J$117,FORECAST(tbl_Chiller_Calc_Engine736[[#This Row],[Average WBT]],tbl_Chiller_Calc_Engine736[CWST (°F)],tbl_Chiller_Calc_Engine736[Average WBT])),tbl_Chiller_Calc_Engine736[[#This Row],[CWST (°F)]]),IF($I$115="Proposed Trend Data", IF(ISBLANK(tbl_Chiller_Calc_Engine736[[#This Row],[CWST (°F)]]),MEDIAN($I$117,$J$117,FORECAST(tbl_Chiller_Calc_Engine736[[#This Row],[Average WBT]],tbl_Chiller_Calc_Engine736[CWST (°F)3],tbl_Chiller_Calc_Engine736[Average WBT])),tbl_Chiller_Calc_Engine736[[#This Row],[CWST (°F)3]]), MEDIAN($I$117,$J$117,TREND($I$117:$J$117,$I$118:$J$118,tbl_Chiller_Calc_Engine736[[#This Row],[Average WBT]]))))) -> 0 | V159: =IF(tbl_Chiller_Calc_Engine736[[#This Row],[Hours]]=0,0,IF($N$121="Baseline Trend Data",IF(ISBLANK(H159),FORECAST(C159,$H$138:$H$243,$C$138:$C$243),H159), IF($N$121 = "Proposed Trend Data",IF(ISBLANK(O159),FORECAST(C159,$O$138:$O$243,$C$138:$C$243),O159), IF(C159>=$N$131,MAX(TREND($N$122:$O$122,$N$123:$O$123,C159),0),0)))) -> 0 | W159: =IF(E159>0,V159*'Chilled Water System Template'!$C$131,0) -> 0 | X159: =IF(tbl_Chiller_Calc_Engine736[[#This Row],[Hours]]=0,0,IF($N$125="Baseline Trend Data",IF(ISBLANK(tbl_Chiller_Calc_Engine736[[#This Row],[SCHWP Speed]]),MEDIAN($N$127,$O$127,FORECAST(tbl_Chiller_Calc_Engine736[[#This Row],[OAT]],tbl_Chiller_Calc_Engine736[SCHWP Speed],tbl_Chiller_Calc_Engine736[OAT]))), IF($N$125="Proposed Trend Data",IF(ISBLANK(tbl_Chiller_Calc_Engine736[[#This Row],[SCHWP Speed3]]),MEDIAN($N$127,$O$127,FORECAST(tbl_Chiller_Calc_Engine736[[#This Row],[OAT]],tbl_Chiller_Calc_Engine736[SCHWP Speed3],tbl_Chiller_Calc_Engine736[OAT]))), MEDIAN($N$127,$O$127,TREND($N$127:$O$127,$N$128:$O$128,tbl_Chiller_Calc_Engine736[[#This Row],[OAT]]))))) -> 0 | Y159: =IF(tbl_Chiller_Calc_Engine736[[#This Row],[Hours]]=0,0,IF($I$125="Baseline Trend Data",IF(ISBLANK(tbl_Chiller_Calc_Engine736[[#This Row],['# CWP]]),MEDIAN($F$41,$G$41,FORECAST(tbl_Chiller_Calc_Engine736[[#This Row],[OAT]],tbl_Chiller_Calc_Engine736['# CWP],tbl_Chiller_Calc_Engine736[OAT]))), IF($I$125="Proposed Trend Data",IF(ISBLANK(tbl_Chiller_Calc_Engine736[[#This Row],['# CWP2]]),MEDIAN($F$41,$G$41,FORECAST(tbl_Chiller_Calc_Engine736[[#This Row],[OAT]],tbl_Chiller_Calc_Engine736['# CWP2],tbl_Chiller_Calc_Engine736[OAT]))), ROUNDUP(MEDIAN($F$41,$G$41,TREND($F$41:$G$41,$F$42:$G$42,tbl_Chiller_Calc_Engine736[[#This Row],[OAT]])),0)))) -> 0 | Z159: =IF(tbl_Chiller_Calc_Engine736[[#This Row],[Hours]]=0,0,IF($I$125="Baseline Trend Data",IF(ISBLANK(tbl_Chiller_Calc_Engine736[[#This Row],[CWP Speed]]),MEDIAN($I$127,$J$127,FORECAST(tbl_Chiller_Calc_Engine736[[#This Row],[OAT]],tbl_Chiller_Calc_Engine736[CWP Speed],tbl_Chiller_Calc_Engine736[OAT]))), IF($I$125="Proposed Trend Data",IF(ISBLANK(tbl_Chiller_Calc_Engine736[[#This Row],[CWP Speed2]]),MEDIAN($I$127,$J$127,FORECAST(tbl_Chiller_Calc_Engine736[[#This Row],[OAT]],tbl_Chiller_Calc_Engine736[CWP Speed2],tbl_Chiller_Calc_Engine736[OAT]))), MEDIAN($I$127,$J$127,TREND($I$127:$J$127,$I$128:$J$128,tbl_Chiller_Calc_Engine736[[#This Row],[OAT]]))))) -> 0 | AA159: 2 | AB159: =IF(tbl_Chiller_Calc_Engine736[[#This Row],[Hours]]=0,0,IF($I$120="Baseline Trend Data",IF(ISBLANK(tbl_Chiller_Calc_Engine736[[#This Row],[Head in ft]]),MEDIAN($I$122,$J$122,FORECAST(tbl_Chiller_Calc_Engine736[[#This Row],[OAT]],tbl_Chiller_Calc_Engine736[Head in ft],tbl_Chiller_Calc_Engine736[OAT]))), IF($I$120="Proposed Trend Data",IF(ISBLANK(tbl_Chiller_Calc_Engine736[[#This Row],[Head in ft2]]),MEDIAN($I$122,$J$122,FORECAST(tbl_Chiller_Calc_Engine736[[#This Row],[OAT]],tbl_Chiller_Calc_Engine736[Head in ft2],tbl_Chiller_Calc_Engine736[OAT]))), ROUNDUP(MEDIAN($I$122,$J$122,TREND($I$122:$J$122,$I$123:$J$123,tbl_Chiller_Calc_Engine736[[#This Row],[OAT]]))*2.31,0)))) -> 0 | AC159: FALSE | AD159: =IF(OR(tbl_Chiller_Calc_Engine736[[#This Row],[Cooling Load (tons)2]]=0,tbl_Chiller_Calc_Engine736[[#This Row],[Econ Engaged]]),0,MEDIAN(0,MAX($W$124:$W$130),IFERROR(MATCH(tbl_Chiller_Calc_Engine736[[#This Row],[Cooling Load (tons)2]],$X$124:$X$130,1),0)+1)) -> 0 | AE159: =IF(tbl_Chiller_Calc_Engine736[[#This Row],[CT Load (Tons)]]=0,0,IFERROR(MEDIAN(0,MAX($Q$124:$Q$130),IFERROR(MATCH(tbl_Chiller_Calc_Engine736[[#This Row],[CT Load (Tons)]],$R$124:$R$130,1),0)+1),0)) -> 0 | AF159: =IF(OR(tbl_Chiller_Calc_Engine736[[#This Row],[Econ Engaged]],tbl_Chiller_Calc_Engine736[[#This Row],[Hours]]=0),0,SUMPRODUCT(tbl_Chiller_Calc_Engine736[[#This Row],[Cooling Load (tons)2]]*INDEX($Z$124:$AB$130,tbl_Chiller_Calc_Engine736[[#This Row],[CH Stage]],0)*$Z$118:$AB$118*(1-((tbl_Chiller_Calc_Engine736[[#This Row],[CHWST (°F)]]-$Z$119:$AB$119)+($Z$120:$AB$120-tbl_Chiller_Calc_Engine736[[#This Row],[CWST (°F)2]]))*$C$127))) -> 0 | AG159: 0 | AH159: =IF(tbl_Chiller_Calc_Engine736[[#This Row],[CH Stage]]=0,0,SUMPRODUCT(INDEX($T$124:$V$130,tbl_Chiller_Calc_Engine736[[#This Row],[CT Stage]],0),$D$133:$F$133)) -> 0 | AI159: =tbl_Chiller_Calc_Engine736[[#This Row],[PCHWP kW]]*tbl_Chiller_Calc_Engine736[[#This Row],[Hours]] -> 0 | AJ159: =(tbl_Chiller_Calc_Engine736[[#This Row],[SCHWP Qty]]*$C$129*$H$24*tbl_Chiller_Calc_Engine736[[#This Row],[SCHWP Speed2]]*tbl_Chiller_Calc_Engine736[[#This Row],[SCHWP Head]])/ (3960*$H$26*$H$27*IF($N$129=$F$129,1,$C$128)) -> 0 | AK159: =tbl_Chiller_Calc_Engine736[[#This Row],[SCHWP kW]]*tbl_Chiller_Calc_Engine736[[#This Row],[Hours]] -> 0 | AL159: =SUM(tbl_Chiller_Calc_Engine736[[#This Row],[Chiller Load kW]],tbl_Chiller_Calc_Engine736[[#This Row],[PCHWP kW]],tbl_Chiller_Calc_Engine736[[#This Row],[SCHWP kW]]) -> 0 | AM159: =SUM(tbl_Chiller_Calc_Engine736[[#This Row],[Chiller Load kWh]],tbl_Chiller_Calc_Engine736[[#This Row],[PCHWP kWh]],tbl_Chiller_Calc_Engine736[[#This Row],[SCHWP kWh]]) -> 0 | AN159: =IF(tbl_Chiller_Calc_Engine736[[#This Row],[CT Stage]]=0,0,SUMPRODUCT((IF(tbl_Chiller_Calc_Engine736[[#This Row],[CT Load (Tons)]]/INDEX($R$124:$R$130,tbl_Chiller_Calc_Engine736[[#This Row],[CT Stage]],0)>=$T$120:$V$120,tbl_Chiller_Calc_Engine736[[#This Row],[CT Load (Tons)]]/INDEX($R$124:$R$130,tbl_Chiller_Calc_Engine736[[#This Row],[CT Stage]],0),$T$120:$V$120)^$C$130*$T$118:$V$118*$C$129)/($C$128*$T$119:$V$119))) -> 0 | AO159: =tbl_Chiller_Calc_Engine736[[#This Row],[CT Fan kW]]*tbl_Chiller_Calc_Engine736[[#This Row],[Hours]] -> 0 | AP159: =(tbl_Chiller_Calc_Engine736[[#This Row],[CWP Qty]]*$C$129*$D$40*tbl_Chiller_Calc_Engine736[[#This Row],[CWP Speed3]]*$D$41)/ (3960*$D$42*$D$43*IF($I$129=$F$129,1,$C$128)) -> 0 | AQ159: =tbl_Chiller_Calc_Engine736[[#This Row],[CWP kW]]*tbl_Chiller_Calc_Engine736[[#This Row],[Hours]] -> 0
C160: 93 | D160: =IFERROR(AVERAGEIF(tbl_Climate_Zone[Dry_Bulb],tbl_Chiller_Calc_Engine736[[#This Row],[OAT]],tbl_Climate_Zone[Wet_Bulb]),0) -> 0 | E160: =SUM( COUNTIFS(tbl_Climate_Zone[Dry_Bulb],C160,tbl_Climate_Zone[Weekday],$C$12,tbl_Climate_Zone[Hour],">"&$D$12,tbl_Climate_Zone[Hour],"<="&$E$12), COUNTIFS(tbl_Climate_Zone[Dry_Bulb],C160,tbl_Climate_Zone[Weekday],$C$13,tbl_Climate_Zone[Hour],">"&$D$13,tbl_Climate_Zone[Hour],"<="&$E$13), COUNTIFS(tbl_Climate_Zone[Dry_Bulb],C160,tbl_Climate_Zone[Weekday],$C$14,tbl_Climate_Zone[Hour],">"&$D$14,tbl_Climate_Zone[Hour],"<="&$E$14)) -> 0 | T160: =IF(tbl_Chiller_Calc_Engine736[[#This Row],[Hours]]=0,0,IF($N$115="Baseline Trend Data", IF(ISBLANK(tbl_Chiller_Calc_Engine736[[#This Row],[ CHWST (°F)]]),MEDIAN($N$117,$O$117,FORECAST(tbl_Chiller_Calc_Engine736[[#This Row],[OAT]],tbl_Chiller_Calc_Engine736[ CHWST (°F)],tbl_Chiller_Calc_Engine736[OAT])),tbl_Chiller_Calc_Engine736[[#This Row],[ CHWST (°F)]]),IF($N$115="Proposed Trend Data", IF(ISBLANK(tbl_Chiller_Calc_Engine736[[#This Row],[ CHWST (°F)]]),MEDIAN($N$117,$O$117,FORECAST(tbl_Chiller_Calc_Engine736[[#This Row],[OAT]],tbl_Chiller_Calc_Engine736[ CHWST (°F)2],tbl_Chiller_Calc_Engine736[OAT])),tbl_Chiller_Calc_Engine736[[#This Row],[ CHWST (°F)2]]), MEDIAN($N$117,$O$117,TREND($N$117:$O$117,$N$118:$O$118,tbl_Chiller_Calc_Engine736[[#This Row],[OAT]]))))) -> 0 | U160: =IF(tbl_Chiller_Calc_Engine736[[#This Row],[Hours]]=0,0,IF($I$115="Baseline Trend Data", IF(ISBLANK(tbl_Chiller_Calc_Engine736[[#This Row],[CWST (°F)]]),MEDIAN($I$117,$J$117,FORECAST(tbl_Chiller_Calc_Engine736[[#This Row],[Average WBT]],tbl_Chiller_Calc_Engine736[CWST (°F)],tbl_Chiller_Calc_Engine736[Average WBT])),tbl_Chiller_Calc_Engine736[[#This Row],[CWST (°F)]]),IF($I$115="Proposed Trend Data", IF(ISBLANK(tbl_Chiller_Calc_Engine736[[#This Row],[CWST (°F)]]),MEDIAN($I$117,$J$117,FORECAST(tbl_Chiller_Calc_Engine736[[#This Row],[Average WBT]],tbl_Chiller_Calc_Engine736[CWST (°F)3],tbl_Chiller_Calc_Engine736[Average WBT])),tbl_Chiller_Calc_Engine736[[#This Row],[CWST (°F)3]]), MEDIAN($I$117,$J$117,TREND($I$117:$J$117,$I$118:$J$118,tbl_Chiller_Calc_Engine736[[#This Row],[Average WBT]]))))) -> 0 | V160: =IF(tbl_Chiller_Calc_Engine736[[#This Row],[Hours]]=0,0,IF($N$121="Baseline Trend Data",IF(ISBLANK(H160),FORECAST(C160,$H$138:$H$243,$C$138:$C$243),H160), IF($N$121 = "Proposed Trend Data",IF(ISBLANK(O160),FORECAST(C160,$O$138:$O$243,$C$138:$C$243),O160), IF(C160>=$N$131,MAX(TREND($N$122:$O$122,$N$123:$O$123,C160),0),0)))) -> 0 | W160: =IF(E160>0,V160*'Chilled Water System Template'!$C$131,0) -> 0 | X160: =IF(tbl_Chiller_Calc_Engine736[[#This Row],[Hours]]=0,0,IF($N$125="Baseline Trend Data",IF(ISBLANK(tbl_Chiller_Calc_Engine736[[#This Row],[SCHWP Speed]]),MEDIAN($N$127,$O$127,FORECAST(tbl_Chiller_Calc_Engine736[[#This Row],[OAT]],tbl_Chiller_Calc_Engine736[SCHWP Speed],tbl_Chiller_Calc_Engine736[OAT]))), IF($N$125="Proposed Trend Data",IF(ISBLANK(tbl_Chiller_Calc_Engine736[[#This Row],[SCHWP Speed3]]),MEDIAN($N$127,$O$127,FORECAST(tbl_Chiller_Calc_Engine736[[#This Row],[OAT]],tbl_Chiller_Calc_Engine736[SCHWP Speed3],tbl_Chiller_Calc_Engine736[OAT]))), MEDIAN($N$127,$O$127,TREND($N$127:$O$127,$N$128:$O$128,tbl_Chiller_Calc_Engine736[[#This Row],[OAT]]))))) -> 0 | Y160: =IF(tbl_Chiller_Calc_Engine736[[#This Row],[Hours]]=0,0,IF($I$125="Baseline Trend Data",IF(ISBLANK(tbl_Chiller_Calc_Engine736[[#This Row],['# CWP]]),MEDIAN($F$41,$G$41,FORECAST(tbl_Chiller_Calc_Engine736[[#This Row],[OAT]],tbl_Chiller_Calc_Engine736['# CWP],tbl_Chiller_Calc_Engine736[OAT]))), IF($I$125="Proposed Trend Data",IF(ISBLANK(tbl_Chiller_Calc_Engine736[[#This Row],['# CWP2]]),MEDIAN($F$41,$G$41,FORECAST(tbl_Chiller_Calc_Engine736[[#This Row],[OAT]],tbl_Chiller_Calc_Engine736['# CWP2],tbl_Chiller_Calc_Engine736[OAT]))), ROUNDUP(MEDIAN($F$41,$G$41,TREND($F$41:$G$41,$F$42:$G$42,tbl_Chiller_Calc_Engine736[[#This Row],[OAT]])),0)))) -> 0 | Z160: =IF(tbl_Chiller_Calc_Engine736[[#This Row],[Hours]]=0,0,IF($I$125="Baseline Trend Data",IF(ISBLANK(tbl_Chiller_Calc_Engine736[[#This Row],[CWP Speed]]),MEDIAN($I$127,$J$127,FORECAST(tbl_Chiller_Calc_Engine736[[#This Row],[OAT]],tbl_Chiller_Calc_Engine736[CWP Speed],tbl_Chiller_Calc_Engine736[OAT]))), IF($I$125="Proposed Trend Data",IF(ISBLANK(tbl_Chiller_Calc_Engine736[[#This Row],[CWP Speed2]]),MEDIAN($I$127,$J$127,FORECAST(tbl_Chiller_Calc_Engine736[[#This Row],[OAT]],tbl_Chiller_Calc_Engine736[CWP Speed2],tbl_Chiller_Calc_Engine736[OAT]))), MEDIAN($I$127,$J$127,TREND($I$127:$J$127,$I$128:$J$128,tbl_Chiller_Calc_Engine736[[#This Row],[OAT]]))))) -> 0 | AA160: 2 | AB160: =IF(tbl_Chiller_Calc_Engine736[[#This Row],[Hours]]=0,0,IF($I$120="Baseline Trend Data",IF(ISBLANK(tbl_Chiller_Calc_Engine736[[#This Row],[Head in ft]]),MEDIAN($I$122,$J$122,FORECAST(tbl_Chiller_Calc_Engine736[[#This Row],[OAT]],tbl_Chiller_Calc_Engine736[Head in ft],tbl_Chiller_Calc_Engine736[OAT]))), IF($I$120="Proposed Trend Data",IF(ISBLANK(tbl_Chiller_Calc_Engine736[[#This Row],[Head in ft2]]),MEDIAN($I$122,$J$122,FORECAST(tbl_Chiller_Calc_Engine736[[#This Row],[OAT]],tbl_Chiller_Calc_Engine736[Head in ft2],tbl_Chiller_Calc_Engine736[OAT]))), ROUNDUP(MEDIAN($I$122,$J$122,TREND($I$122:$J$122,$I$123:$J$123,tbl_Chiller_Calc_Engine736[[#This Row],[OAT]]))*2.31,0)))) -> 0 | AC160: FALSE | AD160: =IF(OR(tbl_Chiller_Calc_Engine736[[#This Row],[Cooling Load (tons)2]]=0,tbl_Chiller_Calc_Engine736[[#This Row],[Econ Engaged]]),0,MEDIAN(0,MAX($W$124:$W$130),IFERROR(MATCH(tbl_Chiller_Calc_Engine736[[#This Row],[Cooling Load (tons)2]],$X$124:$X$130,1),0)+1)) -> 0 | AE160: =IF(tbl_Chiller_Calc_Engine736[[#This Row],[CT Load (Tons)]]=0,0,IFERROR(MEDIAN(0,MAX($Q$124:$Q$130),IFERROR(MATCH(tbl_Chiller_Calc_Engine736[[#This Row],[CT Load (Tons)]],$R$124:$R$130,1),0)+1),0)) -> 0 | AF160: =IF(OR(tbl_Chiller_Calc_Engine736[[#This Row],[Econ Engaged]],tbl_Chiller_Calc_Engine736[[#This Row],[Hours]]=0),0,SUMPRODUCT(tbl_Chiller_Calc_Engine736[[#This Row],[Cooling Load (tons)2]]*INDEX($Z$124:$AB$130,tbl_Chiller_Calc_Engine736[[#This Row],[CH Stage]],0)*$Z$118:$AB$118*(1-((tbl_Chiller_Calc_Engine736[[#This Row],[CHWST (°F)]]-$Z$119:$AB$119)+($Z$120:$AB$120-tbl_Chiller_Calc_Engine736[[#This Row],[CWST (°F)2]]))*$C$127))) -> 0 | AG160: 0 | AH160: =IF(tbl_Chiller_Calc_Engine736[[#This Row],[CH Stage]]=0,0,SUMPRODUCT(INDEX($T$124:$V$130,tbl_Chiller_Calc_Engine736[[#This Row],[CT Stage]],0),$D$133:$F$133)) -> 0 | AI160: =tbl_Chiller_Calc_Engine736[[#This Row],[PCHWP kW]]*tbl_Chiller_Calc_Engine736[[#This Row],[Hours]] -> 0 | AJ160: =(tbl_Chiller_Calc_Engine736[[#This Row],[SCHWP Qty]]*$C$129*$H$24*tbl_Chiller_Calc_Engine736[[#This Row],[SCHWP Speed2]]*tbl_Chiller_Calc_Engine736[[#This Row],[SCHWP Head]])/ (3960*$H$26*$H$27*IF($N$129=$F$129,1,$C$128)) -> 0 | AK160: =tbl_Chiller_Calc_Engine736[[#This Row],[SCHWP kW]]*tbl_Chiller_Calc_Engine736[[#This Row],[Hours]] -> 0 | AL160: =SUM(tbl_Chiller_Calc_Engine736[[#This Row],[Chiller Load kW]],tbl_Chiller_Calc_Engine736[[#This Row],[PCHWP kW]],tbl_Chiller_Calc_Engine736[[#This Row],[SCHWP kW]]) -> 0 | AM160: =SUM(tbl_Chiller_Calc_Engine736[[#This Row],[Chiller Load kWh]],tbl_Chiller_Calc_Engine736[[#This Row],[PCHWP kWh]],tbl_Chiller_Calc_Engine736[[#This Row],[SCHWP kWh]]) -> 0 | AN160: =IF(tbl_Chiller_Calc_Engine736[[#This Row],[CT Stage]]=0,0,SUMPRODUCT((IF(tbl_Chiller_Calc_Engine736[[#This Row],[CT Load (Tons)]]/INDEX($R$124:$R$130,tbl_Chiller_Calc_Engine736[[#This Row],[CT Stage]],0)>=$T$120:$V$120,tbl_Chiller_Calc_Engine736[[#This Row],[CT Load (Tons)]]/INDEX($R$124:$R$130,tbl_Chiller_Calc_Engine736[[#This Row],[CT Stage]],0),$T$120:$V$120)^$C$130*$T$118:$V$118*$C$129)/($C$128*$T$119:$V$119))) -> 0 | AO160: =tbl_Chiller_Calc_Engine736[[#This Row],[CT Fan kW]]*tbl_Chiller_Calc_Engine736[[#This Row],[Hours]] -> 0 | AP160: =(tbl_Chiller_Calc_Engine736[[#This Row],[CWP Qty]]*$C$129*$D$40*tbl_Chiller_Calc_Engine736[[#This Row],[CWP Speed3]]*$D$41)/ (3960*$D$42*$D$43*IF($I$129=$F$129,1,$C$128)) -> 0 | AQ160: =tbl_Chiller_Calc_Engine736[[#This Row],[CWP kW]]*tbl_Chiller_Calc_Engine736[[#This Row],[Hours]] -> 0
C161: 92 | D161: =IFERROR(AVERAGEIF(tbl_Climate_Zone[Dry_Bulb],tbl_Chiller_Calc_Engine736[[#This Row],[OAT]],tbl_Climate_Zone[Wet_Bulb]),0) -> 0 | E161: =SUM( COUNTIFS(tbl_Climate_Zone[Dry_Bulb],C161,tbl_Climate_Zone[Weekday],$C$12,tbl_Climate_Zone[Hour],">"&$D$12,tbl_Climate_Zone[Hour],"<="&$E$12), COUNTIFS(tbl_Climate_Zone[Dry_Bulb],C161,tbl_Climate_Zone[Weekday],$C$13,tbl_Climate_Zone[Hour],">"&$D$13,tbl_Climate_Zone[Hour],"<="&$E$13), COUNTIFS(tbl_Climate_Zone[Dry_Bulb],C161,tbl_Climate_Zone[Weekday],$C$14,tbl_Climate_Zone[Hour],">"&$D$14,tbl_Climate_Zone[Hour],"<="&$E$14)) -> 0 | T161: =IF(tbl_Chiller_Calc_Engine736[[#This Row],[Hours]]=0,0,IF($N$115="Baseline Trend Data", IF(ISBLANK(tbl_Chiller_Calc_Engine736[[#This Row],[ CHWST (°F)]]),MEDIAN($N$117,$O$117,FORECAST(tbl_Chiller_Calc_Engine736[[#This Row],[OAT]],tbl_Chiller_Calc_Engine736[ CHWST (°F)],tbl_Chiller_Calc_Engine736[OAT])),tbl_Chiller_Calc_Engine736[[#This Row],[ CHWST (°F)]]),IF($N$115="Proposed Trend Data", IF(ISBLANK(tbl_Chiller_Calc_Engine736[[#This Row],[ CHWST (°F)]]),MEDIAN($N$117,$O$117,FORECAST(tbl_Chiller_Calc_Engine736[[#This Row],[OAT]],tbl_Chiller_Calc_Engine736[ CHWST (°F)2],tbl_Chiller_Calc_Engine736[OAT])),tbl_Chiller_Calc_Engine736[[#This Row],[ CHWST (°F)2]]), MEDIAN($N$117,$O$117,TREND($N$117:$O$117,$N$118:$O$118,tbl_Chiller_Calc_Engine736[[#This Row],[OAT]]))))) -> 0 | U161: =IF(tbl_Chiller_Calc_Engine736[[#This Row],[Hours]]=0,0,IF($I$115="Baseline Trend Data", IF(ISBLANK(tbl_Chiller_Calc_Engine736[[#This Row],[CWST (°F)]]),MEDIAN($I$117,$J$117,FORECAST(tbl_Chiller_Calc_Engine736[[#This Row],[Average WBT]],tbl_Chiller_Calc_Engine736[CWST (°F)],tbl_Chiller_Calc_Engine736[Average WBT])),tbl_Chiller_Calc_Engine736[[#This Row],[CWST (°F)]]),IF($I$115="Proposed Trend Data", IF(ISBLANK(tbl_Chiller_Calc_Engine736[[#This Row],[CWST (°F)]]),MEDIAN($I$117,$J$117,FORECAST(tbl_Chiller_Calc_Engine736[[#This Row],[Average WBT]],tbl_Chiller_Calc_Engine736[CWST (°F)3],tbl_Chiller_Calc_Engine736[Average WBT])),tbl_Chiller_Calc_Engine736[[#This Row],[CWST (°F)3]]), MEDIAN($I$117,$J$117,TREND($I$117:$J$117,$I$118:$J$118,tbl_Chiller_Calc_Engine736[[#This Row],[Average WBT]]))))) -> 0 | V161: =IF(tbl_Chiller_Calc_Engine736[[#This Row],[Hours]]=0,0,IF($N$121="Baseline Trend Data",IF(ISBLANK(H161),FORECAST(C161,$H$138:$H$243,$C$138:$C$243),H161), IF($N$121 = "Proposed Trend Data",IF(ISBLANK(O161),FORECAST(C161,$O$138:$O$243,$C$138:$C$243),O161), IF(C161>=$N$131,MAX(TREND($N$122:$O$122,$N$123:$O$123,C161),0),0)))) -> 0 | W161: =IF(E161>0,V161*'Chilled Water System Template'!$C$131,0) -> 0 | X161: =IF(tbl_Chiller_Calc_Engine736[[#This Row],[Hours]]=0,0,IF($N$125="Baseline Trend Data",IF(ISBLANK(tbl_Chiller_Calc_Engine736[[#This Row],[SCHWP Speed]]),MEDIAN($N$127,$O$127,FORECAST(tbl_Chiller_Calc_Engine736[[#This Row],[OAT]],tbl_Chiller_Calc_Engine736[SCHWP Speed],tbl_Chiller_Calc_Engine736[OAT]))), IF($N$125="Proposed Trend Data",IF(ISBLANK(tbl_Chiller_Calc_Engine736[[#This Row],[SCHWP Speed3]]),MEDIAN($N$127,$O$127,FORECAST(tbl_Chiller_Calc_Engine736[[#This Row],[OAT]],tbl_Chiller_Calc_Engine736[SCHWP Speed3],tbl_Chiller_Calc_Engine736[OAT]))), MEDIAN($N$127,$O$127,TREND($N$127:$O$127,$N$128:$O$128,tbl_Chiller_Calc_Engine736[[#This Row],[OAT]]))))) -> 0 | Y161: =IF(tbl_Chiller_Calc_Engine736[[#This Row],[Hours]]=0,0,IF($I$125="Baseline Trend Data",IF(ISBLANK(tbl_Chiller_Calc_Engine736[[#This Row],['# CWP]]),MEDIAN($F$41,$G$41,FORECAST(tbl_Chiller_Calc_Engine736[[#This Row],[OAT]],tbl_Chiller_Calc_Engine736['# CWP],tbl_Chiller_Calc_Engine736[OAT]))), IF($I$125="Proposed Trend Data",IF(ISBLANK(tbl_Chiller_Calc_Engine736[[#This Row],['# CWP2]]),MEDIAN($F$41,$G$41,FORECAST(tbl_Chiller_Calc_Engine736[[#This Row],[OAT]],tbl_Chiller_Calc_Engine736['# CWP2],tbl_Chiller_Calc_Engine736[OAT]))), ROUNDUP(MEDIAN($F$41,$G$41,TREND($F$41:$G$41,$F$42:$G$42,tbl_Chiller_Calc_Engine736[[#This Row],[OAT]])),0)))) -> 0 | Z161: =IF(tbl_Chiller_Calc_Engine736[[#This Row],[Hours]]=0,0,IF($I$125="Baseline Trend Data",IF(ISBLANK(tbl_Chiller_Calc_Engine736[[#This Row],[CWP Speed]]),MEDIAN($I$127,$J$127,FORECAST(tbl_Chiller_Calc_Engine736[[#This Row],[OAT]],tbl_Chiller_Calc_Engine736[CWP Speed],tbl_Chiller_Calc_Engine736[OAT]))), IF($I$125="Proposed Trend Data",IF(ISBLANK(tbl_Chiller_Calc_Engine736[[#This Row],[CWP Speed2]]),MEDIAN($I$127,$J$127,FORECAST(tbl_Chiller_Calc_Engine736[[#This Row],[OAT]],tbl_Chiller_Calc_Engine736[CWP Speed2],tbl_Chiller_Calc_Engine736[OAT]))), MEDIAN($I$127,$J$127,TREND($I$127:$J$127,$I$128:$J$128,tbl_Chiller_Calc_Engine736[[#This Row],[OAT]]))))) -> 0 | AA161: 2 | AB161: =IF(tbl_Chiller_Calc_Engine736[[#This Row],[Hours]]=0,0,IF($I$120="Baseline Trend Data",IF(ISBLANK(tbl_Chiller_Calc_Engine736[[#This Row],[Head in ft]]),MEDIAN($I$122,$J$122,FORECAST(tbl_Chiller_Calc_Engine736[[#This Row],[OAT]],tbl_Chiller_Calc_Engine736[Head in ft],tbl_Chiller_Calc_Engine736[OAT]))), IF($I$120="Proposed Trend Data",IF(ISBLANK(tbl_Chiller_Calc_Engine736[[#This Row],[Head in ft2]]),MEDIAN($I$122,$J$122,FORECAST(tbl_Chiller_Calc_Engine736[[#This Row],[OAT]],tbl_Chiller_Calc_Engine736[Head in ft2],tbl_Chiller_Calc_Engine736[OAT]))), ROUNDUP(MEDIAN($I$122,$J$122,TREND($I$122:$J$122,$I$123:$J$123,tbl_Chiller_Calc_Engine736[[#This Row],[OAT]]))*2.31,0)))) -> 0 | AC161: FALSE | AD161: =IF(OR(tbl_Chiller_Calc_Engine736[[#This Row],[Cooling Load (tons)2]]=0,tbl_Chiller_Calc_Engine736[[#This Row],[Econ Engaged]]),0,MEDIAN(0,MAX($W$124:$W$130),IFERROR(MATCH(tbl_Chiller_Calc_Engine736[[#This Row],[Cooling Load (tons)2]],$X$124:$X$130,1),0)+1)) -> 0 | AE161: =IF(tbl_Chiller_Calc_Engine736[[#This Row],[CT Load (Tons)]]=0,0,IFERROR(MEDIAN(0,MAX($Q$124:$Q$130),IFERROR(MATCH(tbl_Chiller_Calc_Engine736[[#This Row],[CT Load (Tons)]],$R$124:$R$130,1),0)+1),0)) -> 0 | AF161: =IF(OR(tbl_Chiller_Calc_Engine736[[#This Row],[Econ Engaged]],tbl_Chiller_Calc_Engine736[[#This Row],[Hours]]=0),0,SUMPRODUCT(tbl_Chiller_Calc_Engine736[[#This Row],[Cooling Load (tons)2]]*INDEX($Z$124:$AB$130,tbl_Chiller_Calc_Engine736[[#This Row],[CH Stage]],0)*$Z$118:$AB$118*(1-((tbl_Chiller_Calc_Engine736[[#This Row],[CHWST (°F)]]-$Z$119:$AB$119)+($Z$120:$AB$120-tbl_Chiller_Calc_Engine736[[#This Row],[CWST (°F)2]]))*$C$127))) -> 0 | AG161: 0 | AH161: =IF(tbl_Chiller_Calc_Engine736[[#This Row],[CH Stage]]=0,0,SUMPRODUCT(INDEX($T$124:$V$130,tbl_Chiller_Calc_Engine736[[#This Row],[CT Stage]],0),$D$133:$F$133)) -> 0 | AI161: =tbl_Chiller_Calc_Engine736[[#This Row],[PCHWP kW]]*tbl_Chiller_Calc_Engine736[[#This Row],[Hours]] -> 0 | AJ161: =(tbl_Chiller_Calc_Engine736[[#This Row],[SCHWP Qty]]*$C$129*$H$24*tbl_Chiller_Calc_Engine736[[#This Row],[SCHWP Speed2]]*tbl_Chiller_Calc_Engine736[[#This Row],[SCHWP Head]])/ (3960*$H$26*$H$27*IF($N$129=$F$129,1,$C$128)) -> 0 | AK161: =tbl_Chiller_Calc_Engine736[[#This Row],[SCHWP kW]]*tbl_Chiller_Calc_Engine736[[#This Row],[Hours]] -> 0 | AL161: =SUM(tbl_Chiller_Calc_Engine736[[#This Row],[Chiller Load kW]],tbl_Chiller_Calc_Engine736[[#This Row],[PCHWP kW]],tbl_Chiller_Calc_Engine736[[#This Row],[SCHWP kW]]) -> 0 | AM161: =SUM(tbl_Chiller_Calc_Engine736[[#This Row],[Chiller Load kWh]],tbl_Chiller_Calc_Engine736[[#This Row],[PCHWP kWh]],tbl_Chiller_Calc_Engine736[[#This Row],[SCHWP kWh]]) -> 0 | AN161: =IF(tbl_Chiller_Calc_Engine736[[#This Row],[CT Stage]]=0,0,SUMPRODUCT((IF(tbl_Chiller_Calc_Engine736[[#This Row],[CT Load (Tons)]]/INDEX($R$124:$R$130,tbl_Chiller_Calc_Engine736[[#This Row],[CT Stage]],0)>=$T$120:$V$120,tbl_Chiller_Calc_Engine736[[#This Row],[CT Load (Tons)]]/INDEX($R$124:$R$130,tbl_Chiller_Calc_Engine736[[#This Row],[CT Stage]],0),$T$120:$V$120)^$C$130*$T$118:$V$118*$C$129)/($C$128*$T$119:$V$119))) -> 0 | AO161: =tbl_Chiller_Calc_Engine736[[#This Row],[CT Fan kW]]*tbl_Chiller_Calc_Engine736[[#This Row],[Hours]] -> 0 | AP161: =(tbl_Chiller_Calc_Engine736[[#This Row],[CWP Qty]]*$C$129*$D$40*tbl_Chiller_Calc_Engine736[[#This Row],[CWP Speed3]]*$D$41)/ (3960*$D$42*$D$43*IF($I$129=$F$129,1,$C$128)) -> 0 | AQ161: =tbl_Chiller_Calc_Engine736[[#This Row],[CWP kW]]*tbl_Chiller_Calc_Engine736[[#This Row],[Hours]] -> 0
C162: 91 | D162: =IFERROR(AVERAGEIF(tbl_Climate_Zone[Dry_Bulb],tbl_Chiller_Calc_Engine736[[#This Row],[OAT]],tbl_Climate_Zone[Wet_Bulb]),0) -> 64 | E162: =SUM( COUNTIFS(tbl_Climate_Zone[Dry_Bulb],C162,tbl_Climate_Zone[Weekday],$C$12,tbl_Climate_Zone[Hour],">"&$D$12,tbl_Climate_Zone[Hour],"<="&$E$12), COUNTIFS(tbl_Climate_Zone[Dry_Bulb],C162,tbl_Climate_Zone[Weekday],$C$13,tbl_Climate_Zone[Hour],">"&$D$13,tbl_Climate_Zone[Hour],"<="&$E$13), COUNTIFS(tbl_Climate_Zone[Dry_Bulb],C162,tbl_Climate_Zone[Weekday],$C$14,tbl_Climate_Zone[Hour],">"&$D$14,tbl_Climate_Zone[Hour],"<="&$E$14)) -> 1 | T162: =IF(tbl_Chiller_Calc_Engine736[[#This Row],[Hours]]=0,0,IF($N$115="Baseline Trend Data", IF(ISBLANK(tbl_Chiller_Calc_Engine736[[#This Row],[ CHWST (°F)]]),MEDIAN($N$117,$O$117,FORECAST(tbl_Chiller_Calc_Engine736[[#This Row],[OAT]],tbl_Chiller_Calc_Engine736[ CHWST (°F)],tbl_Chiller_Calc_Engine736[OAT])),tbl_Chiller_Calc_Engine736[[#This Row],[ CHWST (°F)]]),IF($N$115="Proposed Trend Data", IF(ISBLANK(tbl_Chiller_Calc_Engine736[[#This Row],[ CHWST (°F)]]),MEDIAN($N$117,$O$117,FORECAST(tbl_Chiller_Calc_Engine736[[#This Row],[OAT]],tbl_Chiller_Calc_Engine736[ CHWST (°F)2],tbl_Chiller_Calc_Engine736[OAT])),tbl_Chiller_Calc_Engine736[[#This Row],[ CHWST (°F)2]]), MEDIAN($N$117,$O$117,TREND($N$117:$O$117,$N$118:$O$118,tbl_Chiller_Calc_Engine736[[#This Row],[OAT]]))))) -> 45 | U162: =IF(tbl_Chiller_Calc_Engine736[[#This Row],[Hours]]=0,0,IF($I$115="Baseline Trend Data", IF(ISBLANK(tbl_Chiller_Calc_Engine736[[#This Row],[CWST (°F)]]),MEDIAN($I$117,$J$117,FORECAST(tbl_Chiller_Calc_Engine736[[#This Row],[Average WBT]],tbl_Chiller_Calc_Engine736[CWST (°F)],tbl_Chiller_Calc_Engine736[Average WBT])),tbl_Chiller_Calc_Engine736[[#This Row],[CWST (°F)]]),IF($I$115="Proposed Trend Data", IF(ISBLANK(tbl_Chiller_Calc_Engine736[[#This Row],[CWST (°F)]]),MEDIAN($I$117,$J$117,FORECAST(tbl_Chiller_Calc_Engine736[[#This Row],[Average WBT]],tbl_Chiller_Calc_Engine736[CWST (°F)3],tbl_Chiller_Calc_Engine736[Average WBT])),tbl_Chiller_Calc_Engine736[[#This Row],[CWST (°F)3]]), MEDIAN($I$117,$J$117,TREND($I$117:$J$117,$I$118:$J$118,tbl_Chiller_Calc_Engine736[[#This Row],[Average WBT]]))))) -> 75 | V162: =IF(tbl_Chiller_Calc_Engine736[[#This Row],[Hours]]=0,0,IF($N$121="Baseline Trend Data",IF(ISBLANK(H162),FORECAST(C162,$H$138:$H$243,$C$138:$C$243),H162), IF($N$121 = "Proposed Trend Data",IF(ISBLANK(O162),FORECAST(C162,$O$138:$O$243,$C$138:$C$243),O162), IF(C162>=$N$131,MAX(TREND($N$122:$O$122,$N$123:$O$123,C162),0),0)))) -> 1434.285714 | W162: =IF(E162>0,V162*'Chilled Water System Template'!$C$131,0) -> 1792.857143 | X162: =IF(tbl_Chiller_Calc_Engine736[[#This Row],[Hours]]=0,0,IF($N$125="Baseline Trend Data",IF(ISBLANK(tbl_Chiller_Calc_Engine736[[#This Row],[SCHWP Speed]]),MEDIAN($N$127,$O$127,FORECAST(tbl_Chiller_Calc_Engine736[[#This Row],[OAT]],tbl_Chiller_Calc_Engine736[SCHWP Speed],tbl_Chiller_Calc_Engine736[OAT]))), IF($N$125="Proposed Trend Data",IF(ISBLANK(tbl_Chiller_Calc_Engine736[[#This Row],[SCHWP Speed3]]),MEDIAN($N$127,$O$127,FORECAST(tbl_Chiller_Calc_Engine736[[#This Row],[OAT]],tbl_Chiller_Calc_Engine736[SCHWP Speed3],tbl_Chiller_Calc_Engine736[OAT]))), MEDIAN($N$127,$O$127,TREND($N$127:$O$127,$N$128:$O$128,tbl_Chiller_Calc_Engine736[[#This Row],[OAT]]))))) -> 1 | Y162: =IF(tbl_Chiller_Calc_Engine736[[#This Row],[Hours]]=0,0,IF($I$125="Baseline Trend Data",IF(ISBLANK(tbl_Chiller_Calc_Engine736[[#This Row],['# CWP]]),MEDIAN($F$41,$G$41,FORECAST(tbl_Chiller_Calc_Engine736[[#This Row],[OAT]],tbl_Chiller_Calc_Engine736['# CWP],tbl_Chiller_Calc_Engine736[OAT]))), IF($I$125="Proposed Trend Data",IF(ISBLANK(tbl_Chiller_Calc_Engine736[[#This Row],['# CWP2]]),MEDIAN($F$41,$G$41,FORECAST(tbl_Chiller_Calc_Engine736[[#This Row],[OAT]],tbl_Chiller_Calc_Engine736['# CWP2],tbl_Chiller_Calc_Engine736[OAT]))), ROUNDUP(MEDIAN($F$41,$G$41,TREND($F$41:$G$41,$F$42:$G$42,tbl_Chiller_Calc_Engine736[[#This Row],[OAT]])),0)))) -> 2 | Z162: =IF(tbl_Chiller_Calc_Engine736[[#This Row],[Hours]]=0,0,IF($I$125="Baseline Trend Data",IF(ISBLANK(tbl_Chiller_Calc_Engine736[[#This Row],[CWP Speed]]),MEDIAN($I$127,$J$127,FORECAST(tbl_Chiller_Calc_Engine736[[#This Row],[OAT]],tbl_Chiller_Calc_Engine736[CWP Speed],tbl_Chiller_Calc_Engine736[OAT]))), IF($I$125="Proposed Trend Data",IF(ISBLANK(tbl_Chiller_Calc_Engine736[[#This Row],[CWP Speed2]]),MEDIAN($I$127,$J$127,FORECAST(tbl_Chiller_Calc_Engine736[[#This Row],[OAT]],tbl_Chiller_Calc_Engine736[CWP Speed2],tbl_Chiller_Calc_Engine736[OAT]))), MEDIAN($I$127,$J$127,TREND($I$127:$J$127,$I$128:$J$128,tbl_Chiller_Calc_Engine736[[#This Row],[OAT]]))))) -> 1 | AA162: 2 | AB162: =IF(tbl_Chiller_Calc_Engine736[[#This Row],[Hours]]=0,0,IF($I$120="Baseline Trend Data",IF(ISBLANK(tbl_Chiller_Calc_Engine736[[#This Row],[Head in ft]]),MEDIAN($I$122,$J$122,FORECAST(tbl_Chiller_Calc_Engine736[[#This Row],[OAT]],tbl_Chiller_Calc_Engine736[Head in ft],tbl_Chiller_Calc_Engine736[OAT]))), IF($I$120="Proposed Trend Data",IF(ISBLANK(tbl_Chiller_Calc_Engine736[[#This Row],[Head in ft2]]),MEDIAN($I$122,$J$122,FORECAST(tbl_Chiller_Calc_Engine736[[#This Row],[OAT]],tbl_Chiller_Calc_Engine736[Head in ft2],tbl_Chiller_Calc_Engine736[OAT]))), ROUNDUP(MEDIAN($I$122,$J$122,TREND($I$122:$J$122,$I$123:$J$123,tbl_Chiller_Calc_Engine736[[#This Row],[OAT]]))*2.31,0)))) -> 104 | AC162: FALSE | AD162: =IF(OR(tbl_Chiller_Calc_Engine736[[#This Row],[Cooling Load (tons)2]]=0,tbl_Chiller_Calc_Engine736[[#This Row],[Econ Engaged]]),0,MEDIAN(0,MAX($W$124:$W$130),IFERROR(MATCH(tbl_Chiller_Calc_Engine736[[#This Row],[Cooling Load (tons)2]],$X$124:$X$130,1),0)+1)) -> 4 | AE162: =IF(tbl_Chiller_Calc_Engine736[[#This Row],[CT Load (Tons)]]=0,0,IFERROR(MEDIAN(0,MAX($Q$124:$Q$130),IFERROR(MATCH(tbl_Chiller_Calc_Engine736[[#This Row],[CT Load (Tons)]],$R$124:$R$130,1),0)+1),0)) -> 3 | AF162: =IF(OR(tbl_Chiller_Calc_Engine736[[#This Row],[Econ Engaged]],tbl_Chiller_Calc_Engine736[[#This Row],[Hours]]=0),0,SUMPRODUCT(tbl_Chiller_Calc_Engine736[[#This Row],[Cooling Load (tons)2]]*INDEX($Z$124:$AB$130,tbl_Chiller_Calc_Engine736[[#This Row],[CH Stage]],0)*$Z$118:$AB$118*(1-((tbl_Chiller_Calc_Engine736[[#This Row],[CHWST (°F)]]-$Z$119:$AB$119)+($Z$120:$AB$120-tbl_Chiller_Calc_Engine736[[#This Row],[CWST (°F)2]]))*$C$127))) -> 667.3731429 | AG162: 667.3731429 | AH162: =IF(tbl_Chiller_Calc_Engine736[[#This Row],[CH Stage]]=0,0,SUMPRODUCT(INDEX($T$124:$V$130,tbl_Chiller_Calc_Engine736[[#This Row],[CT Stage]],0),$D$133:$F$133)) -> 6.593434343 | AI162: =tbl_Chiller_Calc_Engine736[[#This Row],[PCHWP kW]]*tbl_Chiller_Calc_Engine736[[#This Row],[Hours]] -> 6.593434343 | AJ162: =(tbl_Chiller_Calc_Engine736[[#This Row],[SCHWP Qty]]*$C$129*$H$24*tbl_Chiller_Calc_Engine736[[#This Row],[SCHWP Speed2]]*tbl_Chiller_Calc_Engine736[[#This Row],[SCHWP Head]])/ (3960*$H$26*$H$27*IF($N$129=$F$129,1,$C$128)) -> 68.96828481 | AK162: =tbl_Chiller_Calc_Engine736[[#This Row],[SCHWP kW]]*tbl_Chiller_Calc_Engine736[[#This Row],[Hours]] -> 68.96828481 | AL162: =SUM(tbl_Chiller_Calc_Engine736[[#This Row],[Chiller Load kW]],tbl_Chiller_Calc_Engine736[[#This Row],[PCHWP kW]],tbl_Chiller_Calc_Engine736[[#This Row],[SCHWP kW]]) -> 742.934862 | AM162: =SUM(tbl_Chiller_Calc_Engine736[[#This Row],[Chiller Load kWh]],tbl_Chiller_Calc_Engine736[[#This Row],[PCHWP kWh]],tbl_Chiller_Calc_Engine736[[#This Row],[SCHWP kWh]]) -> 742.934862 | AN162: =IF(tbl_Chiller_Calc_Engine736[[#This Row],[CT Stage]]=0,0,SUMPRODUCT((IF(tbl_Chiller_Calc_Engine736[[#This Row],[CT Load (Tons)]]/INDEX($R$124:$R$130,tbl_Chiller_Calc_Engine736[[#This Row],[CT Stage]],0)>=$T$120:$V$120,tbl_Chiller_Calc_Engine736[[#This Row],[CT Load (Tons)]]/INDEX($R$124:$R$130,tbl_Chiller_Calc_Engine736[[#This Row],[CT Stage]],0),$T$120:$V$120)^$C$130*$T$118:$V$118*$C$129)/($C$128*$T$119:$V$119))) -> 31.39291341 | AO162: =tbl_Chiller_Calc_Engine736[[#This Row],[CT Fan kW]]*tbl_Chiller_Calc_Engine736[[#This Row],[Hours]] -> 31.39291341 | AP162: =(tbl_Chiller_Calc_Engine736[[#This Row],[CWP Qty]]*$C$129*$D$40*tbl_Chiller_Calc_Engine736[[#This Row],[CWP Speed3]]*$D$41)/ (3960*$D$42*$D$43*IF($I$129=$F$129,1,$C$128)) -> 46.54188948 | AQ162: =tbl_Chiller_Calc_Engine736[[#This Row],[CWP kW]]*tbl_Chiller_Calc_Engine736[[#This Row],[Hours]] -> 46.54188948
C163: 90 | D163: =IFERROR(AVERAGEIF(tbl_Climate_Zone[Dry_Bulb],tbl_Chiller_Calc_Engine736[[#This Row],[OAT]],tbl_Climate_Zone[Wet_Bulb]),0) -> 0 | E163: =SUM( COUNTIFS(tbl_Climate_Zone[Dry_Bulb],C163,tbl_Climate_Zone[Weekday],$C$12,tbl_Climate_Zone[Hour],">"&$D$12,tbl_Climate_Zone[Hour],"<="&$E$12), COUNTIFS(tbl_Climate_Zone[Dry_Bulb],C163,tbl_Climate_Zone[Weekday],$C$13,tbl_Climate_Zone[Hour],">"&$D$13,tbl_Climate_Zone[Hour],"<="&$E$13), COUNTIFS(tbl_Climate_Zone[Dry_Bulb],C163,tbl_Climate_Zone[Weekday],$C$14,tbl_Climate_Zone[Hour],">"&$D$14,tbl_Climate_Zone[Hour],"<="&$E$14)) -> 0 | T163: =IF(tbl_Chiller_Calc_Engine736[[#This Row],[Hours]]=0,0,IF($N$115="Baseline Trend Data", IF(ISBLANK(tbl_Chiller_Calc_Engine736[[#This Row],[ CHWST (°F)]]),MEDIAN($N$117,$O$117,FORECAST(tbl_Chiller_Calc_Engine736[[#This Row],[OAT]],tbl_Chiller_Calc_Engine736[ CHWST (°F)],tbl_Chiller_Calc_Engine736[OAT])),tbl_Chiller_Calc_Engine736[[#This Row],[ CHWST (°F)]]),IF($N$115="Proposed Trend Data", IF(ISBLANK(tbl_Chiller_Calc_Engine736[[#This Row],[ CHWST (°F)]]),MEDIAN($N$117,$O$117,FORECAST(tbl_Chiller_Calc_Engine736[[#This Row],[OAT]],tbl_Chiller_Calc_Engine736[ CHWST (°F)2],tbl_Chiller_Calc_Engine736[OAT])),tbl_Chiller_Calc_Engine736[[#This Row],[ CHWST (°F)2]]), MEDIAN($N$117,$O$117,TREND($N$117:$O$117,$N$118:$O$118,tbl_Chiller_Calc_Engine736[[#This Row],[OAT]]))))) -> 0 | U163: =IF(tbl_Chiller_Calc_Engine736[[#This Row],[Hours]]=0,0,IF($I$115="Baseline Trend Data", IF(ISBLANK(tbl_Chiller_Calc_Engine736[[#This Row],[CWST (°F)]]),MEDIAN($I$117,$J$117,FORECAST(tbl_Chiller_Calc_Engine736[[#This Row],[Average WBT]],tbl_Chiller_Calc_Engine736[CWST (°F)],tbl_Chiller_Calc_Engine736[Average WBT])),tbl_Chiller_Calc_Engine736[[#This Row],[CWST (°F)]]),IF($I$115="Proposed Trend Data", IF(ISBLANK(tbl_Chiller_Calc_Engine736[[#This Row],[CWST (°F)]]),MEDIAN($I$117,$J$117,FORECAST(tbl_Chiller_Calc_Engine736[[#This Row],[Average WBT]],tbl_Chiller_Calc_Engine736[CWST (°F)3],tbl_Chiller_Calc_Engine736[Average WBT])),tbl_Chiller_Calc_Engine736[[#This Row],[CWST (°F)3]]), MEDIAN($I$117,$J$117,TREND($I$117:$J$117,$I$118:$J$118,tbl_Chiller_Calc_Engine736[[#This Row],[Average WBT]]))))) -> 0 | V163: =IF(tbl_Chiller_Calc_Engine736[[#This Row],[Hours]]=0,0,IF($N$121="Baseline Trend Data",IF(ISBLANK(H163),FORECAST(C163,$H$138:$H$243,$C$138:$C$243),H163), IF($N$121 = "Proposed Trend Data",IF(ISBLANK(O163),FORECAST(C163,$O$138:$O$243,$C$138:$C$243),O163), IF(C163>=$N$131,MAX(TREND($N$122:$O$122,$N$123:$O$123,C163),0),0)))) -> 0 | W163: =IF(E163>0,V163*'Chilled Water System Template'!$C$131,0) -> 0 | X163: =IF(tbl_Chiller_Calc_Engine736[[#This Row],[Hours]]=0,0,IF($N$125="Baseline Trend Data",IF(ISBLANK(tbl_Chiller_Calc_Engine736[[#This Row],[SCHWP Speed]]),MEDIAN($N$127,$O$127,FORECAST(tbl_Chiller_Calc_Engine736[[#This Row],[OAT]],tbl_Chiller_Calc_Engine736[SCHWP Speed],tbl_Chiller_Calc_Engine736[OAT]))), IF($N$125="Proposed Trend Data",IF(ISBLANK(tbl_Chiller_Calc_Engine736[[#This Row],[SCHWP Speed3]]),MEDIAN($N$127,$O$127,FORECAST(tbl_Chiller_Calc_Engine736[[#This Row],[OAT]],tbl_Chiller_Calc_Engine736[SCHWP Speed3],tbl_Chiller_Calc_Engine736[OAT]))), MEDIAN($N$127,$O$127,TREND($N$127:$O$127,$N$128:$O$128,tbl_Chiller_Calc_Engine736[[#This Row],[OAT]]))))) -> 0 | Y163: =IF(tbl_Chiller_Calc_Engine736[[#This Row],[Hours]]=0,0,IF($I$125="Baseline Trend Data",IF(ISBLANK(tbl_Chiller_Calc_Engine736[[#This Row],['# CWP]]),MEDIAN($F$41,$G$41,FORECAST(tbl_Chiller_Calc_Engine736[[#This Row],[OAT]],tbl_Chiller_Calc_Engine736['# CWP],tbl_Chiller_Calc_Engine736[OAT]))), IF($I$125="Proposed Trend Data",IF(ISBLANK(tbl_Chiller_Calc_Engine736[[#This Row],['# CWP2]]),MEDIAN($F$41,$G$41,FORECAST(tbl_Chiller_Calc_Engine736[[#This Row],[OAT]],tbl_Chiller_Calc_Engine736['# CWP2],tbl_Chiller_Calc_Engine736[OAT]))), ROUNDUP(MEDIAN($F$41,$G$41,TREND($F$41:$G$41,$F$42:$G$42,tbl_Chiller_Calc_Engine736[[#This Row],[OAT]])),0)))) -> 0 | Z163: =IF(tbl_Chiller_Calc_Engine736[[#This Row],[Hours]]=0,0,IF($I$125="Baseline Trend Data",IF(ISBLANK(tbl_Chiller_Calc_Engine736[[#This Row],[CWP Speed]]),MEDIAN($I$127,$J$127,FORECAST(tbl_Chiller_Calc_Engine736[[#This Row],[OAT]],tbl_Chiller_Calc_Engine736[CWP Speed],tbl_Chiller_Calc_Engine736[OAT]))), IF($I$125="Proposed Trend Data",IF(ISBLANK(tbl_Chiller_Calc_Engine736[[#This Row],[CWP Speed2]]),MEDIAN($I$127,$J$127,FORECAST(tbl_Chiller_Calc_Engine736[[#This Row],[OAT]],tbl_Chiller_Calc_Engine736[CWP Speed2],tbl_Chiller_Calc_Engine736[OAT]))), MEDIAN($I$127,$J$127,TREND($I$127:$J$127,$I$128:$J$128,tbl_Chiller_Calc_Engine736[[#This Row],[OAT]]))))) -> 0 | AA163: 2 | AB163: =IF(tbl_Chiller_Calc_Engine736[[#This Row],[Hours]]=0,0,IF($I$120="Baseline Trend Data",IF(ISBLANK(tbl_Chiller_Calc_Engine736[[#This Row],[Head in ft]]),MEDIAN($I$122,$J$122,FORECAST(tbl_Chiller_Calc_Engine736[[#This Row],[OAT]],tbl_Chiller_Calc_Engine736[Head in ft],tbl_Chiller_Calc_Engine736[OAT]))), IF($I$120="Proposed Trend Data",IF(ISBLANK(tbl_Chiller_Calc_Engine736[[#This Row],[Head in ft2]]),MEDIAN($I$122,$J$122,FORECAST(tbl_Chiller_Calc_Engine736[[#This Row],[OAT]],tbl_Chiller_Calc_Engine736[Head in ft2],tbl_Chiller_Calc_Engine736[OAT]))), ROUNDUP(MEDIAN($I$122,$J$122,TREND($I$122:$J$122,$I$123:$J$123,tbl_Chiller_Calc_Engine736[[#This Row],[OAT]]))*2.31,0)))) -> 0 | AC163: FALSE | AD163: =IF(OR(tbl_Chiller_Calc_Engine736[[#This Row],[Cooling Load (tons)2]]=0,tbl_Chiller_Calc_Engine736[[#This Row],[Econ Engaged]]),0,MEDIAN(0,MAX($W$124:$W$130),IFERROR(MATCH(tbl_Chiller_Calc_Engine736[[#This Row],[Cooling Load (tons)2]],$X$124:$X$130,1),0)+1)) -> 0 | AE163: =IF(tbl_Chiller_Calc_Engine736[[#This Row],[CT Load (Tons)]]=0,0,IFERROR(MEDIAN(0,MAX($Q$124:$Q$130),IFERROR(MATCH(tbl_Chiller_Calc_Engine736[[#This Row],[CT Load (Tons)]],$R$124:$R$130,1),0)+1),0)) -> 0 | AF163: =IF(OR(tbl_Chiller_Calc_Engine736[[#This Row],[Econ Engaged]],tbl_Chiller_Calc_Engine736[[#This Row],[Hours]]=0),0,SUMPRODUCT(tbl_Chiller_Calc_Engine736[[#This Row],[Cooling Load (tons)2]]*INDEX($Z$124:$AB$130,tbl_Chiller_Calc_Engine736[[#This Row],[CH Stage]],0)*$Z$118:$AB$118*(1-((tbl_Chiller_Calc_Engine736[[#This Row],[CHWST (°F)]]-$Z$119:$AB$119)+($Z$120:$AB$120-tbl_Chiller_Calc_Engine736[[#This Row],[CWST (°F)2]]))*$C$127))) -> 0 | AG163: 0 | AH163: =IF(tbl_Chiller_Calc_Engine736[[#This Row],[CH Stage]]=0,0,SUMPRODUCT(INDEX($T$124:$V$130,tbl_Chiller_Calc_Engine736[[#This Row],[CT Stage]],0),$D$133:$F$133)) -> 0 | AI163: =tbl_Chiller_Calc_Engine736[[#This Row],[PCHWP kW]]*tbl_Chiller_Calc_Engine736[[#This Row],[Hours]] -> 0 | AJ163: =(tbl_Chiller_Calc_Engine736[[#This Row],[SCHWP Qty]]*$C$129*$H$24*tbl_Chiller_Calc_Engine736[[#This Row],[SCHWP Speed2]]*tbl_Chiller_Calc_Engine736[[#This Row],[SCHWP Head]])/ (3960*$H$26*$H$27*IF($N$129=$F$129,1,$C$128)) -> 0 | AK163: =tbl_Chiller_Calc_Engine736[[#This Row],[SCHWP kW]]*tbl_Chiller_Calc_Engine736[[#This Row],[Hours]] -> 0 | AL163: =SUM(tbl_Chiller_Calc_Engine736[[#This Row],[Chiller Load kW]],tbl_Chiller_Calc_Engine736[[#This Row],[PCHWP kW]],tbl_Chiller_Calc_Engine736[[#This Row],[SCHWP kW]]) -> 0 | AM163: =SUM(tbl_Chiller_Calc_Engine736[[#This Row],[Chiller Load kWh]],tbl_Chiller_Calc_Engine736[[#This Row],[PCHWP kWh]],tbl_Chiller_Calc_Engine736[[#This Row],[SCHWP kWh]]) -> 0 | AN163: =IF(tbl_Chiller_Calc_Engine736[[#This Row],[CT Stage]]=0,0,SUMPRODUCT((IF(tbl_Chiller_Calc_Engine736[[#This Row],[CT Load (Tons)]]/INDEX($R$124:$R$130,tbl_Chiller_Calc_Engine736[[#This Row],[CT Stage]],0)>=$T$120:$V$120,tbl_Chiller_Calc_Engine736[[#This Row],[CT Load (Tons)]]/INDEX($R$124:$R$130,tbl_Chiller_Calc_Engine736[[#This Row],[CT Stage]],0),$T$120:$V$120)^$C$130*$T$118:$V$118*$C$129)/($C$128*$T$119:$V$119))) -> 0 | AO163: =tbl_Chiller_Calc_Engine736[[#This Row],[CT Fan kW]]*tbl_Chiller_Calc_Engine736[[#This Row],[Hours]] -> 0 | AP163: =(tbl_Chiller_Calc_Engine736[[#This Row],[CWP Qty]]*$C$129*$D$40*tbl_Chiller_Calc_Engine736[[#This Row],[CWP Speed3]]*$D$41)/ (3960*$D$42*$D$43*IF($I$129=$F$129,1,$C$128)) -> 0 | AQ163: =tbl_Chiller_Calc_Engine736[[#This Row],[CWP kW]]*tbl_Chiller_Calc_Engine736[[#This Row],[Hours]] -> 0
C164: 89 | D164: =IFERROR(AVERAGEIF(tbl_Climate_Zone[Dry_Bulb],tbl_Chiller_Calc_Engine736[[#This Row],[OAT]],tbl_Climate_Zone[Wet_Bulb]),0) -> 64 | E164: =SUM( COUNTIFS(tbl_Climate_Zone[Dry_Bulb],C164,tbl_Climate_Zone[Weekday],$C$12,tbl_Climate_Zone[Hour],">"&$D$12,tbl_Climate_Zone[Hour],"<="&$E$12), COUNTIFS(tbl_Climate_Zone[Dry_Bulb],C164,tbl_Climate_Zone[Weekday],$C$13,tbl_Climate_Zone[Hour],">"&$D$13,tbl_Climate_Zone[Hour],"<="&$E$13), COUNTIFS(tbl_Climate_Zone[Dry_Bulb],C164,tbl_Climate_Zone[Weekday],$C$14,tbl_Climate_Zone[Hour],">"&$D$14,tbl_Climate_Zone[Hour],"<="&$E$14)) -> 5 | T164: =IF(tbl_Chiller_Calc_Engine736[[#This Row],[Hours]]=0,0,IF($N$115="Baseline Trend Data", IF(ISBLANK(tbl_Chiller_Calc_Engine736[[#This Row],[ CHWST (°F)]]),MEDIAN($N$117,$O$117,FORECAST(tbl_Chiller_Calc_Engine736[[#This Row],[OAT]],tbl_Chiller_Calc_Engine736[ CHWST (°F)],tbl_Chiller_Calc_Engine736[OAT])),tbl_Chiller_Calc_Engine736[[#This Row],[ CHWST (°F)]]),IF($N$115="Proposed Trend Data", IF(ISBLANK(tbl_Chiller_Calc_Engine736[[#This Row],[ CHWST (°F)]]),MEDIAN($N$117,$O$117,FORECAST(tbl_Chiller_Calc_Engine736[[#This Row],[OAT]],tbl_Chiller_Calc_Engine736[ CHWST (°F)2],tbl_Chiller_Calc_Engine736[OAT])),tbl_Chiller_Calc_Engine736[[#This Row],[ CHWST (°F)2]]), MEDIAN($N$117,$O$117,TREND($N$117:$O$117,$N$118:$O$118,tbl_Chiller_Calc_Engine736[[#This Row],[OAT]]))))) -> 45 | U164: =IF(tbl_Chiller_Calc_Engine736[[#This Row],[Hours]]=0,0,IF($I$115="Baseline Trend Data", IF(ISBLANK(tbl_Chiller_Calc_Engine736[[#This Row],[CWST (°F)]]),MEDIAN($I$117,$J$117,FORECAST(tbl_Chiller_Calc_Engine736[[#This Row],[Average WBT]],tbl_Chiller_Calc_Engine736[CWST (°F)],tbl_Chiller_Calc_Engine736[Average WBT])),tbl_Chiller_Calc_Engine736[[#This Row],[CWST (°F)]]),IF($I$115="Proposed Trend Data", IF(ISBLANK(tbl_Chiller_Calc_Engine736[[#This Row],[CWST (°F)]]),MEDIAN($I$117,$J$117,FORECAST(tbl_Chiller_Calc_Engine736[[#This Row],[Average WBT]],tbl_Chiller_Calc_Engine736[CWST (°F)3],tbl_Chiller_Calc_Engine736[Average WBT])),tbl_Chiller_Calc_Engine736[[#This Row],[CWST (°F)3]]), MEDIAN($I$117,$J$117,TREND($I$117:$J$117,$I$118:$J$118,tbl_Chiller_Calc_Engine736[[#This Row],[Average WBT]]))))) -> 75 | V164: =IF(tbl_Chiller_Calc_Engine736[[#This Row],[Hours]]=0,0,IF($N$121="Baseline Trend Data",IF(ISBLANK(H164),FORECAST(C164,$H$138:$H$243,$C$138:$C$243),H164), IF($N$121 = "Proposed Trend Data",IF(ISBLANK(O164),FORECAST(C164,$O$138:$O$243,$C$138:$C$243),O164), IF(C164>=$N$131,MAX(TREND($N$122:$O$122,$N$123:$O$123,C164),0),0)))) -> 1365.714286 | W164: =IF(E164>0,V164*'Chilled Water System Template'!$C$131,0) -> 1707.142857 | X164: =IF(tbl_Chiller_Calc_Engine736[[#This Row],[Hours]]=0,0,IF($N$125="Baseline Trend Data",IF(ISBLANK(tbl_Chiller_Calc_Engine736[[#This Row],[SCHWP Speed]]),MEDIAN($N$127,$O$127,FORECAST(tbl_Chiller_Calc_Engine736[[#This Row],[OAT]],tbl_Chiller_Calc_Engine736[SCHWP Speed],tbl_Chiller_Calc_Engine736[OAT]))), IF($N$125="Proposed Trend Data",IF(ISBLANK(tbl_Chiller_Calc_Engine736[[#This Row],[SCHWP Speed3]]),MEDIAN($N$127,$O$127,FORECAST(tbl_Chiller_Calc_Engine736[[#This Row],[OAT]],tbl_Chiller_Calc_Engine736[SCHWP Speed3],tbl_Chiller_Calc_Engine736[OAT]))), MEDIAN($N$127,$O$127,TREND($N$127:$O$127,$N$128:$O$128,tbl_Chiller_Calc_Engine736[[#This Row],[OAT]]))))) -> 1 | Y164: =IF(tbl_Chiller_Calc_Engine736[[#This Row],[Hours]]=0,0,IF($I$125="Baseline Trend Data",IF(ISBLANK(tbl_Chiller_Calc_Engine736[[#This Row],['# CWP]]),MEDIAN($F$41,$G$41,FORECAST(tbl_Chiller_Calc_Engine736[[#This Row],[OAT]],tbl_Chiller_Calc_Engine736['# CWP],tbl_Chiller_Calc_Engine736[OAT]))), IF($I$125="Proposed Trend Data",IF(ISBLANK(tbl_Chiller_Calc_Engine736[[#This Row],['# CWP2]]),MEDIAN($F$41,$G$41,FORECAST(tbl_Chiller_Calc_Engine736[[#This Row],[OAT]],tbl_Chiller_Calc_Engine736['# CWP2],tbl_Chiller_Calc_Engine736[OAT]))), ROUNDUP(MEDIAN($F$41,$G$41,TREND($F$41:$G$41,$F$42:$G$42,tbl_Chiller_Calc_Engine736[[#This Row],[OAT]])),0)))) -> 2 | Z164: =IF(tbl_Chiller_Calc_Engine736[[#This Row],[Hours]]=0,0,IF($I$125="Baseline Trend Data",IF(ISBLANK(tbl_Chiller_Calc_Engine736[[#This Row],[CWP Speed]]),MEDIAN($I$127,$J$127,FORECAST(tbl_Chiller_Calc_Engine736[[#This Row],[OAT]],tbl_Chiller_Calc_Engine736[CWP Speed],tbl_Chiller_Calc_Engine736[OAT]))), IF($I$125="Proposed Trend Data",IF(ISBLANK(tbl_Chiller_Calc_Engine736[[#This Row],[CWP Speed2]]),MEDIAN($I$127,$J$127,FORECAST(tbl_Chiller_Calc_Engine736[[#This Row],[OAT]],tbl_Chiller_Calc_Engine736[CWP Speed2],tbl_Chiller_Calc_Engine736[OAT]))), MEDIAN($I$127,$J$127,TREND($I$127:$J$127,$I$128:$J$128,tbl_Chiller_Calc_Engine736[[#This Row],[OAT]]))))) -> 1 | AA164: 2 | AB164: =IF(tbl_Chiller_Calc_Engine736[[#This Row],[Hours]]=0,0,IF($I$120="Baseline Trend Data",IF(ISBLANK(tbl_Chiller_Calc_Engine736[[#This Row],[Head in ft]]),MEDIAN($I$122,$J$122,FORECAST(tbl_Chiller_Calc_Engine736[[#This Row],[OAT]],tbl_Chiller_Calc_Engine736[Head in ft],tbl_Chiller_Calc_Engine736[OAT]))), IF($I$120="Proposed Trend Data",IF(ISBLANK(tbl_Chiller_Calc_Engine736[[#This Row],[Head in ft2]]),MEDIAN($I$122,$J$122,FORECAST(tbl_Chiller_Calc_Engine736[[#This Row],[OAT]],tbl_Chiller_Calc_Engine736[Head in ft2],tbl_Chiller_Calc_Engine736[OAT]))), ROUNDUP(MEDIAN($I$122,$J$122,TREND($I$122:$J$122,$I$123:$J$123,tbl_Chiller_Calc_Engine736[[#This Row],[OAT]]))*2.31,0)))) -> 104 | AC164: FALSE | AD164: =IF(OR(tbl_Chiller_Calc_Engine736[[#This Row],[Cooling Load (tons)2]]=0,tbl_Chiller_Calc_Engine736[[#This Row],[Econ Engaged]]),0,MEDIAN(0,MAX($W$124:$W$130),IFERROR(MATCH(tbl_Chiller_Calc_Engine736[[#This Row],[Cooling Load (tons)2]],$X$124:$X$130,1),0)+1)) -> 3 | AE164: =IF(tbl_Chiller_Calc_Engine736[[#This Row],[CT Load (Tons)]]=0,0,IFERROR(MEDIAN(0,MAX($Q$124:$Q$130),IFERROR(MATCH(tbl_Chiller_Calc_Engine736[[#This Row],[CT Load (Tons)]],$R$124:$R$130,1),0)+1),0)) -> 3 | AF164: =IF(OR(tbl_Chiller_Calc_Engine736[[#This Row],[Econ Engaged]],tbl_Chiller_Calc_Engine736[[#This Row],[Hours]]=0),0,SUMPRODUCT(tbl_Chiller_Calc_Engine736[[#This Row],[Cooling Load (tons)2]]*INDEX($Z$124:$AB$130,tbl_Chiller_Calc_Engine736[[#This Row],[CH Stage]],0)*$Z$118:$AB$118*(1-((tbl_Chiller_Calc_Engine736[[#This Row],[CHWST (°F)]]-$Z$119:$AB$119)+($Z$120:$AB$120-tbl_Chiller_Calc_Engine736[[#This Row],[CWST (°F)2]]))*$C$127))) -> 635.4668571 | AG164: 3177.334286 | AH164: =IF(tbl_Chiller_Calc_Engine736[[#This Row],[CH Stage]]=0,0,SUMPRODUCT(INDEX($T$124:$V$130,tbl_Chiller_Calc_Engine736[[#This Row],[CT Stage]],0),$D$133:$F$133)) -> 6.593434343 | AI164: =tbl_Chiller_Calc_Engine736[[#This Row],[PCHWP kW]]*tbl_Chiller_Calc_Engine736[[#This Row],[Hours]] -> 32.96717172 | AJ164: =(tbl_Chiller_Calc_Engine736[[#This Row],[SCHWP Qty]]*$C$129*$H$24*tbl_Chiller_Calc_Engine736[[#This Row],[SCHWP Speed2]]*tbl_Chiller_Calc_Engine736[[#This Row],[SCHWP Head]])/ (3960*$H$26*$H$27*IF($N$129=$F$129,1,$C$128)) -> 68.96828481 | AK164: =tbl_Chiller_Calc_Engine736[[#This Row],[SCHWP kW]]*tbl_Chiller_Calc_Engine736[[#This Row],[Hours]] -> 344.841424 | AL164: =SUM(tbl_Chiller_Calc_Engine736[[#This Row],[Chiller Load kW]],tbl_Chiller_Calc_Engine736[[#This Row],[PCHWP kW]],tbl_Chiller_Calc_Engine736[[#This Row],[SCHWP kW]]) -> 711.0285763 | AM164: =SUM(tbl_Chiller_Calc_Engine736[[#This Row],[Chiller Load kWh]],tbl_Chiller_Calc_Engine736[[#This Row],[PCHWP kWh]],tbl_Chiller_Calc_Engine736[[#This Row],[SCHWP kWh]]) -> 3555.142881 | AN164: =IF(tbl_Chiller_Calc_Engine736[[#This Row],[CT Stage]]=0,0,SUMPRODUCT((IF(tbl_Chiller_Calc_Engine736[[#This Row],[CT Load (Tons)]]/INDEX($R$124:$R$130,tbl_Chiller_Calc_Engine736[[#This Row],[CT Stage]],0)>=$T$120:$V$120,tbl_Chiller_Calc_Engine736[[#This Row],[CT Load (Tons)]]/INDEX($R$124:$R$130,tbl_Chiller_Calc_Engine736[[#This Row],[CT Stage]],0),$T$120:$V$120)^$C$130*$T$118:$V$118*$C$129)/($C$128*$T$119:$V$119))) -> 27.77423276 | AO164: =tbl_Chiller_Calc_Engine736[[#This Row],[CT Fan kW]]*tbl_Chiller_Calc_Engine736[[#This Row],[Hours]] -> 138.8711638 | AP164: =(tbl_Chiller_Calc_Engine736[[#This Row],[CWP Qty]]*$C$129*$D$40*tbl_Chiller_Calc_Engine736[[#This Row],[CWP Speed3]]*$D$41)/ (3960*$D$42*$D$43*IF($I$129=$F$129,1,$C$128)) -> 46.54188948 | AQ164: =tbl_Chiller_Calc_Engine736[[#This Row],[CWP kW]]*tbl_Chiller_Calc_Engine736[[#This Row],[Hours]] -> 232.7094474
C165: 88 | D165: =IFERROR(AVERAGEIF(tbl_Climate_Zone[Dry_Bulb],tbl_Chiller_Calc_Engine736[[#This Row],[OAT]],tbl_Climate_Zone[Wet_Bulb]),0) -> 66.33333333 | E165: =SUM( COUNTIFS(tbl_Climate_Zone[Dry_Bulb],C165,tbl_Climate_Zone[Weekday],$C$12,tbl_Climate_Zone[Hour],">"&$D$12,tbl_Climate_Zone[Hour],"<="&$E$12), COUNTIFS(tbl_Climate_Zone[Dry_Bulb],C165,tbl_Climate_Zone[Weekday],$C$13,tbl_Climate_Zone[Hour],">"&$D$13,tbl_Climate_Zone[Hour],"<="&$E$13), COUNTIFS(tbl_Climate_Zone[Dry_Bulb],C165,tbl_Climate_Zone[Weekday],$C$14,tbl_Climate_Zone[Hour],">"&$D$14,tbl_Climate_Zone[Hour],"<="&$E$14)) -> 3 | T165: =IF(tbl_Chiller_Calc_Engine736[[#This Row],[Hours]]=0,0,IF($N$115="Baseline Trend Data", IF(ISBLANK(tbl_Chiller_Calc_Engine736[[#This Row],[ CHWST (°F)]]),MEDIAN($N$117,$O$117,FORECAST(tbl_Chiller_Calc_Engine736[[#This Row],[OAT]],tbl_Chiller_Calc_Engine736[ CHWST (°F)],tbl_Chiller_Calc_Engine736[OAT])),tbl_Chiller_Calc_Engine736[[#This Row],[ CHWST (°F)]]),IF($N$115="Proposed Trend Data", IF(ISBLANK(tbl_Chiller_Calc_Engine736[[#This Row],[ CHWST (°F)]]),MEDIAN($N$117,$O$117,FORECAST(tbl_Chiller_Calc_Engine736[[#This Row],[OAT]],tbl_Chiller_Calc_Engine736[ CHWST (°F)2],tbl_Chiller_Calc_Engine736[OAT])),tbl_Chiller_Calc_Engine736[[#This Row],[ CHWST (°F)2]]), MEDIAN($N$117,$O$117,TREND($N$117:$O$117,$N$118:$O$118,tbl_Chiller_Calc_Engine736[[#This Row],[OAT]]))))) -> 45 | U165: =IF(tbl_Chiller_Calc_Engine736[[#This Row],[Hours]]=0,0,IF($I$115="Baseline Trend Data", IF(ISBLANK(tbl_Chiller_Calc_Engine736[[#This Row],[CWST (°F)]]),MEDIAN($I$117,$J$117,FORECAST(tbl_Chiller_Calc_Engine736[[#This Row],[Average WBT]],tbl_Chiller_Calc_Engine736[CWST (°F)],tbl_Chiller_Calc_Engine736[Average WBT])),tbl_Chiller_Calc_Engine736[[#This Row],[CWST (°F)]]),IF($I$115="Proposed Trend Data", IF(ISBLANK(tbl_Chiller_Calc_Engine736[[#This Row],[CWST (°F)]]),MEDIAN($I$117,$J$117,FORECAST(tbl_Chiller_Calc_Engine736[[#This Row],[Average WBT]],tbl_Chiller_Calc_Engine736[CWST (°F)3],tbl_Chiller_Calc_Engine736[Average WBT])),tbl_Chiller_Calc_Engine736[[#This Row],[CWST (°F)3]]), MEDIAN($I$117,$J$117,TREND($I$117:$J$117,$I$118:$J$118,tbl_Chiller_Calc_Engine736[[#This Row],[Average WBT]]))))) -> 75 | V165: =IF(tbl_Chiller_Calc_Engine736[[#This Row],[Hours]]=0,0,IF($N$121="Baseline Trend Data",IF(ISBLANK(H165),FORECAST(C165,$H$138:$H$243,$C$138:$C$243),H165), IF($N$121 = "Proposed Trend Data",IF(ISBLANK(O165),FORECAST(C165,$O$138:$O$243,$C$138:$C$243),O165), IF(C165>=$N$131,MAX(TREND($N$122:$O$122,$N$123:$O$123,C165),0),0)))) -> 1331.428571 | W165: =IF(E165>0,V165*'Chilled Water System Template'!$C$131,0) -> 1664.285714 | X165: =IF(tbl_Chiller_Calc_Engine736[[#This Row],[Hours]]=0,0,IF($N$125="Baseline Trend Data",IF(ISBLANK(tbl_Chiller_Calc_Engine736[[#This Row],[SCHWP Speed]]),MEDIAN($N$127,$O$127,FORECAST(tbl_Chiller_Calc_Engine736[[#This Row],[OAT]],tbl_Chiller_Calc_Engine736[SCHWP Speed],tbl_Chiller_Calc_Engine736[OAT]))), IF($N$125="Proposed Trend Data",IF(ISBLANK(tbl_Chiller_Calc_Engine736[[#This Row],[SCHWP Speed3]]),MEDIAN($N$127,$O$127,FORECAST(tbl_Chiller_Calc_Engine736[[#This Row],[OAT]],tbl_Chiller_Calc_Engine736[SCHWP Speed3],tbl_Chiller_Calc_Engine736[OAT]))), MEDIAN($N$127,$O$127,TREND($N$127:$O$127,$N$128:$O$128,tbl_Chiller_Calc_Engine736[[#This Row],[OAT]]))))) -> 1 | Y165: =IF(tbl_Chiller_Calc_Engine736[[#This Row],[Hours]]=0,0,IF($I$125="Baseline Trend Data",IF(ISBLANK(tbl_Chiller_Calc_Engine736[[#This Row],['# CWP]]),MEDIAN($F$41,$G$41,FORECAST(tbl_Chiller_Calc_Engine736[[#This Row],[OAT]],tbl_Chiller_Calc_Engine736['# CWP],tbl_Chiller_Calc_Engine736[OAT]))), IF($I$125="Proposed Trend Data",IF(ISBLANK(tbl_Chiller_Calc_Engine736[[#This Row],['# CWP2]]),MEDIAN($F$41,$G$41,FORECAST(tbl_Chiller_Calc_Engine736[[#This Row],[OAT]],tbl_Chiller_Calc_Engine736['# CWP2],tbl_Chiller_Calc_Engine736[OAT]))), ROUNDUP(MEDIAN($F$41,$G$41,TREND($F$41:$G$41,$F$42:$G$42,tbl_Chiller_Calc_Engine736[[#This Row],[OAT]])),0)))) -> 2 | Z165: =IF(tbl_Chiller_Calc_Engine736[[#This Row],[Hours]]=0,0,IF($I$125="Baseline Trend Data",IF(ISBLANK(tbl_Chiller_Calc_Engine736[[#This Row],[CWP Speed]]),MEDIAN($I$127,$J$127,FORECAST(tbl_Chiller_Calc_Engine736[[#This Row],[OAT]],tbl_Chiller_Calc_Engine736[CWP Speed],tbl_Chiller_Calc_Engine736[OAT]))), IF($I$125="Proposed Trend Data",IF(ISBLANK(tbl_Chiller_Calc_Engine736[[#This Row],[CWP Speed2]]),MEDIAN($I$127,$J$127,FORECAST(tbl_Chiller_Calc_Engine736[[#This Row],[OAT]],tbl_Chiller_Calc_Engine736[CWP Speed2],tbl_Chiller_Calc_Engine736[OAT]))), MEDIAN($I$127,$J$127,TREND($I$127:$J$127,$I$128:$J$128,tbl_Chiller_Calc_Engine736[[#This Row],[OAT]]))))) -> 1 | AA165: 2 | AB165: =IF(tbl_Chiller_Calc_Engine736[[#This Row],[Hours]]=0,0,IF($I$120="Baseline Trend Data",IF(ISBLANK(tbl_Chiller_Calc_Engine736[[#This Row],[Head in ft]]),MEDIAN($I$122,$J$122,FORECAST(tbl_Chiller_Calc_Engine736[[#This Row],[OAT]],tbl_Chiller_Calc_Engine736[Head in ft],tbl_Chiller_Calc_Engine736[OAT]))), IF($I$120="Proposed Trend Data",IF(ISBLANK(tbl_Chiller_Calc_Engine736[[#This Row],[Head in ft2]]),MEDIAN($I$122,$J$122,FORECAST(tbl_Chiller_Calc_Engine736[[#This Row],[OAT]],tbl_Chiller_Calc_Engine736[Head in ft2],tbl_Chiller_Calc_Engine736[OAT]))), ROUNDUP(MEDIAN($I$122,$J$122,TREND($I$122:$J$122,$I$123:$J$123,tbl_Chiller_Calc_Engine736[[#This Row],[OAT]]))*2.31,0)))) -> 104 | AC165: FALSE | AD165: =IF(OR(tbl_Chiller_Calc_Engine736[[#This Row],[Cooling Load (tons)2]]=0,tbl_Chiller_Calc_Engine736[[#This Row],[Econ Engaged]]),0,MEDIAN(0,MAX($W$124:$W$130),IFERROR(MATCH(tbl_Chiller_Calc_Engine736[[#This Row],[Cooling Load (tons)2]],$X$124:$X$130,1),0)+1)) -> 3 | AE165: =IF(tbl_Chiller_Calc_Engine736[[#This Row],[CT Load (Tons)]]=0,0,IFERROR(MEDIAN(0,MAX($Q$124:$Q$130),IFERROR(MATCH(tbl_Chiller_Calc_Engine736[[#This Row],[CT Load (Tons)]],$R$124:$R$130,1),0)+1),0)) -> 3 | AF165: =IF(OR(tbl_Chiller_Calc_Engine736[[#This Row],[Econ Engaged]],tbl_Chiller_Calc_Engine736[[#This Row],[Hours]]=0),0,SUMPRODUCT(tbl_Chiller_Calc_Engine736[[#This Row],[Cooling Load (tons)2]]*INDEX($Z$124:$AB$130,tbl_Chiller_Calc_Engine736[[#This Row],[CH Stage]],0)*$Z$118:$AB$118*(1-((tbl_Chiller_Calc_Engine736[[#This Row],[CHWST (°F)]]-$Z$119:$AB$119)+($Z$120:$AB$120-tbl_Chiller_Calc_Engine736[[#This Row],[CWST (°F)2]]))*$C$127))) -> 619.5137143 | AG165: 1858.541143 | AH165: =IF(tbl_Chiller_Calc_Engine736[[#This Row],[CH Stage]]=0,0,SUMPRODUCT(INDEX($T$124:$V$130,tbl_Chiller_Calc_Engine736[[#This Row],[CT Stage]],0),$D$133:$F$133)) -> 6.593434343 | AI165: =tbl_Chiller_Calc_Engine736[[#This Row],[PCHWP kW]]*tbl_Chiller_Calc_Engine736[[#This Row],[Hours]] -> 19.78030303 | AJ165: =(tbl_Chiller_Calc_Engine736[[#This Row],[SCHWP Qty]]*$C$129*$H$24*tbl_Chiller_Calc_Engine736[[#This Row],[SCHWP Speed2]]*tbl_Chiller_Calc_Engine736[[#This Row],[SCHWP Head]])/ (3960*$H$26*$H$27*IF($N$129=$F$129,1,$C$128)) -> 68.96828481 | AK165: =tbl_Chiller_Calc_Engine736[[#This Row],[SCHWP kW]]*tbl_Chiller_Calc_Engine736[[#This Row],[Hours]] -> 206.9048544 | AL165: =SUM(tbl_Chiller_Calc_Engine736[[#This Row],[Chiller Load kW]],tbl_Chiller_Calc_Engine736[[#This Row],[PCHWP kW]],tbl_Chiller_Calc_Engine736[[#This Row],[SCHWP kW]]) -> 695.0754334 | AM165: =SUM(tbl_Chiller_Calc_Engine736[[#This Row],[Chiller Load kWh]],tbl_Chiller_Calc_Engine736[[#This Row],[PCHWP kWh]],tbl_Chiller_Calc_Engine736[[#This Row],[SCHWP kWh]]) -> 2085.2263 | AN165: =IF(tbl_Chiller_Calc_Engine736[[#This Row],[CT Stage]]=0,0,SUMPRODUCT((IF(tbl_Chiller_Calc_Engine736[[#This Row],[CT Load (Tons)]]/INDEX($R$124:$R$130,tbl_Chiller_Calc_Engine736[[#This Row],[CT Stage]],0)>=$T$120:$V$120,tbl_Chiller_Calc_Engine736[[#This Row],[CT Load (Tons)]]/INDEX($R$124:$R$130,tbl_Chiller_Calc_Engine736[[#This Row],[CT Stage]],0),$T$120:$V$120)^$C$130*$T$118:$V$118*$C$129)/($C$128*$T$119:$V$119))) -> 26.06376318 | AO165: =tbl_Chiller_Calc_Engine736[[#This Row],[CT Fan kW]]*tbl_Chiller_Calc_Engine736[[#This Row],[Hours]] -> 78.19128955 | AP165: =(tbl_Chiller_Calc_Engine736[[#This Row],[CWP Qty]]*$C$129*$D$40*tbl_Chiller_Calc_Engine736[[#This Row],[CWP Speed3]]*$D$41)/ (3960*$D$42*$D$43*IF($I$129=$F$129,1,$C$128)) -> 46.54188948 | AQ165: =tbl_Chiller_Calc_Engine736[[#This Row],[CWP kW]]*tbl_Chiller_Calc_Engine736[[#This Row],[Hours]] -> 139.6256684
C166: 87 | D166: =IFERROR(AVERAGEIF(tbl_Climate_Zone[Dry_Bulb],tbl_Chiller_Calc_Engine736[[#This Row],[OAT]],tbl_Climate_Zone[Wet_Bulb]),0) -> 67.8 | E166: =SUM( COUNTIFS(tbl_Climate_Zone[Dry_Bulb],C166,tbl_Climate_Zone[Weekday],$C$12,tbl_Climate_Zone[Hour],">"&$D$12,tbl_Climate_Zone[Hour],"<="&$E$12), COUNTIFS(tbl_Climate_Zone[Dry_Bulb],C166,tbl_Climate_Zone[Weekday],$C$13,tbl_Climate_Zone[Hour],">"&$D$13,tbl_Climate_Zone[Hour],"<="&$E$13), COUNTIFS(tbl_Climate_Zone[Dry_Bulb],C166,tbl_Climate_Zone[Weekday],$C$14,tbl_Climate_Zone[Hour],">"&$D$14,tbl_Climate_Zone[Hour],"<="&$E$14)) -> 5 | T166: =IF(tbl_Chiller_Calc_Engine736[[#This Row],[Hours]]=0,0,IF($N$115="Baseline Trend Data", IF(ISBLANK(tbl_Chiller_Calc_Engine736[[#This Row],[ CHWST (°F)]]),MEDIAN($N$117,$O$117,FORECAST(tbl_Chiller_Calc_Engine736[[#This Row],[OAT]],tbl_Chiller_Calc_Engine736[ CHWST (°F)],tbl_Chiller_Calc_Engine736[OAT])),tbl_Chiller_Calc_Engine736[[#This Row],[ CHWST (°F)]]),IF($N$115="Proposed Trend Data", IF(ISBLANK(tbl_Chiller_Calc_Engine736[[#This Row],[ CHWST (°F)]]),MEDIAN($N$117,$O$117,FORECAST(tbl_Chiller_Calc_Engine736[[#This Row],[OAT]],tbl_Chiller_Calc_Engine736[ CHWST (°F)2],tbl_Chiller_Calc_Engine736[OAT])),tbl_Chiller_Calc_Engine736[[#This Row],[ CHWST (°F)2]]), MEDIAN($N$117,$O$117,TREND($N$117:$O$117,$N$118:$O$118,tbl_Chiller_Calc_Engine736[[#This Row],[OAT]]))))) -> 45 | U166: =IF(tbl_Chiller_Calc_Engine736[[#This Row],[Hours]]=0,0,IF($I$115="Baseline Trend Data", IF(ISBLANK(tbl_Chiller_Calc_Engine736[[#This Row],[CWST (°F)]]),MEDIAN($I$117,$J$117,FORECAST(tbl_Chiller_Calc_Engine736[[#This Row],[Average WBT]],tbl_Chiller_Calc_Engine736[CWST (°F)],tbl_Chiller_Calc_Engine736[Average WBT])),tbl_Chiller_Calc_Engine736[[#This Row],[CWST (°F)]]),IF($I$115="Proposed Trend Data", IF(ISBLANK(tbl_Chiller_Calc_Engine736[[#This Row],[CWST (°F)]]),MEDIAN($I$117,$J$117,FORECAST(tbl_Chiller_Calc_Engine736[[#This Row],[Average WBT]],tbl_Chiller_Calc_Engine736[CWST (°F)3],tbl_Chiller_Calc_Engine736[Average WBT])),tbl_Chiller_Calc_Engine736[[#This Row],[CWST (°F)3]]), MEDIAN($I$117,$J$117,TREND($I$117:$J$117,$I$118:$J$118,tbl_Chiller_Calc_Engine736[[#This Row],[Average WBT]]))))) -> 75 | V166: =IF(tbl_Chiller_Calc_Engine736[[#This Row],[Hours]]=0,0,IF($N$121="Baseline Trend Data",IF(ISBLANK(H166),FORECAST(C166,$H$138:$H$243,$C$138:$C$243),H166), IF($N$121 = "Proposed Trend Data",IF(ISBLANK(O166),FORECAST(C166,$O$138:$O$243,$C$138:$C$243),O166), IF(C166>=$N$131,MAX(TREND($N$122:$O$122,$N$123:$O$123,C166),0),0)))) -> 1297.142857 | W166: =IF(E166>0,V166*'Chilled Water System Template'!$C$131,0) -> 1621.428571 | X166: =IF(tbl_Chiller_Calc_Engine736[[#This Row],[Hours]]=0,0,IF($N$125="Baseline Trend Data",IF(ISBLANK(tbl_Chiller_Calc_Engine736[[#This Row],[SCHWP Speed]]),MEDIAN($N$127,$O$127,FORECAST(tbl_Chiller_Calc_Engine736[[#This Row],[OAT]],tbl_Chiller_Calc_Engine736[SCHWP Speed],tbl_Chiller_Calc_Engine736[OAT]))), IF($N$125="Proposed Trend Data",IF(ISBLANK(tbl_Chiller_Calc_Engine736[[#This Row],[SCHWP Speed3]]),MEDIAN($N$127,$O$127,FORECAST(tbl_Chiller_Calc_Engine736[[#This Row],[OAT]],tbl_Chiller_Calc_Engine736[SCHWP Speed3],tbl_Chiller_Calc_Engine736[OAT]))), MEDIAN($N$127,$O$127,TREND($N$127:$O$127,$N$128:$O$128,tbl_Chiller_Calc_Engine736[[#This Row],[OAT]]))))) -> 1 | Y166: =IF(tbl_Chiller_Calc_Engine736[[#This Row],[Hours]]=0,0,IF($I$125="Baseline Trend Data",IF(ISBLANK(tbl_Chiller_Calc_Engine736[[#This Row],['# CWP]]),MEDIAN($F$41,$G$41,FORECAST(tbl_Chiller_Calc_Engine736[[#This Row],[OAT]],tbl_Chiller_Calc_Engine736['# CWP],tbl_Chiller_Calc_Engine736[OAT]))), IF($I$125="Proposed Trend Data",IF(ISBLANK(tbl_Chiller_Calc_Engine736[[#This Row],['# CWP2]]),MEDIAN($F$41,$G$41,FORECAST(tbl_Chiller_Calc_Engine736[[#This Row],[OAT]],tbl_Chiller_Calc_Engine736['# CWP2],tbl_Chiller_Calc_Engine736[OAT]))), ROUNDUP(MEDIAN($F$41,$G$41,TREND($F$41:$G$41,$F$42:$G$42,tbl_Chiller_Calc_Engine736[[#This Row],[OAT]])),0)))) -> 2 | Z166: =IF(tbl_Chiller_Calc_Engine736[[#This Row],[Hours]]=0,0,IF($I$125="Baseline Trend Data",IF(ISBLANK(tbl_Chiller_Calc_Engine736[[#This Row],[CWP Speed]]),MEDIAN($I$127,$J$127,FORECAST(tbl_Chiller_Calc_Engine736[[#This Row],[OAT]],tbl_Chiller_Calc_Engine736[CWP Speed],tbl_Chiller_Calc_Engine736[OAT]))), IF($I$125="Proposed Trend Data",IF(ISBLANK(tbl_Chiller_Calc_Engine736[[#This Row],[CWP Speed2]]),MEDIAN($I$127,$J$127,FORECAST(tbl_Chiller_Calc_Engine736[[#This Row],[OAT]],tbl_Chiller_Calc_Engine736[CWP Speed2],tbl_Chiller_Calc_Engine736[OAT]))), MEDIAN($I$127,$J$127,TREND($I$127:$J$127,$I$128:$J$128,tbl_Chiller_Calc_Engine736[[#This Row],[OAT]]))))) -> 1 | AA166: 2 | AB166: =IF(tbl_Chiller_Calc_Engine736[[#This Row],[Hours]]=0,0,IF($I$120="Baseline Trend Data",IF(ISBLANK(tbl_Chiller_Calc_Engine736[[#This Row],[Head in ft]]),MEDIAN($I$122,$J$122,FORECAST(tbl_Chiller_Calc_Engine736[[#This Row],[OAT]],tbl_Chiller_Calc_Engine736[Head in ft],tbl_Chiller_Calc_Engine736[OAT]))), IF($I$120="Proposed Trend Data",IF(ISBLANK(tbl_Chiller_Calc_Engine736[[#This Row],[Head in ft2]]),MEDIAN($I$122,$J$122,FORECAST(tbl_Chiller_Calc_Engine736[[#This Row],[OAT]],tbl_Chiller_Calc_Engine736[Head in ft2],tbl_Chiller_Calc_Engine736[OAT]))), ROUNDUP(MEDIAN($I$122,$J$122,TREND($I$122:$J$122,$I$123:$J$123,tbl_Chiller_Calc_Engine736[[#This Row],[OAT]]))*2.31,0)))) -> 104 | AC166: FALSE | AD166: =IF(OR(tbl_Chiller_Calc_Engine736[[#This Row],[Cooling Load (tons)2]]=0,tbl_Chiller_Calc_Engine736[[#This Row],[Econ Engaged]]),0,MEDIAN(0,MAX($W$124:$W$130),IFERROR(MATCH(tbl_Chiller_Calc_Engine736[[#This Row],[Cooling Load (tons)2]],$X$124:$X$130,1),0)+1)) -> 3 | AE166: =IF(tbl_Chiller_Calc_Engine736[[#This Row],[CT Load (Tons)]]=0,0,IFERROR(MEDIAN(0,MAX($Q$124:$Q$130),IFERROR(MATCH(tbl_Chiller_Calc_Engine736[[#This Row],[CT Load (Tons)]],$R$124:$R$130,1),0)+1),0)) -> 3 | AF166: =IF(OR(tbl_Chiller_Calc_Engine736[[#This Row],[Econ Engaged]],tbl_Chiller_Calc_Engine736[[#This Row],[Hours]]=0),0,SUMPRODUCT(tbl_Chiller_Calc_Engine736[[#This Row],[Cooling Load (tons)2]]*INDEX($Z$124:$AB$130,tbl_Chiller_Calc_Engine736[[#This Row],[CH Stage]],0)*$Z$118:$AB$118*(1-((tbl_Chiller_Calc_Engine736[[#This Row],[CHWST (°F)]]-$Z$119:$AB$119)+($Z$120:$AB$120-tbl_Chiller_Calc_Engine736[[#This Row],[CWST (°F)2]]))*$C$127))) -> 603.5605714 | AG166: 3017.802857 | AH166: =IF(tbl_Chiller_Calc_Engine736[[#This Row],[CH Stage]]=0,0,SUMPRODUCT(INDEX($T$124:$V$130,tbl_Chiller_Calc_Engine736[[#This Row],[CT Stage]],0),$D$133:$F$133)) -> 6.593434343 | AI166: =tbl_Chiller_Calc_Engine736[[#This Row],[PCHWP kW]]*tbl_Chiller_Calc_Engine736[[#This Row],[Hours]] -> 32.96717172 | AJ166: =(tbl_Chiller_Calc_Engine736[[#This Row],[SCHWP Qty]]*$C$129*$H$24*tbl_Chiller_Calc_Engine736[[#This Row],[SCHWP Speed2]]*tbl_Chiller_Calc_Engine736[[#This Row],[SCHWP Head]])/ (3960*$H$26*$H$27*IF($N$129=$F$129,1,$C$128)) -> 68.96828481 | AK166: =tbl_Chiller_Calc_Engine736[[#This Row],[SCHWP kW]]*tbl_Chiller_Calc_Engine736[[#This Row],[Hours]] -> 344.841424 | AL166: =SUM(tbl_Chiller_Calc_Engine736[[#This Row],[Chiller Load kW]],tbl_Chiller_Calc_Engine736[[#This Row],[PCHWP kW]],tbl_Chiller_Calc_Engine736[[#This Row],[SCHWP kW]]) -> 679.1222906 | AM166: =SUM(tbl_Chiller_Calc_Engine736[[#This Row],[Chiller Load kWh]],tbl_Chiller_Calc_Engine736[[#This Row],[PCHWP kWh]],tbl_Chiller_Calc_Engine736[[#This Row],[SCHWP kWh]]) -> 3395.611453 | AN166: =IF(tbl_Chiller_Calc_Engine736[[#This Row],[CT Stage]]=0,0,SUMPRODUCT((IF(tbl_Chiller_Calc_Engine736[[#This Row],[CT Load (Tons)]]/INDEX($R$124:$R$130,tbl_Chiller_Calc_Engine736[[#This Row],[CT Stage]],0)>=$T$120:$V$120,tbl_Chiller_Calc_Engine736[[#This Row],[CT Load (Tons)]]/INDEX($R$124:$R$130,tbl_Chiller_Calc_Engine736[[#This Row],[CT Stage]],0),$T$120:$V$120)^$C$130*$T$118:$V$118*$C$129)/($C$128*$T$119:$V$119))) -> 24.41810525 | AO166: =tbl_Chiller_Calc_Engine736[[#This Row],[CT Fan kW]]*tbl_Chiller_Calc_Engine736[[#This Row],[Hours]] -> 122.0905263 | AP166: =(tbl_Chiller_Calc_Engine736[[#This Row],[CWP Qty]]*$C$129*$D$40*tbl_Chiller_Calc_Engine736[[#This Row],[CWP Speed3]]*$D$41)/ (3960*$D$42*$D$43*IF($I$129=$F$129,1,$C$128)) -> 46.54188948 | AQ166: =tbl_Chiller_Calc_Engine736[[#This Row],[CWP kW]]*tbl_Chiller_Calc_Engine736[[#This Row],[Hours]] -> 232.7094474
C167: 86 | D167: =IFERROR(AVERAGEIF(tbl_Climate_Zone[Dry_Bulb],tbl_Chiller_Calc_Engine736[[#This Row],[OAT]],tbl_Climate_Zone[Wet_Bulb]),0) -> 66.7 | E167: =SUM( COUNTIFS(tbl_Climate_Zone[Dry_Bulb],C167,tbl_Climate_Zone[Weekday],$C$12,tbl_Climate_Zone[Hour],">"&$D$12,tbl_Climate_Zone[Hour],"<="&$E$12), COUNTIFS(tbl_Climate_Zone[Dry_Bulb],C167,tbl_Climate_Zone[Weekday],$C$13,tbl_Climate_Zone[Hour],">"&$D$13,tbl_Climate_Zone[Hour],"<="&$E$13), COUNTIFS(tbl_Climate_Zone[Dry_Bulb],C167,tbl_Climate_Zone[Weekday],$C$14,tbl_Climate_Zone[Hour],">"&$D$14,tbl_Climate_Zone[Hour],"<="&$E$14)) -> 10 | T167: =IF(tbl_Chiller_Calc_Engine736[[#This Row],[Hours]]=0,0,IF($N$115="Baseline Trend Data", IF(ISBLANK(tbl_Chiller_Calc_Engine736[[#This Row],[ CHWST (°F)]]),MEDIAN($N$117,$O$117,FORECAST(tbl_Chiller_Calc_Engine736[[#This Row],[OAT]],tbl_Chiller_Calc_Engine736[ CHWST (°F)],tbl_Chiller_Calc_Engine736[OAT])),tbl_Chiller_Calc_Engine736[[#This Row],[ CHWST (°F)]]),IF($N$115="Proposed Trend Data", IF(ISBLANK(tbl_Chiller_Calc_Engine736[[#This Row],[ CHWST (°F)]]),MEDIAN($N$117,$O$117,FORECAST(tbl_Chiller_Calc_Engine736[[#This Row],[OAT]],tbl_Chiller_Calc_Engine736[ CHWST (°F)2],tbl_Chiller_Calc_Engine736[OAT])),tbl_Chiller_Calc_Engine736[[#This Row],[ CHWST (°F)2]]), MEDIAN($N$117,$O$117,TREND($N$117:$O$117,$N$118:$O$118,tbl_Chiller_Calc_Engine736[[#This Row],[OAT]]))))) -> 45 | U167: =IF(tbl_Chiller_Calc_Engine736[[#This Row],[Hours]]=0,0,IF($I$115="Baseline Trend Data", IF(ISBLANK(tbl_Chiller_Calc_Engine736[[#This Row],[CWST (°F)]]),MEDIAN($I$117,$J$117,FORECAST(tbl_Chiller_Calc_Engine736[[#This Row],[Average WBT]],tbl_Chiller_Calc_Engine736[CWST (°F)],tbl_Chiller_Calc_Engine736[Average WBT])),tbl_Chiller_Calc_Engine736[[#This Row],[CWST (°F)]]),IF($I$115="Proposed Trend Data", IF(ISBLANK(tbl_Chiller_Calc_Engine736[[#This Row],[CWST (°F)]]),MEDIAN($I$117,$J$117,FORECAST(tbl_Chiller_Calc_Engine736[[#This Row],[Average WBT]],tbl_Chiller_Calc_Engine736[CWST (°F)3],tbl_Chiller_Calc_Engine736[Average WBT])),tbl_Chiller_Calc_Engine736[[#This Row],[CWST (°F)3]]), MEDIAN($I$117,$J$117,TREND($I$117:$J$117,$I$118:$J$118,tbl_Chiller_Calc_Engine736[[#This Row],[Average WBT]]))))) -> 75 | V167: =IF(tbl_Chiller_Calc_Engine736[[#This Row],[Hours]]=0,0,IF($N$121="Baseline Trend Data",IF(ISBLANK(H167),FORECAST(C167,$H$138:$H$243,$C$138:$C$243),H167), IF($N$121 = "Proposed Trend Data",IF(ISBLANK(O167),FORECAST(C167,$O$138:$O$243,$C$138:$C$243),O167), IF(C167>=$N$131,MAX(TREND($N$122:$O$122,$N$123:$O$123,C167),0),0)))) -> 1262.857143 | W167: =IF(E167>0,V167*'Chilled Water System Template'!$C$131,0) -> 1578.571429 | X167: =IF(tbl_Chiller_Calc_Engine736[[#This Row],[Hours]]=0,0,IF($N$125="Baseline Trend Data",IF(ISBLANK(tbl_Chiller_Calc_Engine736[[#This Row],[SCHWP Speed]]),MEDIAN($N$127,$O$127,FORECAST(tbl_Chiller_Calc_Engine736[[#This Row],[OAT]],tbl_Chiller_Calc_Engine736[SCHWP Speed],tbl_Chiller_Calc_Engine736[OAT]))), IF($N$125="Proposed Trend Data",IF(ISBLANK(tbl_Chiller_Calc_Engine736[[#This Row],[SCHWP Speed3]]),MEDIAN($N$127,$O$127,FORECAST(tbl_Chiller_Calc_Engine736[[#This Row],[OAT]],tbl_Chiller_Calc_Engine736[SCHWP Speed3],tbl_Chiller_Calc_Engine736[OAT]))), MEDIAN($N$127,$O$127,TREND($N$127:$O$127,$N$128:$O$128,tbl_Chiller_Calc_Engine736[[#This Row],[OAT]]))))) -> 1 | Y167: =IF(tbl_Chiller_Calc_Engine736[[#This Row],[Hours]]=0,0,IF($I$125="Baseline Trend Data",IF(ISBLANK(tbl_Chiller_Calc_Engine736[[#This Row],['# CWP]]),MEDIAN($F$41,$G$41,FORECAST(tbl_Chiller_Calc_Engine736[[#This Row],[OAT]],tbl_Chiller_Calc_Engine736['# CWP],tbl_Chiller_Calc_Engine736[OAT]))), IF($I$125="Proposed Trend Data",IF(ISBLANK(tbl_Chiller_Calc_Engine736[[#This Row],['# CWP2]]),MEDIAN($F$41,$G$41,FORECAST(tbl_Chiller_Calc_Engine736[[#This Row],[OAT]],tbl_Chiller_Calc_Engine736['# CWP2],tbl_Chiller_Calc_Engine736[OAT]))), ROUNDUP(MEDIAN($F$41,$G$41,TREND($F$41:$G$41,$F$42:$G$42,tbl_Chiller_Calc_Engine736[[#This Row],[OAT]])),0)))) -> 2 | Z167: =IF(tbl_Chiller_Calc_Engine736[[#This Row],[Hours]]=0,0,IF($I$125="Baseline Trend Data",IF(ISBLANK(tbl_Chiller_Calc_Engine736[[#This Row],[CWP Speed]]),MEDIAN($I$127,$J$127,FORECAST(tbl_Chiller_Calc_Engine736[[#This Row],[OAT]],tbl_Chiller_Calc_Engine736[CWP Speed],tbl_Chiller_Calc_Engine736[OAT]))), IF($I$125="Proposed Trend Data",IF(ISBLANK(tbl_Chiller_Calc_Engine736[[#This Row],[CWP Speed2]]),MEDIAN($I$127,$J$127,FORECAST(tbl_Chiller_Calc_Engine736[[#This Row],[OAT]],tbl_Chiller_Calc_Engine736[CWP Speed2],tbl_Chiller_Calc_Engine736[OAT]))), MEDIAN($I$127,$J$127,TREND($I$127:$J$127,$I$128:$J$128,tbl_Chiller_Calc_Engine736[[#This Row],[OAT]]))))) -> 1 | AA167: 2 | AB167: =IF(tbl_Chiller_Calc_Engine736[[#This Row],[Hours]]=0,0,IF($I$120="Baseline Trend Data",IF(ISBLANK(tbl_Chiller_Calc_Engine736[[#This Row],[Head in ft]]),MEDIAN($I$122,$J$122,FORECAST(tbl_Chiller_Calc_Engine736[[#This Row],[OAT]],tbl_Chiller_Calc_Engine736[Head in ft],tbl_Chiller_Calc_Engine736[OAT]))), IF($I$120="Proposed Trend Data",IF(ISBLANK(tbl_Chiller_Calc_Engine736[[#This Row],[Head in ft2]]),MEDIAN($I$122,$J$122,FORECAST(tbl_Chiller_Calc_Engine736[[#This Row],[OAT]],tbl_Chiller_Calc_Engine736[Head in ft2],tbl_Chiller_Calc_Engine736[OAT]))), ROUNDUP(MEDIAN($I$122,$J$122,TREND($I$122:$J$122,$I$123:$J$123,tbl_Chiller_Calc_Engine736[[#This Row],[OAT]]))*2.31,0)))) -> 104 | AC167: FALSE | AD167: =IF(OR(tbl_Chiller_Calc_Engine736[[#This Row],[Cooling Load (tons)2]]=0,tbl_Chiller_Calc_Engine736[[#This Row],[Econ Engaged]]),0,MEDIAN(0,MAX($W$124:$W$130),IFERROR(MATCH(tbl_Chiller_Calc_Engine736[[#This Row],[Cooling Load (tons)2]],$X$124:$X$130,1),0)+1)) -> 3 | AE167: =IF(tbl_Chiller_Calc_Engine736[[#This Row],[CT Load (Tons)]]=0,0,IFERROR(MEDIAN(0,MAX($Q$124:$Q$130),IFERROR(MATCH(tbl_Chiller_Calc_Engine736[[#This Row],[CT Load (Tons)]],$R$124:$R$130,1),0)+1),0)) -> 3 | AF167: =IF(OR(tbl_Chiller_Calc_Engine736[[#This Row],[Econ Engaged]],tbl_Chiller_Calc_Engine736[[#This Row],[Hours]]=0),0,SUMPRODUCT(tbl_Chiller_Calc_Engine736[[#This Row],[Cooling Load (tons)2]]*INDEX($Z$124:$AB$130,tbl_Chiller_Calc_Engine736[[#This Row],[CH Stage]],0)*$Z$118:$AB$118*(1-((tbl_Chiller_Calc_Engine736[[#This Row],[CHWST (°F)]]-$Z$119:$AB$119)+($Z$120:$AB$120-tbl_Chiller_Calc_Engine736[[#This Row],[CWST (°F)2]]))*$C$127))) -> 587.6074286 | AG167: 5876.074286 | AH167: =IF(tbl_Chiller_Calc_Engine736[[#This Row],[CH Stage]]=0,0,SUMPRODUCT(INDEX($T$124:$V$130,tbl_Chiller_Calc_Engine736[[#This Row],[CT Stage]],0),$D$133:$F$133)) -> 6.593434343 | AI167: =tbl_Chiller_Calc_Engine736[[#This Row],[PCHWP kW]]*tbl_Chiller_Calc_Engine736[[#This Row],[Hours]] -> 65.93434343 | AJ167: =(tbl_Chiller_Calc_Engine736[[#This Row],[SCHWP Qty]]*$C$129*$H$24*tbl_Chiller_Calc_Engine736[[#This Row],[SCHWP Speed2]]*tbl_Chiller_Calc_Engine736[[#This Row],[SCHWP Head]])/ (3960*$H$26*$H$27*IF($N$129=$F$129,1,$C$128)) -> 68.96828481 | AK167: =tbl_Chiller_Calc_Engine736[[#This Row],[SCHWP kW]]*tbl_Chiller_Calc_Engine736[[#This Row],[Hours]] -> 689.6828481 | AL167: =SUM(tbl_Chiller_Calc_Engine736[[#This Row],[Chiller Load kW]],tbl_Chiller_Calc_Engine736[[#This Row],[PCHWP kW]],tbl_Chiller_Calc_Engine736[[#This Row],[SCHWP kW]]) -> 663.1691477 | AM167: =SUM(tbl_Chiller_Calc_Engine736[[#This Row],[Chiller Load kWh]],tbl_Chiller_Calc_Engine736[[#This Row],[PCHWP kWh]],tbl_Chiller_Calc_Engine736[[#This Row],[SCHWP kWh]]) -> 6631.691477 | AN167: =IF(tbl_Chiller_Calc_Engine736[[#This Row],[CT Stage]]=0,0,SUMPRODUCT((IF(tbl_Chiller_Calc_Engine736[[#This Row],[CT Load (Tons)]]/INDEX($R$124:$R$130,tbl_Chiller_Calc_Engine736[[#This Row],[CT Stage]],0)>=$T$120:$V$120,tbl_Chiller_Calc_Engine736[[#This Row],[CT Load (Tons)]]/INDEX($R$124:$R$130,tbl_Chiller_Calc_Engine736[[#This Row],[CT Stage]],0),$T$120:$V$120)^$C$130*$T$118:$V$118*$C$129)/($C$128*$T$119:$V$119))) -> 22.83641899 | AO167: =tbl_Chiller_Calc_Engine736[[#This Row],[CT Fan kW]]*tbl_Chiller_Calc_Engine736[[#This Row],[Hours]] -> 228.3641899 | AP167: =(tbl_Chiller_Calc_Engine736[[#This Row],[CWP Qty]]*$C$129*$D$40*tbl_Chiller_Calc_Engine736[[#This Row],[CWP Speed3]]*$D$41)/ (3960*$D$42*$D$43*IF($I$129=$F$129,1,$C$128)) -> 46.54188948 | AQ167: =tbl_Chiller_Calc_Engine736[[#This Row],[CWP kW]]*tbl_Chiller_Calc_Engine736[[#This Row],[Hours]] -> 465.4188948
C168: 85 | D168: =IFERROR(AVERAGEIF(tbl_Climate_Zone[Dry_Bulb],tbl_Chiller_Calc_Engine736[[#This Row],[OAT]],tbl_Climate_Zone[Wet_Bulb]),0) -> 66.16666667 | E168: =SUM( COUNTIFS(tbl_Climate_Zone[Dry_Bulb],C168,tbl_Climate_Zone[Weekday],$C$12,tbl_Climate_Zone[Hour],">"&$D$12,tbl_Climate_Zone[Hour],"<="&$E$12), COUNTIFS(tbl_Climate_Zone[Dry_Bulb],C168,tbl_Climate_Zone[Weekday],$C$13,tbl_Climate_Zone[Hour],">"&$D$13,tbl_Climate_Zone[Hour],"<="&$E$13), COUNTIFS(tbl_Climate_Zone[Dry_Bulb],C168,tbl_Climate_Zone[Weekday],$C$14,tbl_Climate_Zone[Hour],">"&$D$14,tbl_Climate_Zone[Hour],"<="&$E$14)) -> 6 | T168: =IF(tbl_Chiller_Calc_Engine736[[#This Row],[Hours]]=0,0,IF($N$115="Baseline Trend Data", IF(ISBLANK(tbl_Chiller_Calc_Engine736[[#This Row],[ CHWST (°F)]]),MEDIAN($N$117,$O$117,FORECAST(tbl_Chiller_Calc_Engine736[[#This Row],[OAT]],tbl_Chiller_Calc_Engine736[ CHWST (°F)],tbl_Chiller_Calc_Engine736[OAT])),tbl_Chiller_Calc_Engine736[[#This Row],[ CHWST (°F)]]),IF($N$115="Proposed Trend Data", IF(ISBLANK(tbl_Chiller_Calc_Engine736[[#This Row],[ CHWST (°F)]]),MEDIAN($N$117,$O$117,FORECAST(tbl_Chiller_Calc_Engine736[[#This Row],[OAT]],tbl_Chiller_Calc_Engine736[ CHWST (°F)2],tbl_Chiller_Calc_Engine736[OAT])),tbl_Chiller_Calc_Engine736[[#This Row],[ CHWST (°F)2]]), MEDIAN($N$117,$O$117,TREND($N$117:$O$117,$N$118:$O$118,tbl_Chiller_Calc_Engine736[[#This Row],[OAT]]))))) -> 45 | U168: =IF(tbl_Chiller_Calc_Engine736[[#This Row],[Hours]]=0,0,IF($I$115="Baseline Trend Data", IF(ISBLANK(tbl_Chiller_Calc_Engine736[[#This Row],[CWST (°F)]]),MEDIAN($I$117,$J$117,FORECAST(tbl_Chiller_Calc_Engine736[[#This Row],[Average WBT]],tbl_Chiller_Calc_Engine736[CWST (°F)],tbl_Chiller_Calc_Engine736[Average WBT])),tbl_Chiller_Calc_Engine736[[#This Row],[CWST (°F)]]),IF($I$115="Proposed Trend Data", IF(ISBLANK(tbl_Chiller_Calc_Engine736[[#This Row],[CWST (°F)]]),MEDIAN($I$117,$J$117,FORECAST(tbl_Chiller_Calc_Engine736[[#This Row],[Average WBT]],tbl_Chiller_Calc_Engine736[CWST (°F)3],tbl_Chiller_Calc_Engine736[Average WBT])),tbl_Chiller_Calc_Engine736[[#This Row],[CWST (°F)3]]), MEDIAN($I$117,$J$117,TREND($I$117:$J$117,$I$118:$J$118,tbl_Chiller_Calc_Engine736[[#This Row],[Average WBT]]))))) -> 75 | V168: =IF(tbl_Chiller_Calc_Engine736[[#This Row],[Hours]]=0,0,IF($N$121="Baseline Trend Data",IF(ISBLANK(H168),FORECAST(C168,$H$138:$H$243,$C$138:$C$243),H168), IF($N$121 = "Proposed Trend Data",IF(ISBLANK(O168),FORECAST(C168,$O$138:$O$243,$C$138:$C$243),O168), IF(C168>=$N$131,MAX(TREND($N$122:$O$122,$N$123:$O$123,C168),0),0)))) -> 1228.571429 | W168: =IF(E168>0,V168*'Chilled Water System Template'!$C$131,0) -> 1535.714286 | X168: =IF(tbl_Chiller_Calc_Engine736[[#This Row],[Hours]]=0,0,IF($N$125="Baseline Trend Data",IF(ISBLANK(tbl_Chiller_Calc_Engine736[[#This Row],[SCHWP Speed]]),MEDIAN($N$127,$O$127,FORECAST(tbl_Chiller_Calc_Engine736[[#This Row],[OAT]],tbl_Chiller_Calc_Engine736[SCHWP Speed],tbl_Chiller_Calc_Engine736[OAT]))), IF($N$125="Proposed Trend Data",IF(ISBLANK(tbl_Chiller_Calc_Engine736[[#This Row],[SCHWP Speed3]]),MEDIAN($N$127,$O$127,FORECAST(tbl_Chiller_Calc_Engine736[[#This Row],[OAT]],tbl_Chiller_Calc_Engine736[SCHWP Speed3],tbl_Chiller_Calc_Engine736[OAT]))), MEDIAN($N$127,$O$127,TREND($N$127:$O$127,$N$128:$O$128,tbl_Chiller_Calc_Engine736[[#This Row],[OAT]]))))) -> 1 | Y168: =IF(tbl_Chiller_Calc_Engine736[[#This Row],[Hours]]=0,0,IF($I$125="Baseline Trend Data",IF(ISBLANK(tbl_Chiller_Calc_Engine736[[#This Row],['# CWP]]),MEDIAN($F$41,$G$41,FORECAST(tbl_Chiller_Calc_Engine736[[#This Row],[OAT]],tbl_Chiller_Calc_Engine736['# CWP],tbl_Chiller_Calc_Engine736[OAT]))), IF($I$125="Proposed Trend Data",IF(ISBLANK(tbl_Chiller_Calc_Engine736[[#This Row],['# CWP2]]),MEDIAN($F$41,$G$41,FORECAST(tbl_Chiller_Calc_Engine736[[#This Row],[OAT]],tbl_Chiller_Calc_Engine736['# CWP2],tbl_Chiller_Calc_Engine736[OAT]))), ROUNDUP(MEDIAN($F$41,$G$41,TREND($F$41:$G$41,$F$42:$G$42,tbl_Chiller_Calc_Engine736[[#This Row],[OAT]])),0)))) -> 2 | Z168: =IF(tbl_Chiller_Calc_Engine736[[#This Row],[Hours]]=0,0,IF($I$125="Baseline Trend Data",IF(ISBLANK(tbl_Chiller_Calc_Engine736[[#This Row],[CWP Speed]]),MEDIAN($I$127,$J$127,FORECAST(tbl_Chiller_Calc_Engine736[[#This Row],[OAT]],tbl_Chiller_Calc_Engine736[CWP Speed],tbl_Chiller_Calc_Engine736[OAT]))), IF($I$125="Proposed Trend Data",IF(ISBLANK(tbl_Chiller_Calc_Engine736[[#This Row],[CWP Speed2]]),MEDIAN($I$127,$J$127,FORECAST(tbl_Chiller_Calc_Engine736[[#This Row],[OAT]],tbl_Chiller_Calc_Engine736[CWP Speed2],tbl_Chiller_Calc_Engine736[OAT]))), MEDIAN($I$127,$J$127,TREND($I$127:$J$127,$I$128:$J$128,tbl_Chiller_Calc_Engine736[[#This Row],[OAT]]))))) -> 1 | AA168: 2 | AB168: =IF(tbl_Chiller_Calc_Engine736[[#This Row],[Hours]]=0,0,IF($I$120="Baseline Trend Data",IF(ISBLANK(tbl_Chiller_Calc_Engine736[[#This Row],[Head in ft]]),MEDIAN($I$122,$J$122,FORECAST(tbl_Chiller_Calc_Engine736[[#This Row],[OAT]],tbl_Chiller_Calc_Engine736[Head in ft],tbl_Chiller_Calc_Engine736[OAT]))), IF($I$120="Proposed Trend Data",IF(ISBLANK(tbl_Chiller_Calc_Engine736[[#This Row],[Head in ft2]]),MEDIAN($I$122,$J$122,FORECAST(tbl_Chiller_Calc_Engine736[[#This Row],[OAT]],tbl_Chiller_Calc_Engine736[Head in ft2],tbl_Chiller_Calc_Engine736[OAT]))), ROUNDUP(MEDIAN($I$122,$J$122,TREND($I$122:$J$122,$I$123:$J$123,tbl_Chiller_Calc_Engine736[[#This Row],[OAT]]))*2.31,0)))) -> 104 | AC168: FALSE | AD168: =IF(OR(tbl_Chiller_Calc_Engine736[[#This Row],[Cooling Load (tons)2]]=0,tbl_Chiller_Calc_Engine736[[#This Row],[Econ Engaged]]),0,MEDIAN(0,MAX($W$124:$W$130),IFERROR(MATCH(tbl_Chiller_Calc_Engine736[[#This Row],[Cooling Load (tons)2]],$X$124:$X$130,1),0)+1)) -> 3 | AE168: =IF(tbl_Chiller_Calc_Engine736[[#This Row],[CT Load (Tons)]]=0,0,IFERROR(MEDIAN(0,MAX($Q$124:$Q$130),IFERROR(MATCH(tbl_Chiller_Calc_Engine736[[#This Row],[CT Load (Tons)]],$R$124:$R$130,1),0)+1),0)) -> 3 | AF168: =IF(OR(tbl_Chiller_Calc_Engine736[[#This Row],[Econ Engaged]],tbl_Chiller_Calc_Engine736[[#This Row],[Hours]]=0),0,SUMPRODUCT(tbl_Chiller_Calc_Engine736[[#This Row],[Cooling Load (tons)2]]*INDEX($Z$124:$AB$130,tbl_Chiller_Calc_Engine736[[#This Row],[CH Stage]],0)*$Z$118:$AB$118*(1-((tbl_Chiller_Calc_Engine736[[#This Row],[CHWST (°F)]]-$Z$119:$AB$119)+($Z$120:$AB$120-tbl_Chiller_Calc_Engine736[[#This Row],[CWST (°F)2]]))*$C$127))) -> 571.6542857 | AG168: 3429.925714 | AH168: =IF(tbl_Chiller_Calc_Engine736[[#This Row],[CH Stage]]=0,0,SUMPRODUCT(INDEX($T$124:$V$130,tbl_Chiller_Calc_Engine736[[#This Row],[CT Stage]],0),$D$133:$F$133)) -> 6.593434343 | AI168: =tbl_Chiller_Calc_Engine736[[#This Row],[PCHWP kW]]*tbl_Chiller_Calc_Engine736[[#This Row],[Hours]] -> 39.56060606 | AJ168: =(tbl_Chiller_Calc_Engine736[[#This Row],[SCHWP Qty]]*$C$129*$H$24*tbl_Chiller_Calc_Engine736[[#This Row],[SCHWP Speed2]]*tbl_Chiller_Calc_Engine736[[#This Row],[SCHWP Head]])/ (3960*$H$26*$H$27*IF($N$129=$F$129,1,$C$128)) -> 68.96828481 | AK168: =tbl_Chiller_Calc_Engine736[[#This Row],[SCHWP kW]]*tbl_Chiller_Calc_Engine736[[#This Row],[Hours]] -> 413.8097089 | AL168: =SUM(tbl_Chiller_Calc_Engine736[[#This Row],[Chiller Load kW]],tbl_Chiller_Calc_Engine736[[#This Row],[PCHWP kW]],tbl_Chiller_Calc_Engine736[[#This Row],[SCHWP kW]]) -> 647.2160049 | AM168: =SUM(tbl_Chiller_Calc_Engine736[[#This Row],[Chiller Load kWh]],tbl_Chiller_Calc_Engine736[[#This Row],[PCHWP kWh]],tbl_Chiller_Calc_Engine736[[#This Row],[SCHWP kWh]]) -> 3883.296029 | AN168: =IF(tbl_Chiller_Calc_Engine736[[#This Row],[CT Stage]]=0,0,SUMPRODUCT((IF(tbl_Chiller_Calc_Engine736[[#This Row],[CT Load (Tons)]]/INDEX($R$124:$R$130,tbl_Chiller_Calc_Engine736[[#This Row],[CT Stage]],0)>=$T$120:$V$120,tbl_Chiller_Calc_Engine736[[#This Row],[CT Load (Tons)]]/INDEX($R$124:$R$130,tbl_Chiller_Calc_Engine736[[#This Row],[CT Stage]],0),$T$120:$V$120)^$C$130*$T$118:$V$118*$C$129)/($C$128*$T$119:$V$119))) -> 21.31785325 | AO168: =tbl_Chiller_Calc_Engine736[[#This Row],[CT Fan kW]]*tbl_Chiller_Calc_Engine736[[#This Row],[Hours]] -> 127.9071195 | AP168: =(tbl_Chiller_Calc_Engine736[[#This Row],[CWP Qty]]*$C$129*$D$40*tbl_Chiller_Calc_Engine736[[#This Row],[CWP Speed3]]*$D$41)/ (3960*$D$42*$D$43*IF($I$129=$F$129,1,$C$128)) -> 46.54188948 | AQ168: =tbl_Chiller_Calc_Engine736[[#This Row],[CWP kW]]*tbl_Chiller_Calc_Engine736[[#This Row],[Hours]] -> 279.2513369
C169: 84 | D169: =IFERROR(AVERAGEIF(tbl_Climate_Zone[Dry_Bulb],tbl_Chiller_Calc_Engine736[[#This Row],[OAT]],tbl_Climate_Zone[Wet_Bulb]),0) -> 63.125 | E169: =SUM( COUNTIFS(tbl_Climate_Zone[Dry_Bulb],C169,tbl_Climate_Zone[Weekday],$C$12,tbl_Climate_Zone[Hour],">"&$D$12,tbl_Climate_Zone[Hour],"<="&$E$12), COUNTIFS(tbl_Climate_Zone[Dry_Bulb],C169,tbl_Climate_Zone[Weekday],$C$13,tbl_Climate_Zone[Hour],">"&$D$13,tbl_Climate_Zone[Hour],"<="&$E$13), COUNTIFS(tbl_Climate_Zone[Dry_Bulb],C169,tbl_Climate_Zone[Weekday],$C$14,tbl_Climate_Zone[Hour],">"&$D$14,tbl_Climate_Zone[Hour],"<="&$E$14)) -> 8 | T169: =IF(tbl_Chiller_Calc_Engine736[[#This Row],[Hours]]=0,0,IF($N$115="Baseline Trend Data", IF(ISBLANK(tbl_Chiller_Calc_Engine736[[#This Row],[ CHWST (°F)]]),MEDIAN($N$117,$O$117,FORECAST(tbl_Chiller_Calc_Engine736[[#This Row],[OAT]],tbl_Chiller_Calc_Engine736[ CHWST (°F)],tbl_Chiller_Calc_Engine736[OAT])),tbl_Chiller_Calc_Engine736[[#This Row],[ CHWST (°F)]]),IF($N$115="Proposed Trend Data", IF(ISBLANK(tbl_Chiller_Calc_Engine736[[#This Row],[ CHWST (°F)]]),MEDIAN($N$117,$O$117,FORECAST(tbl_Chiller_Calc_Engine736[[#This Row],[OAT]],tbl_Chiller_Calc_Engine736[ CHWST (°F)2],tbl_Chiller_Calc_Engine736[OAT])),tbl_Chiller_Calc_Engine736[[#This Row],[ CHWST (°F)2]]), MEDIAN($N$117,$O$117,TREND($N$117:$O$117,$N$118:$O$118,tbl_Chiller_Calc_Engine736[[#This Row],[OAT]]))))) -> 45 | U169: =IF(tbl_Chiller_Calc_Engine736[[#This Row],[Hours]]=0,0,IF($I$115="Baseline Trend Data", IF(ISBLANK(tbl_Chiller_Calc_Engine736[[#This Row],[CWST (°F)]]),MEDIAN($I$117,$J$117,FORECAST(tbl_Chiller_Calc_Engine736[[#This Row],[Average WBT]],tbl_Chiller_Calc_Engine736[CWST (°F)],tbl_Chiller_Calc_Engine736[Average WBT])),tbl_Chiller_Calc_Engine736[[#This Row],[CWST (°F)]]),IF($I$115="Proposed Trend Data", IF(ISBLANK(tbl_Chiller_Calc_Engine736[[#This Row],[CWST (°F)]]),MEDIAN($I$117,$J$117,FORECAST(tbl_Chiller_Calc_Engine736[[#This Row],[Average WBT]],tbl_Chiller_Calc_Engine736[CWST (°F)3],tbl_Chiller_Calc_Engine736[Average WBT])),tbl_Chiller_Calc_Engine736[[#This Row],[CWST (°F)3]]), MEDIAN($I$117,$J$117,TREND($I$117:$J$117,$I$118:$J$118,tbl_Chiller_Calc_Engine736[[#This Row],[Average WBT]]))))) -> 75 | V169: =IF(tbl_Chiller_Calc_Engine736[[#This Row],[Hours]]=0,0,IF($N$121="Baseline Trend Data",IF(ISBLANK(H169),FORECAST(C169,$H$138:$H$243,$C$138:$C$243),H169), IF($N$121 = "Proposed Trend Data",IF(ISBLANK(O169),FORECAST(C169,$O$138:$O$243,$C$138:$C$243),O169), IF(C169>=$N$131,MAX(TREND($N$122:$O$122,$N$123:$O$123,C169),0),0)))) -> 1194.285714 | W169: =IF(E169>0,V169*'Chilled Water System Template'!$C$131,0) -> 1492.857143 | X169: =IF(tbl_Chiller_Calc_Engine736[[#This Row],[Hours]]=0,0,IF($N$125="Baseline Trend Data",IF(ISBLANK(tbl_Chiller_Calc_Engine736[[#This Row],[SCHWP Speed]]),MEDIAN($N$127,$O$127,FORECAST(tbl_Chiller_Calc_Engine736[[#This Row],[OAT]],tbl_Chiller_Calc_Engine736[SCHWP Speed],tbl_Chiller_Calc_Engine736[OAT]))), IF($N$125="Proposed Trend Data",IF(ISBLANK(tbl_Chiller_Calc_Engine736[[#This Row],[SCHWP Speed3]]),MEDIAN($N$127,$O$127,FORECAST(tbl_Chiller_Calc_Engine736[[#This Row],[OAT]],tbl_Chiller_Calc_Engine736[SCHWP Speed3],tbl_Chiller_Calc_Engine736[OAT]))), MEDIAN($N$127,$O$127,TREND($N$127:$O$127,$N$128:$O$128,tbl_Chiller_Calc_Engine736[[#This Row],[OAT]]))))) -> 1 | Y169: =IF(tbl_Chiller_Calc_Engine736[[#This Row],[Hours]]=0,0,IF($I$125="Baseline Trend Data",IF(ISBLANK(tbl_Chiller_Calc_Engine736[[#This Row],['# CWP]]),MEDIAN($F$41,$G$41,FORECAST(tbl_Chiller_Calc_Engine736[[#This Row],[OAT]],tbl_Chiller_Calc_Engine736['# CWP],tbl_Chiller_Calc_Engine736[OAT]))), IF($I$125="Proposed Trend Data",IF(ISBLANK(tbl_Chiller_Calc_Engine736[[#This Row],['# CWP2]]),MEDIAN($F$41,$G$41,FORECAST(tbl_Chiller_Calc_Engine736[[#This Row],[OAT]],tbl_Chiller_Calc_Engine736['# CWP2],tbl_Chiller_Calc_Engine736[OAT]))), ROUNDUP(MEDIAN($F$41,$G$41,TREND($F$41:$G$41,$F$42:$G$42,tbl_Chiller_Calc_Engine736[[#This Row],[OAT]])),0)))) -> 2 | Z169: =IF(tbl_Chiller_Calc_Engine736[[#This Row],[Hours]]=0,0,IF($I$125="Baseline Trend Data",IF(ISBLANK(tbl_Chiller_Calc_Engine736[[#This Row],[CWP Speed]]),MEDIAN($I$127,$J$127,FORECAST(tbl_Chiller_Calc_Engine736[[#This Row],[OAT]],tbl_Chiller_Calc_Engine736[CWP Speed],tbl_Chiller_Calc_Engine736[OAT]))), IF($I$125="Proposed Trend Data",IF(ISBLANK(tbl_Chiller_Calc_Engine736[[#This Row],[CWP Speed2]]),MEDIAN($I$127,$J$127,FORECAST(tbl_Chiller_Calc_Engine736[[#This Row],[OAT]],tbl_Chiller_Calc_Engine736[CWP Speed2],tbl_Chiller_Calc_Engine736[OAT]))), MEDIAN($I$127,$J$127,TREND($I$127:$J$127,$I$128:$J$128,tbl_Chiller_Calc_Engine736[[#This Row],[OAT]]))))) -> 1 | AA169: 2 | AB169: =IF(tbl_Chiller_Calc_Engine736[[#This Row],[Hours]]=0,0,IF($I$120="Baseline Trend Data",IF(ISBLANK(tbl_Chiller_Calc_Engine736[[#This Row],[Head in ft]]),MEDIAN($I$122,$J$122,FORECAST(tbl_Chiller_Calc_Engine736[[#This Row],[OAT]],tbl_Chiller_Calc_Engine736[Head in ft],tbl_Chiller_Calc_Engine736[OAT]))), IF($I$120="Proposed Trend Data",IF(ISBLANK(tbl_Chiller_Calc_Engine736[[#This Row],[Head in ft2]]),MEDIAN($I$122,$J$122,FORECAST(tbl_Chiller_Calc_Engine736[[#This Row],[OAT]],tbl_Chiller_Calc_Engine736[Head in ft2],tbl_Chiller_Calc_Engine736[OAT]))), ROUNDUP(MEDIAN($I$122,$J$122,TREND($I$122:$J$122,$I$123:$J$123,tbl_Chiller_Calc_Engine736[[#This Row],[OAT]]))*2.31,0)))) -> 104 | AC169: FALSE | AD169: =IF(OR(tbl_Chiller_Calc_Engine736[[#This Row],[Cooling Load (tons)2]]=0,tbl_Chiller_Calc_Engine736[[#This Row],[Econ Engaged]]),0,MEDIAN(0,MAX($W$124:$W$130),IFERROR(MATCH(tbl_Chiller_Calc_Engine736[[#This Row],[Cooling Load (tons)2]],$X$124:$X$130,1),0)+1)) -> 3 | AE169: =IF(tbl_Chiller_Calc_Engine736[[#This Row],[CT Load (Tons)]]=0,0,IFERROR(MEDIAN(0,MAX($Q$124:$Q$130),IFERROR(MATCH(tbl_Chiller_Calc_Engine736[[#This Row],[CT Load (Tons)]],$R$124:$R$130,1),0)+1),0)) -> 3 | AF169: =IF(OR(tbl_Chiller_Calc_Engine736[[#This Row],[Econ Engaged]],tbl_Chiller_Calc_Engine736[[#This Row],[Hours]]=0),0,SUMPRODUCT(tbl_Chiller_Calc_Engine736[[#This Row],[Cooling Load (tons)2]]*INDEX($Z$124:$AB$130,tbl_Chiller_Calc_Engine736[[#This Row],[CH Stage]],0)*$Z$118:$AB$118*(1-((tbl_Chiller_Calc_Engine736[[#This Row],[CHWST (°F)]]-$Z$119:$AB$119)+($Z$120:$AB$120-tbl_Chiller_Calc_Engine736[[#This Row],[CWST (°F)2]]))*$C$127))) -> 555.7011429 | AG169: 4445.609143 | AH169: =IF(tbl_Chiller_Calc_Engine736[[#This Row],[CH Stage]]=0,0,SUMPRODUCT(INDEX($T$124:$V$130,tbl_Chiller_Calc_Engine736[[#This Row],[CT Stage]],0),$D$133:$F$133)) -> 6.593434343 | AI169: =tbl_Chiller_Calc_Engine736[[#This Row],[PCHWP kW]]*tbl_Chiller_Calc_Engine736[[#This Row],[Hours]] -> 52.74747475 | AJ169: =(tbl_Chiller_Calc_Engine736[[#This Row],[SCHWP Qty]]*$C$129*$H$24*tbl_Chiller_Calc_Engine736[[#This Row],[SCHWP Speed2]]*tbl_Chiller_Calc_Engine736[[#This Row],[SCHWP Head]])/ (3960*$H$26*$H$27*IF($N$129=$F$129,1,$C$128)) -> 68.96828481 | AK169: =tbl_Chiller_Calc_Engine736[[#This Row],[SCHWP kW]]*tbl_Chiller_Calc_Engine736[[#This Row],[Hours]] -> 551.7462785 | AL169: =SUM(tbl_Chiller_Calc_Engine736[[#This Row],[Chiller Load kW]],tbl_Chiller_Calc_Engine736[[#This Row],[PCHWP kW]],tbl_Chiller_Calc_Engine736[[#This Row],[SCHWP kW]]) -> 631.262862 | AM169: =SUM(tbl_Chiller_Calc_Engine736[[#This Row],[Chiller Load kWh]],tbl_Chiller_Calc_Engine736[[#This Row],[PCHWP kWh]],tbl_Chiller_Calc_Engine736[[#This Row],[SCHWP kWh]]) -> 5050.102896 | AN169: =IF(tbl_Chiller_Calc_Engine736[[#This Row],[CT Stage]]=0,0,SUMPRODUCT((IF(tbl_Chiller_Calc_Engine736[[#This Row],[CT Load (Tons)]]/INDEX($R$124:$R$130,tbl_Chiller_Calc_Engine736[[#This Row],[CT Stage]],0)>=$T$120:$V$120,tbl_Chiller_Calc_Engine736[[#This Row],[CT Load (Tons)]]/INDEX($R$124:$R$130,tbl_Chiller_Calc_Engine736[[#This Row],[CT Stage]],0),$T$120:$V$120)^$C$130*$T$118:$V$118*$C$129)/($C$128*$T$119:$V$119))) -> 19.86154523 | AO169: =tbl_Chiller_Calc_Engine736[[#This Row],[CT Fan kW]]*tbl_Chiller_Calc_Engine736[[#This Row],[Hours]] -> 158.8923619 | AP169: =(tbl_Chiller_Calc_Engine736[[#This Row],[CWP Qty]]*$C$129*$D$40*tbl_Chiller_Calc_Engine736[[#This Row],[CWP Speed3]]*$D$41)/ (3960*$D$42*$D$43*IF($I$129=$F$129,1,$C$128)) -> 46.54188948 | AQ169: =tbl_Chiller_Calc_Engine736[[#This Row],[CWP kW]]*tbl_Chiller_Calc_Engine736[[#This Row],[Hours]] -> 372.3351159
C170: 83 | D170: =IFERROR(AVERAGEIF(tbl_Climate_Zone[Dry_Bulb],tbl_Chiller_Calc_Engine736[[#This Row],[OAT]],tbl_Climate_Zone[Wet_Bulb]),0) -> 65.8 | E170: =SUM( COUNTIFS(tbl_Climate_Zone[Dry_Bulb],C170,tbl_Climate_Zone[Weekday],$C$12,tbl_Climate_Zone[Hour],">"&$D$12,tbl_Climate_Zone[Hour],"<="&$E$12), COUNTIFS(tbl_Climate_Zone[Dry_Bulb],C170,tbl_Climate_Zone[Weekday],$C$13,tbl_Climate_Zone[Hour],">"&$D$13,tbl_Climate_Zone[Hour],"<="&$E$13), COUNTIFS(tbl_Climate_Zone[Dry_Bulb],C170,tbl_Climate_Zone[Weekday],$C$14,tbl_Climate_Zone[Hour],">"&$D$14,tbl_Climate_Zone[Hour],"<="&$E$14)) -> 15 | T170: =IF(tbl_Chiller_Calc_Engine736[[#This Row],[Hours]]=0,0,IF($N$115="Baseline Trend Data", IF(ISBLANK(tbl_Chiller_Calc_Engine736[[#This Row],[ CHWST (°F)]]),MEDIAN($N$117,$O$117,FORECAST(tbl_Chiller_Calc_Engine736[[#This Row],[OAT]],tbl_Chiller_Calc_Engine736[ CHWST (°F)],tbl_Chiller_Calc_Engine736[OAT])),tbl_Chiller_Calc_Engine736[[#This Row],[ CHWST (°F)]]),IF($N$115="Proposed Trend Data", IF(ISBLANK(tbl_Chiller_Calc_Engine736[[#This Row],[ CHWST (°F)]]),MEDIAN($N$117,$O$117,FORECAST(tbl_Chiller_Calc_Engine736[[#This Row],[OAT]],tbl_Chiller_Calc_Engine736[ CHWST (°F)2],tbl_Chiller_Calc_Engine736[OAT])),tbl_Chiller_Calc_Engine736[[#This Row],[ CHWST (°F)2]]), MEDIAN($N$117,$O$117,TREND($N$117:$O$117,$N$118:$O$118,tbl_Chiller_Calc_Engine736[[#This Row],[OAT]]))))) -> 45 | U170: =IF(tbl_Chiller_Calc_Engine736[[#This Row],[Hours]]=0,0,IF($I$115="Baseline Trend Data", IF(ISBLANK(tbl_Chiller_Calc_Engine736[[#This Row],[CWST (°F)]]),MEDIAN($I$117,$J$117,FORECAST(tbl_Chiller_Calc_Engine736[[#This Row],[Average WBT]],tbl_Chiller_Calc_Engine736[CWST (°F)],tbl_Chiller_Calc_Engine736[Average WBT])),tbl_Chiller_Calc_Engine736[[#This Row],[CWST (°F)]]),IF($I$115="Proposed Trend Data", IF(ISBLANK(tbl_Chiller_Calc_Engine736[[#This Row],[CWST (°F)]]),MEDIAN($I$117,$J$117,FORECAST(tbl_Chiller_Calc_Engine736[[#This Row],[Average WBT]],tbl_Chiller_Calc_Engine736[CWST (°F)3],tbl_Chiller_Calc_Engine736[Average WBT])),tbl_Chiller_Calc_Engine736[[#This Row],[CWST (°F)3]]), MEDIAN($I$117,$J$117,TREND($I$117:$J$117,$I$118:$J$118,tbl_Chiller_Calc_Engine736[[#This Row],[Average WBT]]))))) -> 75 | V170: =IF(tbl_Chiller_Calc_Engine736[[#This Row],[Hours]]=0,0,IF($N$121="Baseline Trend Data",IF(ISBLANK(H170),FORECAST(C170,$H$138:$H$243,$C$138:$C$243),H170), IF($N$121 = "Proposed Trend Data",IF(ISBLANK(O170),FORECAST(C170,$O$138:$O$243,$C$138:$C$243),O170), IF(C170>=$N$131,MAX(TREND($N$122:$O$122,$N$123:$O$123,C170),0),0)))) -> 1160 | W170: =IF(E170>0,V170*'Chilled Water System Template'!$C$131,0) -> 1450 | X170: =IF(tbl_Chiller_Calc_Engine736[[#This Row],[Hours]]=0,0,IF($N$125="Baseline Trend Data",IF(ISBLANK(tbl_Chiller_Calc_Engine736[[#This Row],[SCHWP Speed]]),MEDIAN($N$127,$O$127,FORECAST(tbl_Chiller_Calc_Engine736[[#This Row],[OAT]],tbl_Chiller_Calc_Engine736[SCHWP Speed],tbl_Chiller_Calc_Engine736[OAT]))), IF($N$125="Proposed Trend Data",IF(ISBLANK(tbl_Chiller_Calc_Engine736[[#This Row],[SCHWP Speed3]]),MEDIAN($N$127,$O$127,FORECAST(tbl_Chiller_Calc_Engine736[[#This Row],[OAT]],tbl_Chiller_Calc_Engine736[SCHWP Speed3],tbl_Chiller_Calc_Engine736[OAT]))), MEDIAN($N$127,$O$127,TREND($N$127:$O$127,$N$128:$O$128,tbl_Chiller_Calc_Engine736[[#This Row],[OAT]]))))) -> 1 | Y170: =IF(tbl_Chiller_Calc_Engine736[[#This Row],[Hours]]=0,0,IF($I$125="Baseline Trend Data",IF(ISBLANK(tbl_Chiller_Calc_Engine736[[#This Row],['# CWP]]),MEDIAN($F$41,$G$41,FORECAST(tbl_Chiller_Calc_Engine736[[#This Row],[OAT]],tbl_Chiller_Calc_Engine736['# CWP],tbl_Chiller_Calc_Engine736[OAT]))), IF($I$125="Proposed Trend Data",IF(ISBLANK(tbl_Chiller_Calc_Engine736[[#This Row],['# CWP2]]),MEDIAN($F$41,$G$41,FORECAST(tbl_Chiller_Calc_Engine736[[#This Row],[OAT]],tbl_Chiller_Calc_Engine736['# CWP2],tbl_Chiller_Calc_Engine736[OAT]))), ROUNDUP(MEDIAN($F$41,$G$41,TREND($F$41:$G$41,$F$42:$G$42,tbl_Chiller_Calc_Engine736[[#This Row],[OAT]])),0)))) -> 2 | Z170: =IF(tbl_Chiller_Calc_Engine736[[#This Row],[Hours]]=0,0,IF($I$125="Baseline Trend Data",IF(ISBLANK(tbl_Chiller_Calc_Engine736[[#This Row],[CWP Speed]]),MEDIAN($I$127,$J$127,FORECAST(tbl_Chiller_Calc_Engine736[[#This Row],[OAT]],tbl_Chiller_Calc_Engine736[CWP Speed],tbl_Chiller_Calc_Engine736[OAT]))), IF($I$125="Proposed Trend Data",IF(ISBLANK(tbl_Chiller_Calc_Engine736[[#This Row],[CWP Speed2]]),MEDIAN($I$127,$J$127,FORECAST(tbl_Chiller_Calc_Engine736[[#This Row],[OAT]],tbl_Chiller_Calc_Engine736[CWP Speed2],tbl_Chiller_Calc_Engine736[OAT]))), MEDIAN($I$127,$J$127,TREND($I$127:$J$127,$I$128:$J$128,tbl_Chiller_Calc_Engine736[[#This Row],[OAT]]))))) -> 1 | AA170: 2 | AB170: =IF(tbl_Chiller_Calc_Engine736[[#This Row],[Hours]]=0,0,IF($I$120="Baseline Trend Data",IF(ISBLANK(tbl_Chiller_Calc_Engine736[[#This Row],[Head in ft]]),MEDIAN($I$122,$J$122,FORECAST(tbl_Chiller_Calc_Engine736[[#This Row],[OAT]],tbl_Chiller_Calc_Engine736[Head in ft],tbl_Chiller_Calc_Engine736[OAT]))), IF($I$120="Proposed Trend Data",IF(ISBLANK(tbl_Chiller_Calc_Engine736[[#This Row],[Head in ft2]]),MEDIAN($I$122,$J$122,FORECAST(tbl_Chiller_Calc_Engine736[[#This Row],[OAT]],tbl_Chiller_Calc_Engine736[Head in ft2],tbl_Chiller_Calc_Engine736[OAT]))), ROUNDUP(MEDIAN($I$122,$J$122,TREND($I$122:$J$122,$I$123:$J$123,tbl_Chiller_Calc_Engine736[[#This Row],[OAT]]))*2.31,0)))) -> 104 | AC170: =AND(SUM(D170,$I$131,$I$133)<=T170,D170<=$I$132) -> FALSE | AD170: =IF(OR(tbl_Chiller_Calc_Engine736[[#This Row],[Cooling Load (tons)2]]=0,tbl_Chiller_Calc_Engine736[[#This Row],[Econ Engaged]]),0,MEDIAN(0,MAX($W$124:$W$130),IFERROR(MATCH(tbl_Chiller_Calc_Engine736[[#This Row],[Cooling Load (tons)2]],$X$124:$X$130,1),0)+1)) -> 3 | AE170: =IF(tbl_Chiller_Calc_Engine736[[#This Row],[CT Load (Tons)]]=0,0,IFERROR(MEDIAN(0,MAX($Q$124:$Q$130),IFERROR(MATCH(tbl_Chiller_Calc_Engine736[[#This Row],[CT Load (Tons)]],$R$124:$R$130,1),0)+1),0)) -> 3 | AF170: =IF(OR(tbl_Chiller_Calc_Engine736[[#This Row],[Econ Engaged]],tbl_Chiller_Calc_Engine736[[#This Row],[Hours]]=0),0,SUMPRODUCT(tbl_Chiller_Calc_Engine736[[#This Row],[Cooling Load (tons)2]]*INDEX($Z$124:$AB$130,tbl_Chiller_Calc_Engine736[[#This Row],[CH Stage]],0)*$Z$118:$AB$118*(1-((tbl_Chiller_Calc_Engine736[[#This Row],[CHWST (°F)]]-$Z$119:$AB$119)+($Z$120:$AB$120-tbl_Chiller_Calc_Engine736[[#This Row],[CWST (°F)2]]))*$C$127))) -> 539.748 | AG170: =AF170*E170 -> 8096.22 | AH170: =IF(tbl_Chiller_Calc_Engine736[[#This Row],[CH Stage]]=0,0,SUMPRODUCT(INDEX($T$124:$V$130,tbl_Chiller_Calc_Engine736[[#This Row],[CT Stage]],0),$D$133:$F$133)) -> 6.593434343 | AI170: =tbl_Chiller_Calc_Engine736[[#This Row],[PCHWP kW]]*tbl_Chiller_Calc_Engine736[[#This Row],[Hours]] -> 98.90151515 | AJ170: =(tbl_Chiller_Calc_Engine736[[#This Row],[SCHWP Qty]]*$C$129*$H$24*tbl_Chiller_Calc_Engine736[[#This Row],[SCHWP Speed2]]*tbl_Chiller_Calc_Engine736[[#This Row],[SCHWP Head]])/ (3960*$H$26*$H$27*IF($N$129=$F$129,1,$C$128)) -> 68.96828481 | AK170: =tbl_Chiller_Calc_Engine736[[#This Row],[SCHWP kW]]*tbl_Chiller_Calc_Engine736[[#This Row],[Hours]] -> 1034.524272 | AL170: =SUM(tbl_Chiller_Calc_Engine736[[#This Row],[Chiller Load kW]],tbl_Chiller_Calc_Engine736[[#This Row],[PCHWP kW]],tbl_Chiller_Calc_Engine736[[#This Row],[SCHWP kW]]) -> 615.3097192 | AM170: =SUM(tbl_Chiller_Calc_Engine736[[#This Row],[Chiller Load kWh]],tbl_Chiller_Calc_Engine736[[#This Row],[PCHWP kWh]],tbl_Chiller_Calc_Engine736[[#This Row],[SCHWP kWh]]) -> 9229.645787 | AN170: =IF(tbl_Chiller_Calc_Engine736[[#This Row],[CT Stage]]=0,0,SUMPRODUCT((IF(tbl_Chiller_Calc_Engine736[[#This Row],[CT Load (Tons)]]/INDEX($R$124:$R$130,tbl_Chiller_Calc_Engine736[[#This Row],[CT Stage]],0)>=$T$120:$V$120,tbl_Chiller_Calc_Engine736[[#This Row],[CT Load (Tons)]]/INDEX($R$124:$R$130,tbl_Chiller_Calc_Engine736[[#This Row],[CT Stage]],0),$T$120:$V$120)^$C$130*$T$118:$V$118*$C$129)/($C$128*$T$119:$V$119))) -> 18.46662003 | AO170: =tbl_Chiller_Calc_Engine736[[#This Row],[CT Fan kW]]*tbl_Chiller_Calc_Engine736[[#This Row],[Hours]] -> 276.9993004 | AP170: =(tbl_Chiller_Calc_Engine736[[#This Row],[CWP Qty]]*$C$129*$D$40*tbl_Chiller_Calc_Engine736[[#This Row],[CWP Speed3]]*$D$41)/ (3960*$D$42*$D$43*IF($I$129=$F$129,1,$C$128)) -> 46.54188948 | AQ170: =tbl_Chiller_Calc_Engine736[[#This Row],[CWP kW]]*tbl_Chiller_Calc_Engine736[[#This Row],[Hours]] -> 698.1283422
